{"text_format":"1","workbook":"xlsx","n_sheets":9,"sheets":["Details Page","Instructions Page","Local Option Businesses by Loc","Vlookup_Data1","QA Sheet","121a Source Data","121A (Boston) Source Data","Pivot commName List","City and towns"],"not_rendered":{"charts":0,"images":1,"macros":1,"external_links":0,"defined_names":6,"comments":1,"pivot_tables":1},"unopened":[],"bounds":{"document_bytes":16777216,"sheet_cells":100000,"rows_first":2000,"rows_last":500,"rows_between":2000,"halvings":0,"cell_chars":16384,"cell_head_chars":4096},"cells_cut":0,"cells_raw":0,"read":"whole","date_system":"1900"}

{"sheet":"Details Page","index":0,"n_rows":438,"n_cols":19,"rows_kept":438,"cut":false,"hidden":false,"merged":[]}
[null,null,null,null,null,null,null,"Select your Community","Name","Mailing Address","Commence","Cease","LocalityCode","City","County"]
[null,null,null,null,null,null,null,"0001 - Abington","BARRETT HOUSING CORP","45 WOOD AVE PITTSFIELD MA 01201-5614","2014-11-01","2014-11-01","0004 - Adams","ADAMS","BERKSHIRE"]
[null,null,null,null,null,null,null,"0002 - Acton","AMHERST CLARK HOUSE LIMITED PARTNERSHIP","3101 BEE CAVES RD STE 220 AUSTIN TX 78746-5574","2017-01-01",null,"0004 - Adams","ADAMS","BERKSHIRE"]
[null,null,null,null,null,null,null,"0003 - Acushnet","CLARK HOUSE ASSOCIATES","540 NORTH COMMERCIAL ST MANCHESTER NH 03101-1122","1979-09-04",null,"0004 - Adams","ADAMS","BERKSHIRE"]
[null,null,null,null,null,null,null,"0004 - Adams","PEQUOIG HOUSE LLC","42 RAYMOND ST MANCHESTER BY THE SEA MA 01944-1616","1982-10-07"]
[null,null,null,null,null,null,null,"0005 - Agawam","10 TEMPLE PLACE LP","536 GRANITE ST # 301 BRAINTREE MA 02184-3952","1978-11-28","2018-12-31","0004 - Adams","ADAMS","BERKSHIRE"]
[null,"Chapter 121A Survey to be filled out by all communities.",null,null,null,null,null,"0006 - Alford","333 MASSACHUSETTS AVE LP","536 GRANITE ST # 301 BRAINTREE MA 02184-3952","2001-06-21","2015-12-31"]
[1,2,3,4,5,6,7,"0007 - Amesbury","334 MASSACHUSETTS AVE LP","536 GRANITE ST STE 301 BRAINTREE MA 02184-3952","1975-09-30","2015-12-31",null,null,null,8,9,10,11]
["Municipality Name                  ","In your community, do  121A Projects Exist or Do Not Exist?   (Please select  below.) ","Parcel ID","Owner Name","Street Address","PRC(S) for this project are attached to your email response. (Y/N)","Community has the 121A agreement document. (Y/N)                           ","0008 - Amherst","ABBEY LAFAYETTE OWNER LLP","575 BOYLSTON ST FL 8 BOSTON MA 02116","1998-02-01",null,"0008 - Amherst","AMHERST","HAMPSHIRE","Contact info for DHCD.","Updated Parcel ID","Updated Owner Name","Updated Property Address"]
["Select your Community","Please Select",null,{"$f":"_xlfn._xlws.FILTER(I2:I460:J2:J460,M2:M460=A10,\"No Data on File\")","v":"No Data on File"},null,"Please Select","Please Select","0009 - Andover","ABBEY LAFAYETTE OWNER LLP","177 HUNTINGTON AVE STE 24 BOSTON MA 02115-3145","2017-01-01",null,"0008 - Amherst","AMHERST","HAMPSHIRE",{"$f":"IF(G10=\"NO\",\"Contact DHCD for the Document \",\"\")","v":""}]
[null,null,null,null,null,null,null,"0010 - Arlington","ADAM TEMPLETON ASSOCIATES","500 VICTORY RD QUINCY MA 02171-3139","1980-05-01","2015-12-31","0015 - Athol","ATHOL","WORCESTER",{"$f":"IF(G11=\"NO\",\"Contact DHCD for the Document \",\"\")","v":""}]
[null,null,null,null,null,null,null,"0011 - Ashburnham","ADAMS ORCHARD LP","75 FEDERAL ST FL 4TH BOSTON MA 02110","1998-12-29",null,"0035 - Boston","BOSTON","SUFFOLK",""]
[null,null,null,null,null,null,null,"0012 - Ashby","ALLSTON LANDING LP","11 PLEASANT ST FRAMINGHAM MA 01701-4707","1992-01-27",null,"0035 - Boston","BOSTON","SUFFOLK",""]
[null,null,null,null,null,null,null,"0013 - Ashfield","AMORY TERRACE LP","126 JOHN ST STE 10 LOWELL MA 01852-1152","2004-04-01","2019-12-31","0035 - Boston","BOSTON","SUFFOLK",""]
[null,null,null,null,null,null,null,"0014 - Ashland","ANDERSON STREET ASSOCIATES","1 UNIVERSITY AVE # 2C WESTWOOD MA 02090-1245","1975-07-10","2015-12-31","0035 - Boston","BOSTON","SUFFOLK",""]
[null,null,null,null,null,null,null,"0015 - Athol","ANGELA WESTOVER HOUSING CORP","536 GRANITE ST BRAINTREE MA 02184-3952","1982-10-14",null,"0035 - Boston","BOSTON","SUFFOLK",""]
[null,null,null,null,null,null,null,"0016 - Attleboro","ANGELA WESTOVER HOUSING CORP","536 GRANITE ST BRAINTREE MA 02184-3952","2016-01-01","2016-01-01","0035 - Boston","BOSTON","SUFFOLK",""]
[null,null,null,null,null,null,null,"0017 - Auburn","AP ONE CHANNEL CENTER OWNER LLC","245 PARK AVE FL 42 NEW YORK NY 10167-0002","2013-01-01","2014-12-31","0035 - Boston","BOSTON","SUFFOLK",""]
[null,null,null,null,null,null,null,"0018 - Avon","AT-DORCHESTER LP","500 VICTORY RD NORTH QUINCY MA 02171-3139","2016-01-01",null,"0035 - Boston","BOSTON","SUFFOLK",""]
[null,null,null,null,null,null,null,"0019 - Ayer","AUSONIA HOMES ASSOCIATES","536 GRANITE ST BRAINTREE MA 02184-3952","1976-09-09","2016-09-16","0035 - Boston","BOSTON","SUFFOLK",""]
[null,null,null,null,null,null,null,"0020 - Barnstable","BACK OF THE HILL APTS LP","185 DARTMOUTH ST BOSTON MA 02116-5886","1979-10-18","2019-12-31","0035 - Boston","BOSTON","SUFFOLK",""]
[null,null,null,null,null,null,null,"0021 - Barre","BC CONWAY COURT LP","2 CENTER PLZ STE 700 BOSTON MA 02108-1906","1975-05-01","2015-12-31","0035 - Boston","BOSTON","SUFFOLK",""]
[null,null,null,null,null,null,null,"0022 - Becket","BDC SUMMER STREET 121A LP","7978 COOPER CRK BLV #100 UNIVERSITY PARK FL 34201","1973-04-09","2013-12-31","0035 - Boston","BOSTON","SUFFOLK",""]
[null,null,null,null,null,null,null,"0023 - Bedford","BEACON HOUSE ROGERSON LP","1 FLORENCE ST ROSLINDALE MA 02131-3638","1982-08-05",null,"0035 - Boston","BOSTON","SUFFOLK",""]
[null,null,null,null,null,null,null,"0024 - Belchertown","BEVERLY ST ACQUISITION GARAGE OWNER LP","177 MILK ST BOSTON MA 02109-3442","2016-01-01",null,"0035 - Boston","BOSTON","SUFFOLK",""]
[null,null,null,null,null,null,null,"0025 - Bellingham","BEVERLY STREET ACQUISITION GARAGE ONE OWNER LP","177 MILK ST BOSTON MA 02109-3442","2015-07-27",null,"0035 - Boston","BOSTON","SUFFOLK",""]
[null,null,null,null,null,null,null,"0026 - Belmont","BEVERLY STREET ACQUISITION HOTEL OWNER LP","177 MILK ST BOSTON MA 02109-3404","2016-01-01",null,"0035 - Boston","BOSTON","SUFFOLK",""]
[null,null,null,null,null,null,null,"0027 - Berkley","BEVERLY STREET ACQUISITION RESIDENTIAL ONE OWNER LP","177 MILK ST BOSTON MA 02109-3410","2016-01-01",null,"0035 - Boston","BOSTON","SUFFOLK",""]
[null,null,null,null,null,null,null,"0028 - Berlin","BEVERLY STREET ACQUISITION RESIDENTIAL TWO OWNER LP","177 MILK ST BOSTON MA 02109-3442","2015-07-27",null,"0035 - Boston","BOSTON","SUFFOLK",""]
[null,null,null,null,null,null,null,"0029 - Bernardston","BEVERLY STREET ACQUISITION RETAIL ONE OWNER LP","177 MILK ST BOSTON MA 02109-3410","2015-07-27",null,"0035 - Boston","BOSTON","SUFFOLK",""]
[null,null,null,null,null,null,null,"0030 - Beverly","BEVERLY STREET ACQUISITION RETAIL TWO OWNER LP","177 MILK ST BOSTON MA 02109-3442","2015-07-27",null,"0035 - Boston","BOSTON","SUFFOLK",""]
[null,null,null,null,null,null,null,"0031 - Billerica","BLACKSTONE PRESERVATION ASSOC LP","40 COURT ST STE 700 BOSTON MA 02108-2202","1975-09-25","2015-12-31","0035 - Boston","BOSTON","SUFFOLK",""]
[null,null,null,null,null,null,null,"0032 - Blackstone","BLAKE ESTATES ASSOC I LP","2 CENTER PLZ STE 700 BOSTON MA 02108-1906","1978-12-28","2018-12-31","0035 - Boston","BOSTON","SUFFOLK",""]
[null,null,null,null,null,null,null,"0033 - Blandford","BLAKE ESTATES ASSOC II LP","2 CENTER PLZ STE 700 BOSTON MA 02108-1906","1979-10-11","2019-12-31","0035 - Boston","BOSTON","SUFFOLK",""]
[null,null,null,null,null,null,null,"0034 - Bolton","B'NAI B'RITH I & II INC","34 WASHINGTON ST BRIGHTON MA 02135-7404","2015-01-01",null,"0035 - Boston","BOSTON","SUFFOLK",""]
[null,null,null,null,null,null,null,"0036 - Bourne","B'NAI B'RITH III INC","30 WASHINGTON ST BRIGHTON MA 02135-7424","2002-03-05",null,"0035 - Boston","BOSTON","SUFFOLK",""]
[null,null,null,null,null,null,null,"0037 - Boxborough","B'NAI B'RITH SENIOR CITIZENS HOUSING","30 WASHINGTON ST BRIGHTON MA 02135-7424","1980-05-22","2014-12-31","0035 - Boston","BOSTON","SUFFOLK",""]
[null,null,null,null,null,null,null,"0038 - Boxford","BORINQUEN ASSOCIATES","27 MICA LN STE 301 WELLESLEY MA 02481-1741","1975-12-04","2015-12-31","0035 - Boston","BOSTON","SUFFOLK",""]
[null,null,null,null,null,null,null,"0039 - Boylston","BOSTON BAY LP","530 WARREN ST DORCHESTER MA 02121-1821","1977-07-28",null,"0035 - Boston","BOSTON","SUFFOLK",""]
[null,null,null,null,null,null,null,"0040 - Braintree","BOSTON BAY LP","530 WARREN ST DORCHESTER MA 02121-1821","1991-09-11","2015-12-10","0035 - Boston","BOSTON","SUFFOLK",""]
[null,null,null,null,null,null,null,"0041 - Brewster","BOSTON REHAB ASSOCIATES","94 BEACONSFIELD RD BROOKLINE MA 02445-3309","1979-04-12",null,"0035 - Boston","BOSTON","SUFFOLK",""]
[null,null,null,null,null,null,null,"0042 - Bridgewater","BOWDOIN SCHOOL ASSOCIATES","100 WELLS AVE # 200 NEWTON MA 02459-3242","1975-11-20","2015-12-31","0035 - Boston","BOSTON","SUFFOLK",""]
[null,null,null,null,null,null,null,"0043 - Brimfield","BOYLSTON WEST GARAGE LLC","136 BROOKLINE AVE BOSTON MA 02215-3907","2015-01-01",null,"0035 - Boston","BOSTON","SUFFOLK",""]
[null,null,null,null,null,null,null,"0044 - Brockton","BRIDGEVIEW APARTMENTS LIMITED PARTNERSHIP","20 EASTBROOK RD STE 201\nDEDHAM MA 02026-2087","2015-01-01",null,"0035 - Boston","BOSTON","SUFFOLK",""]
[null,null,null,null,null,null,null,"0045 - Brookfield","BRIGHTON-ALLSTON ELDERLY HOMES INC","100 GRANDVIEW RD STE 207 BRAINTREE MA 02184-2692","1980-05-01",null,"0035 - Boston","BOSTON","SUFFOLK",""]
[null,null,null,null,null,null,null,"0046 - Brookline","BW OFFICE OWNER LIMITED PARTNERSHIP","333 NEWBURY ST BOSTON MA 02115-2710","2015-01-01",null,"0035 - Boston","BOSTON","SUFFOLK",""]
[null,null,null,null,null,null,null,"0047 - Buckland","CAMFIELD TENANTS ASSOCIATION","536 GRANITE ST BRAINTREE MA 02184-3952","1968-09-19","2012-12-31","0035 - Boston","BOSTON","SUFFOLK",""]
[null,null,null,null,null,null,null,"0048 - Burlington","CASA MARIA HOUSING CORP","95 BERKELEY ST STE 500 BOSTON MA 02116-6229","1978-07-20",null,"0035 - Boston","BOSTON","SUFFOLK",""]
[null,null,null,null,null,null,null,"0049 - Cambridge","CCBA TAI TUNG VILLAGE","808 MEMORIAL DR CAMBRIDGE MA 02139-4637","1970-09-03","2010-12-31","0035 - Boston","BOSTON","SUFFOLK",""]
[null,null,null,null,null,null,null,"0050 - Canton","CHARLES H FARNSWORTH HOUSING CORP","1 FLORENCE ST BOSTON MA 02131-3638","1981-09-17",null,"0035 - Boston","BOSTON","SUFFOLK",""]
[null,null,null,null,null,null,null,"0051 - Carlisle","CHARLESTOWN ECONOMIC DEVEL CORP","7 WELLS AVE STE 11\nNEWTON CENTER MA 02459-3212","1978-10-26",null,"0035 - Boston","BOSTON","SUFFOLK",""]
[null,null,null,null,null,null,null,"0052 - Carver","CHAUNCY HOUSE LP","95 BERKELEY ST STE 500 BOSTON MA 02116-6229","1973-04-19","2013-12-31","0035 - Boston","BOSTON","SUFFOLK",""]
[null,null,null,null,null,null,null,"0053 - Charlemont","CHINAGATE HOUSING ASSOCIATES","44 FARINA RD NEWTON MA 02459-2860","1983-03-03",null,"0035 - Boston","BOSTON","SUFFOLK",""]
[null,null,null,null,null,null,null,"0054 - Charlton","CITY SQUARE ELDERLY HOUSING INC","8425 E 12 MILE RD STE 1000 WARREN MI 48093-2738","1984-12-20",null,"0035 - Boston","BOSTON","SUFFOLK",""]
[null,null,null,null,null,null,null,"0055 - Chatham","COMMONWEALTH FLATS DEV EAST LP","255 STATE ST STE 2 BOSTON MA 02109-2659","1997-12-31","2018-12-31","0035 - Boston","BOSTON","SUFFOLK",""]
[null,null,null,null,null,null,null,"0056 - Chelmsford","COMMONWEALTH FLATS WEST","255 STATE ST FL 2 BOSTON MA 02109-2659","2000-01-01",null,"0035 - Boston","BOSTON","SUFFOLK",""]
[null,null,null,null,null,null,null,"0057 - Chelsea","COMMUNITY HOPE LP","550 DUDLEY ST ROXBURY MA 02119-2770","2005-05-26","2013-12-31","0035 - Boston","BOSTON","SUFFOLK",""]
[null,null,null,null,null,null,null,"0058 - Cheshire","CONCORD HOUSE ASSOCIATES","7 THOMAS DR CUMBERLAND FORESIDE ME 04110-1318","1973-11-08","2013-12-31","0035 - Boston","BOSTON","SUFFOLK",""]
[null,null,null,null,null,null,null,"0059 - Chester","COOPS OF CHARLESNEWTOWN INC","6 FANEUIL HALL MARKET PL BOSTON MA 02109-6115","1972-08-17","2010-12-31","0035 - Boston","BOSTON","SUFFOLK",""]
[null,null,null,null,null,null,null,"0060 - Chesterfield","COTTAGE BROOK APARTMENTS (121A)","126 JOHN ST STE 10 LOWELL MA 01852-1152","1977-07-28",null,"0035 - Boston","BOSTON","SUFFOLK",""]
[null,null,null,null,null,null,null,"0061 - Chicopee","COUNCIL OF ELDERS HOUSING CORP","1 FLORENCE ST ROSLINDALE MA 02131-3638","1983-11-03",null,"0035 - Boston","BOSTON","SUFFOLK",""]
[null,null,null,null,null,null,null,"0062 - Chilmark","COVE PLAZA ASSOCIATES LP","170 NEWBURY ST BOSTON MA 02116-2873","1980-09-04",null,"0035 - Boston","BOSTON","SUFFOLK",""]
[null,null,null,null,null,null,null,"0063 - Clarksburg","DIMOCK BRAGDON ASSOCIATES","126 JOHN ST STE 10 LOWELL MA 01852-1152","1982-09-16",null,"0035 - Boston","BOSTON","SUFFOLK",""]
[null,null,null,null,null,null,null,"0064 - Clinton","DORCHESTER HOUSING ASSOCIATES","536 GRANITE ST BRAINTREE MA 02184-3952","1981-08-20","2011-12-31","0035 - Boston","BOSTON","SUFFOLK",""]
[null,null,null,null,null,null,null,"0065 - Cohasset","DUDLEY NEIGHBORS INC","504 DUDLEY ST ROXBURY MA 02119-2732","1988-11-10",null,"0035 - Boston","BOSTON","SUFFOLK",""]
[null,null,null,null,null,null,null,"0066 - Colrain","DUDLEY SQUARE REALTY CORP","1 CITY HALL SQ RM 813 BOSTON MA 02201-1020","2013-01-01",null,"0035 - Boston","BOSTON","SUFFOLK",""]
[null,null,null,null,null,null,null,"0067 - Concord","DUDLEY VILLAGE NORTH","504 DUDLEY ST ROXBURY MA 02119-2732","2005-05-05",null,"0035 - Boston","BOSTON","SUFFOLK",""]
[null,null,null,null,null,null,null,"0068 - Conway","DUDLEY VILLAGE SOUTH","504 DUDLEY ST ROXBURY MA 02119-2732","2005-05-05",null,"0035 - Boston","BOSTON","SUFFOLK",""]
[null,null,null,null,null,null,null,"0069 - Cummington","EAST BOSTON COMMUNITY ASSOCIATES","72 MARGINAL ST EAST BOSTON MA 02128-2135","1974-10-31","2014-12-31","0035 - Boston","BOSTON","SUFFOLK",""]
[null,null,null,null,null,null,null,"0070 - Dalton","EAST CANTON ST LP","1400 PROVIDENCE HWY STE 1000 NORWOOD MA 02062-5032","1982-04-08",null,"0035 - Boston","BOSTON","SUFFOLK",""]
[null,null,null,null,null,null,null,"0071 - Danvers","EBENEZER HOMES ASSOCIATES","1 UNIVERSITY AVE # 2C WESTWOOD MA 02090-1245","1971-12-16","2012-12-31","0035 - Boston","BOSTON","SUFFOLK",""]
[null,null,null,null,null,null,null,"0072 - Dartmouth","EDISON GREEN / CATHERINE CLARK","7 THOMAS DR CUMBERLAND FORESIDE ME 04110-1318","1978-03-09",null,"0035 - Boston","BOSTON","SUFFOLK",""]
[null,null,null,null,null,null,null,"0073 - Dedham","EGLESTON CENTER CORPORATION","2010 COLUMBUS AVE ROXBURY MA 02119-1106","1996-05-31",null,"0035 - Boston","BOSTON","SUFFOLK",""]
[null,null,null,null,null,null,null,"0074 - Deerfield","FIELDSTONE APARTMENTS LP","536 GRANITE ST BRAINTREE MA 02184-3952","1981-03-12",null,"0035 - Boston","BOSTON","SUFFOLK",""]
[null,null,null,null,null,null,null,"0075 - Dennis","FRANKLIN PRESERVATION ASSOC LP","40 COURT ST STE 700 BOSTON MA 02108-2202","1974-12-19","2014-12-31","0035 - Boston","BOSTON","SUFFOLK",{"$f":"IF(G75=\"NO\",\"Contact DHCD for the Document \",\"\")","v":""}]
[null,null,null,null,null,null,null,"0076 - Dighton","GARAGE EXPANSION OWNER, LP","100 LEGENDS WAY BOSTON MA 02114-1300","2015-01-01",null,"0035 - Boston","BOSTON","SUFFOLK",""]
[null,null,null,null,null,null,null,"0077 - Douglas","GARDNER APARTMENTS LP","270 ROXBURY ST BOSTON MA 02119-1526","1974-12-05","2014-12-31","0035 - Boston","BOSTON","SUFFOLK",""]
[null,null,null,null,null,null,null,"0078 - Dover","GEGC2 NEW STREET LLC C/O GERDING EDLEN","1477 NW EVERETT ST PORTLAND OR 97209-2617","2019-01-01",null,"0035 - Boston","BOSTON","SUFFOLK",""]
[null,null,null,null,null,null,null,"0079 - Dracut","GOVERNOR APARTMENTS ASSOCIATES","100 WELLS AVE NEWTON MA 02459-3242","1980-09-18",null,"0035 - Boston","BOSTON","SUFFOLK",""]
[null,null,null,null,null,null,null,"0080 - Dudley","HAYNES HOUSE ASSOCIATES II","6 FANEUIL HALL MKTPLC BOSTON MA 02109","1977-06-09","2012-12-31","0035 - Boston","BOSTON","SUFFOLK",""]
[null,null,null,null,null,null,null,"0081 - Dunstable","HEMENWAY APARTMENTS CO","7 THOMAS DR CUMBERLAND FORESIDE ME 04110-1318","1979-05-03",null,"0035 - Boston","BOSTON","SUFFOLK",""]
[null,null,null,null,null,null,null,"0082 - Duxbury","HONG LOK HOUSE","1 FLORENCE ST BOSTON MA 02131-3638","1980-09-18",null,"0035 - Boston","BOSTON","SUFFOLK",""]
[null,null,null,null,null,null,null,"0083 - East Bridgewater","HOTEL TOWER OWNER LP","800 BOYLSTON ST SPC 19 BOSTON MA 02199-7041","2017-01-01",null,"0035 - Boston","BOSTON","SUFFOLK",""]
[null,null,null,null,null,null,null,"0084 - East Brookfield","JAMAICA PLAIN ASSOCIATES","94 BEACONSFIELD RD BROOKLINE MA 02445-3309","1975-03-06","2015-12-31","0035 - Boston","BOSTON","SUFFOLK",""]
[null,null,null,null,null,null,null,"0085 - East Longmeadow","JEWISH COMM HSNG FOR ELDERLY III","30 WALLINGFORD RD BRIGHTON MA 02135-4708","1975-06-12","2015-07-22","0035 - Boston","BOSTON","SUFFOLK",""]
[null,null,null,null,null,null,null,"0086 - Eastham","JEWISH COMMUNITY HOUSING FOR THE ELDERLY","30 WALLINGFORD RD BRIGHTON MA 02135-4708","1968-11-21","2010-12-31","0035 - Boston","BOSTON","SUFFOLK",""]
[null,null,null,null,null,null,null,"0087 - Easthampton","JEWISH COMMUNITY HOUSING FOR THE ELDERLY II","30 WALLINGFORD RD BRIGHTON MA 02135-4708","1972-03-30","2012-12-31","0035 - Boston","BOSTON","SUFFOLK",""]
[null,null,null,null,null,null,null,"0088 - Easton","KENMORE ABBEY PRESERVATION ASSOC","2 OLIVER ST FL 500\nBOSTON MA 02109-4937","1982-09-16",null,"0035 - Boston","BOSTON","SUFFOLK",""]
[null,null,null,null,null,null,null,"0089 - Edgartown","KEYSTONE APARTMENTS COMPANY","150 MOUNT VERNON ST STE 520 DORCHESTER MA 02125-3115","1978-08-03","2018-12-31","0035 - Boston","BOSTON","SUFFOLK",""]
[null,null,null,null,null,null,null,"0090 - Egremont","LANDMARK CENTER LP","333 NEWBURY ST BOSTON MA 02115-2710","1997-02-28","2019-12-31","0035 - Boston","BOSTON","SUFFOLK",""]
[null,null,null,null,null,null,null,"0091 - Erving","MADISON BOTOLPH II LIMITED PARTNERSHIP","530 WARREN ST DORCHESTER MA 02121-1821","2015-01-01",null,"0035 - Boston","BOSTON","SUFFOLK",""]
[null,null,null,null,null,null,null,"0092 - Essex","MADISON BOTOLPH LP","530 WARREN ST DORCHESTER MA 02121-1821","1979-05-03","2014-12-31","0035 - Boston","BOSTON","SUFFOLK",""]
[null,null,null,null,null,null,null,"0093 - Everett","MADISON PARK III ASSOCIATES","6 FANEUIL HALL MARKET PL BOSTON MA 02109-6115","1977-06-09","2012-12-31","0035 - Boston","BOSTON","SUFFOLK",""]
[null,null,null,null,null,null,null,"0094 - Fairhaven","MADISON PARK IV LP","6 FANEUIL HALL MARKET PL BOSTON MA 02109-6115","1996-05-13",null,"0035 - Boston","BOSTON","SUFFOLK",""]
[null,null,null,null,null,null,null,"0095 - Fall River","MADISON TRINITY LTD PARTNERSHIP","75 FEDERAL ST FL 4 BOSTON MA 02110-1900","1997-08-15",null,"0035 - Boston","BOSTON","SUFFOLK",""]
[null,null,null,null,null,null,null,"0096 - Falmouth","MANDELA HOMES LIMITED PARTNERSHP","150 FEDERAL ST 5TH FL BOSTON MA 02110","1997-12-18","2010-12-31","0035 - Boston","BOSTON","SUFFOLK",""]
[null,null,null,null,null,null,null,"0097 - Fitchburg","MARCUS GARVEY ASSOCIATES","7 THOMAS DR CUMBERLAND FORESIDE ME 04110-1318","1979-05-03",null,"0035 - Boston","BOSTON","SUFFOLK",""]
[null,null,null,null,null,null,null,"0098 - Florida","MARKLEY ONE SUMMER ST LLP","1 SUMMER ST FL 5 BOSTON MA 02110-1013","1975-05-01","2016-12-31","0035 - Boston","BOSTON","SUFFOLK",""]
[null,null,null,null,null,null,null,"0099 - Foxborough","MASON RHF LP","536 GRANITE ST STE 301 BRAINTREE MA 02184-3952","1978-03-09",null,"0035 - Boston","BOSTON","SUFFOLK",""]
[null,null,null,null,null,null,null,"0100 - Framingham","MATEP LP","474 BROOKLINE AVE BOSTON MA 02215-5415","1975-10-09","2015-12-31","0035 - Boston","BOSTON","SUFFOLK",""]
[null,null,null,null,null,null,null,"0101 - Franklin","MAVERICK GARDENS PHASE 3","75 FEDERAL ST FL 4 BOSTON MA 02110","2005-02-11",null,"0035 - Boston","BOSTON","SUFFOLK",""]
[null,null,null,null,null,null,null,"0102 - Freetown","MERCANTILE WHARF ASSOCIATES","15 BROAD ST STE 502 BOSTON MA 02109-3816","1974-11-14","2014-12-31","0035 - Boston","BOSTON","SUFFOLK",""]
[null,null,null,null,null,null,null,"0103 - Gardner","MISSION MAIN PHASE II LP","1 WASHINGTON MALL STE 5\nBOSTON MA 02108-2603","1999-09-10",null,"0035 - Boston","BOSTON","SUFFOLK",""]
[null,null,null,null,null,null,null,"0104 - Aquinnah","MISSION MAIN PHASE ONE LP","1 WASHINGTON MALL STE 5\nBOSTON MA 02108-2603","1998-09-29",null,"0035 - Boston","BOSTON","SUFFOLK",""]
[null,null,null,null,null,null,null,"0105 - Georgetown","MISSION MAIN PHASE THREE LP","6 FANEUIL HALL MARKET PL BOSTON MA 02109-6115","2001-01-01",null,"0035 - Boston","BOSTON","SUFFOLK",""]
[null,null,null,null,null,null,null,"0106 - Gill","MISSION PARK GARAGE","11 NEW WHITNEY ST BOSTON MA 02115-6276","1975-07-10","2015-12-31","0035 - Boston","BOSTON","SUFFOLK",""]
[null,null,null,null,null,null,null,"0107 - Gloucester","MISSION PARK HOUSING","75 FEDERAL ST FL 4TH BOSTON MA 02110","1975-07-10","2015-12-31","0035 - Boston","BOSTON","SUFFOLK",""]
[null,null,null,null,null,null,null,"0108 - Goshen","MORVILLE HOUSE APTS LP","27 MICA LN STE 301 WELLESLEY MA 02481-1741","1971-09-30","2011-12-31","0035 - Boston","BOSTON","SUFFOLK",""]
[null,null,null,null,null,null,null,"0109 - Gosnold","NEW BOSTON FOOD MARKET","15 WIDETT CIR BOSTON MA 02118-2804","1967-10-10",null,"0035 - Boston","BOSTON","SUFFOLK",""]
[null,null,null,null,null,null,null,"0110 - Grafton","NEW FRANKLIN PARK LP","95 BERKELEY ST STE 500 BOSTON MA 02116-6229","1974-11-21","2014-12-31","0035 - Boston","BOSTON","SUFFOLK",""]
[null,null,null,null,null,null,null,"0111 - Granby","NEW MASS PIKE TOWERS LP","6 FANEUIL HALL MARKTPLCE BOSTON MA 02109","1971-02-25","2011-12-31","0035 - Boston","BOSTON","SUFFOLK",""]
[null,null,null,null,null,null,null,"0112 - Granville","NEW PALMER STREET LP","1500 BLUE HILL AVE MATTAPAN MA 02126-1746","2004-12-20",null,"0035 - Boston","BOSTON","SUFFOLK",""]
[null,null,null,null,null,null,null,"0113 - Great Barrington","NEWCASTLE ASSOCIATES","1 UNIVERSITY AVE # 2C WESTWOOD MA 02090-1245","1972-07-20","2013-12-31","0035 - Boston","BOSTON","SUFFOLK",""]
[null,null,null,null,null,null,null,"0114 - Greenfield","OFFICE TOWER OWNER LP","800 BOYLSTON ST SPC 19\nBOSTON MA 02199-7041","2019-01-01",null,"0035 - Boston","BOSTON","SUFFOLK",""]
[null,null,null,null,null,null,null,"0115 - Groton","OLD COLONY PHASE 2A LP","2 CENTER PLZ STE 700 BOSTON MA 02108-1906","2013-01-01",null,"0035 - Boston","BOSTON","SUFFOLK",""]
[null,null,null,null,null,null,null,"0116 - Groveland","OLD COLONY PHASE 2B LP","2 CENTER PLZ STE 700 BOSTON MA 02108-1906","2013-01-01",null,"0035 - Boston","BOSTON","SUFFOLK",""]
[null,null,null,null,null,null,null,"0117 - Hadley","OLD COLONY PHASE 2C LP","2 CENTER PLZ STE 700 BOSTON MA 02108-1906","2014-01-01",null,"0035 - Boston","BOSTON","SUFFOLK",""]
[null,null,null,null,null,null,null,"0118 - Halifax","OLD COLONY PHASE ONE LP","2 CENTER PLZ STE 700 BOSTON MA 02108-1906","2010-01-01",null,"0035 - Boston","BOSTON","SUFFOLK",""]
[null,null,null,null,null,null,null,"0119 - Hamilton","ONE CHANNEL CENTER, LP","45 ROCKEFELLER PLZ FL 7TH NEW YORK NY 10111-0100","2015-09-23",null,"0035 - Boston","BOSTON","SUFFOLK",""]
[null,null,null,null,null,null,null,"0120 - Hampden","ORCHARD PARK OFFSITE PHASE I LP","1 JOHN ELIOT SQ ROXBURY MA 02119-3511","1997-09-16",null,"0035 - Boston","BOSTON","SUFFOLK",""]
[null,null,null,null,null,null,null,"0121 - Hancock","OXFORD PLACE ASSOCIATES","100 WELLS AVE STE 100\nNEWTON CENTER MA 02459-3243","1982-08-05",null,"0035 - Boston","BOSTON","SUFFOLK",""]
[null,null,null,null,null,null,null,"0122 - Hanover","PETERBOROUGH HOUSING ASSOCIATES","100 WELLS AVE # 200 NEWTON MA 02459-3242","1978-06-08","2018-12-31","0035 - Boston","BOSTON","SUFFOLK",""]
[null,null,null,null,null,null,null,"0123 - Hanson","PHIL C BRADLEY HOUSING PRTNRSHIP","95 BROADWAY BOSTON MA 02116-5414","1997-10-01","2011-12-31","0035 - Boston","BOSTON","SUFFOLK",""]
[null,null,null,null,null,null,null,"0124 - Hardwick","PODIUM OWNER LP","800 BOYLSTON STREET FL 19TH\nBOSTON MA 02199","2015-01-01",null,"0035 - Boston","BOSTON","SUFFOLK",""]
[null,null,null,null,null,null,null,"0125 - Harvard","POST OFFICE SQUARE REDEVELOPMENT CORP","50 FEDERAL ST BOSTON MA 02110","1987-02-24",null,"0035 - Boston","BOSTON","SUFFOLK",""]
[null,null,null,null,null,null,null,"0126 - Harwich","QUINCY HEIGHTS LP","594 COLUMBIA RD STE 302 DORCHESTER MA 02125-3436","1977-07-28",null,"0035 - Boston","BOSTON","SUFFOLK",""]
[null,null,null,null,null,null,null,"0127 - Hatfield","QUINCY TOWER LP","2 CENTER PLZ STE 700 BOSTON MA 02108-1906","1974-11-21","2014-12-31","0035 - Boston","BOSTON","SUFFOLK",""]
[null,null,null,null,null,null,null,"0128 - Haverhill","RBW OWNER LP","606 CONGRESS ST BOSTON MA 02210-2803","2015-09-22","2017-12-31","0035 - Boston","BOSTON","SUFFOLK",""]
[null,null,null,null,null,null,null,"0129 - Hawley","RENAISSANCE BOSTON WATERFRONT","4 EMBARCADERO CTR STE 710 SAN FRANCISCO CA 94111-4172","2003-01-22","2014-12-31","0035 - Boston","BOSTON","SUFFOLK",""]
[null,null,null,null,null,null,null,"0130 - Heath","RESERVOIR TOWERS ASSOCIATES","100 WELLS AVE # 200 NEWTON MA 02459-3242","1975-10-09","2015-12-31","0035 - Boston","BOSTON","SUFFOLK",""]
[null,null,null,null,null,null,null,"0131 - Hingham","RESIDENTIAL TOWER OWNER LP","800 BOYLSTON ST BOSTON MA 02199-1900","2017-01-01",null,"0035 - Boston","BOSTON","SUFFOLK",""]
[null,null,null,null,null,null,null,"0132 - Hinsdale","RESTORATION HOUSING CORPORATION","11 NEW WHITNEY ST BOSTON MA 02115-6276","1980-09-25","2015-12-31","0035 - Boston","BOSTON","SUFFOLK",""]
[null,null,null,null,null,null,null,"0133 - Holbrook","ROBERT L FORTES HOUSE INC","27 MICA LN STE 301 WELLESLEY MA 02481-1741","1980-07-31",null,"0035 - Boston","BOSTON","SUFFOLK",""]
[null,null,null,null,null,null,null,"0134 - Holden","ROCKINGHAM GLEN LP","2 N RIVERSIDE PLZ STE 400 CHICAGO IL 60606-2624","1973-04-05","2013-12-31","0035 - Boston","BOSTON","SUFFOLK",""]
[null,null,null,null,null,null,null,"0135 - Holland","ROGERSON BEACON ASSOCIATES LP","1 FLORENCE ST ROSLINDALE MA 02131-3638","2015-01-01",null,"0035 - Boston","BOSTON","SUFFOLK",""]
[null,null,null,null,null,null,null,"0136 - Holliston","ROXBURY MOUNT PLEASANT LP","500 VICTORY RD NORTH QUINCY MA 02171-3139","1982-08-05",null,"0035 - Boston","BOSTON","SUFFOLK",""]
[null,null,null,null,null,null,null,"0137 - Holyoke","RTH COMMUNITY CENTER REALTY INC","11 NEW WHITNEY ST BOSTON MA 02115-6276","2013-01-01","2015-12-31","0035 - Boston","BOSTON","SUFFOLK",""]
[null,null,null,null,null,null,null,"0138 - Hopedale","RUTLAND HOUSING ASSOCIATION","111 W CONCORD ST REAR \nBOSTON MA 02118-1544","1970-10-08","2010-12-31","0035 - Boston","BOSTON","SUFFOLK",""]
[null,null,null,null,null,null,null,"0139 - Hopkinton","SARAH BAKER MANOR ASSOCIATES","1 JOHN ELIOT SQ ROXBURY MA 02119-3511","1981-03-12",null,"0035 - Boston","BOSTON","SUFFOLK",{"$f":"IF(G139=\"NO\",\"Contact DHCD for the Document \",\"\")","v":""}]
[null,null,null,null,null,null,null,"0140 - Hubbardston","SCHOOL HOUSE BROOKLEDGE CUMMINS","536 GRANITE ST BRAINTREE MA 02184-3952","2008-10-27",null,"0035 - Boston","BOSTON","SUFFOLK",""]
[null,null,null,null,null,null,null,"0141 - Hudson","SCHOOL HOUSE KENILWORTH WILLIAMS","536 GRANITE ST BRAINTREE MA 02184-3952","2008-10-27","2018-12-31","0035 - Boston","BOSTON","SUFFOLK",""]
[null,null,null,null,null,null,null,"0142 - Hull","SEAPORT HOTEL","200 SEAPORT BLVD STE 50 BOSTON MA 02210-2031","1997-12-31","2017-12-31","0035 - Boston","BOSTON","SUFFOLK",""]
[null,null,null,null,null,null,null,"0143 - Huntington","SMITH HOUSE ASSOCIATES II LP","6 FANEUIL HALL MKTPLC BOSTON MA 02109","1996-04-20","2012-12-31","0035 - Boston","BOSTON","SUFFOLK",""]
[null,null,null,null,null,null,null,"0144 - Ipswich","SOUTH COVE PLAZA","170 NEWBURY ST BOSTON MA 02116-2873","2011-01-20",null,"0035 - Boston","BOSTON","SUFFOLK",""]
[null,null,null,null,null,null,null,"0145 - Kingston","ST JAMES/ARLINGTON RE LP","175 BERKELEY ST BOSTON MA 02116-5066","1998-06-25","2013-12-31","0035 - Boston","BOSTON","SUFFOLK",""]
[null,null,null,null,null,null,null,"0146 - Lakeville","ST KEVINS LP","84 STATE ST STE 600 BOSTON MA 02109-2227","2014-01-01",null,"0035 - Boston","BOSTON","SUFFOLK",""]
[null,null,null,null,null,null,null,"0147 - Lancaster","TAURUS AT FOUNTAIN HILL ASSOC","1 JOHN ELIOT SQ ROXBURY MA 02119-3511","1979-03-15","2019-04-30","0035 - Boston","BOSTON","SUFFOLK",""]
[null,null,null,null,null,null,null,"0148 - Lanesborough","TENANTS DEVELOPMENT II LP","566 COLUMBUS AVE BOSTON MA 02118-1181","1973-06-28","2013-12-31","0035 - Boston","BOSTON","SUFFOLK",""]
[null,null,null,null,null,null,null,"0149 - Lawrence","TRINITY EAST BOSTON FOUR LP","75 FEDERAL ST FL 4 BOSTON MA 02110","2005-02-11",null,"0035 - Boston","BOSTON","SUFFOLK",""]
[null,null,null,null,null,null,null,"0150 - Lee","TRINITY EAST BOSTON LP","75 FEDERAL ST FL 4 BOSTON MA 02110","2003-05-29",null,"0035 - Boston","BOSTON","SUFFOLK",""]
[null,null,null,null,null,null,null,"0151 - Leicester","TRINITY EAST BOSTON TWO LP","75 FEDERAL ST FL 4 BOSTON MA 02110","2003-05-29",null,"0035 - Boston","BOSTON","SUFFOLK",""]
[null,null,null,null,null,null,null,"0152 - Lenox","TRINITY FOLEY LP","75 FEDERAL ST FL 4 BOSTON MA 02110","2001-09-21",null,"0035 - Boston","BOSTON","SUFFOLK",""]
[null,null,null,null,null,null,null,"0153 - Leominster","TRINITY FRANKLIN HILL FOUR PHASE ONE LP","75 FEDERAL ST 4TH FL BOSTON MA 02110","2007-01-01",null,"0035 - Boston","BOSTON","SUFFOLK",""]
[null,null,null,null,null,null,null,"0154 - Leverett","TRINITY FRANKLIN HILL FOUR PHASE TWO LP","75 FEDERAL ST FL 4 BOSTON MA 02110","2008-01-01",null,"0035 - Boston","BOSTON","SUFFOLK",""]
[null,null,null,null,null,null,null,"0155 - Lexington","TRINITY FRANKLIN HILL PHASE TWO LP","75 FEDERAL ST FL 4 BOSTON MA 02110","2008-01-01",null,"0035 - Boston","BOSTON","SUFFOLK",""]
[null,null,null,null,null,null,null,"0156 - Leyden","TRINITY FRANKLIN PHASE ONE LP","75 FEDERAL ST LBBY 4\nBOSTON MA 02110-1900","2007-01-30",null,"0035 - Boston","BOSTON","SUFFOLK",""]
[null,null,null,null,null,null,null,"0157 - Lincoln","TRINITY MATTAPAN HEIGHTS","75 FEDERAL ST FL 4 BOSTON MA 02110","2006-01-30",null,"0035 - Boston","BOSTON","SUFFOLK",""]
[null,null,null,null,null,null,null,"0158 - Littleton","TRINITY MATTAPAN HEIGHTS FIVE LP","75 FEDERAL ST FL 4 BOSTON MA 02110","2012-01-01",null,"0035 - Boston","BOSTON","SUFFOLK",""]
[null,null,null,null,null,null,null,"0159 - Longmeadow","TRINITY MATTAPAN HEIGHTS THREE LP","75 FEDERAL ST LBBY 4\nBOSTON MA 02110-1900","2007-01-01",null,"0035 - Boston","BOSTON","SUFFOLK",""]
[null,null,null,null,null,null,null,"0160 - Lowell","TRINITY NORHAMPTON PHASE TWO","75 FEDERAL ST FL 4TH\nBOSTON MA 02110-1913","2014-01-01",null,"0035 - Boston","BOSTON","SUFFOLK",""]
[null,null,null,null,null,null,null,"0161 - Ludlow","TRINITY NORTHAMPTON PHASE ONE LP","75 FEDERAL ST FL 4\nBOSTON MA 02110-1913","2013-10-04",null,"0035 - Boston","BOSTON","SUFFOLK",""]
[null,null,null,null,null,null,null,"0162 - Lunenburg","TRINITY NORTHAMPTON PHASE ONE LP","75 FEDERAL ST FL 4 BOSTON MA 02110","2013-01-01",null,"0035 - Boston","BOSTON","SUFFOLK",""]
[null,null,null,null,null,null,null,"0163 - Lynn","TRINITY ORIENT HEIGHTS LP","75 FEDERAL ST FL 4\nBOSTON MA 02110-1913","2015-01-01",null,"0035 - Boston","BOSTON","SUFFOLK",""]
[null,null,null,null,null,null,null,"0164 - Lynnfield","TRINITY WASHINGTON BEECH FOUR PH","75 FEDERAL ST FL 4 BOSTON MA 02110","2009-01-01",null,"0035 - Boston","BOSTON","SUFFOLK",""]
[null,null,null,null,null,null,null,"0165 - Malden","TRINITY WASHINGTON BEECH FOUR PHASE TWO LP","75 FEDERAL ST FL 4 BOSTON MA 02110","2010-01-01",null,"0035 - Boston","BOSTON","SUFFOLK",""]
[null,null,null,null,null,null,null,"0166 - Manchester By The Sea","TRINITY WASHINGTON BEECH PHASE ONE LP","75 FEDERAL ST FL 4 BOSTON MA 02110","2009-01-01",null,"0035 - Boston","BOSTON","SUFFOLK",""]
[null,null,null,null,null,null,null,"0167 - Mansfield","TRINITY WASHINGTON BEECH PHASE TWO LP","75 FEDERAL ST FL 4 BOSTON MA 02110","2010-01-01",null,"0035 - Boston","BOSTON","SUFFOLK",""]
[null,null,null,null,null,null,null,"0168 - Marblehead","TWO FINANCIAL CENTER","PO BOX 1920 DALLAS TX 75221-1920","2007-02-13","2015-12-31","0035 - Boston","BOSTON","SUFFOLK",""]
[null,null,null,null,null,null,null,"0169 - Marion","UPHAMS CORNER LP","84 STATE ST STE 600 BOSTON MA 02109-2227","2014-01-01",null,"0035 - Boston","BOSTON","SUFFOLK",""]
[null,null,null,null,null,null,null,"0170 - Marlborough","VICTORIA APARTMENTS LP","630 TREMONT ST BOSTON MA 02118-1607","1980-05-22",null,"0035 - Boston","BOSTON","SUFFOLK",""]
[null,null,null,null,null,null,null,"0171 - Marshfield","VICTORY GARDENS ASSOCIATES","536 GRANITE ST BRAINTREE MA 02184-3952","1975-10-09","2015-12-31","0035 - Boston","BOSTON","SUFFOLK",""]
[null,null,null,null,null,null,null,"0172 - Mashpee","VIVIENDAS APARTMENTS","27 MICA LN STE 301 WELLESLEY MA 02481-1741","1974-08-15","2014-12-31","0035 - Boston","BOSTON","SUFFOLK",""]
[null,null,null,null,null,null,null,"0173 - Mattapoisett","WAIT STREET ASSOCIATES","7 THOMAS DR CUMBERLAND FORESIDE ME 04110-1318","1980-07-31",null,"0035 - Boston","BOSTON","SUFFOLK",""]
[null,null,null,null,null,null,null,"0174 - Maynard","WALNUT AVENUE APARTMENTS LP","31 GERMANIA ST JAMAICA PLAIN MA 02130-2314","2014-01-01","2019-12-31","0035 - Boston","BOSTON","SUFFOLK",""]
[null,null,null,null,null,null,null,"0175 - Medfield","WASHINGTON STREET GATEWAY ASSOCIATES LP","196 CHESTNUT AVE STE 8\nBOSTON MA 02130-4446","2016-01-01",null,"0035 - Boston","BOSTON","SUFFOLK",""]
[null,null,null,null,null,null,null,"0176 - Medford","WATERS & CO INC","144 WORCESTER ST APT 1\nBOSTON MA 02118-3448","1974-12-05","2014-12-31","0035 - Boston","BOSTON","SUFFOLK",""]
[null,null,null,null,null,null,null,"0177 - Medway","WELD PARK ASSOCIATES","112 WATER ST STE 600 BOSTON MA 02109-4204","1978-05-28","2018-12-31","0035 - Boston","BOSTON","SUFFOLK",""]
[null,null,null,null,null,null,null,"0178 - Melrose","WESTLAND AVENUE APARTMENTS LP","1400 PROVIDENCE HIGHWAY STE 1000 NORWOOD MA 02062-5032","1980-09-25",null,"0035 - Boston","BOSTON","SUFFOLK",""]
[null,null,null,null,null,null,null,"0179 - Mendon","WOODBOURNE HOUSING LIMITED PARTNERSHIP","95 BERKELEY ST STE 500\nBOSTON MA 02116-6229","2015-01-01","2018-12-31","0035 - Boston","BOSTON","SUFFOLK",""]
[null,null,null,null,null,null,null,"0180 - Merrimac","WOODBOURNE HOUSING LP","95 BERKELEY ST STE 500 BOSTON MA 02116-6229","1978-08-03",null,"0035 - Boston","BOSTON","SUFFOLK",""]
[null,null,null,null,null,null,null,"0181 - Methuen","WOODBURY CUNARD ASSOCIATES","72 MARGINAL ST EAST BOSTON MA 02128-2135","1975-07-30",null,"0035 - Boston","BOSTON","SUFFOLK",""]
[null,null,null,null,null,null,null,"0182 - Middleborough","BINNALL HOUSE RHF PARTNERS LTD PARTNERSHIP","536 GRANITE ST BRAINTREE MA 02184-3952","2016-01-01",null,"0035 - Boston","BOSTON","SUFFOLK",""]
[null,null,null,null,null,null,null,"0183 - Middlefield","LANDING APARTMENTS LLC","625 MOUNT AUBURN ST STE 210 CAMBRIDGE MA 02138-4555","2016-06-09",null,"0035 - Boston","BOSTON","SUFFOLK",""]
[null,null,null,null,null,null,null,"0184 - Middleton","ST FRANCIS OF ASSISI RESIDENCES AT BRAINTREE II INC","53 INDEPENDENCE AVE BRAINTREE MA 02184-1768","1980-06-03",null,"0035 - Boston","BOSTON","SUFFOLK",""]
[null,null,null,null,null,null,null,"0185 - Milford","ST FRANCIS OF ASSISI RESIDENCES AT BRAINTREE INC","41 INDEPENDENCE AVE BRAINTREE MA 02184-1733","1974-09-24","2014-12-31","0035 - Boston","BOSTON","SUFFOLK",""]
[null,null,null,null,null,null,null,"0186 - Millbury","BROCKTON COMMONS ASSOC II LLC","100 GRANDVIEW RD STE 207 BRAINTREE MA 02184-2692","1979-08-09",null,"0035 - Boston","BOSTON","SUFFOLK",""]
[null,null,null,null,null,null,null,"0187 - Millis","DOUGLAS HOUSE","536 GRANITE ST # 301 BRAINTREE MA 02184-3952","1982-05-17",null,"0035 - Boston","BOSTON","SUFFOLK",""]
[null,null,null,null,null,null,null,"0188 - Millville","HAMILTON RHF HOUSING, INC.","536 GRANITE ST STE 301 BRAINTREE MA 02184-3952","1978-06-15",null,"0040 - Braintree","BRAINTREE","NORFOLK",""]
[null,null,null,null,null,null,null,"0189 - Milton","TRINITY HOUSING ASSOCIATES","170 NEWBURY ST BOSTON MA 02116-2873","1976-05-13",null,"0040 - Braintree","BRAINTREE","NORFOLK",""]
[null,null,null,null,null,null,null,"0190 - Monroe","BEACON PARK ASSOCIATES","50 FEDERAL ST # 1000 BOSTON MA 02110-2500","1972-04-18","2012-12-31","0040 - Braintree","BRAINTREE","NORFOLK",""]
[null,null,null,null,null,null,null,"0191 - Monson","VILLAGE AT BROOKLINE LP THE","1 WASHINGTON MALL STE 500 BOSTON MA 02108-2603","1975-07-10","2015-12-31","0040 - Braintree","BRAINTREE","NORFOLK",""]
[null,null,null,null,null,null,null,"0192 - Montague","BIOGEN REALTY LP","225 BINNEY ST CAMBRIDGE MA 02142-1031","1993-09-29",null,"0044 - Brockton","BROCKTON","PLYMOUTH",""]
[null,null,null,null,null,null,null,"0193 - Monterey","CLOSE BUILDING ASSOCIATES","27 MICA LN STE 301 WELLESLEY MA 02481-1741","1975-10-20",null,"0044 - Brockton","BROCKTON","PLYMOUTH",""]
[null,null,null,null,null,null,null,"0194 - Montgomery","INMAN SQUARE APARTMENTS CO","1221 CAMBRIDGE ST CAMBRIDGE MA 02139-1354","1972-08-22","2011-03-25","0044 - Brockton","BROCKTON","PLYMOUTH",""]
[null,null,null,null,null,null,null,"0195 - Mount Washington","MEMORIAL DRIVE HOUSING LP","280 FRANKLIN ST CAMBRIDGE MA 02139-3773","1997-07-11","2014-12-31","0044 - Brockton","BROCKTON","PLYMOUTH",""]
[null,null,null,null,null,null,null,"0196 - Nahant","WELLINGTON-HARRINGTON DEV CORP","27 MICA LN STE 301 WELLESLEY MA 02481-1741","1975-01-27","2015-12-31","0046 - Brookline","BROOKLINE","NORFOLK",""]
[null,null,null,null,null,null,null,"0197 - Nantucket","WSQ LIMITED PARTNERSHIP","6 FANEUIL HALL MKTPLC BOSTON MA 02109","2002-03-14","2011-12-31","0046 - Brookline","BROOKLINE","NORFOLK",""]
[null,null,null,null,null,null,null,"0198 - Natick","CHICOPEE HOUSING ASSOCIATES","475 KILVERT ST STE 105 WARWICK RI 02886-1360","1973-08-09","2017-06-30","0049 - Cambridge","CAMBRIDGE","MIDDLESEX",""]
[null,null,null,null,null,null,null,"0199 - Needham","DOM NARODOWY POLSKI PRESERV ASSC","3100 BROADWAY BLVD STE 1234 KANSAS CITY MO 64111-2413","1980-05-12","2010-12-31","0049 - Cambridge","CAMBRIDGE","MIDDLESEX",""]
[null,null,null,null,null,null,null,"0200 - New Ashford","BROWNSTONE GARDENS I INC","75 PLEASANT ST EAST LONGMEADOW MA 01028-2477","1985-08-22","2014-12-31","0049 - Cambridge","CAMBRIDGE","MIDDLESEX",""]
[null,null,null,null,null,null,null,"0201 - New Bedford","BROWNSTONE GARDENS II INC","79 PLEASANT ST EAST LONGMEADOW MA 01028-2406","1985-12-17","2018-07-01","0049 - Cambridge","CAMBRIDGE","MIDDLESEX",""]
[null,null,null,null,null,null,null,"0202 - New Braintree","BROWNSTONE GARDENS III INC","110 SOMERS RD EAST LONGMEADOW MA 01028-2929","1994-12-21",null,"0049 - Cambridge","CAMBRIDGE","MIDDLESEX",""]
[null,null,null,null,null,null,null,"0203 - New Marlborough","EVERETT BOSTON HARBOR","1 BROADWAY EVERETT MA 02149-2432","2019-04-15",null,"0049 - Cambridge","CAMBRIDGE","MIDDLESEX",{"$f":"IF(G203=\"NO\",\"Contact DHCD for the Document \",\"\")","v":""}]
[null,null,null,null,null,null,null,"0204 - New Salem","FAIRHAVEN VILLAGE ASSOCIATES","536 GRANITE ST STE 2 BRAINTREE MA 02184-3954","1978-11-16",null,"0061 - Chicopee","CHICOPEE","HAMPDEN",""]
[null,null,null,null,null,null,null,"0205 - Newbury","ACADEMY ASSOCIATES","100 GRANDVIEW RD STE 207 BRAINTREE MA 02184-2692","1979-09-06",null,"0061 - Chicopee","CHICOPEE","HAMPDEN",""]
[null,null,null,null,null,null,null,"0206 - Newburyport","MILLIKEN AFFORDABLE HOUSING","1090 VERMONT AVE NW STE 400 WASHINGTON DC 20005-4905","1971-06-30","2011-12-31","0085 - East Longmeadow","EAST LONGMEADOW","HAMPDEN",""]
[null,null,null,null,null,null,null,"0207 - Newton","RIVERVIEW TOWERS CO","301 MILLIKEN BLVD APT 1915\nFALL RIVER MA 02721-1621","1971-03-10","2011-12-31","0085 - East Longmeadow","EAST LONGMEADOW","HAMPDEN",""]
[null,null,null,null,null,null,null,"0208 - Norfolk","HOTEL RAYMOND LLC","1 UNIVERSITY AVE # 2C WESTWOOD MA 02090-1245","1976-11-08","2016-12-31","0085 - East Longmeadow","EAST LONGMEADOW","HAMPDEN",""]
[null,null,null,null,null,null,null,"0209 - North Adams","JOSEPH'S HOUSE LLC","800 KELLY WAY HOLYOKE MA 01040","1980-03-10",null,"0093 - Everett","EVERETT","MIDDLESEX",""]
[null,null,null,null,null,null,null,"0210 - North Andover","PELHAM CORPORATION LP","100 GRANDVIEW RD STE 207 BRAINTREE MA 02184-2692","1991-05-17",null,"0094 - Fairhaven","FAIRHAVEN","BRISTOL",""]
[null,null,null,null,null,null,null,"0211 - North Attleborough","PELHAM II CORPORATION","100 GRANDVIEW RD STE 207\nBRAINTREE MA 02184-2692","1992-01-21",null,"0095 - Fall River","FALL RIVER","BRISTOL",""]
[null,null,null,null,null,null,null,"0212 - North Brookfield","BINNALL HOUSE RHF HOUSING INC","536 GRANITE ST STE 301 BRAINTREE MA 02184-3952","1980-12-22","2015-12-31","0095 - Fall River","FALL RIVER","BRISTOL",""]
[null,null,null,null,null,null,null,"0213 - North Reading","NEW CENTRAL GRAMMAR OWNER LLC","185 DARTMOUTH ST STE 9 BOSTON MA 02116-5884","1974-09-03","2014-12-31","0095 - Fall River","FALL RIVER","BRISTOL",""]
[null,null,null,null,null,null,null,"0214 - Northampton","ASBURY CAMP MEETING CORPORATION","15 LEE PARK SOUTH HAMILTON MA 01982-2804","1979-07-21","1979-07-21","0097 - Fitchburg","FITCHBURG","WORCESTER",""]
[null,null,null,null,null,null,null,"0215 - Northborough","CUSHING RESIDENCE INC","10 PLAZA DR STE 201 SCARBOROUGH ME 04074-1801","1980-11-03","2012-12-31","0097 - Fitchburg","FITCHBURG","WORCESTER",""]
[null,null,null,null,null,null,null,"0216 - Northbridge","HANOVER LEGION ELDERLY HOUSING CORPORATION","100 GRANDVIEW RD STE 207 BRAINTREE MA 02184-2692","1981-01-21",null,"0100 - Framingham","FRAMINGHAM","MIDDLESEX",""]
[null,null,null,null,null,null,null,"0217 - Northfield","AHEPA 39 INC","40 BUTTONWOODS AVE HAVERHILL MA 01830-6498","1994-08-30",null,"0100 - Framingham","FRAMINGHAM","MIDDLESEX",""]
[null,null,null,null,null,null,null,"0218 - Norton","MISSION TOWERS INC","180 WATER ST HAVERHILL MA 01830-6216","1972-05-08","2012-12-31","0103 - Gardner","GARDNER","WORCESTER",""]
[null,null,null,null,null,null,null,"0219 - Norwell","COLONY RETIREMENT HOMES OF HOLDEN INC","101 CHADWICK ST WORCESTER MA 01605-1273","1982-05-25",null,"0107 - Gloucester","GLOUCESTER","ESSEX",""]
[null,null,null,null,null,null,null,"0220 - Norwood","AMESBURY GARDENS TENANTS ASSOC","27 MICA LN WELLESLEY MA 02481-1724","1970-02-19","2011-12-31","0119 - Hamilton","HAMILTON","ESSEX",""]
[null,null,null,null,null,null,null,"0221 - Oak Bluffs","ARLINGTON PARK ASSOCIATES","355 PARK ST STE 1\nLAWRENCE MA 01841-2449","1975-11-10","2015-11-10","0122 - Hanover","HANOVER","PLYMOUTH",""]
[null,null,null,null,null,null,null,"0222 - Oakham","COMMON STREET ASSOCIATES","170 NEWBURY ST BOSTON MA 02116-2873","1982-07-22",null,"0122 - Hanover","HANOVER","PLYMOUTH",""]
[null,null,null,null,null,null,null,"0223 - Orange","ESSEX TOWERS - 8TH AP CO","500 W CUMMINGS PARK STE 6050 WOBURN MA 01801-6547","1978-07-31",null,"0128 - Haverhill","HAVERHILL","ESSEX",""]
[null,null,null,null,null,null,null,"0224 - Orleans","LAWRENCE REHABILITATION CO","465 WAVERLEY OAKS RD STE 211 WALTHAM MA 02452-8466","1978-08-01",null,"0128 - Haverhill","HAVERHILL","ESSEX",""]
[null,null,null,null,null,null,null,"0225 - Otis","MI RESIDENTIAL COMMUNITY (II),","172 LAWRENCE ST LAWRENCE MA 01841-3849","1979-11-21",null,"0134 - Holden","HOLDEN","WORCESTER",""]
[null,null,null,null,null,null,null,"0226 - Oxford","MI RESIDENTIAL COMMUNITY III INC","172 LAWRENCE ST LAWRENCE MA 01841-3849","1980-09-25",null,"0149 - Lawrence","LAWRENCE","ESSEX",""]
[null,null,null,null,null,null,null,"0227 - Palmer","MI RESIDENTIAL COMMUNITY INC","172 LAWRENCE ST LAWRENCE MA 01841-3849","1978-07-31",null,"0149 - Lawrence","LAWRENCE","ESSEX",""]
[null,null,null,null,null,null,null,"0228 - Paxton","RITA HALL ASSOCIATES","536 GRANITE ST STE 2B BRAINTREE MA 02184-3954","1975-07-23","2015-12-31","0149 - Lawrence","LAWRENCE","ESSEX",""]
[null,null,null,null,null,null,null,"0229 - Peabody","VALEBROOK ASSOCIATES","130 PROSPECT ST CAMBRIDGE MA 02139-1844","1977-06-21","2017-12-31","0149 - Lawrence","LAWRENCE","ESSEX"]
[null,null,null,null,null,null,null,"0230 - Pelham","LEE ELDERLY HOUSING CORP","1 FENN ST PITTSFIELD MA 01201-6278","1984-03-21",null,"0149 - Lawrence","LAWRENCE","ESSEX"]
[null,null,null,null,null,null,null,"0231 - Pembroke","BELVERON MAZUR LLC","268 BUSH ST # 3534\nSAN FRANCISCO CA 94104-3503","2015-01-01",null,"0149 - Lawrence","LAWRENCE","ESSEX"]
[null,null,null,null,null,null,null,"0232 - Pepperell","LORD ASSOCIATES","170 NEWBURY ST BOSTON MA 02116-2873","1974-03-19","2014-12-31","0149 - Lawrence","LAWRENCE","ESSEX"]
[null,null,null,null,null,null,null,"0233 - Peru","MAZUR PARK APARTMENTS","227 FAYETTE ST LOWELL MA 01852-2363","1981-02-24","2014-12-31","0149 - Lawrence","LAWRENCE","ESSEX"]
[null,null,null,null,null,null,null,"0234 - Petersham","NEW LOWELL ASSOCIATES LP","100 WELLS AVE FL 2 NEWTON MA 02459-3242","1976-01-21","2015-12-31","0149 - Lawrence","LAWRENCE","ESSEX"]
[null,null,null,null,null,null,null,"0235 - Phillipston","PRINCETON PLAZA LP","1115 WESTFORD ST, 4TH FL LOWELL MA 01851","1971-09-27","2011-12-31","0149 - Lawrence","LAWRENCE","ESSEX"]
[null,null,null,null,null,null,null,"0236 - Pittsfield","RELATED STIRLING BAY LLC","423 W 55TH ST 9TH FL NEW YORK NY 10019-4460","1983-11-09",null,"0150 - Lee","LEE","BERKSHIRE"]
[null,null,null,null,null,null,null,"0237 - Plainfield","WENTWORTH HOUSING CO","465 WAVERLEY OAKS RD STE 211 WALTHAM MA 02452-8466","1979-02-27",null,"0160 - Lowell","LOWELL","MIDDLESEX"]
[null,null,null,null,null,null,null,"0238 - Plainville","LEISURE TOWERS ASSOCIATES","500 VICTORY RD QUINCY MA 02171-3139","1973-10-09","2013-12-31","0160 - Lowell","LOWELL","MIDDLESEX"]
[null,null,null,null,null,null,null,"0239 - Plymouth","ST STEPHEN'S PRESERVATION LP","2 CENTER PLZ STE 700 BOSTON MA 02108-1906","1975-03-31","2015-03-31","0160 - Lowell","LOWELL","MIDDLESEX"]
[null,null,null,null,null,null,null,"0240 - Plympton","ACADEMY KNOLL ASSOCIATES","500 W CUMMINGS PARK STE 6050 WOBURN MA 01801-6547","1975-08-11",null,"0160 - Lowell","LOWELL","MIDDLESEX"]
[null,null,null,null,null,null,null,"0241 - Princeton","ACADEMY KNOLL ASSOCIATES CO AME","500 WEST CUMMINGS PARK S WOBURN MA 01801","2016-01-01","2016-01-01","0160 - Lowell","LOWELL","MIDDLESEX"]
[null,null,null,null,null,null,null,"0242 - Provincetown","WINSLOW VILLAGE INC","1520 OCEAN ST STE 18\nMARSHFIELD MA 02050-3557","1971-03-19","2011-12-31","0160 - Lowell","LOWELL","MIDDLESEX"]
[null,null,null,null,null,null,null,"0243 - Quincy","BC SUMMERHILL GLEN LP","2 CENTER PLZ STE 700 BOSTON MA 02108-1906","1975-02-03","2015-12-31","0160 - Lowell","LOWELL","MIDDLESEX"]
[null,null,null,null,null,null,null,"0244 - Randolph","CEDARS ELDERLY HOME INC","222 PELHAM ST METHUEN MA 01844-1467","2008-01-01",null,"0163 - Lynn","LYNN","ESSEX"]
[null,null,null,null,null,null,null,"0245 - Raynham","LEBANESE COMMUNITY HOUSING FOR THE ELDERLY INC","222 PELHAM ST METHUEN MA 01844-1467","1983-07-26",null,"0163 - Lynn","LYNN","ESSEX"]
[null,null,null,null,null,null,null,"0246 - Reading","MERRIMACK VALLEY HOUSING SERVICES INC","536 GRANITE ST STE 2A BRAINTREE MA 02184-3954","1982-10-26",null,"0170 - Marlborough","MARLBOROUGH","MIDDLESEX"]
[null,null,null,null,null,null,null,"0247 - Rehoboth","PARK GARDENS ASSOCIATES","10 BURNHAM RD METHUEN MA 01844-3330","1979-11-07",null,"0170 - Marlborough","MARLBOROUGH","MIDDLESEX"]
[null,null,null,null,null,null,null,"0248 - Revere","MELVILLE TOWERS LP","536 GRANITE ST BRAINTREE MA 02184-3952","1975-11-10","2015-12-31","0171 - Marshfield","MARSHFIELD","PLYMOUTH"]
[null,null,null,null,null,null,null,"0249 - Richmond","UNITED FRONT NINE PRESERV ASSOC","3100 BROADWAY BLVD STE 1234 KANSAS CITY MO 64111-2413","1972-11-29","2012-12-31","0174 - Maynard","MAYNARD","MIDDLESEX"]
[null,null,null,null,null,null,null,"0250 - Rochester","LOW STREET ASSOCIATES","1 WASHINGTON MALL STE 500\nBOSTON MA 02108-2603","1979-10-12","2019-12-31","0181 - Methuen","METHUEN","ESSEX"]
[null,null,null,null,null,null,null,"0251 - Rockland","HAMLET ASSOCIATES LP","425 WATERTOWN ST STE 205\nNEWTON MA 02458-1131","1974-12-10","2014-12-31","0181 - Methuen","METHUEN","ESSEX"]
[null,null,null,null,null,null,null,"0252 - Rockport","NEW FALLS ASSOCIATES","7 WELLS AVE STE 11\nNEWTON CENTER MA 02459-3212","1978-04-07",null,"0181 - Methuen","METHUEN","ESSEX"]
[null,null,null,null,null,null,null,"0253 - Rowe","NEWTON COMMUNITY DEV FOUNDATION II INC","425 WATERTOWN ST STE 205\nNEWTON MA 02458-1131","1979-05-10","2019-12-31","0181 - Methuen","METHUEN","ESSEX"]
[null,null,null,null,null,null,null,"0254 - Rowley","RTH RESTORATION HOUSING LIMITED PARTNERSHIP","100 WELLS AVE NEWTON CENTER MA 02459-3242","2016-01-01",null,"0201 - New Bedford","NEW BEDFORD","BRISTOL"]
[null,null,null,null,null,null,null,"0255 - Royalston","CROWNINSHIELD APARTMENTS","18 CROWNINSHIELD ST PEABODY MA 01960-4360","1973-12-10","2013-12-31","0201 - New Bedford","NEW BEDFORD","BRISTOL"]
[null,null,null,null,null,null,null,"0256 - Russell","PEABODY HOUSE COMPANY","465 WAVERLEY OAKS RD STE 211 WALTHAM MA 02452-8466","1979-05-11",null,"0206 - Newburyport","NEWBURYPORT","ESSEX"]
[null,null,null,null,null,null,null,"0257 - Rutland","BERKSHIRETOWN LLC","800 KELLY WAY HOLYOKE MA 01040","1976-10-04",null,"0207 - Newton","NEWTON","MIDDLESEX"]
[null,null,null,null,null,null,null,"0258 - Salem","PLASTICS REALTY CORP","4200 WILDWOOD PKWY ATLANTA GA 30339-8402","1982-09-28",null,"0207 - Newton","NEWTON","MIDDLESEX"]
[null,null,null,null,null,null,null,"0259 - Salisbury","RIVERVIEW HOMES LP","2 CENTER PLZ STE 700 BOSTON MA 02108-1906","1998-12-08","2012-12-31","0207 - Newton","NEWTON","MIDDLESEX"]
[null,null,null,null,null,null,null,"0260 - Sandisfield","GRANITE PLACE LP","500 VICTORY RD NORTH QUINCY MA 02171-3139","1977-08-11",null,"0207 - Newton","NEWTON","MIDDLESEX"]
[null,null,null,null,null,null,null,"0261 - Sandwich","WJG REALTY TRUST C/O STOP & SHOP","1385 HANCOCK ST QUINCY MA 02169-5103","1980-04-15","2010-12-31","0229 - Peabody","PEABODY","ESSEX"]
[null,null,null,null,null,null,null,"0262 - Saugus","HRCA HOUSING FOR ELDERLY INC","420 REVERE BEACH BLVD REVERE MA 02151-4702","1974-11-19","2014-12-31","0229 - Peabody","PEABODY","ESSEX"]
[null,null,null,null,null,null,null,"0263 - Savoy","LORING TOWERS #43122","423 W 55TH ST FL 8 NEW YORK NY 10019-4460","2010-01-01",null,"0236 - Pittsfield","PITTSFIELD","BERKSHIRE"]
[null,null,null,null,null,null,null,"0264 - Scituate","PEQUOT II LP C/O WINN MANAGEMENT","126 JOHN ST STE 10 LOWELL MA 01852-1152","1972-04-19","2012-12-31","0236 - Pittsfield","PITTSFIELD","BERKSHIRE"]
[null,null,null,null,null,null,null,"0265 - Seekonk","SALEM HEIGHTS PRESERVATION ASSOC","40 COURT ST STE 700 BOSTON MA 02108-2202","2010-01-01",null,"0236 - Pittsfield","PITTSFIELD","BERKSHIRE"]
[null,null,null,null,null,null,null,"0266 - Sharon","WALNUT HILL TOWER ASSOCIATES","PO BOX 227 SOMERVILLE MA 02143-0004","1975-06-25","2015-12-31","0243 - Quincy","QUINCY","NORFOLK"]
[null,null,null,null,null,null,null,"0267 - Sheffield","LEBANON HILL HOUSING FOR THE ELDERLY LLC","39 THERESE AVE SOUTHBRIDGE MA 01550-3048","1973-02-26",null,"0243 - Quincy","QUINCY","NORFOLK"]
[null,null,null,null,null,null,null,"0268 - Shelburne","SOUTHWICK GRANVILLE SR CITZ HSG","322 MAIN ST # 1 SPRINGFIELD MA 01105-2403","1979-03-20",null,"0248 - Revere","REVERE","SUFFOLK"]
[null,null,null,null,null,null,null,"0269 - Sherborn","122 CHESTNUT LLC","18 MAPLE AVE NEWTON MA 02458-1910","1985-03-05","2018-07-26","0258 - Salem","SALEM","ESSEX"]
[null,null,null,null,null,null,null,"0270 - Shirley","1350 MAIN STREET LLC","41 TAYLOR ST SPRINGFIELD MA 01103-1852","1981-12-28",null,"0258 - Salem","SALEM","ESSEX"]
[null,null,null,null,null,null,null,"0271 - Shrewsbury","BAYSTATE PLACE LP","2 CENTER PLZ STE 700 BOSTON MA 02108-1906","1972-09-19","2012-12-31","0258 - Salem","SALEM","ESSEX"]
[null,null,null,null,null,null,null,"0272 - Shutesbury","CATHEDRAL HILL HOUSING CORP","667 MAIN ST HOLYOKE MA 01040-5518","1972-04-18","2012-12-31","0274 - Somerville","SOMERVILLE","MIDDLESEX"]
[null,null,null,null,null,null,null,"0273 - Somerset","CENTER SQUARE INC","1441 MAIN ST STE 800\nSPRINGFIELD MA 01103-1450","1980-05-06","2010-12-31","0278 - Southbridge","SOUTHBRIDGE","WORCESTER"]
[null,null,null,null,null,null,null,"0274 - Somerville","CENTURY PACIFIC HSNG PRTNRSHIP","1985 CEDARBRIDGE AVE STE 1 LAKEWOOD NJ 08701-7031","1975-03-19",null,"0279 - Southwick","SOUTHWICK","HAMPDEN"]
[null,null,null,null,null,null,null,"0275 - South Hadley","CHATEAU ASSOC OF SPRINGFIELD","513 MAIN ST SPRINGFIELD MA 01105-2411","1981-01-07",null,"0281 - Springfield","SPRINGFIELD","HAMPDEN"]
[null,null,null,null,null,null,null,"0276 - Southampton","DO NOT USE","1 MONARCH PL SPRINGFIELD MA 01144-1099","2019-01-01","2019-01-01","0281 - Springfield","SPRINGFIELD","HAMPDEN"]
[null,null,null,null,null,null,null,"0277 - Southborough","EASTERN COOPERATIVE HOMES & HOUS","995 WORTHINGTON ST SPRINGFIELD MA 01109-4027","1976-01-21","2012-12-31","0281 - Springfield","SPRINGFIELD","HAMPDEN"]
[null,null,null,null,null,null,null,"0278 - Southbridge","GARAND COURT ASSOCIATES","100 WELLS AVE # 200 NEWTON MA 02459-3242","1980-09-30",null,"0281 - Springfield","SPRINGFIELD","HAMPDEN"]
[null,null,null,null,null,null,null,"0279 - Southwick","HUNTER PLACE ASSOCS","619 STATE ST SPRINGFIELD MA 01109-4114","1974-04-04","2014-12-31","0281 - Springfield","SPRINGFIELD","HAMPDEN"]
[null,null,null,null,null,null,null,"0280 - Spencer","JEFFERSON AVENUE SCHOOL ASSOCIATES INC","2460 MAIN ST STE 112 SPRINGFIELD MA 01107-1946","1986-02-05",null,"0281 - Springfield","SPRINGFIELD","HAMPDEN"]
[null,null,null,null,null,null,null,"0281 - Springfield","KENYON COLLEGE ASSOCIATES","24 DEER PARK DR EAST LONGMEADOW MA 01028-3196","1982-10-06","2013-12-31","0281 - Springfield","SPRINGFIELD","HAMPDEN"]
[null,null,null,null,null,null,null,"0282 - Sterling","MAPLE COMMONS LP","2001 WASHINGTON ST HANOVER MA 02339-1621","1980-09-30",null,"0281 - Springfield","SPRINGFIELD","HAMPDEN"]
[null,null,null,null,null,null,null,"0283 - Stockbridge","MGM SPRINGFIELD REDEVELOPMENT, LLC","1 MGM WAY SPRINGFIELD MA 01103-2134","2017-01-01",null,"0281 - Springfield","SPRINGFIELD","HAMPDEN"]
[null,null,null,null,null,null,null,"0284 - Stoneham","PICKNELLY FAMILY LIMITED PARTNERSHIP","1 MONARCH PL FL 25\nSPRINGFIELD MA 01144","1986-12-10",null,"0281 - Springfield","SPRINGFIELD","HAMPDEN"]
[null,null,null,null,null,null,null,"0285 - Stoughton","PYNCHON I APARTMENTS LP","536 GRANITE ST BRAINTREE MA 02184-3952","1976-02-02","2011-12-31","0281 - Springfield","SPRINGFIELD","HAMPDEN"]
[null,null,null,null,null,null,null,"0286 - Stow","PYNCHON II APARTMENTS LP","536 GRANITE ST STE 2 BRAINTREE MA 02184-3954","1976-02-02","2011-12-31","0281 - Springfield","SPRINGFIELD","HAMPDEN"]
[null,null,null,null,null,null,null,"0287 - Sturbridge","SPRING HILL APARTMENTS LP","69 WINTER ST SPRINGFIELD MA 01105-2326","1971-10-18","2011-12-31","0281 - Springfield","SPRINGFIELD","HAMPDEN"]
[null,null,null,null,null,null,null,"0288 - Sudbury","ST JAMES COMMONS APARTMENTS LIM","619 STATE ST SPRINGFIELD MA 01109-4114","1983-01-31",null,"0281 - Springfield","SPRINGFIELD","HAMPDEN"]
[null,null,null,null,null,null,null,"0289 - Sunderland","VAN DER HEYDEN ASSOCIATES","619 STATE ST SPRINGFIELD MA 01109-4114","1980-09-29",null,"0281 - Springfield","SPRINGFIELD","HAMPDEN"]
[null,null,null,null,null,null,null,"0290 - Sutton","VILLA NUEVA VISTA ASSOCIATES","1400 PROVIDENCE HIGHWAY STE 1000 NORWOOD MA 02062-5032","1981-05-05",null,"0281 - Springfield","SPRINGFIELD","HAMPDEN"]
[null,null,null,null,null,null,null,"0291 - Swampscott","WORTHY REALTY CO","400 BLUE HILL DR WESTWOOD MA 02090-2164","1980-11-05","2011-12-31","0281 - Springfield","SPRINGFIELD","HAMPDEN"]
[null,null,null,null,null,null,null,"0292 - Swansea","TRINITY TAUNTON FOUR LP","75 FEDERAL ST FL 4 BOSTON MA 02110","2013-01-01",null,"0281 - Springfield","SPRINGFIELD","HAMPDEN"]
[null,null,null,null,null,null,null,"0293 - Taunton","TRINITY TAUNTON NINE LP","75 FEDERAL ST FL 4 BOSTON MA 02110","2012-12-21",null,"0281 - Springfield","SPRINGFIELD","HAMPDEN"]
[null,null,null,null,null,null,null,"0294 - Templeton","GORDON CHARLES RIVER FALLS CO","465 WAVERLEY OAKS RD STE 211 WALTHAM MA 02452-8466","1979-10-04",null,"0281 - Springfield","SPRINGFIELD","HAMPDEN"]
[null,null,null,null,null,null,null,"0295 - Tewksbury","GORDON CHARLES RIVER FALLS CO II","465 WAVERLEY OAKS RD STE 211 WALTHAM MA 02452-8466","1978-12-22",null,"0281 - Springfield","SPRINGFIELD","HAMPDEN"]
[null,null,null,null,null,null,null,"0296 - Tisbury","WILLIAMSTOWN ELDERLY HOUSING CORP","1 FENN ST STE 3 PITTSFIELD MA 01201-6279","1978-04-18",null,"0281 - Springfield","SPRINGFIELD","HAMPDEN"]
[null,null,null,null,null,null,null,"0297 - Tolland","CANTERBURY TOWER APTS LLC","100 GRANDVIEW RD STE 207 BRAINTREE MA 02184-2692","1976-12-31",null,"0281 - Springfield","SPRINGFIELD","HAMPDEN"]
[null,null,null,null,null,null,null,"0298 - Topsfield","COES POND LP","1 WASHINGTON MALL STE 500\nBOSTON MA 02108-2603","1975-05-28","2015-12-31","0293 - Taunton","TAUNTON","BRISTOL"]
[null,null,null,null,null,null,null,"0299 - Townsend","COLONY RETIREMENT HOMES III INC","101 CHADWICK ST WORCESTER MA 01605-1273","1978-05-12",null,"0293 - Taunton","TAUNTON","BRISTOL"]
[null,null,null,null,null,null,null,"0300 - Truro","COLONY RETIREMENT HOMES IV","101 CHADWICK ST WORCESTER MA 01605-1273","1981-04-24",null,"0308 - Waltham","WALTHAM","MIDDLESEX"]
[null,null,null,null,null,null,null,"0301 - Tyngsborough","FRUIT SEVER ASSOCIATES","11 SEVER ST APT 106\nWORCESTER MA 01609-2130","1971-10-28","2011-12-31","0308 - Waltham","WALTHAM","MIDDLESEX"]
[null,null,null,null,null,null,null,"0302 - Tyringham","LAUREL-CLAYTON LP","95 BERKELEY ST 5TH FL BOSTON MA 02116-6240","1969-10-31","2009-10-31","0341 - Williamstown","WILLIAMSTOWN","BERKSHIRE"]
[null,null,null,null,null,null,null,"0303 - Upton","MATHESON APARTMENTS, INC.","6 FANEUIL HALL MARKET PL BOSTON MA 02109-6115","1975-07-01","2015-12-31","0348 - Worcester","WORCESTER","WORCESTER"]
[null,null,null,null,null,null,null,"0304 - Uxbridge","SEABURY RHF LIMITED PRTNRSHP","536 GRANITE ST # 301 BRAINTREE MA 02184-3952","1980-12-09",null,"0348 - Worcester","WORCESTER","WORCESTER"]
[null,null,null,null,null,null,null,"0305 - Wakefield","WELLINGTON COMPANY","6 FANEUIL HALL MKTPLC STE 500 BOSTON MA 02109-1620","1979-12-28",null,"0348 - Worcester","WORCESTER","WORCESTER"]
[null,null,null,null,null,null,null,"0306 - Wales","WHITTIER CROWN HILL LP","2 CENTER PLZ STE 700 BOSTON MA 02108-1906","1980-01-02",null,"0348 - Worcester","WORCESTER","WORCESTER"]
[null,null,null,null,null,null,null,"0307 - Walpole","WORCESTER JEWISH COMMUNITY HOUSING FOR THE ELDERLY INC","475 CHANDLER ST WORCESTER MA 01602-2856","1982-08-24",null,"0348 - Worcester","WORCESTER","WORCESTER"]
[null,null,null,null,null,null,null,"0308 - Waltham","Landover Associates","Please Update Address","1973-12-13",null,"0004 - Adams","ADAMS","BERKSHIRE"]
[null,null,null,null,null,null,null,"0309 - Ware","Millhouses of Adams Assoc. ","Please Update Address","1982-08-05",null,"0004 - Adams","ADAMS","BERKSHIRE"]
[null,null,null,null,null,null,null,"0310 - Wareham","Landover Associates","Please Update Address","1973-12-13",null,"0008 - Amherst","AMHERST","HAMPSHIRE"]
[null,null,null,null,null,null,null,"0311 - Warren","Clark House Associates ","Please Update Address","1979-09-04",null,"0008 - Amherst","AMHERST","HAMPSHIRE"]
[null,null,null,null,null,null,null,"0312 - Warwick","Millhouses of Adams Assoc. ","Please Update Address","1982-08-05",null,"0015 - Athol","ATHOL","WORCESTER"]
[null,null,null,null,null,null,null,"0313 - Washington","416 Main Street LLC","Please Update Address","1982-10-07",null,"0015 - Athol","ATHOL","WORCESTER"]
[null,null,null,null,null,null,null,"0314 - Watertown","Sterling House Associates","Please Update Address","1982-10-07",null,"0040 - Braintree","BRAINTREE","NORFOLK"]
[null,null,null,null,null,null,null,"0315 - Wayland","St. Francis of Assisi Residences at Braintree","Please Update Address","1974-09-24",null,"0040 - Braintree","BRAINTREE","NORFOLK"]
[null,null,null,null,null,null,null,"0316 - Webster","St. Francis of Assisi Residences at Braintree II","Please Update Address","1980-06-03",null,"0040 - Braintree","BRAINTREE","NORFOLK"]
[null,null,null,null,null,null,null,"0317 - Wellesley","St. Francis of Assisi Residences at Braintree, Inc. ","Please Update Address","1974-09-24",null,"0044 - Brockton","BROCKTON","PLYMOUTH"]
[null,null,null,null,null,null,null,"0318 - Wellfleet","St. Francis of Assisi Residences at Braintree II, Inc. ","Please Update Address","1980-06-03",null,"0044 - Brockton","BROCKTON","PLYMOUTH"]
[null,null,null,null,null,null,null,"0319 - Wendell","Bixby II Associates - Peabody Construction Co.","Please Update Address","1981-08-05",null,"0044 - Brockton","BROCKTON","PLYMOUTH"]
[null,null,null,null,null,null,null,"0320 - Wenham","Brockton Commons Associates","Please Update Address","1979-08-09",null,"0044 - Brockton","BROCKTON","PLYMOUTH"]
[null,null,null,null,null,null,null,"0321 - West Boylston","Douglas House Company","Please Update Address","1982-05-17",null,"44 - Brockton","BROCKTON","PLYMOUTH"]
[null,null,null,null,null,null,null,"0322 - West Bridgewater","Brockton Commons Associates II LLC","Please Update Address","1979-08-09",null,"44 - Brockton","BROCKTON","PLYMOUTH"]
[null,null,null,null,null,null,null,"0323 - West Brookfield","(Douglas House)Hamilton RHF Housing, Inc.","Please Update Address","1982-05-17",null,"44 - Brockton","BROCKTON","PLYMOUTH"]
[null,null,null,null,null,null,null,"0324 - West Newbury","(Hamilton-Wade)Hamilton RHF Housing, Inc.","Please Update Address","1978-06-15",null,"44 - Brockton","BROCKTON","PLYMOUTH"]
[null,null,null,null,null,null,null,"0325 - West Springfield","Trinity Housing Associates","Please Update Address","1976-05-13",null,"44 - Brockton","BROCKTON","PLYMOUTH"]
[null,null,null,null,null,null,null,"0326 - West Stockbridge","Hamilton-Wade House Co.","Please Update Address","1978-06-15",null,"0046 - Brookline","BROOKLINE","NORFOLK"]
[null,null,null,null,null,null,null,"0327 - West Tisbury","Beacon Park Assoc.","Please Update Address","1972-04-18",null,"0046 - Brookline","BROOKLINE","NORFOLK"]
[null,null,null,null,null,null,null,"0328 - Westborough","Brookline Village Associates","Please Update Address","1975-07-10",null,"46 - Brookline","BROOKLINE","NORFOLK"]
[null,null,null,null,null,null,null,"0329 - Westfield","Broadway-Windsor Limited Partnership","Please Update Address","1975-10-20",null,"0049 - Cambridge","CAMBRIDGE","MIDDLESEX"]
[null,null,null,null,null,null,null,"0330 - Westford","Inman Square Apartments Company","Please Update Address","1972-08-22",null,"0049 - Cambridge","CAMBRIDGE","MIDDLESEX"]
[null,null,null,null,null,null,null,"0331 - Westhampton","Memorial Drive Housing Ltd Partnership","Please Update Address","1974-03-21",null,"0049 - Cambridge","CAMBRIDGE","MIDDLESEX"]
[null,null,null,null,null,null,null,"0332 - Westminster","WSQ Limited Partnership","Please Update Address","1971-02-02",null,"0049 - Cambridge","CAMBRIDGE","MIDDLESEX"]
[null,null,null,null,null,null,null,"0333 - Weston","Wellington-Harington Devel. Corp. (Linwood Crt)","Please Update Address","1975-01-27",null,"0049 - Cambridge","CAMBRIDGE","MIDDLESEX"]
[null,null,null,null,null,null,null,"0334 - Westport","Chicopee Housing Assoc.","Please Update Address","1973-08-09",null,"0061 - Chicopee","CHICOPEE","HAMPDEN"]
[null,null,null,null,null,null,null,"0335 - Westwood","Dom Narodowy Polski Preserv. Assoc. Ltd Partnership","Please Update Address","1980-05-12",null,"0061 - Chicopee","CHICOPEE","HAMPDEN"]
[null,null,null,null,null,null,null,"0336 - Weymouth","Brownstone Gardens I, Inc.","Please Update Address","1974-12-30",null,"0085 - East Longmeadow","EAST LONGMEADOW","HAMPDEN"]
[null,null,null,null,null,null,null,"0337 - Whately","Brownstone Gardens IIl, Inc.","Please Update Address","1994-12-21",null,"0085 - East Longmeadow","EAST LONGMEADOW","HAMPDEN"]
[null,null,null,null,null,null,null,"0338 - Whitman","One Industrial Lofts LLC","Please Update Address","2021-01-27",null,"0087 - Easthampton","Easthampton","HAMPSHIRE"]
[null,null,null,null,null,null,null,"0339 - Wilbraham","EBH MA Property LLC","Please Update Address","2019-06-25",null,"0093 - Everett","EVERETT","MIDDLESEX"]
[null,null,null,null,null,null,null,"0340 - Williamsburg","Fairhaven Village Association","Please Update Address","1979-11-16",null,"0094 - Fairhaven","FAIRHAVEN","BRISTOL"]
[null,null,null,null,null,null,null,"0341 - Williamstown","Academy Associates","Please Update Address","1979-09-06",null,"0095 - Fall River","FALL RIVER","BRISTOL"]
[null,null,null,null,null,null,null,"0342 - Wilmington","Milliken Affordable Housing, Inc.","Please Update Address","1971-03-04",null,"0095 - Fall River","FALL RIVER","BRISTOL"]
[null,null,null,null,null,null,null,"0343 - Winchendon","Riverview Towers Co.","Please Update Address","1971-03-10",null,"0095 - Fall River","FALL RIVER","BRISTOL"]
[null,null,null,null,null,null,null,"0344 - Winchester","Hotel Raymond LLC","Please Update Address","1976-11-08",null,"0097 - Fitchburg","FITCHBURG","WORCESTER"]
[null,null,null,null,null,null,null,"0345 - Windsor","Joseph's Associates","Please Update Address","1980-03-10",null,"0097 - Fitchburg","FITCHBURG","WORCESTER"]
[null,null,null,null,null,null,null,"0346 - Winthrop","Pelham Corporation","Please Update Address","1991-07-01",null,"0100 - Framingham","FRAMINGHAM","MIDDLESEX"]
[null,null,null,null,null,null,null,"0347 - Woburn","Pelham II Corporation ","Please Update Address","1992-01-21",null,"0100 - Framingham","FRAMINGHAM","MIDDLESEX"]
[null,null,null,null,null,null,null,"0348 - Worcester","Binnall House RHF Housing, Inc.","Please Update Address","1980-12-22",null,"0103 - Gardner","GARDNER","WORCESTER"]
[null,null,null,null,null,null,null,"0349 - Worthington","Gloucester Dev Team Inc & Central Grammer LP","Please Update Address","1974-09-03",null,"0107 - Gloucester","GLOUCESTER","ESSEX"]
[null,null,null,null,null,null,null,"0350 - Wrentham","Cushing Residence, Inc.","Please Update Address","1980-11-03",null,"0122 - Hanover","HANOVER","PLYMOUTH"]
[null,null,null,null,null,null,null,"0351 - Yarmouth","Hanover Legion Elderly Housing Corp.","Please Update Address","1981-01-21",null,"0122 - Hanover","HANOVER","PLYMOUTH"]
[null,null,null,null,null,null,null,null,"AHEPA 39, Inc.","Please Update Address","1994-07-20",null,"0128 - Haverhill","HAVERHILL","ESSEX"]
[null,null,null,null,null,null,null,null,"Mission Towers Associates Ltd. Partnership","Please Update Address","1972-05-08",null,"0128 - Haverhill","HAVERHILL","ESSEX"]
[null,null,null,null,null,null,null,null,"Colony Retirement Homes of Holden, Inc.","Please Update Address","1982-05-25",null,"0134 - Holden","HOLDEN","WORCESTER"]
[null,null,null,null,null,null,null,null,"Arlington Park Associates","Please Update Address","1975-11-10",null,"0149 - Lawrence","LAWRENCE","ESSEX"]
[null,null,null,null,null,null,null,null,"Common Street Associates","Please Update Address","1982-07-22",null,"0149 - Lawrence","LAWRENCE","ESSEX"]
[null,null,null,null,null,null,null,null,"Eighth AP Company","Please Update Address","1978-07-31",null,"0149 - Lawrence","LAWRENCE","ESSEX"]
[null,null,null,null,null,null,null,null,"Lawrence Rehabilitation Co.","Please Update Address","1978-08-01",null,"0149 - Lawrence","LAWRENCE","ESSEX"]
[null,null,null,null,null,null,null,null,"MI Residential Community, Inc.","Please Update Address","1978-07-31",null,"0149 - Lawrence","LAWRENCE","ESSEX"]
[null,null,null,null,null,null,null,null,"MI Residential Community II, Inc.","Please Update Address","1979-11-21",null,"0149 - Lawrence","LAWRENCE","ESSEX"]
[null,null,null,null,null,null,null,null,"MI Residential Community III, Inc.","Please Update Address","1980-09-25",null,"0149 - Lawrence","LAWRENCE","ESSEX"]
[null,null,null,null,null,null,null,null,"Rita Hall Associates","Please Update Address","1975-07-23",null,"149 - Lawrence","LAWRENCE","ESSEX"]
[null,null,null,null,null,null,null,null,"Valebrook Associates","Please Update Address","1977-06-21",null,"149 - Lawrence","LAWRENCE","ESSEX"]
[null,null,null,null,null,null,null,null,"Lee Elderly Housing Corp.","Please Update Address","1984-03-21",null,"0150 - Lee","LEE","BERKSHIRE"]
[null,null,null,null,null,null,null,null,"First Lowell Company","Please Update Address","1976-01-21",null,"0160 - Lowell","LOWELL","MIDDLESEX"]
[null,null,null,null,null,null,null,null,"Lord Associates","Please Update Address","1974-03-19",null,"0160 - Lowell","LOWELL","MIDDLESEX"]
[null,null,null,null,null,null,null,null,"Mazur Apartments Associates","Please Update Address","1981-02-24",null,"0160 - Lowell","LOWELL","MIDDLESEX"]
[null,null,null,null,null,null,null,null,"Princeton Plaza Limited Partnership","Please Update Address","1971-09-27",null,"0160 - Lowell","LOWELL","MIDDLESEX"]
[null,null,null,null,null,null,null,null,"Related Stirling Bay, LLC","Please Update Address","1983-11-09",null,"0160 - Lowell","LOWELL","MIDDLESEX"]
[null,null,null,null,null,null,null,null,"Wentworth Housing Co.","Please Update Address","1979-02-27",null,"0160 - Lowell","LOWELL","MIDDLESEX"]
[null,null,null,null,null,null,null,null,"Leisure Towers Assoc.","Please Update Address","1974-01-01",null,"0163 - Lynn","LYNN","ESSEX"]
[null,null,null,null,null,null,null,null,"St. Stephen's Housing Associates","Please Update Address","1975-03-31",null,"0163 - Lynn","LYNN","ESSEX"]
[null,null,null,null,null,null,null,null,"Academy Knoll Associates","Please Update Address","1975-08-11",null,"0170 - Marlborough","MARLBOROUGH","MIDDLESEX"]
[null,null,null,null,null,null,null,null,"Winslow Village, Inc.","Please Update Address","1971-03-19",null,"0171 - Marshfield","MARSHFIELD","PLYMOUTH"]
[null,null,null,null,null,null,null,null,"BC Summerhill Glen Ltd Partnership","Please Update Address","1975-02-03",null,"0174 - Maynard","MAYNARD","MIDDLESEX"]
[null,null,null,null,null,null,null,null,"Lebanese Community Housing for the Elderly","Please Update Address","1983-07-26",null,"0181 - Methuen","METHUEN","ESSEX"]
[null,null,null,null,null,null,null,null,"Merrimack Valley Housing Services, Inc.","Please Update Address","1982-10-26",null,"0181 - Methuen","METHUEN","ESSEX"]
[null,null,null,null,null,null,null,null,"Park Garden Associates","Please Update Address","1979-11-07",null,"0181 - Methuen","METHUEN","ESSEX"]
[null,null,null,null,null,null,null,null,"Melville Towers Limited Partnership","Please Update Address","1975-11-10",null,"0201 - New Bedford","NEW BEDFORD","BRISTOL"]
[null,null,null,null,null,null,null,null,"United Front Nine Preservation Assoc. Ltd Partnership","Please Update Address","1972-11-29",null,"0201 - New Bedford","NEW BEDFORD","BRISTOL"]
[null,null,null,null,null,null,null,null,"Low Street Associates","Please Update Address","1979-10-12",null,"0206 - Newburyport","NEWBURYPORT","ESSEX"]
[null,null,null,null,null,null,null,null,"Hamlet Associates","Please Update Address","1976-08-12",null,"0207 - Newton","NEWTON","MIDDLESEX"]
[null,null,null,null,null,null,null,null,"New Falls Associates","Please Update Address","1978-04-07",null,"0207 - Newton","NEWTON","MIDDLESEX"]
[null,null,null,null,null,null,null,null,"Newton Community Development Found. II, Inc.","Please Update Address","1979-05-10",null,"0207 - Newton","NEWTON","MIDDLESEX"]
[null,null,null,null,null,null,null,null,"Crowninshield Apts. Assoc.","Please Update Address","1973-12-10",null,"0229 - Peabody","PEABODY","ESSEX"]
[null,null,null,null,null,null,null,null,"Peabody House Company","Please Update Address","1979-05-11",null,"0229 - Peabody","PEABODY","ESSEX"]
[null,null,null,null,null,null,null,null,"Berkshiretown Associates","Please Update Address","1976-10-04",null,"0236 - Pittsfield","PITTSFIELD","BERKSHIRE"]
[null,null,null,null,null,null,null,null,"Plastics Realty Corp.","Please Update Address","1982-09-28",null,"0236 - Pittsfield","PITTSFIELD","BERKSHIRE"]
[null,null,null,null,null,null,null,null,"Riverview Homes Ltd Partnership","Please Update Address","1972-05-16",null,"0236 - Pittsfield","PITTSFIELD","BERKSHIRE"]
[null,null,null,null,null,null,null,null,"Granite Place Limited Partnership","Please Update Address","1977-08-11",null,"0243 - Quincy","QUINCY","NORFOLK"]
[null,null,null,null,null,null,null,null,"Stop & Shop Supermarket Corporation","Please Update Address","1905-06-02",null,"0243 - Quincy","QUINCY","NORFOLK"]
[null,null,null,null,null,null,null,null,"H.R.C.A. Housing for Elderly, Inc.","Please Update Address","1974-11-19",null,"0248 - Revere","REVERE","SUFFOLK"]
[null,null,null,null,null,null,null,null,"Loring Towers Salem Preservation Ltd Partnshp","Please Update Address","2013-10-11",null,"0258 - Salem","SALEM","ESSEX"]
[null,null,null,null,null,null,null,null,"Pequot Associates","Please Update Address","1972-04-19",null,"0258 - Salem","SALEM","ESSEX"]
[null,null,null,null,null,null,null,null,"Salem Heights Preservation Associates, Ltd Partnership","Please Update Address","2013-03-27",null,"0258 - Salem","SALEM","ESSEX"]
[null,null,null,null,null,null,null,null,"Walnut Hill Tower Assoc.","Please Update Address","1975-06-25",null,"0274 - Somerville","SOMERVILLE","MIDDLESEX"]
[null,null,null,null,null,null,null,null,"TAG Associates","Please Update Address","1973-02-26",null,"0278 - Southbridge","SOUTHBRIDGE","WORCESTER"]
[null,null,null,null,null,null,null,null,"Southwick-Granville Senior Citizens Housing","Please Update Address","1979-03-20",null,"0279 - Southwick","SOUTHWICK","HAMPDEN"]
[null,null,null,null,null,null,null,null,"120 Chestnut St. Ltd. Ptner.","Please Update Address","1985-03-05",null,"0281 - Springfield","SPRINGFIELD","HAMPDEN"]
[null,null,null,null,null,null,null,null,"Baystate Place Limited Partnership","Please Update Address","1972-09-17",null,"0281 - Springfield","SPRINGFIELD","HAMPDEN"]
[null,null,null,null,null,null,null,null,"Center Square, Inc. (office)","Please Update Address",1980,null,"0281 - Springfield","SPRINGFIELD","HAMPDEN"]
[null,null,null,null,null,null,null,null,"Center Square, Inc. (retail)","Please Update Address","1980-05-06",null,"0281 - Springfield","SPRINGFIELD","HAMPDEN"]
[null,null,null,null,null,null,null,null,"Century Pacific Housing Partnership","Please Update Address","1973-05-08",null,"0281 - Springfield","SPRINGFIELD","HAMPDEN"]
[null,null,null,null,null,null,null,null,"Chateau Assoc. of Springfield","Please Update Address","1981-01-07",null,"0281 - Springfield","SPRINGFIELD","HAMPDEN"]
[null,null,null,null,null,null,null,null,"Core City Associates, Inc. (Spring Hill Assoc. LP)","Please Update Address",1971,null,"0281 - Springfield","SPRINGFIELD","HAMPDEN"]
[null,null,null,null,null,null,null,null,"Eastern Coop. Homes & Houses, Inc.","Please Update Address","1972-10-18",null,"0281 - Springfield","SPRINGFIELD","HAMPDEN"]
[null,null,null,null,null,null,null,null,"Financial Plaza Trust ","Please Update Address","1981-12-28",null,"0281 - Springfield","SPRINGFIELD","HAMPDEN"]
[null,null,null,null,null,null,null,null,"Garand Court Associates","Please Update Address","1980-09-30",null,"0281 - Springfield","SPRINGFIELD","HAMPDEN"]
[null,null,null,null,null,null,null,null,"Hunter Place Associates","Please Update Address","1974-04-04",null,"0281 - Springfield","SPRINGFIELD","HAMPDEN"]
[null,null,null,null,null,null,null,null,"Jefferson Ave. School Assoc.","Please Update Address","1986-02-05",null,"0281 - Springfield","SPRINGFIELD","HAMPDEN"]
[null,null,null,null,null,null,null,null,"Kenyon College Associates","Please Update Address","1982-10-06",null,"0281 - Springfield","SPRINGFIELD","HAMPDEN"]
[null,null,null,null,null,null,null,null,"Maple Green Ltd Partnership","Please Update Address","1980-09-30",null,"0281 - Springfield","SPRINGFIELD","HAMPDEN"]
[null,null,null,null,null,null,null,null,"MGM Springfield reDevelopment LLC","Please Update Address","2014-12-31",null,"0281 - Springfield","SPRINGFIELD","HAMPDEN"]
[null,null,null,null,null,null,null,null,"Orange Apartments Associates","Please Update Address","1974-03-08",null,"0281 - Springfield","SPRINGFIELD","HAMPDEN"]
[null,null,null,null,null,null,null,null,"Picknelly Family Ltd. Partnership","Please Update Address","1986-12-10",null,"0281 - Springfield","SPRINGFIELD","HAMPDEN"]
[null,null,null,null,null,null,null,null,"Pynchon I Apartments Ltd Partnership","Please Update Address",1971,null,"0281 - Springfield","SPRINGFIELD","HAMPDEN"]
[null,null,null,null,null,null,null,null,"Pynchon Il Apartments Ltd Partnership","Please Update Address",1971,null,"0281 - Springfield","SPRINGFIELD","HAMPDEN"]
[null,null,null,null,null,null,null,null,"St. James Commons","Please Update Address","1983-01-31",null,"0281 - Springfield","SPRINGFIELD","HAMPDEN"]
[null,null,null,null,null,null,null,null,"Cathedral Hill Housing Corporation","Please Update Address","1972-04-18",null,"281 - Springfield","SPRINGFIELD","HAMPDEN"]
[null,null,null,null,null,null,null,null,"The Worthy Realty Company Corp. ","Please Update Address",1980,null,"281 - Springfield","SPRINGFIELD","HAMPDEN"]
[null,null,null,null,null,null,null,null,"Van der Heyden Associates","Please Update Address","1980-09-29",null,"281 - Springfield","SPRINGFIELD","HAMPDEN"]
[null,null,null,null,null,null,null,null,"Villa Nueva Vista Associates","Please Update Address","1981-05-05",null,"281 - Springfield","SPRINGFIELD","HAMPDEN"]
[null,null,null,null,null,null,null,null,"Trinity Taunton Four Ltd Partnership","Please Update Address","2013-01-11",null,"0293 - Taunton","TAUNTON","BRISTOL"]
[null,null,null,null,null,null,null,null,"Trinity Taunton Nine Ltd Partnership","Please Update Address","2012-12-21",null,"0293 - Taunton","TAUNTON","BRISTOL"]
[null,null,null,null,null,null,null,null,"Gordon Charles River Falls Co.","Please Update Address","1978-12-22",null,"0308 - Waltham","WALTHAM","MIDDLESEX"]
[null,null,null,null,null,null,null,null,"Gordon Charles River Falls Co. II","Please Update Address","1979-10-04",null,"0308 - Waltham","WALTHAM","MIDDLESEX"]
[null,null,null,null,null,null,null,null,"Williamstown Elderly Housing Corp.","Please Update Address","1978-04-18",null,"0341 - Williamstown","WILLIAMSTOWN","BERKSHIRE"]
[null,null,null,null,null,null,null,null,"Chestnut Renewal Corp.","Please Update Address","1975-07-01",null,"0348 - Worcester","WORCESTER","WORCESTER"]
[null,null,null,null,null,null,null,null,"Colony Retirement Homes III, Inc.","Please Update Address","1978-05-12",null,"0348 - Worcester","WORCESTER","WORCESTER"]
[null,null,null,null,null,null,null,null,"Colony Retirement Homes IV Inc.","Please Update Address","1981-04-24",null,"0348 - Worcester","WORCESTER","WORCESTER"]
[null,null,null,null,null,null,null,null,"Fruit-Sever Assoc.","Please Update Address","1971-10-28",null,"0348 - Worcester","WORCESTER","WORCESTER"]
[null,null,null,null,null,null,null,null,"Housing Associates of Worcester","Please Update Address","1975-05-28",null,"0348 - Worcester","WORCESTER","WORCESTER"]
[null,null,null,null,null,null,null,null,"Laurel-Clayton Limited Partnership","Please Update Address","1969-10-31",null,"348 - Worcester","WORCESTER","WORCESTER"]
[null,null,null,null,null,null,null,null,"Seabury RHF Limited Partnership (12/20/02)","Please Update Address","1980-12-09",null,"348 - Worcester","WORCESTER","WORCESTER"]
[null,null,null,null,null,null,null,null,"The Wellington Company","Please Update Address","1979-12-28",null,"348 - Worcester","WORCESTER","WORCESTER"]
[null,null,null,null,null,null,null,null,"Whittier Terrace Associates","Please Update Address","1980-01-02",null,"348 - Worcester","WORCESTER","WORCESTER"]
[null,null,null,null,null,null,null,null,"Canterbury Tower Apartments LLC","Please Update Address","1972-06-19",null,"348 - Worcester","WORCESTER","WORCESTER"]
[null,null,null,null,null,null,null,null,"Jewish Community Housing for the Elderly, Inc.","Please Update Address","1982-08-24",null,"348 - Worcester","WORCESTER","WORCESTER"]

{"sheet":"Instructions Page","index":1,"n_rows":43,"n_cols":3,"rows_kept":43,"cut":false,"hidden":false,"merged":[[33,2,33,13],[35,2,35,13],[37,2,37,13],[30,2,31,13],[30,1,31,1],[7,1,7,13],[18,2,19,13],[21,2,22,13],[24,2,25,13],[27,2,28,13],[9,2,10,13],[15,2,16,13],[9,1,10,1],[15,1,16,1],[12,1,13,1],[12,2,13,13],[27,1,28,1],[24,1,25,1],[21,1,22,1],[18,1,19,1]]}
[]
[]
[]
[]
[null,null,"Chapter 121A Survey instruction page."]
[]
[]
[null,"The information below is instruction to complete the corresponding numbered columns on the \"Details Page\"."]
[]
[null,1,"Click in the Select Your Community cell. Then click the drop down in the cell to select your community.  All information BLA has for your community will populate in columns 3 to 5."]
[]
[]
[null,2,"Click the drop down in column #2 cell (B,10)and choose either that 121A Project(S) \"DO EXIST\" or \"DO NOT EXIST\" in your community.  If you click \"DO NOT EXIST\", please save this file and email it  back, all others please continue with the data review, clean-up and entry."]
[]
[]
[null,3,"The Parcel ID for each property in the 121A program in your community needs to be populated in this cell.  Please check to see if the Parcel ID is correct. If it is missing or needs to be updated, please do so in Column # 9."]
[]
[]
[null,4,"The Owner Name for each project in the 121A program in your community needs to be populated in this cell.  Please check if the Owner Name is correct.  If it is missing or needs updating please do so in Column # 10. "]
[]
[]
[null,5,"The Street Address for each property in the 121A program in your community needs to be populated in this cell.  Please check  if the Street Address is correct.    If it is missing or needs updating please do so in Column # 11."]
[]
[]
[null,6,"Click the  (Y/N) drop down representing whether a PDF of the PRC has been attached with an informative file name."]
[]
[]
[null,7,"Click the  (Y/N) drop down representing whether your community has a 121A agreement document."]
[]
[]
[null,8,"If you answered NO to the question in column 7, click in column 8 cell (P,10) this will give you information where you can obtain the documents.  If you answered YES no action needs to be taken in Column 8."]
[]
[]
[null,9,"Missing or updated Parcel ID information to be input in column 9 of the \"Details Page\"."]
[]
[null,10,"Missing or updated Owner Name information to be input in column 10 of the \"Details Page\"."]
[]
[null,11,"Missing or updated Street Address information to be input in column 11 of the \"Details Page\"."]
[]
[]
[]
[]
[null,"Note:"]

{"sheet":"Local Option Businesses by Loc","index":2,"n_rows":310,"n_cols":9,"rows_kept":310,"cut":false,"hidden":true,"merged":[]}
["Account Type","FormattedID","Name","Mailing Address","Commence","Cease","LocalityCode","City","County"]
["Urban Redevelopment Excise","URE-12206658-002","BARRETT HOUSING CORP","45 WOOD AVE PITTSFIELD MA 01201-5614","2014-11-01","2014-11-01","0004 - Adams","ADAMS","BERKSHIRE"]
["Urban Redevelopment Excise","URE-11416211-002","BARRETT HOUSING CORPORATION","1 FENN ST PITTSFIELD MA 01201-6278","1978-01-27",null,"0004 - Adams","ADAMS","BERKSHIRE"]
["Urban Redevelopment Excise","URE-10832723-002","LANDOVER ASSOCIATES","1 SOMMER HILL RD ADAMS MA 01220-9771","1973-12-13","2013-12-31","0004 - Adams","ADAMS","BERKSHIRE"]
["Urban Redevelopment Excise","URE-12067051-002","MILLHOUSES OF ADAMS ASSOCIATES","100 WELLS AVE NEWTON MA 02459-3242","1982-08-05",null,"0004 - Adams","ADAMS","BERKSHIRE"]
["Urban Redevelopment Excise","URE-18805553-002","AMHERST CLARK HOUSE LIMITED PARTNERSHIP","3101 BEE CAVES RD STE 220 AUSTIN TX 78746-5574","2017-01-01",null,"0008 - Amherst","AMHERST","HAMPSHIRE"]
["Urban Redevelopment Excise","URE-11503234-002","CLARK HOUSE ASSOCIATES","540 NORTH COMMERCIAL ST MANCHESTER NH 03101-1122","1979-09-04",null,"0008 - Amherst","AMHERST","HAMPSHIRE"]
["Urban Redevelopment Excise","URE-11493871-002","PEQUOIG HOUSE LLC","42 RAYMOND ST MANCHESTER BY THE SEA MA 01944-1616","1982-10-07",null,"0015 - Athol","ATHOL","WORCESTER"]
["Urban Redevelopment Excise","URE-11694416-002","10 TEMPLE PLACE LP","536 GRANITE ST # 301 BRAINTREE MA 02184-3952","1978-11-28","2018-12-31","0035 - Boston","BOSTON","SUFFOLK"]
["Urban Redevelopment Excise","URE-10711646-002","333 MASSACHUSETTS AVE LP","536 GRANITE ST # 301 BRAINTREE MA 02184-3952","2001-06-21","2015-12-31","0035 - Boston","BOSTON","SUFFOLK"]
["Urban Redevelopment Excise","URE-10173335-002","334 MASSACHUSETTS AVE LP","536 GRANITE ST STE 301 BRAINTREE MA 02184-3952","1975-09-30","2015-12-31","0035 - Boston","BOSTON","SUFFOLK"]
["Urban Redevelopment Excise","URE-10355264-002","ABBEY LAFAYETTE OWNER LLP","575 BOYLSTON ST FL 8 BOSTON MA 02116","1998-02-01",null,"0035 - Boston","BOSTON","SUFFOLK"]
["Urban Redevelopment Excise","URE-18853047-002","ABBEY LAFAYETTE OWNER LLP","177 HUNTINGTON AVE STE 24 BOSTON MA 02115-3145","2017-01-01",null,"0035 - Boston","BOSTON","SUFFOLK"]
["Urban Redevelopment Excise","URE-10962517-002","ADAM TEMPLETON ASSOCIATES","500 VICTORY RD QUINCY MA 02171-3139","1980-05-01","2015-12-31","0035 - Boston","BOSTON","SUFFOLK"]
["Urban Redevelopment Excise","URE-10311570-002","ADAMS ORCHARD LP","75 FEDERAL ST FL 4TH BOSTON MA 02110","1998-12-29",null,"0035 - Boston","BOSTON","SUFFOLK"]
["Urban Redevelopment Excise","URE-11459316-002","ALLSTON LANDING LP","11 PLEASANT ST FRAMINGHAM MA 01701-4707","1992-01-27",null,"0035 - Boston","BOSTON","SUFFOLK"]
["Urban Redevelopment Excise","URE-11050873-002","AMORY TERRACE LP","126 JOHN ST STE 10 LOWELL MA 01852-1152","2004-04-01","2019-12-31","0035 - Boston","BOSTON","SUFFOLK"]
["Urban Redevelopment Excise","URE-11259732-002","ANDERSON STREET ASSOCIATES","1 UNIVERSITY AVE # 2C WESTWOOD MA 02090-1245","1975-07-10","2015-12-31","0035 - Boston","BOSTON","SUFFOLK"]
["Urban Redevelopment Excise","URE-10675926-003","ANGELA WESTOVER HOUSING CORP","536 GRANITE ST BRAINTREE MA 02184-3952","1982-10-14",null,"0035 - Boston","BOSTON","SUFFOLK"]
["Urban Redevelopment Excise","URE-18447918-002","ANGELA WESTOVER HOUSING CORP","536 GRANITE ST BRAINTREE MA 02184-3952","2016-01-01","2016-01-01","0035 - Boston","BOSTON","SUFFOLK"]
["Urban Redevelopment Excise","URE-10667078-002","AP ONE CHANNEL CENTER OWNER LLC","245 PARK AVE FL 42 NEW YORK NY 10167-0002","2013-01-01","2014-12-31","0035 - Boston","BOSTON","SUFFOLK"]
["Urban Redevelopment Excise","URE-18333621-003","AT-DORCHESTER LP","500 VICTORY RD NORTH QUINCY MA 02171-3139","2016-01-01",null,"0035 - Boston","BOSTON","SUFFOLK"]
["Urban Redevelopment Excise","URE-12240926-002","AUSONIA HOMES ASSOCIATES","536 GRANITE ST BRAINTREE MA 02184-3952","1976-09-09","2016-09-16","0035 - Boston","BOSTON","SUFFOLK"]
["Urban Redevelopment Excise","URE-12232908-002","BACK OF THE HILL APTS LP","185 DARTMOUTH ST BOSTON MA 02116-5886","1979-10-18","2019-12-31","0035 - Boston","BOSTON","SUFFOLK"]
["Urban Redevelopment Excise","URE-11426501-002","BC CONWAY COURT LP","2 CENTER PLZ STE 700 BOSTON MA 02108-1906","1975-05-01","2015-12-31","0035 - Boston","BOSTON","SUFFOLK"]
["Urban Redevelopment Excise","URE-10903231-002","BDC SUMMER STREET 121A LP","7978 COOPER CRK BLV #100 UNIVERSITY PARK FL 34201","1973-04-09","2013-12-31","0035 - Boston","BOSTON","SUFFOLK"]
["Urban Redevelopment Excise","URE-11675383-003","BEACON HOUSE ROGERSON LP","1 FLORENCE ST ROSLINDALE MA 02131-3638","1982-08-05",null,"0035 - Boston","BOSTON","SUFFOLK"]
["Urban Redevelopment Excise","URE-18532003-002","BEVERLY ST ACQUISITION GARAGE OWNER LP","177 MILK ST BOSTON MA 02109-3442","2016-01-01",null,"0035 - Boston","BOSTON","SUFFOLK"]
["Urban Redevelopment Excise","URE-18392004-002","BEVERLY STREET ACQUISITION GARAGE ONE OWNER LP","177 MILK ST BOSTON MA 02109-3442","2015-07-27",null,"0035 - Boston","BOSTON","SUFFOLK"]
["Urban Redevelopment Excise","URE-14704587-004","BEVERLY STREET ACQUISITION HOTEL OWNER LP","177 MILK ST BOSTON MA 02109-3404","2016-01-01",null,"0035 - Boston","BOSTON","SUFFOLK"]
["Urban Redevelopment Excise","URE-18491810-002","BEVERLY STREET ACQUISITION RESIDENTIAL ONE OWNER LP","177 MILK ST BOSTON MA 02109-3410","2016-01-01",null,"0035 - Boston","BOSTON","SUFFOLK"]
["Urban Redevelopment Excise","URE-18508429-002","BEVERLY STREET ACQUISITION RESIDENTIAL TWO OWNER LP","177 MILK ST BOSTON MA 02109-3442","2015-07-27",null,"0035 - Boston","BOSTON","SUFFOLK"]
["Urban Redevelopment Excise","URE-18649339-002","BEVERLY STREET ACQUISITION RETAIL ONE OWNER LP","177 MILK ST BOSTON MA 02109-3410","2015-07-27",null,"0035 - Boston","BOSTON","SUFFOLK"]
["Urban Redevelopment Excise","URE-18472954-003","BEVERLY STREET ACQUISITION RETAIL TWO OWNER LP","177 MILK ST BOSTON MA 02109-3442","2015-07-27",null,"0035 - Boston","BOSTON","SUFFOLK"]
["Urban Redevelopment Excise","URE-11988961-002","BLACKSTONE PRESERVATION ASSOC LP","40 COURT ST STE 700 BOSTON MA 02108-2202","1975-09-25","2015-12-31","0035 - Boston","BOSTON","SUFFOLK"]
["Urban Redevelopment Excise","URE-10502101-002","BLAKE ESTATES ASSOC I LP","2 CENTER PLZ STE 700 BOSTON MA 02108-1906","1978-12-28","2018-12-31","0035 - Boston","BOSTON","SUFFOLK"]
["Urban Redevelopment Excise","URE-10546018-002","BLAKE ESTATES ASSOC II LP","2 CENTER PLZ STE 700 BOSTON MA 02108-1906","1979-10-11","2019-12-31","0035 - Boston","BOSTON","SUFFOLK"]
["Urban Redevelopment Excise","URE-10389094-003","B'NAI B'RITH I & II INC","34 WASHINGTON ST BRIGHTON MA 02135-7404","2015-01-01",null,"0035 - Boston","BOSTON","SUFFOLK"]
["Urban Redevelopment Excise","URE-10449238-002","B'NAI B'RITH III INC","30 WASHINGTON ST BRIGHTON MA 02135-7424","2002-03-05",null,"0035 - Boston","BOSTON","SUFFOLK"]
["Urban Redevelopment Excise","URE-10433611-002","B'NAI B'RITH SENIOR CITIZENS HOUSING","30 WASHINGTON ST BRIGHTON MA 02135-7424","1980-05-22","2014-12-31","0035 - Boston","BOSTON","SUFFOLK"]
["Urban Redevelopment Excise","URE-10233433-002","BORINQUEN ASSOCIATES","27 MICA LN STE 301 WELLESLEY MA 02481-1741","1975-12-04","2015-12-31","0035 - Boston","BOSTON","SUFFOLK"]
["Urban Redevelopment Excise","URE-12007206-002","BOSTON BAY LP","530 WARREN ST DORCHESTER MA 02121-1821","1977-07-28",null,"0035 - Boston","BOSTON","SUFFOLK"]
["Urban Redevelopment Excise","URE-10198156-002","BOSTON BAY LP","530 WARREN ST DORCHESTER MA 02121-1821","1991-09-11","2015-12-10","0035 - Boston","BOSTON","SUFFOLK"]
["Urban Redevelopment Excise","URE-11120564-002","BOSTON REHAB ASSOCIATES","94 BEACONSFIELD RD BROOKLINE MA 02445-3309","1979-04-12",null,"0035 - Boston","BOSTON","SUFFOLK"]
["Urban Redevelopment Excise","URE-10702094-002","BOWDOIN SCHOOL ASSOCIATES","100 WELLS AVE # 200 NEWTON MA 02459-3242","1975-11-20","2015-12-31","0035 - Boston","BOSTON","SUFFOLK"]
["Urban Redevelopment Excise","URE-10973145-002","BOYLSTON WEST GARAGE LLC","136 BROOKLINE AVE BOSTON MA 02215-3907","2015-01-01",null,"0035 - Boston","BOSTON","SUFFOLK"]
["Urban Redevelopment Excise","URE-10868898-002","BRIDGEVIEW APARTMENTS LIMITED PARTNERSHIP","20 EASTBROOK RD STE 201\nDEDHAM MA 02026-2087","2015-01-01",null,"0035 - Boston","BOSTON","SUFFOLK"]
["Urban Redevelopment Excise","URE-10486091-002","BRIGHTON-ALLSTON ELDERLY HOMES INC","100 GRANDVIEW RD STE 207 BRAINTREE MA 02184-2692","1980-05-01",null,"0035 - Boston","BOSTON","SUFFOLK"]
["Urban Redevelopment Excise","URE-10964200-002","BW OFFICE OWNER LIMITED PARTNERSHIP","333 NEWBURY ST BOSTON MA 02115-2710","2015-01-01",null,"0035 - Boston","BOSTON","SUFFOLK"]
["Urban Redevelopment Excise","URE-10666682-002","CAMFIELD TENANTS ASSOCIATION","536 GRANITE ST BRAINTREE MA 02184-3952","1968-09-19","2012-12-31","0035 - Boston","BOSTON","SUFFOLK"]
["Urban Redevelopment Excise","URE-10580460-002","CASA MARIA HOUSING CORP","95 BERKELEY ST STE 500 BOSTON MA 02116-6229","1978-07-20",null,"0035 - Boston","BOSTON","SUFFOLK"]
["Urban Redevelopment Excise","URE-10476688-002","CCBA TAI TUNG VILLAGE","808 MEMORIAL DR CAMBRIDGE MA 02139-4637","1970-09-03","2010-12-31","0035 - Boston","BOSTON","SUFFOLK"]
["Urban Redevelopment Excise","URE-11302425-002","CHARLES H FARNSWORTH HOUSING CORP","1 FLORENCE ST BOSTON MA 02131-3638","1981-09-17",null,"0035 - Boston","BOSTON","SUFFOLK"]
["Urban Redevelopment Excise","URE-11085579-002","CHARLESTOWN ECONOMIC DEVEL CORP","7 WELLS AVE STE 11\nNEWTON CENTER MA 02459-3212","1978-10-26",null,"0035 - Boston","BOSTON","SUFFOLK"]
["Urban Redevelopment Excise","URE-11606165-002","CHAUNCY HOUSE LP","95 BERKELEY ST STE 500 BOSTON MA 02116-6229","1973-04-19","2013-12-31","0035 - Boston","BOSTON","SUFFOLK"]
["Urban Redevelopment Excise","URE-10851693-002","CHINAGATE HOUSING ASSOCIATES","44 FARINA RD NEWTON MA 02459-2860","1983-03-03",null,"0035 - Boston","BOSTON","SUFFOLK"]
["Urban Redevelopment Excise","URE-10763247-002","CITY SQUARE ELDERLY HOUSING INC","8425 E 12 MILE RD STE 1000 WARREN MI 48093-2738","1984-12-20",null,"0035 - Boston","BOSTON","SUFFOLK"]
["Urban Redevelopment Excise","URE-11163416-002","COMMONWEALTH FLATS DEV EAST LP","255 STATE ST STE 2 BOSTON MA 02109-2659","1997-12-31","2018-12-31","0035 - Boston","BOSTON","SUFFOLK"]
["Urban Redevelopment Excise","URE-12058166-002","COMMONWEALTH FLATS WEST","255 STATE ST FL 2 BOSTON MA 02109-2659","2000-01-01",null,"0035 - Boston","BOSTON","SUFFOLK"]
["Urban Redevelopment Excise","URE-10344419-002","COMMUNITY HOPE LP","550 DUDLEY ST ROXBURY MA 02119-2770","2005-05-26","2013-12-31","0035 - Boston","BOSTON","SUFFOLK"]
["Urban Redevelopment Excise","URE-12172739-002","CONCORD HOUSE ASSOCIATES","7 THOMAS DR CUMBERLAND FORESIDE ME 04110-1318","1973-11-08","2013-12-31","0035 - Boston","BOSTON","SUFFOLK"]
["Urban Redevelopment Excise","URE-10763589-002","COOPS OF CHARLESNEWTOWN INC","6 FANEUIL HALL MARKET PL BOSTON MA 02109-6115","1972-08-17","2010-12-31","0035 - Boston","BOSTON","SUFFOLK"]
["Urban Redevelopment Excise","URE-10539084-002","COTTAGE BROOK APARTMENTS (121A)","126 JOHN ST STE 10 LOWELL MA 01852-1152","1977-07-28",null,"0035 - Boston","BOSTON","SUFFOLK"]
["Urban Redevelopment Excise","URE-11207055-002","COUNCIL OF ELDERS HOUSING CORP","1 FLORENCE ST ROSLINDALE MA 02131-3638","1983-11-03",null,"0035 - Boston","BOSTON","SUFFOLK"]
["Urban Redevelopment Excise","URE-11571357-002","COVE PLAZA ASSOCIATES LP","170 NEWBURY ST BOSTON MA 02116-2873","1980-09-04",null,"0035 - Boston","BOSTON","SUFFOLK"]
["Urban Redevelopment Excise","URE-11493356-002","DIMOCK BRAGDON ASSOCIATES","126 JOHN ST STE 10 LOWELL MA 01852-1152","1982-09-16",null,"0035 - Boston","BOSTON","SUFFOLK"]
["Urban Redevelopment Excise","URE-10556361-002","DORCHESTER HOUSING ASSOCIATES","536 GRANITE ST BRAINTREE MA 02184-3952","1981-08-20","2011-12-31","0035 - Boston","BOSTON","SUFFOLK"]
["Urban Redevelopment Excise","URE-11068305-002","DUDLEY NEIGHBORS INC","504 DUDLEY ST ROXBURY MA 02119-2732","1988-11-10",null,"0035 - Boston","BOSTON","SUFFOLK"]
["Urban Redevelopment Excise","URE-11014317-002","DUDLEY SQUARE REALTY CORP","1 CITY HALL SQ RM 813 BOSTON MA 02201-1020","2013-01-01",null,"0035 - Boston","BOSTON","SUFFOLK"]
["Urban Redevelopment Excise","URE-11476180-002","DUDLEY VILLAGE NORTH","504 DUDLEY ST ROXBURY MA 02119-2732","2005-05-05",null,"0035 - Boston","BOSTON","SUFFOLK"]
["Urban Redevelopment Excise","URE-10849638-002","DUDLEY VILLAGE SOUTH","504 DUDLEY ST ROXBURY MA 02119-2732","2005-05-05",null,"0035 - Boston","BOSTON","SUFFOLK"]
["Urban Redevelopment Excise","URE-11805974-002","EAST BOSTON COMMUNITY ASSOCIATES","72 MARGINAL ST EAST BOSTON MA 02128-2135","1974-10-31","2014-12-31","0035 - Boston","BOSTON","SUFFOLK"]
["Urban Redevelopment Excise","URE-11076590-002","EAST CANTON ST LP","1400 PROVIDENCE HWY STE 1000 NORWOOD MA 02062-5032","1982-04-08",null,"0035 - Boston","BOSTON","SUFFOLK"]
["Urban Redevelopment Excise","URE-11894790-002","EBENEZER HOMES ASSOCIATES","1 UNIVERSITY AVE # 2C WESTWOOD MA 02090-1245","1971-12-16","2012-12-31","0035 - Boston","BOSTON","SUFFOLK"]
["Urban Redevelopment Excise","URE-10354109-002","EDISON GREEN / CATHERINE CLARK","7 THOMAS DR CUMBERLAND FORESIDE ME 04110-1318","1978-03-09",null,"0035 - Boston","BOSTON","SUFFOLK"]
["Urban Redevelopment Excise","URE-10257907-002","EGLESTON CENTER CORPORATION","2010 COLUMBUS AVE ROXBURY MA 02119-1106","1996-05-31",null,"0035 - Boston","BOSTON","SUFFOLK"]
["Urban Redevelopment Excise","URE-11268099-002","FIELDSTONE APARTMENTS LP","536 GRANITE ST BRAINTREE MA 02184-3952","1981-03-12",null,"0035 - Boston","BOSTON","SUFFOLK"]
["Urban Redevelopment Excise","URE-11677008-002","FRANKLIN PRESERVATION ASSOC LP","40 COURT ST STE 700 BOSTON MA 02108-2202","1974-12-19","2014-12-31","0035 - Boston","BOSTON","SUFFOLK"]
["Urban Redevelopment Excise","URE-10496095-002","GARAGE EXPANSION OWNER, LP","100 LEGENDS WAY BOSTON MA 02114-1300","2015-01-01",null,"0035 - Boston","BOSTON","SUFFOLK"]
["Urban Redevelopment Excise","URE-11666850-002","GARDNER APARTMENTS LP","270 ROXBURY ST BOSTON MA 02119-1526","1974-12-05","2014-12-31","0035 - Boston","BOSTON","SUFFOLK"]
["Urban Redevelopment Excise","URE-10960026-003","GEGC2 NEW STREET LLC C/O GERDING EDLEN","1477 NW EVERETT ST PORTLAND OR 97209-2617","2019-01-01",null,"0035 - Boston","BOSTON","SUFFOLK"]
["Urban Redevelopment Excise","URE-11086347-002","GOVERNOR APARTMENTS ASSOCIATES","100 WELLS AVE NEWTON MA 02459-3242","1980-09-18",null,"0035 - Boston","BOSTON","SUFFOLK"]
["Urban Redevelopment Excise","URE-10631803-002","HAYNES HOUSE ASSOCIATES II","6 FANEUIL HALL MKTPLC BOSTON MA 02109","1977-06-09","2012-12-31","0035 - Boston","BOSTON","SUFFOLK"]
["Urban Redevelopment Excise","URE-10624433-002","HEMENWAY APARTMENTS CO","7 THOMAS DR CUMBERLAND FORESIDE ME 04110-1318","1979-05-03",null,"0035 - Boston","BOSTON","SUFFOLK"]
["Urban Redevelopment Excise","URE-10353971-002","HONG LOK HOUSE","1 FLORENCE ST BOSTON MA 02131-3638","1980-09-18",null,"0035 - Boston","BOSTON","SUFFOLK"]
["Urban Redevelopment Excise","URE-10385376-002","HOTEL TOWER OWNER LP","800 BOYLSTON ST SPC 19 BOSTON MA 02199-7041","2017-01-01",null,"0035 - Boston","BOSTON","SUFFOLK"]
["Urban Redevelopment Excise","URE-11138286-003","JAMAICA PLAIN ASSOCIATES","94 BEACONSFIELD RD BROOKLINE MA 02445-3309","1975-03-06","2015-12-31","0035 - Boston","BOSTON","SUFFOLK"]
["Urban Redevelopment Excise","URE-11833355-002","JEWISH COMM HSNG FOR ELDERLY III","30 WALLINGFORD RD BRIGHTON MA 02135-4708","1975-06-12","2015-07-22","0035 - Boston","BOSTON","SUFFOLK"]
["Urban Redevelopment Excise","URE-10483559-002","JEWISH COMMUNITY HOUSING FOR THE ELDERLY","30 WALLINGFORD RD BRIGHTON MA 02135-4708","1968-11-21","2010-12-31","0035 - Boston","BOSTON","SUFFOLK"]
["Urban Redevelopment Excise","URE-10631985-002","JEWISH COMMUNITY HOUSING FOR THE ELDERLY II","30 WALLINGFORD RD BRIGHTON MA 02135-4708","1972-03-30","2012-12-31","0035 - Boston","BOSTON","SUFFOLK"]
["Urban Redevelopment Excise","URE-11119979-002","KENMORE ABBEY PRESERVATION ASSOC","2 OLIVER ST FL 500\nBOSTON MA 02109-4937","1982-09-16",null,"0035 - Boston","BOSTON","SUFFOLK"]
["Urban Redevelopment Excise","URE-10431485-002","KEYSTONE APARTMENTS COMPANY","150 MOUNT VERNON ST STE 520 DORCHESTER MA 02125-3115","1978-08-03","2018-12-31","0035 - Boston","BOSTON","SUFFOLK"]
["Urban Redevelopment Excise","URE-11788883-002","LANDMARK CENTER LP","333 NEWBURY ST BOSTON MA 02115-2710","1997-02-28","2019-12-31","0035 - Boston","BOSTON","SUFFOLK"]
["Urban Redevelopment Excise","URE-10496093-002","MADISON BOTOLPH II LIMITED PARTNERSHIP","530 WARREN ST DORCHESTER MA 02121-1821","2015-01-01",null,"0035 - Boston","BOSTON","SUFFOLK"]
["Urban Redevelopment Excise","URE-10944651-002","MADISON BOTOLPH LP","530 WARREN ST DORCHESTER MA 02121-1821","1979-05-03","2014-12-31","0035 - Boston","BOSTON","SUFFOLK"]
["Urban Redevelopment Excise","URE-12101857-002","MADISON PARK III ASSOCIATES","6 FANEUIL HALL MARKET PL BOSTON MA 02109-6115","1977-06-09","2012-12-31","0035 - Boston","BOSTON","SUFFOLK"]
["Urban Redevelopment Excise","URE-12223870-002","MADISON PARK IV LP","6 FANEUIL HALL MARKET PL BOSTON MA 02109-6115","1996-05-13",null,"0035 - Boston","BOSTON","SUFFOLK"]
["Urban Redevelopment Excise","URE-11363026-002","MADISON TRINITY LTD PARTNERSHIP","75 FEDERAL ST FL 4 BOSTON MA 02110-1900","1997-08-15",null,"0035 - Boston","BOSTON","SUFFOLK"]
["Urban Redevelopment Excise","URE-11868155-002","MANDELA HOMES LIMITED PARTNERSHP","150 FEDERAL ST 5TH FL BOSTON MA 02110","1997-12-18","2010-12-31","0035 - Boston","BOSTON","SUFFOLK"]
["Urban Redevelopment Excise","URE-10545777-002","MARCUS GARVEY ASSOCIATES","7 THOMAS DR CUMBERLAND FORESIDE ME 04110-1318","1979-05-03",null,"0035 - Boston","BOSTON","SUFFOLK"]
["Urban Redevelopment Excise","URE-11477025-002","MARKLEY ONE SUMMER ST LLP","1 SUMMER ST FL 5 BOSTON MA 02110-1013","1975-05-01","2016-12-31","0035 - Boston","BOSTON","SUFFOLK"]
["Urban Redevelopment Excise","URE-10191025-002","MASON RHF LP","536 GRANITE ST STE 301 BRAINTREE MA 02184-3952","1978-03-09",null,"0035 - Boston","BOSTON","SUFFOLK"]
["Urban Redevelopment Excise","URE-10379005-002","MATEP LP","474 BROOKLINE AVE BOSTON MA 02215-5415","1975-10-09","2015-12-31","0035 - Boston","BOSTON","SUFFOLK"]
["Urban Redevelopment Excise","URE-10239844-002","MAVERICK GARDENS PHASE 3","75 FEDERAL ST FL 4 BOSTON MA 02110","2005-02-11",null,"0035 - Boston","BOSTON","SUFFOLK"]
["Urban Redevelopment Excise","URE-11208107-002","MERCANTILE WHARF ASSOCIATES","15 BROAD ST STE 502 BOSTON MA 02109-3816","1974-11-14","2014-12-31","0035 - Boston","BOSTON","SUFFOLK"]
["Urban Redevelopment Excise","URE-10998878-002","MISSION MAIN PHASE II LP","1 WASHINGTON MALL STE 5\nBOSTON MA 02108-2603","1999-09-10",null,"0035 - Boston","BOSTON","SUFFOLK"]
["Urban Redevelopment Excise","URE-10432983-002","MISSION MAIN PHASE ONE LP","1 WASHINGTON MALL STE 5\nBOSTON MA 02108-2603","1998-09-29",null,"0035 - Boston","BOSTON","SUFFOLK"]
["Urban Redevelopment Excise","URE-11825632-002","MISSION MAIN PHASE THREE LP","6 FANEUIL HALL MARKET PL BOSTON MA 02109-6115","2001-01-01",null,"0035 - Boston","BOSTON","SUFFOLK"]
["Urban Redevelopment Excise","URE-11398307-002","MISSION PARK GARAGE","11 NEW WHITNEY ST BOSTON MA 02115-6276","1975-07-10","2015-12-31","0035 - Boston","BOSTON","SUFFOLK"]
["Urban Redevelopment Excise","URE-11170762-002","MISSION PARK HOUSING","75 FEDERAL ST FL 4TH BOSTON MA 02110","1975-07-10","2015-12-31","0035 - Boston","BOSTON","SUFFOLK"]
["Urban Redevelopment Excise","URE-11068399-002","MORVILLE HOUSE APTS LP","27 MICA LN STE 301 WELLESLEY MA 02481-1741","1971-09-30","2011-12-31","0035 - Boston","BOSTON","SUFFOLK"]
["Urban Redevelopment Excise","URE-11519394-002","NEW BOSTON FOOD MARKET","15 WIDETT CIR BOSTON MA 02118-2804","1967-10-10",null,"0035 - Boston","BOSTON","SUFFOLK"]
["Urban Redevelopment Excise","URE-11214325-002","NEW FRANKLIN PARK LP","95 BERKELEY ST STE 500 BOSTON MA 02116-6229","1974-11-21","2014-12-31","0035 - Boston","BOSTON","SUFFOLK"]
["Urban Redevelopment Excise","URE-10371489-002","NEW MASS PIKE TOWERS LP","6 FANEUIL HALL MARKTPLCE BOSTON MA 02109","1971-02-25","2011-12-31","0035 - Boston","BOSTON","SUFFOLK"]
["Urban Redevelopment Excise","URE-12189716-002","NEW PALMER STREET LP","1500 BLUE HILL AVE MATTAPAN MA 02126-1746","2004-12-20",null,"0035 - Boston","BOSTON","SUFFOLK"]
["Urban Redevelopment Excise","URE-11667609-002","NEWCASTLE ASSOCIATES","1 UNIVERSITY AVE # 2C WESTWOOD MA 02090-1245","1972-07-20","2013-12-31","0035 - Boston","BOSTON","SUFFOLK"]
["Urban Redevelopment Excise","URE-19707195-002","OFFICE TOWER OWNER LP","800 BOYLSTON ST SPC 19\nBOSTON MA 02199-7041","2019-01-01",null,"0035 - Boston","BOSTON","SUFFOLK"]
["Urban Redevelopment Excise","URE-10928553-002","OLD COLONY PHASE 2A LP","2 CENTER PLZ STE 700 BOSTON MA 02108-1906","2013-01-01",null,"0035 - Boston","BOSTON","SUFFOLK"]
["Urban Redevelopment Excise","URE-11866964-002","OLD COLONY PHASE 2B LP","2 CENTER PLZ STE 700 BOSTON MA 02108-1906","2013-01-01",null,"0035 - Boston","BOSTON","SUFFOLK"]
["Urban Redevelopment Excise","URE-11033013-002","OLD COLONY PHASE 2C LP","2 CENTER PLZ STE 700 BOSTON MA 02108-1906","2014-01-01",null,"0035 - Boston","BOSTON","SUFFOLK"]
["Urban Redevelopment Excise","URE-11588321-002","OLD COLONY PHASE ONE LP","2 CENTER PLZ STE 700 BOSTON MA 02108-1906","2010-01-01",null,"0035 - Boston","BOSTON","SUFFOLK"]
["Urban Redevelopment Excise","URE-10470167-002","ONE CHANNEL CENTER, LP","45 ROCKEFELLER PLZ FL 7TH NEW YORK NY 10111-0100","2015-09-23",null,"0035 - Boston","BOSTON","SUFFOLK"]
["Urban Redevelopment Excise","URE-11538364-002","ORCHARD PARK OFFSITE PHASE I LP","1 JOHN ELIOT SQ ROXBURY MA 02119-3511","1997-09-16",null,"0035 - Boston","BOSTON","SUFFOLK"]
["Urban Redevelopment Excise","URE-11112949-002","OXFORD PLACE ASSOCIATES","100 WELLS AVE STE 100\nNEWTON CENTER MA 02459-3243","1982-08-05",null,"0035 - Boston","BOSTON","SUFFOLK"]
["Urban Redevelopment Excise","URE-12067783-002","PETERBOROUGH HOUSING ASSOCIATES","100 WELLS AVE # 200 NEWTON MA 02459-3242","1978-06-08","2018-12-31","0035 - Boston","BOSTON","SUFFOLK"]
["Urban Redevelopment Excise","URE-12240797-002","PHIL C BRADLEY HOUSING PRTNRSHIP","95 BROADWAY BOSTON MA 02116-5414","1997-10-01","2011-12-31","0035 - Boston","BOSTON","SUFFOLK"]
["Urban Redevelopment Excise","URE-10617310-002","PODIUM OWNER LP","800 BOYLSTON STREET FL 19TH\nBOSTON MA 02199","2015-01-01",null,"0035 - Boston","BOSTON","SUFFOLK"]
["Urban Redevelopment Excise","URE-10606605-002","POST OFFICE SQUARE REDEVELOPMENT CORP","50 FEDERAL ST BOSTON MA 02110","1987-02-24",null,"0035 - Boston","BOSTON","SUFFOLK"]
["Urban Redevelopment Excise","URE-11015643-002","QUINCY HEIGHTS LP","594 COLUMBIA RD STE 302 DORCHESTER MA 02125-3436","1977-07-28",null,"0035 - Boston","BOSTON","SUFFOLK"]
["Urban Redevelopment Excise","URE-11964262-002","QUINCY TOWER LP","2 CENTER PLZ STE 700 BOSTON MA 02108-1906","1974-11-21","2014-12-31","0035 - Boston","BOSTON","SUFFOLK"]
["Urban Redevelopment Excise","URE-10496088-002","RBW OWNER LP","606 CONGRESS ST BOSTON MA 02210-2803","2015-09-22","2017-12-31","0035 - Boston","BOSTON","SUFFOLK"]
["Urban Redevelopment Excise","URE-11633568-002","RENAISSANCE BOSTON WATERFRONT","4 EMBARCADERO CTR STE 710 SAN FRANCISCO CA 94111-4172","2003-01-22","2014-12-31","0035 - Boston","BOSTON","SUFFOLK"]
["Urban Redevelopment Excise","URE-10502853-002","RESERVOIR TOWERS ASSOCIATES","100 WELLS AVE # 200 NEWTON MA 02459-3242","1975-10-09","2015-12-31","0035 - Boston","BOSTON","SUFFOLK"]
["Urban Redevelopment Excise","URE-10385378-002","RESIDENTIAL TOWER OWNER LP","800 BOYLSTON ST BOSTON MA 02199-1900","2017-01-01",null,"0035 - Boston","BOSTON","SUFFOLK"]
["Urban Redevelopment Excise","URE-10362225-002","RESTORATION HOUSING CORPORATION","11 NEW WHITNEY ST BOSTON MA 02115-6276","1980-09-25","2015-12-31","0035 - Boston","BOSTON","SUFFOLK"]
["Urban Redevelopment Excise","URE-12085014-003","ROBERT L FORTES HOUSE INC","27 MICA LN STE 301 WELLESLEY MA 02481-1741","1980-07-31",null,"0035 - Boston","BOSTON","SUFFOLK"]
["Urban Redevelopment Excise","URE-12120673-002","ROCKINGHAM GLEN LP","2 N RIVERSIDE PLZ STE 400 CHICAGO IL 60606-2624","1973-04-05","2013-12-31","0035 - Boston","BOSTON","SUFFOLK"]
["Urban Redevelopment Excise","URE-10470169-002","ROGERSON BEACON ASSOCIATES LP","1 FLORENCE ST ROSLINDALE MA 02131-3638","2015-01-01",null,"0035 - Boston","BOSTON","SUFFOLK"]
["Urban Redevelopment Excise","URE-11074907-002","ROXBURY MOUNT PLEASANT LP","500 VICTORY RD NORTH QUINCY MA 02171-3139","1982-08-05",null,"0035 - Boston","BOSTON","SUFFOLK"]
["Urban Redevelopment Excise","URE-11242525-002","RTH COMMUNITY CENTER REALTY INC","11 NEW WHITNEY ST BOSTON MA 02115-6276","2013-01-01","2015-12-31","0035 - Boston","BOSTON","SUFFOLK"]
["Urban Redevelopment Excise","URE-10361603-002","RUTLAND HOUSING ASSOCIATION","111 W CONCORD ST REAR \nBOSTON MA 02118-1544","1970-10-08","2010-12-31","0035 - Boston","BOSTON","SUFFOLK"]
["Urban Redevelopment Excise","URE-10477934-002","SARAH BAKER MANOR ASSOCIATES","1 JOHN ELIOT SQ ROXBURY MA 02119-3511","1981-03-12",null,"0035 - Boston","BOSTON","SUFFOLK"]
["Urban Redevelopment Excise","URE-11668581-002","SCHOOL HOUSE BROOKLEDGE CUMMINS","536 GRANITE ST BRAINTREE MA 02184-3952","2008-10-27",null,"0035 - Boston","BOSTON","SUFFOLK"]
["Urban Redevelopment Excise","URE-11197522-002","SCHOOL HOUSE KENILWORTH WILLIAMS","536 GRANITE ST BRAINTREE MA 02184-3952","2008-10-27","2018-12-31","0035 - Boston","BOSTON","SUFFOLK"]
["Urban Redevelopment Excise","URE-10581115-002","SEAPORT HOTEL","200 SEAPORT BLVD STE 50 BOSTON MA 02210-2031","1997-12-31","2017-12-31","0035 - Boston","BOSTON","SUFFOLK"]
["Urban Redevelopment Excise","URE-10529740-002","SMITH HOUSE ASSOCIATES II LP","6 FANEUIL HALL MKTPLC BOSTON MA 02109","1996-04-20","2012-12-31","0035 - Boston","BOSTON","SUFFOLK"]
["Urban Redevelopment Excise","URE-16651696-003","SOUTH COVE PLAZA","170 NEWBURY ST BOSTON MA 02116-2873","2011-01-20",null,"0035 - Boston","BOSTON","SUFFOLK"]
["Urban Redevelopment Excise","URE-12032117-002","ST JAMES/ARLINGTON RE LP","175 BERKELEY ST BOSTON MA 02116-5066","1998-06-25","2013-12-31","0035 - Boston","BOSTON","SUFFOLK"]
["Urban Redevelopment Excise","URE-11963732-002","ST KEVINS LP","84 STATE ST STE 600 BOSTON MA 02109-2227","2014-01-01",null,"0035 - Boston","BOSTON","SUFFOLK"]
["Urban Redevelopment Excise","URE-10937974-002","TAURUS AT FOUNTAIN HILL ASSOC","1 JOHN ELIOT SQ ROXBURY MA 02119-3511","1979-03-15","2019-04-30","0035 - Boston","BOSTON","SUFFOLK"]
["Urban Redevelopment Excise","URE-11042866-002","TENANTS DEVELOPMENT II LP","566 COLUMBUS AVE BOSTON MA 02118-1181","1973-06-28","2013-12-31","0035 - Boston","BOSTON","SUFFOLK"]
["Urban Redevelopment Excise","URE-10589772-002","TRINITY EAST BOSTON FOUR LP","75 FEDERAL ST FL 4 BOSTON MA 02110","2005-02-11",null,"0035 - Boston","BOSTON","SUFFOLK"]
["Urban Redevelopment Excise","URE-11544992-002","TRINITY EAST BOSTON LP","75 FEDERAL ST FL 4 BOSTON MA 02110","2003-05-29",null,"0035 - Boston","BOSTON","SUFFOLK"]
["Urban Redevelopment Excise","URE-10372875-002","TRINITY EAST BOSTON TWO LP","75 FEDERAL ST FL 4 BOSTON MA 02110","2003-05-29",null,"0035 - Boston","BOSTON","SUFFOLK"]
["Urban Redevelopment Excise","URE-11042469-002","TRINITY FOLEY LP","75 FEDERAL ST FL 4 BOSTON MA 02110","2001-09-21",null,"0035 - Boston","BOSTON","SUFFOLK"]
["Urban Redevelopment Excise","URE-10213633-002","TRINITY FRANKLIN HILL FOUR PHASE ONE LP","75 FEDERAL ST 4TH FL BOSTON MA 02110","2007-01-01",null,"0035 - Boston","BOSTON","SUFFOLK"]
["Urban Redevelopment Excise","URE-10736072-002","TRINITY FRANKLIN HILL FOUR PHASE TWO LP","75 FEDERAL ST FL 4 BOSTON MA 02110","2008-01-01",null,"0035 - Boston","BOSTON","SUFFOLK"]
["Urban Redevelopment Excise","URE-11798327-002","TRINITY FRANKLIN HILL PHASE TWO LP","75 FEDERAL ST FL 4 BOSTON MA 02110","2008-01-01",null,"0035 - Boston","BOSTON","SUFFOLK"]
["Urban Redevelopment Excise","URE-10797153-002","TRINITY FRANKLIN PHASE ONE LP","75 FEDERAL ST LBBY 4\nBOSTON MA 02110-1900","2007-01-30",null,"0035 - Boston","BOSTON","SUFFOLK"]
["Urban Redevelopment Excise","URE-11877160-002","TRINITY MATTAPAN HEIGHTS","75 FEDERAL ST FL 4 BOSTON MA 02110","2006-01-30",null,"0035 - Boston","BOSTON","SUFFOLK"]
["Urban Redevelopment Excise","URE-11320152-002","TRINITY MATTAPAN HEIGHTS FIVE LP","75 FEDERAL ST FL 4 BOSTON MA 02110","2012-01-01",null,"0035 - Boston","BOSTON","SUFFOLK"]
["Urban Redevelopment Excise","URE-11720205-002","TRINITY MATTAPAN HEIGHTS THREE LP","75 FEDERAL ST LBBY 4\nBOSTON MA 02110-1900","2007-01-01",null,"0035 - Boston","BOSTON","SUFFOLK"]
["Urban Redevelopment Excise","URE-10806349-002","TRINITY NORHAMPTON PHASE TWO","75 FEDERAL ST FL 4TH\nBOSTON MA 02110-1913","2014-01-01",null,"0035 - Boston","BOSTON","SUFFOLK"]
["Urban Redevelopment Excise","URE-18447917-002","TRINITY NORTHAMPTON PHASE ONE LP","75 FEDERAL ST FL 4\nBOSTON MA 02110-1913","2013-10-04",null,"0035 - Boston","BOSTON","SUFFOLK"]
["Urban Redevelopment Excise","URE-11034124-002","TRINITY NORTHAMPTON PHASE ONE LP","75 FEDERAL ST FL 4 BOSTON MA 02110","2013-01-01",null,"0035 - Boston","BOSTON","SUFFOLK"]
["Urban Redevelopment Excise","URE-18447916-002","TRINITY ORIENT HEIGHTS LP","75 FEDERAL ST FL 4\nBOSTON MA 02110-1913","2015-01-01",null,"0035 - Boston","BOSTON","SUFFOLK"]
["Urban Redevelopment Excise","URE-10303203-002","TRINITY WASHINGTON BEECH FOUR PH","75 FEDERAL ST FL 4 BOSTON MA 02110","2009-01-01",null,"0035 - Boston","BOSTON","SUFFOLK"]
["Urban Redevelopment Excise","URE-11633371-003","TRINITY WASHINGTON BEECH FOUR PHASE TWO LP","75 FEDERAL ST FL 4 BOSTON MA 02110","2010-01-01",null,"0035 - Boston","BOSTON","SUFFOLK"]
["Urban Redevelopment Excise","URE-11678001-002","TRINITY WASHINGTON BEECH PHASE ONE LP","75 FEDERAL ST FL 4 BOSTON MA 02110","2009-01-01",null,"0035 - Boston","BOSTON","SUFFOLK"]
["Urban Redevelopment Excise","URE-10458636-003","TRINITY WASHINGTON BEECH PHASE TWO LP","75 FEDERAL ST FL 4 BOSTON MA 02110","2010-01-01",null,"0035 - Boston","BOSTON","SUFFOLK"]
["Urban Redevelopment Excise","URE-11197366-002","TWO FINANCIAL CENTER","PO BOX 1920 DALLAS TX 75221-1920","2007-02-13","2015-12-31","0035 - Boston","BOSTON","SUFFOLK"]
["Urban Redevelopment Excise","URE-10797433-002","UPHAMS CORNER LP","84 STATE ST STE 600 BOSTON MA 02109-2227","2014-01-01",null,"0035 - Boston","BOSTON","SUFFOLK"]
["Urban Redevelopment Excise","URE-10214393-002","VICTORIA APARTMENTS LP","630 TREMONT ST BOSTON MA 02118-1607","1980-05-22",null,"0035 - Boston","BOSTON","SUFFOLK"]
["Urban Redevelopment Excise","URE-10213953-002","VICTORY GARDENS ASSOCIATES","536 GRANITE ST BRAINTREE MA 02184-3952","1975-10-09","2015-12-31","0035 - Boston","BOSTON","SUFFOLK"]
["Urban Redevelopment Excise","URE-10954411-002","VIVIENDAS APARTMENTS","27 MICA LN STE 301 WELLESLEY MA 02481-1741","1974-08-15","2014-12-31","0035 - Boston","BOSTON","SUFFOLK"]
["Urban Redevelopment Excise","URE-10823498-002","WAIT STREET ASSOCIATES","7 THOMAS DR CUMBERLAND FORESIDE ME 04110-1318","1980-07-31",null,"0035 - Boston","BOSTON","SUFFOLK"]
["Urban Redevelopment Excise","URE-10607005-002","WALNUT AVENUE APARTMENTS LP","31 GERMANIA ST JAMAICA PLAIN MA 02130-2314","2014-01-01","2019-12-31","0035 - Boston","BOSTON","SUFFOLK"]
["Urban Redevelopment Excise","URE-10516970-002","WASHINGTON STREET GATEWAY ASSOCIATES LP","196 CHESTNUT AVE STE 8\nBOSTON MA 02130-4446","2016-01-01",null,"0035 - Boston","BOSTON","SUFFOLK"]
["Urban Redevelopment Excise","URE-11512343-002","WATERS & CO INC","144 WORCESTER ST APT 1\nBOSTON MA 02118-3448","1974-12-05","2014-12-31","0035 - Boston","BOSTON","SUFFOLK"]
["Urban Redevelopment Excise","URE-11268419-002","WELD PARK ASSOCIATES","112 WATER ST STE 600 BOSTON MA 02109-4204","1978-05-28","2018-12-31","0035 - Boston","BOSTON","SUFFOLK"]
["Urban Redevelopment Excise","URE-10485355-002","WESTLAND AVENUE APARTMENTS LP","1400 PROVIDENCE HIGHWAY STE 1000 NORWOOD MA 02062-5032","1980-09-25",null,"0035 - Boston","BOSTON","SUFFOLK"]
["Urban Redevelopment Excise","URE-10470168-002","WOODBOURNE HOUSING LIMITED PARTNERSHIP","95 BERKELEY ST STE 500\nBOSTON MA 02116-6229","2015-01-01","2018-12-31","0035 - Boston","BOSTON","SUFFOLK"]
["Urban Redevelopment Excise","URE-10822873-002","WOODBOURNE HOUSING LP","95 BERKELEY ST STE 500 BOSTON MA 02116-6229","1978-08-03",null,"0035 - Boston","BOSTON","SUFFOLK"]
["Urban Redevelopment Excise","URE-12067502-002","WOODBURY CUNARD ASSOCIATES","72 MARGINAL ST EAST BOSTON MA 02128-2135","1975-07-30",null,"0035 - Boston","BOSTON","SUFFOLK"]
["Urban Redevelopment Excise","URE-18479360-003","BINNALL HOUSE RHF PARTNERS LTD PARTNERSHIP","536 GRANITE ST BRAINTREE MA 02184-3952","2016-01-01",null,"0040 - Braintree","BRAINTREE","NORFOLK"]
["Urban Redevelopment Excise","URE-10730028-002","LANDING APARTMENTS LLC","625 MOUNT AUBURN ST STE 210 CAMBRIDGE MA 02138-4555","2016-06-09",null,"0040 - Braintree","BRAINTREE","NORFOLK"]
["Urban Redevelopment Excise","URE-11893697-002","ST FRANCIS OF ASSISI RESIDENCES AT BRAINTREE II INC","53 INDEPENDENCE AVE BRAINTREE MA 02184-1768","1980-06-03",null,"0040 - Braintree","BRAINTREE","NORFOLK"]
["Urban Redevelopment Excise","URE-11164075-002","ST FRANCIS OF ASSISI RESIDENCES AT BRAINTREE INC","41 INDEPENDENCE AVE BRAINTREE MA 02184-1733","1974-09-24","2014-12-31","0040 - Braintree","BRAINTREE","NORFOLK"]
["Urban Redevelopment Excise","URE-10275967-002","BROCKTON COMMONS ASSOC II LLC","100 GRANDVIEW RD STE 207 BRAINTREE MA 02184-2692","1979-08-09",null,"0044 - Brockton","BROCKTON","PLYMOUTH"]
["Urban Redevelopment Excise","URE-10355286-002","DOUGLAS HOUSE","536 GRANITE ST # 301 BRAINTREE MA 02184-3952","1982-05-17",null,"0044 - Brockton","BROCKTON","PLYMOUTH"]
["Urban Redevelopment Excise","URE-10981948-002","HAMILTON RHF HOUSING, INC.","536 GRANITE ST STE 301 BRAINTREE MA 02184-3952","1978-06-15",null,"0044 - Brockton","BROCKTON","PLYMOUTH"]
["Urban Redevelopment Excise","URE-11980839-002","TRINITY HOUSING ASSOCIATES","170 NEWBURY ST BOSTON MA 02116-2873","1976-05-13",null,"0044 - Brockton","BROCKTON","PLYMOUTH"]
["Urban Redevelopment Excise","URE-10771519-003","BEACON PARK ASSOCIATES","50 FEDERAL ST # 1000 BOSTON MA 02110-2500","1972-04-18","2012-12-31","0046 - Brookline","BROOKLINE","NORFOLK"]
["Urban Redevelopment Excise","URE-12059696-002","VILLAGE AT BROOKLINE LP THE","1 WASHINGTON MALL STE 500 BOSTON MA 02108-2603","1975-07-10","2015-12-31","0046 - Brookline","BROOKLINE","NORFOLK"]
["Urban Redevelopment Excise","URE-10962410-002","BIOGEN REALTY LP","225 BINNEY ST CAMBRIDGE MA 02142-1031","1993-09-29",null,"0049 - Cambridge","CAMBRIDGE","MIDDLESEX"]
["Urban Redevelopment Excise","URE-10841205-002","CLOSE BUILDING ASSOCIATES","27 MICA LN STE 301 WELLESLEY MA 02481-1741","1975-10-20",null,"0049 - Cambridge","CAMBRIDGE","MIDDLESEX"]
["Urban Redevelopment Excise","URE-10936814-002","INMAN SQUARE APARTMENTS CO","1221 CAMBRIDGE ST CAMBRIDGE MA 02139-1354","1972-08-22","2011-03-25","0049 - Cambridge","CAMBRIDGE","MIDDLESEX"]
["Urban Redevelopment Excise","URE-11170770-002","MEMORIAL DRIVE HOUSING LP","280 FRANKLIN ST CAMBRIDGE MA 02139-3773","1997-07-11","2014-12-31","0049 - Cambridge","CAMBRIDGE","MIDDLESEX"]
["Urban Redevelopment Excise","URE-11658468-003","WELLINGTON-HARRINGTON DEV CORP","27 MICA LN STE 301 WELLESLEY MA 02481-1741","1975-01-27","2015-12-31","0049 - Cambridge","CAMBRIDGE","MIDDLESEX"]
["Urban Redevelopment Excise","URE-10816582-002","WSQ LIMITED PARTNERSHIP","6 FANEUIL HALL MKTPLC BOSTON MA 02109","2002-03-14","2011-12-31","0049 - Cambridge","CAMBRIDGE","MIDDLESEX"]
["Urban Redevelopment Excise","URE-10469892-002","CHICOPEE HOUSING ASSOCIATES","475 KILVERT ST STE 105 WARWICK RI 02886-1360","1973-08-09","2017-06-30","0061 - Chicopee","CHICOPEE","HAMPDEN"]
["Urban Redevelopment Excise","URE-10893427-002","DOM NARODOWY POLSKI PRESERV ASSC","3100 BROADWAY BLVD STE 1234 KANSAS CITY MO 64111-2413","1980-05-12","2010-12-31","0061 - Chicopee","CHICOPEE","HAMPDEN"]
["Urban Redevelopment Excise","URE-10979939-002","BROWNSTONE GARDENS I INC","75 PLEASANT ST EAST LONGMEADOW MA 01028-2477","1985-08-22","2014-12-31","0085 - East Longmeadow","EAST LONGMEADOW","HAMPDEN"]
["Urban Redevelopment Excise","URE-10867575-002","BROWNSTONE GARDENS II INC","79 PLEASANT ST EAST LONGMEADOW MA 01028-2406","1985-12-17","2018-07-01","0085 - East Longmeadow","EAST LONGMEADOW","HAMPDEN"]
["Urban Redevelopment Excise","URE-11416466-002","BROWNSTONE GARDENS III INC","110 SOMERS RD EAST LONGMEADOW MA 01028-2929","1994-12-21",null,"0085 - East Longmeadow","EAST LONGMEADOW","HAMPDEN"]
["Urban Redevelopment Excise","URE-19245861-005","EVERETT BOSTON HARBOR","1 BROADWAY EVERETT MA 02149-2432","2019-04-15",null,"0093 - Everett","EVERETT","MIDDLESEX"]
["Urban Redevelopment Excise","URE-12240802-002","FAIRHAVEN VILLAGE ASSOCIATES","536 GRANITE ST STE 2 BRAINTREE MA 02184-3954","1978-11-16",null,"0094 - Fairhaven","FAIRHAVEN","BRISTOL"]
["Urban Redevelopment Excise","URE-10553162-002","ACADEMY ASSOCIATES","100 GRANDVIEW RD STE 207 BRAINTREE MA 02184-2692","1979-09-06",null,"0095 - Fall River","FALL RIVER","BRISTOL"]
["Urban Redevelopment Excise","URE-11388310-002","MILLIKEN AFFORDABLE HOUSING","1090 VERMONT AVE NW STE 400 WASHINGTON DC 20005-4905","1971-06-30","2011-12-31","0095 - Fall River","FALL RIVER","BRISTOL"]
["Urban Redevelopment Excise","URE-10651315-002","RIVERVIEW TOWERS CO","301 MILLIKEN BLVD APT 1915\nFALL RIVER MA 02721-1621","1971-03-10","2011-12-31","0095 - Fall River","FALL RIVER","BRISTOL"]
["Urban Redevelopment Excise","URE-10562939-002","HOTEL RAYMOND LLC","1 UNIVERSITY AVE # 2C WESTWOOD MA 02090-1245","1976-11-08","2016-12-31","0097 - Fitchburg","FITCHBURG","WORCESTER"]
["Urban Redevelopment Excise","URE-10476278-002","JOSEPH'S HOUSE LLC","800 KELLY WAY HOLYOKE MA 01040","1980-03-10",null,"0097 - Fitchburg","FITCHBURG","WORCESTER"]
["Urban Redevelopment Excise","URE-10434082-002","PELHAM CORPORATION LP","100 GRANDVIEW RD STE 207 BRAINTREE MA 02184-2692","1991-05-17",null,"0100 - Framingham","FRAMINGHAM","MIDDLESEX"]
["Urban Redevelopment Excise","URE-11163669-002","PELHAM II CORPORATION","100 GRANDVIEW RD STE 207\nBRAINTREE MA 02184-2692","1992-01-21",null,"0100 - Framingham","FRAMINGHAM","MIDDLESEX"]
["Urban Redevelopment Excise","URE-12180668-002","BINNALL HOUSE RHF HOUSING INC","536 GRANITE ST STE 301 BRAINTREE MA 02184-3952","1980-12-22","2015-12-31","0103 - Gardner","GARDNER","WORCESTER"]
["Urban Redevelopment Excise","URE-10675987-002","NEW CENTRAL GRAMMAR OWNER LLC","185 DARTMOUTH ST STE 9 BOSTON MA 02116-5884","1974-09-03","2014-12-31","0107 - Gloucester","GLOUCESTER","ESSEX"]
["Urban Redevelopment Excise","URE-11164615-005","ASBURY CAMP MEETING CORPORATION","15 LEE PARK SOUTH HAMILTON MA 01982-2804","1979-07-21","1979-07-21","0119 - Hamilton","HAMILTON","ESSEX"]
["Urban Redevelopment Excise","URE-11563894-002","CUSHING RESIDENCE INC","10 PLAZA DR STE 201 SCARBOROUGH ME 04074-1801","1980-11-03","2012-12-31","0122 - Hanover","HANOVER","PLYMOUTH"]
["Urban Redevelopment Excise","URE-11510377-002","HANOVER LEGION ELDERLY HOUSING CORPORATION","100 GRANDVIEW RD STE 207 BRAINTREE MA 02184-2692","1981-01-21",null,"0122 - Hanover","HANOVER","PLYMOUTH"]
["Urban Redevelopment Excise","URE-11345713-002","AHEPA 39 INC","40 BUTTONWOODS AVE HAVERHILL MA 01830-6498","1994-08-30",null,"0128 - Haverhill","HAVERHILL","ESSEX"]
["Urban Redevelopment Excise","URE-11754749-002","MISSION TOWERS INC","180 WATER ST HAVERHILL MA 01830-6216","1972-05-08","2012-12-31","0128 - Haverhill","HAVERHILL","ESSEX"]
["Urban Redevelopment Excise","URE-11509947-002","COLONY RETIREMENT HOMES OF HOLDEN INC","101 CHADWICK ST WORCESTER MA 01605-1273","1982-05-25",null,"0134 - Holden","HOLDEN","WORCESTER"]
["Urban Redevelopment Excise","URE-10458829-003","AMESBURY GARDENS TENANTS ASSOC","27 MICA LN WELLESLEY MA 02481-1724","1970-02-19","2011-12-31","0149 - Lawrence","LAWRENCE","ESSEX"]
["Urban Redevelopment Excise","URE-11423375-002","ARLINGTON PARK ASSOCIATES","355 PARK ST STE 1\nLAWRENCE MA 01841-2449","1975-11-10","2015-11-10","0149 - Lawrence","LAWRENCE","ESSEX"]
["Urban Redevelopment Excise","URE-10945558-002","COMMON STREET ASSOCIATES","170 NEWBURY ST BOSTON MA 02116-2873","1982-07-22",null,"0149 - Lawrence","LAWRENCE","ESSEX"]
["Urban Redevelopment Excise","URE-11353820-002","ESSEX TOWERS - 8TH AP CO","500 W CUMMINGS PARK STE 6050 WOBURN MA 01801-6547","1978-07-31",null,"0149 - Lawrence","LAWRENCE","ESSEX"]
["Urban Redevelopment Excise","URE-10927065-002","LAWRENCE REHABILITATION CO","465 WAVERLEY OAKS RD STE 211 WALTHAM MA 02452-8466","1978-08-01",null,"0149 - Lawrence","LAWRENCE","ESSEX"]
["Urban Redevelopment Excise","URE-12232247-002","MI RESIDENTIAL COMMUNITY (II),","172 LAWRENCE ST LAWRENCE MA 01841-3849","1979-11-21",null,"0149 - Lawrence","LAWRENCE","ESSEX"]
["Urban Redevelopment Excise","URE-11397282-003","MI RESIDENTIAL COMMUNITY III INC","172 LAWRENCE ST LAWRENCE MA 01841-3849","1980-09-25",null,"0149 - Lawrence","LAWRENCE","ESSEX"]
["Urban Redevelopment Excise","URE-10805985-002","MI RESIDENTIAL COMMUNITY INC","172 LAWRENCE ST LAWRENCE MA 01841-3849","1978-07-31",null,"0149 - Lawrence","LAWRENCE","ESSEX"]
["Urban Redevelopment Excise","URE-10675618-002","RITA HALL ASSOCIATES","536 GRANITE ST STE 2B BRAINTREE MA 02184-3954","1975-07-23","2015-12-31","0149 - Lawrence","LAWRENCE","ESSEX"]
["Urban Redevelopment Excise","URE-10241444-003","VALEBROOK ASSOCIATES","130 PROSPECT ST CAMBRIDGE MA 02139-1844","1977-06-21","2017-12-31","0149 - Lawrence","LAWRENCE","ESSEX"]
["Urban Redevelopment Excise","URE-10311973-002","LEE ELDERLY HOUSING CORP","1 FENN ST PITTSFIELD MA 01201-6278","1984-03-21",null,"0150 - Lee","LEE","BERKSHIRE"]
["Urban Redevelopment Excise","URE-10745746-004","BELVERON MAZUR LLC","268 BUSH ST # 3534\nSAN FRANCISCO CA 94104-3503","2015-01-01",null,"0160 - Lowell","LOWELL","MIDDLESEX"]
["Urban Redevelopment Excise","URE-11824248-002","LORD ASSOCIATES","170 NEWBURY ST BOSTON MA 02116-2873","1974-03-19","2014-12-31","0160 - Lowell","LOWELL","MIDDLESEX"]
["Urban Redevelopment Excise","URE-11616516-002","MAZUR PARK APARTMENTS","227 FAYETTE ST LOWELL MA 01852-2363","1981-02-24","2014-12-31","0160 - Lowell","LOWELL","MIDDLESEX"]
["Urban Redevelopment Excise","URE-11215051-002","NEW LOWELL ASSOCIATES LP","100 WELLS AVE FL 2 NEWTON MA 02459-3242","1976-01-21","2015-12-31","0160 - Lowell","LOWELL","MIDDLESEX"]
["Urban Redevelopment Excise","URE-10954647-002","PRINCETON PLAZA LP","1115 WESTFORD ST, 4TH FL LOWELL MA 01851","1971-09-27","2011-12-31","0160 - Lowell","LOWELL","MIDDLESEX"]
["Urban Redevelopment Excise","URE-10378980-002","RELATED STIRLING BAY LLC","423 W 55TH ST 9TH FL NEW YORK NY 10019-4460","1983-11-09",null,"0160 - Lowell","LOWELL","MIDDLESEX"]
["Urban Redevelopment Excise","URE-10483387-002","WENTWORTH HOUSING CO","465 WAVERLEY OAKS RD STE 211 WALTHAM MA 02452-8466","1979-02-27",null,"0160 - Lowell","LOWELL","MIDDLESEX"]
["Urban Redevelopment Excise","URE-11147872-002","LEISURE TOWERS ASSOCIATES","500 VICTORY RD QUINCY MA 02171-3139","1973-10-09","2013-12-31","0163 - Lynn","LYNN","ESSEX"]
["Urban Redevelopment Excise","URE-10971039-002","ST STEPHEN'S PRESERVATION LP","2 CENTER PLZ STE 700 BOSTON MA 02108-1906","1975-03-31","2015-03-31","0163 - Lynn","LYNN","ESSEX"]
["Urban Redevelopment Excise","URE-11832230-002","ACADEMY KNOLL ASSOCIATES","500 W CUMMINGS PARK STE 6050 WOBURN MA 01801-6547","1975-08-11",null,"0170 - Marlborough","MARLBOROUGH","MIDDLESEX"]
["Urban Redevelopment Excise","URE-18303592-003","ACADEMY KNOLL ASSOCIATES CO AME","500 WEST CUMMINGS PARK S WOBURN MA 01801","2016-01-01","2016-01-01","0170 - Marlborough","MARLBOROUGH","MIDDLESEX"]
["Urban Redevelopment Excise","URE-11737929-002","WINSLOW VILLAGE INC","1520 OCEAN ST STE 18\nMARSHFIELD MA 02050-3557","1971-03-19","2011-12-31","0171 - Marshfield","MARSHFIELD","PLYMOUTH"]
["Urban Redevelopment Excise","URE-12095206-002","BC SUMMERHILL GLEN LP","2 CENTER PLZ STE 700 BOSTON MA 02108-1906","1975-02-03","2015-12-31","0174 - Maynard","MAYNARD","MIDDLESEX"]
["Urban Redevelopment Excise","URE-10457932-002","CEDARS ELDERLY HOME INC","222 PELHAM ST METHUEN MA 01844-1467","2008-01-01",null,"0181 - Methuen","METHUEN","ESSEX"]
["Urban Redevelopment Excise","URE-10806920-002","LEBANESE COMMUNITY HOUSING FOR THE ELDERLY INC","222 PELHAM ST METHUEN MA 01844-1467","1983-07-26",null,"0181 - Methuen","METHUEN","ESSEX"]
["Urban Redevelopment Excise","URE-10892703-002","MERRIMACK VALLEY HOUSING SERVICES INC","536 GRANITE ST STE 2A BRAINTREE MA 02184-3954","1982-10-26",null,"0181 - Methuen","METHUEN","ESSEX"]
["Urban Redevelopment Excise","URE-10380774-002","PARK GARDENS ASSOCIATES","10 BURNHAM RD METHUEN MA 01844-3330","1979-11-07",null,"0181 - Methuen","METHUEN","ESSEX"]
["Urban Redevelopment Excise","URE-10937007-002","MELVILLE TOWERS LP","536 GRANITE ST BRAINTREE MA 02184-3952","1975-11-10","2015-12-31","0201 - New Bedford","NEW BEDFORD","BRISTOL"]
["Urban Redevelopment Excise","URE-11754279-002","UNITED FRONT NINE PRESERV ASSOC","3100 BROADWAY BLVD STE 1234 KANSAS CITY MO 64111-2413","1972-11-29","2012-12-31","0201 - New Bedford","NEW BEDFORD","BRISTOL"]
["Urban Redevelopment Excise","URE-10901864-002","LOW STREET ASSOCIATES","1 WASHINGTON MALL STE 500\nBOSTON MA 02108-2603","1979-10-12","2019-12-31","0206 - Newburyport","NEWBURYPORT","ESSEX"]
["Urban Redevelopment Excise","URE-10563129-002","HAMLET ASSOCIATES LP","425 WATERTOWN ST STE 205\nNEWTON MA 02458-1131","1974-12-10","2014-12-31","0207 - Newton","NEWTON","MIDDLESEX"]
["Urban Redevelopment Excise","URE-11764369-002","NEW FALLS ASSOCIATES","7 WELLS AVE STE 11\nNEWTON CENTER MA 02459-3212","1978-04-07",null,"0207 - Newton","NEWTON","MIDDLESEX"]
["Urban Redevelopment Excise","URE-10546054-002","NEWTON COMMUNITY DEV FOUNDATION II INC","425 WATERTOWN ST STE 205\nNEWTON MA 02458-1131","1979-05-10","2019-12-31","0207 - Newton","NEWTON","MIDDLESEX"]
["Urban Redevelopment Excise","URE-10401595-002","RTH RESTORATION HOUSING LIMITED PARTNERSHIP","100 WELLS AVE NEWTON CENTER MA 02459-3242","2016-01-01",null,"0207 - Newton","NEWTON","MIDDLESEX"]
["Urban Redevelopment Excise","URE-11494615-002","CROWNINSHIELD APARTMENTS","18 CROWNINSHIELD ST PEABODY MA 01960-4360","1973-12-10","2013-12-31","0229 - Peabody","PEABODY","ESSEX"]
["Urban Redevelopment Excise","URE-10781122-002","PEABODY HOUSE COMPANY","465 WAVERLEY OAKS RD STE 211 WALTHAM MA 02452-8466","1979-05-11",null,"0229 - Peabody","PEABODY","ESSEX"]
["Urban Redevelopment Excise","URE-10997451-002","BERKSHIRETOWN LLC","800 KELLY WAY HOLYOKE MA 01040","1976-10-04",null,"0236 - Pittsfield","PITTSFIELD","BERKSHIRE"]
["Urban Redevelopment Excise","URE-11303550-002","PLASTICS REALTY CORP","4200 WILDWOOD PKWY ATLANTA GA 30339-8402","1982-09-28",null,"0236 - Pittsfield","PITTSFIELD","BERKSHIRE"]
["Urban Redevelopment Excise","URE-10224684-002","RIVERVIEW HOMES LP","2 CENTER PLZ STE 700 BOSTON MA 02108-1906","1998-12-08","2012-12-31","0236 - Pittsfield","PITTSFIELD","BERKSHIRE"]
["Urban Redevelopment Excise","URE-10832306-002","GRANITE PLACE LP","500 VICTORY RD NORTH QUINCY MA 02171-3139","1977-08-11",null,"0243 - Quincy","QUINCY","NORFOLK"]
["Urban Redevelopment Excise","URE-10538789-002","WJG REALTY TRUST C/O STOP & SHOP","1385 HANCOCK ST QUINCY MA 02169-5103","1980-04-15","2010-12-31","0243 - Quincy","QUINCY","NORFOLK"]
["Urban Redevelopment Excise","URE-11345286-002","HRCA HOUSING FOR ELDERLY INC","420 REVERE BEACH BLVD REVERE MA 02151-4702","1974-11-19","2014-12-31","0248 - Revere","REVERE","SUFFOLK"]
["Urban Redevelopment Excise","URE-11407871-002","LORING TOWERS #43122","423 W 55TH ST FL 8 NEW YORK NY 10019-4460","2010-01-01",null,"0258 - Salem","SALEM","ESSEX"]
["Urban Redevelopment Excise","URE-10354526-002","PEQUOT II LP C/O WINN MANAGEMENT","126 JOHN ST STE 10 LOWELL MA 01852-1152","1972-04-19","2012-12-31","0258 - Salem","SALEM","ESSEX"]
["Urban Redevelopment Excise","URE-11538072-002","SALEM HEIGHTS PRESERVATION ASSOC","40 COURT ST STE 700 BOSTON MA 02108-2202","2010-01-01",null,"0258 - Salem","SALEM","ESSEX"]
["Urban Redevelopment Excise","URE-11832155-002","WALNUT HILL TOWER ASSOCIATES","PO BOX 227 SOMERVILLE MA 02143-0004","1975-06-25","2015-12-31","0274 - Somerville","SOMERVILLE","MIDDLESEX"]
["Urban Redevelopment Excise","URE-11405831-002","LEBANON HILL HOUSING FOR THE ELDERLY LLC","39 THERESE AVE SOUTHBRIDGE MA 01550-3048","1973-02-26",null,"0278 - Southbridge","SOUTHBRIDGE","WORCESTER"]
["Urban Redevelopment Excise","URE-11851438-002","SOUTHWICK GRANVILLE SR CITZ HSG","322 MAIN ST # 1 SPRINGFIELD MA 01105-2403","1979-03-20",null,"0279 - Southwick","SOUTHWICK","HAMPDEN"]
["Urban Redevelopment Excise","URE-11049235-002","122 CHESTNUT LLC","18 MAPLE AVE NEWTON MA 02458-1910","1985-03-05","2018-07-26","0281 - Springfield","SPRINGFIELD","HAMPDEN"]
["Urban Redevelopment Excise","URE-10685415-002","1350 MAIN STREET LLC","41 TAYLOR ST SPRINGFIELD MA 01103-1852","1981-12-28",null,"0281 - Springfield","SPRINGFIELD","HAMPDEN"]
["Urban Redevelopment Excise","URE-11320501-002","BAYSTATE PLACE LP","2 CENTER PLZ STE 700 BOSTON MA 02108-1906","1972-09-19","2012-12-31","0281 - Springfield","SPRINGFIELD","HAMPDEN"]
["Urban Redevelopment Excise","URE-10258041-002","CATHEDRAL HILL HOUSING CORP","667 MAIN ST HOLYOKE MA 01040-5518","1972-04-18","2012-12-31","0281 - Springfield","SPRINGFIELD","HAMPDEN"]
["Urban Redevelopment Excise","URE-10485175-002","CENTER SQUARE INC","1441 MAIN ST STE 800\nSPRINGFIELD MA 01103-1450","1980-05-06","2010-12-31","0281 - Springfield","SPRINGFIELD","HAMPDEN"]
["Urban Redevelopment Excise","URE-10764562-002","CENTURY PACIFIC HSNG PRTNRSHIP","1985 CEDARBRIDGE AVE STE 1 LAKEWOOD NJ 08701-7031","1975-03-19",null,"0281 - Springfield","SPRINGFIELD","HAMPDEN"]
["Urban Redevelopment Excise","URE-12207257-002","CHATEAU ASSOC OF SPRINGFIELD","513 MAIN ST SPRINGFIELD MA 01105-2411","1981-01-07",null,"0281 - Springfield","SPRINGFIELD","HAMPDEN"]
["Urban Redevelopment Excise","URE-11896301-003","DO NOT USE","1 MONARCH PL SPRINGFIELD MA 01144-1099","2019-01-01","2019-01-01","0281 - Springfield","SPRINGFIELD","HAMPDEN"]
["Urban Redevelopment Excise","URE-10467459-002","EASTERN COOPERATIVE HOMES & HOUS","995 WORTHINGTON ST SPRINGFIELD MA 01109-4027","1976-01-21","2012-12-31","0281 - Springfield","SPRINGFIELD","HAMPDEN"]
["Urban Redevelopment Excise","URE-10660708-002","GARAND COURT ASSOCIATES","100 WELLS AVE # 200 NEWTON MA 02459-3242","1980-09-30",null,"0281 - Springfield","SPRINGFIELD","HAMPDEN"]
["Urban Redevelopment Excise","URE-11170729-002","HUNTER PLACE ASSOCS","619 STATE ST SPRINGFIELD MA 01109-4114","1974-04-04","2014-12-31","0281 - Springfield","SPRINGFIELD","HAMPDEN"]
["Urban Redevelopment Excise","URE-12015467-002","JEFFERSON AVENUE SCHOOL ASSOCIATES INC","2460 MAIN ST STE 112 SPRINGFIELD MA 01107-1946","1986-02-05",null,"0281 - Springfield","SPRINGFIELD","HAMPDEN"]
["Urban Redevelopment Excise","URE-10154765-002","KENYON COLLEGE ASSOCIATES","24 DEER PARK DR EAST LONGMEADOW MA 01028-3196","1982-10-06","2013-12-31","0281 - Springfield","SPRINGFIELD","HAMPDEN"]
["Urban Redevelopment Excise","URE-11981885-002","MAPLE COMMONS LP","2001 WASHINGTON ST HANOVER MA 02339-1621","1980-09-30",null,"0281 - Springfield","SPRINGFIELD","HAMPDEN"]
["Urban Redevelopment Excise","URE-18684899-003","MGM SPRINGFIELD REDEVELOPMENT, LLC","1 MGM WAY SPRINGFIELD MA 01103-2134","2017-01-01",null,"0281 - Springfield","SPRINGFIELD","HAMPDEN"]
["Urban Redevelopment Excise","URE-10562356-002","PICKNELLY FAMILY LIMITED PARTNERSHIP","1 MONARCH PL FL 25\nSPRINGFIELD MA 01144","1986-12-10",null,"0281 - Springfield","SPRINGFIELD","HAMPDEN"]
["Urban Redevelopment Excise","URE-12101832-002","PYNCHON I APARTMENTS LP","536 GRANITE ST BRAINTREE MA 02184-3952","1976-02-02","2011-12-31","0281 - Springfield","SPRINGFIELD","HAMPDEN"]
["Urban Redevelopment Excise","URE-12113276-002","PYNCHON II APARTMENTS LP","536 GRANITE ST STE 2 BRAINTREE MA 02184-3954","1976-02-02","2011-12-31","0281 - Springfield","SPRINGFIELD","HAMPDEN"]
["Urban Redevelopment Excise","URE-10267445-002","SPRING HILL APARTMENTS LP","69 WINTER ST SPRINGFIELD MA 01105-2326","1971-10-18","2011-12-31","0281 - Springfield","SPRINGFIELD","HAMPDEN"]
["Urban Redevelopment Excise","URE-11449086-002","ST JAMES COMMONS APARTMENTS LIM","619 STATE ST SPRINGFIELD MA 01109-4114","1983-01-31",null,"0281 - Springfield","SPRINGFIELD","HAMPDEN"]
["Urban Redevelopment Excise","URE-10190360-002","VAN DER HEYDEN ASSOCIATES","619 STATE ST SPRINGFIELD MA 01109-4114","1980-09-29",null,"0281 - Springfield","SPRINGFIELD","HAMPDEN"]
["Urban Redevelopment Excise","URE-10660048-002","VILLA NUEVA VISTA ASSOCIATES","1400 PROVIDENCE HIGHWAY STE 1000 NORWOOD MA 02062-5032","1981-05-05",null,"0281 - Springfield","SPRINGFIELD","HAMPDEN"]
["Urban Redevelopment Excise","URE-10423148-002","WORTHY REALTY CO","400 BLUE HILL DR WESTWOOD MA 02090-2164","1980-11-05","2011-12-31","0281 - Springfield","SPRINGFIELD","HAMPDEN"]
["Urban Redevelopment Excise","URE-10189147-002","TRINITY TAUNTON FOUR LP","75 FEDERAL ST FL 4 BOSTON MA 02110","2013-01-01",null,"0293 - Taunton","TAUNTON","BRISTOL"]
["Urban Redevelopment Excise","URE-11745847-002","TRINITY TAUNTON NINE LP","75 FEDERAL ST FL 4 BOSTON MA 02110","2012-12-21",null,"0293 - Taunton","TAUNTON","BRISTOL"]
["Urban Redevelopment Excise","URE-10981528-002","GORDON CHARLES RIVER FALLS CO","465 WAVERLEY OAKS RD STE 211 WALTHAM MA 02452-8466","1979-10-04",null,"0308 - Waltham","WALTHAM","MIDDLESEX"]
["Urban Redevelopment Excise","URE-12137206-002","GORDON CHARLES RIVER FALLS CO II","465 WAVERLEY OAKS RD STE 211 WALTHAM MA 02452-8466","1978-12-22",null,"0308 - Waltham","WALTHAM","MIDDLESEX"]
["Urban Redevelopment Excise","URE-10919003-002","WILLIAMSTOWN ELDERLY HOUSING CORP","1 FENN ST STE 3 PITTSFIELD MA 01201-6279","1978-04-18",null,"0341 - Williamstown","WILLIAMSTOWN","BERKSHIRE"]
["Urban Redevelopment Excise","URE-11163774-002","CANTERBURY TOWER APTS LLC","100 GRANDVIEW RD STE 207 BRAINTREE MA 02184-2692","1976-12-31",null,"0348 - Worcester","WORCESTER","WORCESTER"]
["Urban Redevelopment Excise","URE-10163872-002","COES POND LP","1 WASHINGTON MALL STE 500\nBOSTON MA 02108-2603","1975-05-28","2015-12-31","0348 - Worcester","WORCESTER","WORCESTER"]
["Urban Redevelopment Excise","URE-10580114-002","COLONY RETIREMENT HOMES III INC","101 CHADWICK ST WORCESTER MA 01605-1273","1978-05-12",null,"0348 - Worcester","WORCESTER","WORCESTER"]
["Urban Redevelopment Excise","URE-12067128-002","COLONY RETIREMENT HOMES IV","101 CHADWICK ST WORCESTER MA 01605-1273","1981-04-24",null,"0348 - Worcester","WORCESTER","WORCESTER"]
["Urban Redevelopment Excise","URE-11327593-002","FRUIT SEVER ASSOCIATES","11 SEVER ST APT 106\nWORCESTER MA 01609-2130","1971-10-28","2011-12-31","0348 - Worcester","WORCESTER","WORCESTER"]
["Urban Redevelopment Excise","URE-11938803-002","LAUREL-CLAYTON LP","95 BERKELEY ST 5TH FL BOSTON MA 02116-6240","1969-10-31","2009-10-31","0348 - Worcester","WORCESTER","WORCESTER"]
["Urban Redevelopment Excise","URE-12007599-003","MATHESON APARTMENTS, INC.","6 FANEUIL HALL MARKET PL BOSTON MA 02109-6115","1975-07-01","2015-12-31","0348 - Worcester","WORCESTER","WORCESTER"]
["Urban Redevelopment Excise","URE-10468018-002","SEABURY RHF LIMITED PRTNRSHP","536 GRANITE ST # 301 BRAINTREE MA 02184-3952","1980-12-09",null,"0348 - Worcester","WORCESTER","WORCESTER"]
["Urban Redevelopment Excise","URE-10613995-003","WELLINGTON COMPANY","6 FANEUIL HALL MKTPLC STE 500 BOSTON MA 02109-1620","1979-12-28",null,"0348 - Worcester","WORCESTER","WORCESTER"]
["Urban Redevelopment Excise","URE-10266602-002","WHITTIER CROWN HILL LP","2 CENTER PLZ STE 700 BOSTON MA 02108-1906","1980-01-02",null,"0348 - Worcester","WORCESTER","WORCESTER"]
["Urban Redevelopment Excise","URE-11502266-002","WORCESTER JEWISH COMMUNITY HOUSING FOR THE ELDERLY INC","475 CHANDLER ST WORCESTER MA 01602-2856","1982-08-24",null,"0348 - Worcester","WORCESTER","WORCESTER"]

{"sheet":"Vlookup_Data1","index":3,"n_rows":352,"n_cols":12,"rows_kept":352,"cut":false,"hidden":true,"merged":[]}
["Final Jurcode\\name Field","Name","Mailing Address","Commence","Cease","LocalityCode","City","County","LocalityCode"]
["0001 - Abington","BARRETT HOUSING CORP","45 WOOD AVE PITTSFIELD MA 01201-5614","2014-11-01","2014-11-01","0004 - Adams","ADAMS","BERKSHIRE","0001 - Abington","LocalityCode",null,{"$f":"_xlfn._xlws.FILTER(B2:B310:C2:C310,F2:F310=J2,\"No Data on File\")","v":"No Data on File"}]
["0002 - Acton","BARRETT HOUSING CORPORATION","1 FENN ST PITTSFIELD MA 01201-6278","1978-01-27",null,"0004 - Adams","ADAMS","BERKSHIRE","0002 - Acton"]
["0003 - Acushnet","LANDOVER ASSOCIATES","1 SOMMER HILL RD ADAMS MA 01220-9771","1973-12-13","2013-12-31","0004 - Adams","ADAMS","BERKSHIRE","0003 - Acushnet"]
["0005 - Agawam","MILLHOUSES OF ADAMS ASSOCIATES","100 WELLS AVE NEWTON MA 02459-3242","1982-08-05",null,"0004 - Adams","ADAMS","BERKSHIRE","0004 - Adams"]
["0006 - Alford","AMHERST CLARK HOUSE LIMITED PARTNERSHIP","3101 BEE CAVES RD STE 220 AUSTIN TX 78746-5574","2017-01-01",null,"0008 - Amherst","AMHERST","HAMPSHIRE","0005 - Agawam"]
["0007 - Amesbury","CLARK HOUSE ASSOCIATES","540 NORTH COMMERCIAL ST MANCHESTER NH 03101-1122","1979-09-04",null,"0008 - Amherst","AMHERST","HAMPSHIRE","0006 - Alford"]
["0009 - Andover","PEQUOIG HOUSE LLC","42 RAYMOND ST MANCHESTER BY THE SEA MA 01944-1616","1982-10-07",null,"0015 - Athol","ATHOL","WORCESTER","0007 - Amesbury"]
["0010 - Arlington","10 TEMPLE PLACE LP","536 GRANITE ST # 301 BRAINTREE MA 02184-3952","1978-11-28","2018-12-31","0035 - Boston","BOSTON","SUFFOLK","0008 - Amherst"]
["0011 - Ashburnham","333 MASSACHUSETTS AVE LP","536 GRANITE ST # 301 BRAINTREE MA 02184-3952","2001-06-21","2015-12-31","0035 - Boston","BOSTON","SUFFOLK","0009 - Andover"]
["0012 - Ashby","334 MASSACHUSETTS AVE LP","536 GRANITE ST STE 301 BRAINTREE MA 02184-3952","1975-09-30","2015-12-31","0035 - Boston","BOSTON","SUFFOLK","0010 - Arlington"]
["0013 - Ashfield","ABBEY LAFAYETTE OWNER LLP","575 BOYLSTON ST FL 8 BOSTON MA 02116","1998-02-01",null,"0035 - Boston","BOSTON","SUFFOLK","0011 - Ashburnham"]
["0014 - Ashland","ABBEY LAFAYETTE OWNER LLP","177 HUNTINGTON AVE STE 24 BOSTON MA 02115-3145","2017-01-01",null,"0035 - Boston","BOSTON","SUFFOLK","0012 - Ashby"]
["0016 - Attleboro","ADAM TEMPLETON ASSOCIATES","500 VICTORY RD QUINCY MA 02171-3139","1980-05-01","2015-12-31","0035 - Boston","BOSTON","SUFFOLK","0013 - Ashfield"]
["0017 - Auburn","ADAMS ORCHARD LP","75 FEDERAL ST FL 4TH BOSTON MA 02110","1998-12-29",null,"0035 - Boston","BOSTON","SUFFOLK","0014 - Ashland"]
["0018 - Avon","ALLSTON LANDING LP","11 PLEASANT ST FRAMINGHAM MA 01701-4707","1992-01-27",null,"0035 - Boston","BOSTON","SUFFOLK","0015 - Athol"]
["0019 - Ayer","AMORY TERRACE LP","126 JOHN ST STE 10 LOWELL MA 01852-1152","2004-04-01","2019-12-31","0035 - Boston","BOSTON","SUFFOLK","0016 - Attleboro"]
["0020 - Barnstable","ANDERSON STREET ASSOCIATES","1 UNIVERSITY AVE # 2C WESTWOOD MA 02090-1245","1975-07-10","2015-12-31","0035 - Boston","BOSTON","SUFFOLK","0017 - Auburn"]
["0021 - Barre","ANGELA WESTOVER HOUSING CORP","536 GRANITE ST BRAINTREE MA 02184-3952","1982-10-14",null,"0035 - Boston","BOSTON","SUFFOLK","0018 - Avon"]
["0022 - Becket","ANGELA WESTOVER HOUSING CORP","536 GRANITE ST BRAINTREE MA 02184-3952","2016-01-01","2016-01-01","0035 - Boston","BOSTON","SUFFOLK","0019 - Ayer"]
["0023 - Bedford","AP ONE CHANNEL CENTER OWNER LLC","245 PARK AVE FL 42 NEW YORK NY 10167-0002","2013-01-01","2014-12-31","0035 - Boston","BOSTON","SUFFOLK","0020 - Barnstable"]
["0024 - Belchertown","AT-DORCHESTER LP","500 VICTORY RD NORTH QUINCY MA 02171-3139","2016-01-01",null,"0035 - Boston","BOSTON","SUFFOLK","0021 - Barre"]
["0025 - Bellingham","AUSONIA HOMES ASSOCIATES","536 GRANITE ST BRAINTREE MA 02184-3952","1976-09-09","2016-09-16","0035 - Boston","BOSTON","SUFFOLK","0022 - Becket"]
["0026 - Belmont","BACK OF THE HILL APTS LP","185 DARTMOUTH ST BOSTON MA 02116-5886","1979-10-18","2019-12-31","0035 - Boston","BOSTON","SUFFOLK","0023 - Bedford"]
["0027 - Berkley","BC CONWAY COURT LP","2 CENTER PLZ STE 700 BOSTON MA 02108-1906","1975-05-01","2015-12-31","0035 - Boston","BOSTON","SUFFOLK","0024 - Belchertown"]
["0028 - Berlin","BDC SUMMER STREET 121A LP","7978 COOPER CRK BLV #100 UNIVERSITY PARK FL 34201","1973-04-09","2013-12-31","0035 - Boston","BOSTON","SUFFOLK","0025 - Bellingham"]
["0029 - Bernardston","BEACON HOUSE ROGERSON LP","1 FLORENCE ST ROSLINDALE MA 02131-3638","1982-08-05",null,"0035 - Boston","BOSTON","SUFFOLK","0026 - Belmont"]
["0030 - Beverly","BEVERLY ST ACQUISITION GARAGE OWNER LP","177 MILK ST BOSTON MA 02109-3442","2016-01-01",null,"0035 - Boston","BOSTON","SUFFOLK","0027 - Berkley"]
["0031 - Billerica","BEVERLY STREET ACQUISITION GARAGE ONE OWNER LP","177 MILK ST BOSTON MA 02109-3442","2015-07-27",null,"0035 - Boston","BOSTON","SUFFOLK","0028 - Berlin"]
["0032 - Blackstone","BEVERLY STREET ACQUISITION HOTEL OWNER LP","177 MILK ST BOSTON MA 02109-3404","2016-01-01",null,"0035 - Boston","BOSTON","SUFFOLK","0029 - Bernardston"]
["0033 - Blandford","BEVERLY STREET ACQUISITION RESIDENTIAL ONE OWNER LP","177 MILK ST BOSTON MA 02109-3410","2016-01-01",null,"0035 - Boston","BOSTON","SUFFOLK","0030 - Beverly"]
["0034 - Bolton","BEVERLY STREET ACQUISITION RESIDENTIAL TWO OWNER LP","177 MILK ST BOSTON MA 02109-3442","2015-07-27",null,"0035 - Boston","BOSTON","SUFFOLK","0031 - Billerica"]
["0036 - Bourne","BEVERLY STREET ACQUISITION RETAIL ONE OWNER LP","177 MILK ST BOSTON MA 02109-3410","2015-07-27",null,"0035 - Boston","BOSTON","SUFFOLK","0032 - Blackstone"]
["0037 - Boxborough","BEVERLY STREET ACQUISITION RETAIL TWO OWNER LP","177 MILK ST BOSTON MA 02109-3442","2015-07-27",null,"0035 - Boston","BOSTON","SUFFOLK","0033 - Blandford"]
["0038 - Boxford","BLACKSTONE PRESERVATION ASSOC LP","40 COURT ST STE 700 BOSTON MA 02108-2202","1975-09-25","2015-12-31","0035 - Boston","BOSTON","SUFFOLK","0034 - Bolton"]
["0039 - Boylston","BLAKE ESTATES ASSOC I LP","2 CENTER PLZ STE 700 BOSTON MA 02108-1906","1978-12-28","2018-12-31","0035 - Boston","BOSTON","SUFFOLK","0035 - Boston"]
["0041 - Brewster","BLAKE ESTATES ASSOC II LP","2 CENTER PLZ STE 700 BOSTON MA 02108-1906","1979-10-11","2019-12-31","0035 - Boston","BOSTON","SUFFOLK","0036 - Bourne"]
["0042 - Bridgewater","B'NAI B'RITH I & II INC","34 WASHINGTON ST BRIGHTON MA 02135-7404","2015-01-01",null,"0035 - Boston","BOSTON","SUFFOLK","0037 - Boxborough"]
["0043 - Brimfield","B'NAI B'RITH III INC","30 WASHINGTON ST BRIGHTON MA 02135-7424","2002-03-05",null,"0035 - Boston","BOSTON","SUFFOLK","0038 - Boxford"]
["0045 - Brookfield","B'NAI B'RITH SENIOR CITIZENS HOUSING","30 WASHINGTON ST BRIGHTON MA 02135-7424","1980-05-22","2014-12-31","0035 - Boston","BOSTON","SUFFOLK","0039 - Boylston"]
["0047 - Buckland","BORINQUEN ASSOCIATES","27 MICA LN STE 301 WELLESLEY MA 02481-1741","1975-12-04","2015-12-31","0035 - Boston","BOSTON","SUFFOLK","0040 - Braintree"]
["0048 - Burlington","BOSTON BAY LP","530 WARREN ST DORCHESTER MA 02121-1821","1977-07-28",null,"0035 - Boston","BOSTON","SUFFOLK","0041 - Brewster"]
["0050 - Canton","BOSTON BAY LP","530 WARREN ST DORCHESTER MA 02121-1821","1991-09-11","2015-12-10","0035 - Boston","BOSTON","SUFFOLK","0042 - Bridgewater"]
["0051 - Carlisle","BOSTON REHAB ASSOCIATES","94 BEACONSFIELD RD BROOKLINE MA 02445-3309","1979-04-12",null,"0035 - Boston","BOSTON","SUFFOLK","0043 - Brimfield"]
["0052 - Carver","BOWDOIN SCHOOL ASSOCIATES","100 WELLS AVE # 200 NEWTON MA 02459-3242","1975-11-20","2015-12-31","0035 - Boston","BOSTON","SUFFOLK","0044 - Brockton"]
["0053 - Charlemont","BOYLSTON WEST GARAGE LLC","136 BROOKLINE AVE BOSTON MA 02215-3907","2015-01-01",null,"0035 - Boston","BOSTON","SUFFOLK","0045 - Brookfield"]
["0054 - Charlton","BRIDGEVIEW APARTMENTS LIMITED PARTNERSHIP","20 EASTBROOK RD STE 201\nDEDHAM MA 02026-2087","2015-01-01",null,"0035 - Boston","BOSTON","SUFFOLK","0046 - Brookline"]
["0055 - Chatham","BRIGHTON-ALLSTON ELDERLY HOMES INC","100 GRANDVIEW RD STE 207 BRAINTREE MA 02184-2692","1980-05-01",null,"0035 - Boston","BOSTON","SUFFOLK","0047 - Buckland"]
["0056 - Chelmsford","BW OFFICE OWNER LIMITED PARTNERSHIP","333 NEWBURY ST BOSTON MA 02115-2710","2015-01-01",null,"0035 - Boston","BOSTON","SUFFOLK","0048 - Burlington"]
["0057 - Chelsea","CAMFIELD TENANTS ASSOCIATION","536 GRANITE ST BRAINTREE MA 02184-3952","1968-09-19","2012-12-31","0035 - Boston","BOSTON","SUFFOLK","0049 - Cambridge"]
["0058 - Cheshire","CASA MARIA HOUSING CORP","95 BERKELEY ST STE 500 BOSTON MA 02116-6229","1978-07-20",null,"0035 - Boston","BOSTON","SUFFOLK","0050 - Canton"]
["0059 - Chester","CCBA TAI TUNG VILLAGE","808 MEMORIAL DR CAMBRIDGE MA 02139-4637","1970-09-03","2010-12-31","0035 - Boston","BOSTON","SUFFOLK","0051 - Carlisle"]
["0060 - Chesterfield","CHARLES H FARNSWORTH HOUSING CORP","1 FLORENCE ST BOSTON MA 02131-3638","1981-09-17",null,"0035 - Boston","BOSTON","SUFFOLK","0052 - Carver"]
["0062 - Chilmark","CHARLESTOWN ECONOMIC DEVEL CORP","7 WELLS AVE STE 11\nNEWTON CENTER MA 02459-3212","1978-10-26",null,"0035 - Boston","BOSTON","SUFFOLK","0053 - Charlemont"]
["0063 - Clarksburg","CHAUNCY HOUSE LP","95 BERKELEY ST STE 500 BOSTON MA 02116-6229","1973-04-19","2013-12-31","0035 - Boston","BOSTON","SUFFOLK","0054 - Charlton"]
["0064 - Clinton","CHINAGATE HOUSING ASSOCIATES","44 FARINA RD NEWTON MA 02459-2860","1983-03-03",null,"0035 - Boston","BOSTON","SUFFOLK","0055 - Chatham"]
["0065 - Cohasset","CITY SQUARE ELDERLY HOUSING INC","8425 E 12 MILE RD STE 1000 WARREN MI 48093-2738","1984-12-20",null,"0035 - Boston","BOSTON","SUFFOLK","0056 - Chelmsford"]
["0066 - Colrain","COMMONWEALTH FLATS DEV EAST LP","255 STATE ST STE 2 BOSTON MA 02109-2659","1997-12-31","2018-12-31","0035 - Boston","BOSTON","SUFFOLK","0057 - Chelsea"]
["0067 - Concord","COMMONWEALTH FLATS WEST","255 STATE ST FL 2 BOSTON MA 02109-2659","2000-01-01",null,"0035 - Boston","BOSTON","SUFFOLK","0058 - Cheshire"]
["0068 - Conway","COMMUNITY HOPE LP","550 DUDLEY ST ROXBURY MA 02119-2770","2005-05-26","2013-12-31","0035 - Boston","BOSTON","SUFFOLK","0059 - Chester"]
["0069 - Cummington","CONCORD HOUSE ASSOCIATES","7 THOMAS DR CUMBERLAND FORESIDE ME 04110-1318","1973-11-08","2013-12-31","0035 - Boston","BOSTON","SUFFOLK","0060 - Chesterfield"]
["0070 - Dalton","COOPS OF CHARLESNEWTOWN INC","6 FANEUIL HALL MARKET PL BOSTON MA 02109-6115","1972-08-17","2010-12-31","0035 - Boston","BOSTON","SUFFOLK","0061 - Chicopee"]
["0071 - Danvers","COTTAGE BROOK APARTMENTS (121A)","126 JOHN ST STE 10 LOWELL MA 01852-1152","1977-07-28",null,"0035 - Boston","BOSTON","SUFFOLK","0062 - Chilmark"]
["0072 - Dartmouth","COUNCIL OF ELDERS HOUSING CORP","1 FLORENCE ST ROSLINDALE MA 02131-3638","1983-11-03",null,"0035 - Boston","BOSTON","SUFFOLK","0063 - Clarksburg"]
["0073 - Dedham","COVE PLAZA ASSOCIATES LP","170 NEWBURY ST BOSTON MA 02116-2873","1980-09-04",null,"0035 - Boston","BOSTON","SUFFOLK","0064 - Clinton"]
["0074 - Deerfield","DIMOCK BRAGDON ASSOCIATES","126 JOHN ST STE 10 LOWELL MA 01852-1152","1982-09-16",null,"0035 - Boston","BOSTON","SUFFOLK","0065 - Cohasset"]
["0075 - Dennis","DORCHESTER HOUSING ASSOCIATES","536 GRANITE ST BRAINTREE MA 02184-3952","1981-08-20","2011-12-31","0035 - Boston","BOSTON","SUFFOLK","0066 - Colrain"]
["0076 - Dighton","DUDLEY NEIGHBORS INC","504 DUDLEY ST ROXBURY MA 02119-2732","1988-11-10",null,"0035 - Boston","BOSTON","SUFFOLK","0067 - Concord"]
["0077 - Douglas","DUDLEY SQUARE REALTY CORP","1 CITY HALL SQ RM 813 BOSTON MA 02201-1020","2013-01-01",null,"0035 - Boston","BOSTON","SUFFOLK","0068 - Conway"]
["0078 - Dover","DUDLEY VILLAGE NORTH","504 DUDLEY ST ROXBURY MA 02119-2732","2005-05-05",null,"0035 - Boston","BOSTON","SUFFOLK","0069 - Cummington"]
["0079 - Dracut","DUDLEY VILLAGE SOUTH","504 DUDLEY ST ROXBURY MA 02119-2732","2005-05-05",null,"0035 - Boston","BOSTON","SUFFOLK","0070 - Dalton"]
["0080 - Dudley","EAST BOSTON COMMUNITY ASSOCIATES","72 MARGINAL ST EAST BOSTON MA 02128-2135","1974-10-31","2014-12-31","0035 - Boston","BOSTON","SUFFOLK","0071 - Danvers"]
["0081 - Dunstable","EAST CANTON ST LP","1400 PROVIDENCE HWY STE 1000 NORWOOD MA 02062-5032","1982-04-08",null,"0035 - Boston","BOSTON","SUFFOLK","0072 - Dartmouth"]
["0082 - Duxbury","EBENEZER HOMES ASSOCIATES","1 UNIVERSITY AVE # 2C WESTWOOD MA 02090-1245","1971-12-16","2012-12-31","0035 - Boston","BOSTON","SUFFOLK","0073 - Dedham"]
["0083 - East Bridgewater","EDISON GREEN / CATHERINE CLARK","7 THOMAS DR CUMBERLAND FORESIDE ME 04110-1318","1978-03-09",null,"0035 - Boston","BOSTON","SUFFOLK","0074 - Deerfield"]
["0084 - East Brookfield","EGLESTON CENTER CORPORATION","2010 COLUMBUS AVE ROXBURY MA 02119-1106","1996-05-31",null,"0035 - Boston","BOSTON","SUFFOLK","0075 - Dennis"]
["0086 - Eastham","FIELDSTONE APARTMENTS LP","536 GRANITE ST BRAINTREE MA 02184-3952","1981-03-12",null,"0035 - Boston","BOSTON","SUFFOLK","0076 - Dighton"]
["0087 - Easthampton","FRANKLIN PRESERVATION ASSOC LP","40 COURT ST STE 700 BOSTON MA 02108-2202","1974-12-19","2014-12-31","0035 - Boston","BOSTON","SUFFOLK","0077 - Douglas"]
["0088 - Easton","GARAGE EXPANSION OWNER, LP","100 LEGENDS WAY BOSTON MA 02114-1300","2015-01-01",null,"0035 - Boston","BOSTON","SUFFOLK","0078 - Dover"]
["0089 - Edgartown","GARDNER APARTMENTS LP","270 ROXBURY ST BOSTON MA 02119-1526","1974-12-05","2014-12-31","0035 - Boston","BOSTON","SUFFOLK","0079 - Dracut"]
["0090 - Egremont","GEGC2 NEW STREET LLC C/O GERDING EDLEN","1477 NW EVERETT ST PORTLAND OR 97209-2617","2019-01-01",null,"0035 - Boston","BOSTON","SUFFOLK","0080 - Dudley"]
["0091 - Erving","GOVERNOR APARTMENTS ASSOCIATES","100 WELLS AVE NEWTON MA 02459-3242","1980-09-18",null,"0035 - Boston","BOSTON","SUFFOLK","0081 - Dunstable"]
["0092 - Essex","HAYNES HOUSE ASSOCIATES II","6 FANEUIL HALL MKTPLC BOSTON MA 02109","1977-06-09","2012-12-31","0035 - Boston","BOSTON","SUFFOLK","0082 - Duxbury"]
["0096 - Falmouth","HEMENWAY APARTMENTS CO","7 THOMAS DR CUMBERLAND FORESIDE ME 04110-1318","1979-05-03",null,"0035 - Boston","BOSTON","SUFFOLK","0083 - East Bridgewater"]
["0098 - Florida","HONG LOK HOUSE","1 FLORENCE ST BOSTON MA 02131-3638","1980-09-18",null,"0035 - Boston","BOSTON","SUFFOLK","0084 - East Brookfield"]
["0099 - Foxborough","HOTEL TOWER OWNER LP","800 BOYLSTON ST SPC 19 BOSTON MA 02199-7041","2017-01-01",null,"0035 - Boston","BOSTON","SUFFOLK","0085 - East Longmeadow"]
["0101 - Franklin","JAMAICA PLAIN ASSOCIATES","94 BEACONSFIELD RD BROOKLINE MA 02445-3309","1975-03-06","2015-12-31","0035 - Boston","BOSTON","SUFFOLK","0086 - Eastham"]
["0102 - Freetown","JEWISH COMM HSNG FOR ELDERLY III","30 WALLINGFORD RD BRIGHTON MA 02135-4708","1975-06-12","2015-07-22","0035 - Boston","BOSTON","SUFFOLK","0087 - Easthampton"]
["0104 - Aquinnah","JEWISH COMMUNITY HOUSING FOR THE ELDERLY","30 WALLINGFORD RD BRIGHTON MA 02135-4708","1968-11-21","2010-12-31","0035 - Boston","BOSTON","SUFFOLK","0088 - Easton"]
["0105 - Georgetown","JEWISH COMMUNITY HOUSING FOR THE ELDERLY II","30 WALLINGFORD RD BRIGHTON MA 02135-4708","1972-03-30","2012-12-31","0035 - Boston","BOSTON","SUFFOLK","0089 - Edgartown"]
["0106 - Gill","KENMORE ABBEY PRESERVATION ASSOC","2 OLIVER ST FL 500\nBOSTON MA 02109-4937","1982-09-16",null,"0035 - Boston","BOSTON","SUFFOLK","0090 - Egremont"]
["0108 - Goshen","KEYSTONE APARTMENTS COMPANY","150 MOUNT VERNON ST STE 520 DORCHESTER MA 02125-3115","1978-08-03","2018-12-31","0035 - Boston","BOSTON","SUFFOLK","0091 - Erving"]
["0109 - Gosnold","LANDMARK CENTER LP","333 NEWBURY ST BOSTON MA 02115-2710","1997-02-28","2019-12-31","0035 - Boston","BOSTON","SUFFOLK","0092 - Essex"]
["0110 - Grafton","MADISON BOTOLPH II LIMITED PARTNERSHIP","530 WARREN ST DORCHESTER MA 02121-1821","2015-01-01",null,"0035 - Boston","BOSTON","SUFFOLK","0093 - Everett"]
["0111 - Granby","MADISON BOTOLPH LP","530 WARREN ST DORCHESTER MA 02121-1821","1979-05-03","2014-12-31","0035 - Boston","BOSTON","SUFFOLK","0094 - Fairhaven"]
["0112 - Granville","MADISON PARK III ASSOCIATES","6 FANEUIL HALL MARKET PL BOSTON MA 02109-6115","1977-06-09","2012-12-31","0035 - Boston","BOSTON","SUFFOLK","0095 - Fall River"]
["0113 - Great Barrington","MADISON PARK IV LP","6 FANEUIL HALL MARKET PL BOSTON MA 02109-6115","1996-05-13",null,"0035 - Boston","BOSTON","SUFFOLK","0096 - Falmouth"]
["0114 - Greenfield","MADISON TRINITY LTD PARTNERSHIP","75 FEDERAL ST FL 4 BOSTON MA 02110-1900","1997-08-15",null,"0035 - Boston","BOSTON","SUFFOLK","0097 - Fitchburg"]
["0115 - Groton","MANDELA HOMES LIMITED PARTNERSHP","150 FEDERAL ST 5TH FL BOSTON MA 02110","1997-12-18","2010-12-31","0035 - Boston","BOSTON","SUFFOLK","0098 - Florida"]
["0116 - Groveland","MARCUS GARVEY ASSOCIATES","7 THOMAS DR CUMBERLAND FORESIDE ME 04110-1318","1979-05-03",null,"0035 - Boston","BOSTON","SUFFOLK","0099 - Foxborough"]
["0117 - Hadley","MARKLEY ONE SUMMER ST LLP","1 SUMMER ST FL 5 BOSTON MA 02110-1013","1975-05-01","2016-12-31","0035 - Boston","BOSTON","SUFFOLK","0100 - Framingham"]
["0118 - Halifax","MASON RHF LP","536 GRANITE ST STE 301 BRAINTREE MA 02184-3952","1978-03-09",null,"0035 - Boston","BOSTON","SUFFOLK","0101 - Franklin"]
["0120 - Hampden","MATEP LP","474 BROOKLINE AVE BOSTON MA 02215-5415","1975-10-09","2015-12-31","0035 - Boston","BOSTON","SUFFOLK","0102 - Freetown"]
["0121 - Hancock","MAVERICK GARDENS PHASE 3","75 FEDERAL ST FL 4 BOSTON MA 02110","2005-02-11",null,"0035 - Boston","BOSTON","SUFFOLK","0103 - Gardner"]
["0123 - Hanson","MERCANTILE WHARF ASSOCIATES","15 BROAD ST STE 502 BOSTON MA 02109-3816","1974-11-14","2014-12-31","0035 - Boston","BOSTON","SUFFOLK","0104 - Aquinnah"]
["0124 - Hardwick","MISSION MAIN PHASE II LP","1 WASHINGTON MALL STE 5\nBOSTON MA 02108-2603","1999-09-10",null,"0035 - Boston","BOSTON","SUFFOLK","0105 - Georgetown"]
["0125 - Harvard","MISSION MAIN PHASE ONE LP","1 WASHINGTON MALL STE 5\nBOSTON MA 02108-2603","1998-09-29",null,"0035 - Boston","BOSTON","SUFFOLK","0106 - Gill"]
["0126 - Harwich","MISSION MAIN PHASE THREE LP","6 FANEUIL HALL MARKET PL BOSTON MA 02109-6115","2001-01-01",null,"0035 - Boston","BOSTON","SUFFOLK","0107 - Gloucester"]
["0127 - Hatfield","MISSION PARK GARAGE","11 NEW WHITNEY ST BOSTON MA 02115-6276","1975-07-10","2015-12-31","0035 - Boston","BOSTON","SUFFOLK","0108 - Goshen"]
["0129 - Hawley","MISSION PARK HOUSING","75 FEDERAL ST FL 4TH BOSTON MA 02110","1975-07-10","2015-12-31","0035 - Boston","BOSTON","SUFFOLK","0109 - Gosnold"]
["0130 - Heath","MORVILLE HOUSE APTS LP","27 MICA LN STE 301 WELLESLEY MA 02481-1741","1971-09-30","2011-12-31","0035 - Boston","BOSTON","SUFFOLK","0110 - Grafton"]
["0131 - Hingham","NEW BOSTON FOOD MARKET","15 WIDETT CIR BOSTON MA 02118-2804","1967-10-10",null,"0035 - Boston","BOSTON","SUFFOLK","0111 - Granby"]
["0132 - Hinsdale","NEW FRANKLIN PARK LP","95 BERKELEY ST STE 500 BOSTON MA 02116-6229","1974-11-21","2014-12-31","0035 - Boston","BOSTON","SUFFOLK","0112 - Granville"]
["0133 - Holbrook","NEW MASS PIKE TOWERS LP","6 FANEUIL HALL MARKTPLCE BOSTON MA 02109","1971-02-25","2011-12-31","0035 - Boston","BOSTON","SUFFOLK","0113 - Great Barrington"]
["0135 - Holland","NEW PALMER STREET LP","1500 BLUE HILL AVE MATTAPAN MA 02126-1746","2004-12-20",null,"0035 - Boston","BOSTON","SUFFOLK","0114 - Greenfield"]
["0136 - Holliston","NEWCASTLE ASSOCIATES","1 UNIVERSITY AVE # 2C WESTWOOD MA 02090-1245","1972-07-20","2013-12-31","0035 - Boston","BOSTON","SUFFOLK","0115 - Groton"]
["0137 - Holyoke","OFFICE TOWER OWNER LP","800 BOYLSTON ST SPC 19\nBOSTON MA 02199-7041","2019-01-01",null,"0035 - Boston","BOSTON","SUFFOLK","0116 - Groveland"]
["0138 - Hopedale","OLD COLONY PHASE 2A LP","2 CENTER PLZ STE 700 BOSTON MA 02108-1906","2013-01-01",null,"0035 - Boston","BOSTON","SUFFOLK","0117 - Hadley"]
["0139 - Hopkinton","OLD COLONY PHASE 2B LP","2 CENTER PLZ STE 700 BOSTON MA 02108-1906","2013-01-01",null,"0035 - Boston","BOSTON","SUFFOLK","0118 - Halifax"]
["0140 - Hubbardston","OLD COLONY PHASE 2C LP","2 CENTER PLZ STE 700 BOSTON MA 02108-1906","2014-01-01",null,"0035 - Boston","BOSTON","SUFFOLK","0119 - Hamilton"]
["0141 - Hudson","OLD COLONY PHASE ONE LP","2 CENTER PLZ STE 700 BOSTON MA 02108-1906","2010-01-01",null,"0035 - Boston","BOSTON","SUFFOLK","0120 - Hampden"]
["0142 - Hull","ONE CHANNEL CENTER, LP","45 ROCKEFELLER PLZ FL 7TH NEW YORK NY 10111-0100","2015-09-23",null,"0035 - Boston","BOSTON","SUFFOLK","0121 - Hancock"]
["0143 - Huntington","ORCHARD PARK OFFSITE PHASE I LP","1 JOHN ELIOT SQ ROXBURY MA 02119-3511","1997-09-16",null,"0035 - Boston","BOSTON","SUFFOLK","0122 - Hanover"]
["0144 - Ipswich","OXFORD PLACE ASSOCIATES","100 WELLS AVE STE 100\nNEWTON CENTER MA 02459-3243","1982-08-05",null,"0035 - Boston","BOSTON","SUFFOLK","0123 - Hanson"]
["0145 - Kingston","PETERBOROUGH HOUSING ASSOCIATES","100 WELLS AVE # 200 NEWTON MA 02459-3242","1978-06-08","2018-12-31","0035 - Boston","BOSTON","SUFFOLK","0124 - Hardwick"]
["0146 - Lakeville","PHIL C BRADLEY HOUSING PRTNRSHIP","95 BROADWAY BOSTON MA 02116-5414","1997-10-01","2011-12-31","0035 - Boston","BOSTON","SUFFOLK","0125 - Harvard"]
["0147 - Lancaster","PODIUM OWNER LP","800 BOYLSTON STREET FL 19TH\nBOSTON MA 02199","2015-01-01",null,"0035 - Boston","BOSTON","SUFFOLK","0126 - Harwich"]
["0148 - Lanesborough","POST OFFICE SQUARE REDEVELOPMENT CORP","50 FEDERAL ST BOSTON MA 02110","1987-02-24",null,"0035 - Boston","BOSTON","SUFFOLK","0127 - Hatfield"]
["0151 - Leicester","QUINCY HEIGHTS LP","594 COLUMBIA RD STE 302 DORCHESTER MA 02125-3436","1977-07-28",null,"0035 - Boston","BOSTON","SUFFOLK","0128 - Haverhill"]
["0152 - Lenox","QUINCY TOWER LP","2 CENTER PLZ STE 700 BOSTON MA 02108-1906","1974-11-21","2014-12-31","0035 - Boston","BOSTON","SUFFOLK","0129 - Hawley"]
["0153 - Leominster","RBW OWNER LP","606 CONGRESS ST BOSTON MA 02210-2803","2015-09-22","2017-12-31","0035 - Boston","BOSTON","SUFFOLK","0130 - Heath"]
["0154 - Leverett","RENAISSANCE BOSTON WATERFRONT","4 EMBARCADERO CTR STE 710 SAN FRANCISCO CA 94111-4172","2003-01-22","2014-12-31","0035 - Boston","BOSTON","SUFFOLK","0131 - Hingham"]
["0155 - Lexington","RESERVOIR TOWERS ASSOCIATES","100 WELLS AVE # 200 NEWTON MA 02459-3242","1975-10-09","2015-12-31","0035 - Boston","BOSTON","SUFFOLK","0132 - Hinsdale"]
["0156 - Leyden","RESIDENTIAL TOWER OWNER LP","800 BOYLSTON ST BOSTON MA 02199-1900","2017-01-01",null,"0035 - Boston","BOSTON","SUFFOLK","0133 - Holbrook"]
["0157 - Lincoln","RESTORATION HOUSING CORPORATION","11 NEW WHITNEY ST BOSTON MA 02115-6276","1980-09-25","2015-12-31","0035 - Boston","BOSTON","SUFFOLK","0134 - Holden"]
["0158 - Littleton","ROBERT L FORTES HOUSE INC","27 MICA LN STE 301 WELLESLEY MA 02481-1741","1980-07-31",null,"0035 - Boston","BOSTON","SUFFOLK","0135 - Holland"]
["0159 - Longmeadow","ROCKINGHAM GLEN LP","2 N RIVERSIDE PLZ STE 400 CHICAGO IL 60606-2624","1973-04-05","2013-12-31","0035 - Boston","BOSTON","SUFFOLK","0136 - Holliston"]
["0161 - Ludlow","ROGERSON BEACON ASSOCIATES LP","1 FLORENCE ST ROSLINDALE MA 02131-3638","2015-01-01",null,"0035 - Boston","BOSTON","SUFFOLK","0137 - Holyoke"]
["0162 - Lunenburg","ROXBURY MOUNT PLEASANT LP","500 VICTORY RD NORTH QUINCY MA 02171-3139","1982-08-05",null,"0035 - Boston","BOSTON","SUFFOLK","0138 - Hopedale"]
["0164 - Lynnfield","RTH COMMUNITY CENTER REALTY INC","11 NEW WHITNEY ST BOSTON MA 02115-6276","2013-01-01","2015-12-31","0035 - Boston","BOSTON","SUFFOLK","0139 - Hopkinton"]
["0165 - Malden","RUTLAND HOUSING ASSOCIATION","111 W CONCORD ST REAR \nBOSTON MA 02118-1544","1970-10-08","2010-12-31","0035 - Boston","BOSTON","SUFFOLK","0140 - Hubbardston"]
["0166 - Manchester By The Sea","SARAH BAKER MANOR ASSOCIATES","1 JOHN ELIOT SQ ROXBURY MA 02119-3511","1981-03-12",null,"0035 - Boston","BOSTON","SUFFOLK","0141 - Hudson"]
["0167 - Mansfield","SCHOOL HOUSE BROOKLEDGE CUMMINS","536 GRANITE ST BRAINTREE MA 02184-3952","2008-10-27",null,"0035 - Boston","BOSTON","SUFFOLK","0142 - Hull"]
["0168 - Marblehead","SCHOOL HOUSE KENILWORTH WILLIAMS","536 GRANITE ST BRAINTREE MA 02184-3952","2008-10-27","2018-12-31","0035 - Boston","BOSTON","SUFFOLK","0143 - Huntington"]
["0169 - Marion","SEAPORT HOTEL","200 SEAPORT BLVD STE 50 BOSTON MA 02210-2031","1997-12-31","2017-12-31","0035 - Boston","BOSTON","SUFFOLK","0144 - Ipswich"]
["0172 - Mashpee","SMITH HOUSE ASSOCIATES II LP","6 FANEUIL HALL MKTPLC BOSTON MA 02109","1996-04-20","2012-12-31","0035 - Boston","BOSTON","SUFFOLK","0145 - Kingston"]
["0173 - Mattapoisett","SOUTH COVE PLAZA","170 NEWBURY ST BOSTON MA 02116-2873","2011-01-20",null,"0035 - Boston","BOSTON","SUFFOLK","0146 - Lakeville"]
["0175 - Medfield","ST JAMES/ARLINGTON RE LP","175 BERKELEY ST BOSTON MA 02116-5066","1998-06-25","2013-12-31","0035 - Boston","BOSTON","SUFFOLK","0147 - Lancaster"]
["0176 - Medford","ST KEVINS LP","84 STATE ST STE 600 BOSTON MA 02109-2227","2014-01-01",null,"0035 - Boston","BOSTON","SUFFOLK","0148 - Lanesborough"]
["0177 - Medway","TAURUS AT FOUNTAIN HILL ASSOC","1 JOHN ELIOT SQ ROXBURY MA 02119-3511","1979-03-15","2019-04-30","0035 - Boston","BOSTON","SUFFOLK","0149 - Lawrence"]
["0178 - Melrose","TENANTS DEVELOPMENT II LP","566 COLUMBUS AVE BOSTON MA 02118-1181","1973-06-28","2013-12-31","0035 - Boston","BOSTON","SUFFOLK","0150 - Lee"]
["0179 - Mendon","TRINITY EAST BOSTON FOUR LP","75 FEDERAL ST FL 4 BOSTON MA 02110","2005-02-11",null,"0035 - Boston","BOSTON","SUFFOLK","0151 - Leicester"]
["0180 - Merrimac","TRINITY EAST BOSTON LP","75 FEDERAL ST FL 4 BOSTON MA 02110","2003-05-29",null,"0035 - Boston","BOSTON","SUFFOLK","0152 - Lenox"]
["0182 - Middleborough","TRINITY EAST BOSTON TWO LP","75 FEDERAL ST FL 4 BOSTON MA 02110","2003-05-29",null,"0035 - Boston","BOSTON","SUFFOLK","0153 - Leominster"]
["0183 - Middlefield","TRINITY FOLEY LP","75 FEDERAL ST FL 4 BOSTON MA 02110","2001-09-21",null,"0035 - Boston","BOSTON","SUFFOLK","0154 - Leverett"]
["0184 - Middleton","TRINITY FRANKLIN HILL FOUR PHASE ONE LP","75 FEDERAL ST 4TH FL BOSTON MA 02110","2007-01-01",null,"0035 - Boston","BOSTON","SUFFOLK","0155 - Lexington"]
["0185 - Milford","TRINITY FRANKLIN HILL FOUR PHASE TWO LP","75 FEDERAL ST FL 4 BOSTON MA 02110","2008-01-01",null,"0035 - Boston","BOSTON","SUFFOLK","0156 - Leyden"]
["0186 - Millbury","TRINITY FRANKLIN HILL PHASE TWO LP","75 FEDERAL ST FL 4 BOSTON MA 02110","2008-01-01",null,"0035 - Boston","BOSTON","SUFFOLK","0157 - Lincoln"]
["0187 - Millis","TRINITY FRANKLIN PHASE ONE LP","75 FEDERAL ST LBBY 4\nBOSTON MA 02110-1900","2007-01-30",null,"0035 - Boston","BOSTON","SUFFOLK","0158 - Littleton"]
["0188 - Millville","TRINITY MATTAPAN HEIGHTS","75 FEDERAL ST FL 4 BOSTON MA 02110","2006-01-30",null,"0035 - Boston","BOSTON","SUFFOLK","0159 - Longmeadow"]
["0189 - Milton","TRINITY MATTAPAN HEIGHTS FIVE LP","75 FEDERAL ST FL 4 BOSTON MA 02110","2012-01-01",null,"0035 - Boston","BOSTON","SUFFOLK","0160 - Lowell"]
["0190 - Monroe","TRINITY MATTAPAN HEIGHTS THREE LP","75 FEDERAL ST LBBY 4\nBOSTON MA 02110-1900","2007-01-01",null,"0035 - Boston","BOSTON","SUFFOLK","0161 - Ludlow"]
["0191 - Monson","TRINITY NORHAMPTON PHASE TWO","75 FEDERAL ST FL 4TH\nBOSTON MA 02110-1913","2014-01-01",null,"0035 - Boston","BOSTON","SUFFOLK","0162 - Lunenburg"]
["0192 - Montague","TRINITY NORTHAMPTON PHASE ONE LP","75 FEDERAL ST FL 4\nBOSTON MA 02110-1913","2013-10-04",null,"0035 - Boston","BOSTON","SUFFOLK","0163 - Lynn"]
["0193 - Monterey","TRINITY NORTHAMPTON PHASE ONE LP","75 FEDERAL ST FL 4 BOSTON MA 02110","2013-01-01",null,"0035 - Boston","BOSTON","SUFFOLK","0164 - Lynnfield"]
["0194 - Montgomery","TRINITY ORIENT HEIGHTS LP","75 FEDERAL ST FL 4\nBOSTON MA 02110-1913","2015-01-01",null,"0035 - Boston","BOSTON","SUFFOLK","0165 - Malden"]
["0195 - Mount Washington","TRINITY WASHINGTON BEECH FOUR PH","75 FEDERAL ST FL 4 BOSTON MA 02110","2009-01-01",null,"0035 - Boston","BOSTON","SUFFOLK","0166 - Manchester By The Sea"]
["0196 - Nahant","TRINITY WASHINGTON BEECH FOUR PHASE TWO LP","75 FEDERAL ST FL 4 BOSTON MA 02110","2010-01-01",null,"0035 - Boston","BOSTON","SUFFOLK","0167 - Mansfield"]
["0197 - Nantucket","TRINITY WASHINGTON BEECH PHASE ONE LP","75 FEDERAL ST FL 4 BOSTON MA 02110","2009-01-01",null,"0035 - Boston","BOSTON","SUFFOLK","0168 - Marblehead"]
["0198 - Natick","TRINITY WASHINGTON BEECH PHASE TWO LP","75 FEDERAL ST FL 4 BOSTON MA 02110","2010-01-01",null,"0035 - Boston","BOSTON","SUFFOLK","0169 - Marion"]
["0199 - Needham","TWO FINANCIAL CENTER","PO BOX 1920 DALLAS TX 75221-1920","2007-02-13","2015-12-31","0035 - Boston","BOSTON","SUFFOLK","0170 - Marlborough"]
["0200 - New Ashford","UPHAMS CORNER LP","84 STATE ST STE 600 BOSTON MA 02109-2227","2014-01-01",null,"0035 - Boston","BOSTON","SUFFOLK","0171 - Marshfield"]
["0202 - New Braintree","VICTORIA APARTMENTS LP","630 TREMONT ST BOSTON MA 02118-1607","1980-05-22",null,"0035 - Boston","BOSTON","SUFFOLK","0172 - Mashpee"]
["0203 - New Marlborough","VICTORY GARDENS ASSOCIATES","536 GRANITE ST BRAINTREE MA 02184-3952","1975-10-09","2015-12-31","0035 - Boston","BOSTON","SUFFOLK","0173 - Mattapoisett"]
["0204 - New Salem","VIVIENDAS APARTMENTS","27 MICA LN STE 301 WELLESLEY MA 02481-1741","1974-08-15","2014-12-31","0035 - Boston","BOSTON","SUFFOLK","0174 - Maynard"]
["0205 - Newbury","WAIT STREET ASSOCIATES","7 THOMAS DR CUMBERLAND FORESIDE ME 04110-1318","1980-07-31",null,"0035 - Boston","BOSTON","SUFFOLK","0175 - Medfield"]
["0208 - Norfolk","WALNUT AVENUE APARTMENTS LP","31 GERMANIA ST JAMAICA PLAIN MA 02130-2314","2014-01-01","2019-12-31","0035 - Boston","BOSTON","SUFFOLK","0176 - Medford"]
["0209 - North Adams","WASHINGTON STREET GATEWAY ASSOCIATES LP","196 CHESTNUT AVE STE 8\nBOSTON MA 02130-4446","2016-01-01",null,"0035 - Boston","BOSTON","SUFFOLK","0177 - Medway"]
["0210 - North Andover","WATERS & CO INC","144 WORCESTER ST APT 1\nBOSTON MA 02118-3448","1974-12-05","2014-12-31","0035 - Boston","BOSTON","SUFFOLK","0178 - Melrose"]
["0211 - North Attleborough","WELD PARK ASSOCIATES","112 WATER ST STE 600 BOSTON MA 02109-4204","1978-05-28","2018-12-31","0035 - Boston","BOSTON","SUFFOLK","0179 - Mendon"]
["0212 - North Brookfield","WESTLAND AVENUE APARTMENTS LP","1400 PROVIDENCE HIGHWAY STE 1000 NORWOOD MA 02062-5032","1980-09-25",null,"0035 - Boston","BOSTON","SUFFOLK","0180 - Merrimac"]
["0213 - North Reading","WOODBOURNE HOUSING LIMITED PARTNERSHIP","95 BERKELEY ST STE 500\nBOSTON MA 02116-6229","2015-01-01","2018-12-31","0035 - Boston","BOSTON","SUFFOLK","0181 - Methuen"]
["0214 - Northampton","WOODBOURNE HOUSING LP","95 BERKELEY ST STE 500 BOSTON MA 02116-6229","1978-08-03",null,"0035 - Boston","BOSTON","SUFFOLK","0182 - Middleborough"]
["0215 - Northborough","WOODBURY CUNARD ASSOCIATES","72 MARGINAL ST EAST BOSTON MA 02128-2135","1975-07-30",null,"0035 - Boston","BOSTON","SUFFOLK","0183 - Middlefield"]
["0216 - Northbridge","BINNALL HOUSE RHF PARTNERS LTD PARTNERSHIP","536 GRANITE ST BRAINTREE MA 02184-3952","2016-01-01",null,"0040 - Braintree","BRAINTREE","NORFOLK","0184 - Middleton"]
["0217 - Northfield","LANDING APARTMENTS LLC","625 MOUNT AUBURN ST STE 210 CAMBRIDGE MA 02138-4555","2016-06-09",null,"0040 - Braintree","BRAINTREE","NORFOLK","0185 - Milford"]
["0218 - Norton","ST FRANCIS OF ASSISI RESIDENCES AT BRAINTREE II INC","53 INDEPENDENCE AVE BRAINTREE MA 02184-1768","1980-06-03",null,"0040 - Braintree","BRAINTREE","NORFOLK","0186 - Millbury"]
["0219 - Norwell","ST FRANCIS OF ASSISI RESIDENCES AT BRAINTREE INC","41 INDEPENDENCE AVE BRAINTREE MA 02184-1733","1974-09-24","2014-12-31","0040 - Braintree","BRAINTREE","NORFOLK","0187 - Millis"]
["0220 - Norwood","BROCKTON COMMONS ASSOC II LLC","100 GRANDVIEW RD STE 207 BRAINTREE MA 02184-2692","1979-08-09",null,"0044 - Brockton","BROCKTON","PLYMOUTH","0188 - Millville"]
["0221 - Oak Bluffs","DOUGLAS HOUSE","536 GRANITE ST # 301 BRAINTREE MA 02184-3952","1982-05-17",null,"0044 - Brockton","BROCKTON","PLYMOUTH","0189 - Milton"]
["0222 - Oakham","HAMILTON RHF HOUSING, INC.","536 GRANITE ST STE 301 BRAINTREE MA 02184-3952","1978-06-15",null,"0044 - Brockton","BROCKTON","PLYMOUTH","0190 - Monroe"]
["0223 - Orange","TRINITY HOUSING ASSOCIATES","170 NEWBURY ST BOSTON MA 02116-2873","1976-05-13",null,"0044 - Brockton","BROCKTON","PLYMOUTH","0191 - Monson"]
["0224 - Orleans","BEACON PARK ASSOCIATES","50 FEDERAL ST # 1000 BOSTON MA 02110-2500","1972-04-18","2012-12-31","0046 - Brookline","BROOKLINE","NORFOLK","0192 - Montague"]
["0225 - Otis","VILLAGE AT BROOKLINE LP THE","1 WASHINGTON MALL STE 500 BOSTON MA 02108-2603","1975-07-10","2015-12-31","0046 - Brookline","BROOKLINE","NORFOLK","0193 - Monterey"]
["0226 - Oxford","BIOGEN REALTY LP","225 BINNEY ST CAMBRIDGE MA 02142-1031","1993-09-29",null,"0049 - Cambridge","CAMBRIDGE","MIDDLESEX","0194 - Montgomery"]
["0227 - Palmer","CLOSE BUILDING ASSOCIATES","27 MICA LN STE 301 WELLESLEY MA 02481-1741","1975-10-20",null,"0049 - Cambridge","CAMBRIDGE","MIDDLESEX","0195 - Mount Washington"]
["0228 - Paxton","INMAN SQUARE APARTMENTS CO","1221 CAMBRIDGE ST CAMBRIDGE MA 02139-1354","1972-08-22","2011-03-25","0049 - Cambridge","CAMBRIDGE","MIDDLESEX","0196 - Nahant"]
["0230 - Pelham","MEMORIAL DRIVE HOUSING LP","280 FRANKLIN ST CAMBRIDGE MA 02139-3773","1997-07-11","2014-12-31","0049 - Cambridge","CAMBRIDGE","MIDDLESEX","0197 - Nantucket"]
["0231 - Pembroke","WELLINGTON-HARRINGTON DEV CORP","27 MICA LN STE 301 WELLESLEY MA 02481-1741","1975-01-27","2015-12-31","0049 - Cambridge","CAMBRIDGE","MIDDLESEX","0198 - Natick"]
["0232 - Pepperell","WSQ LIMITED PARTNERSHIP","6 FANEUIL HALL MKTPLC BOSTON MA 02109","2002-03-14","2011-12-31","0049 - Cambridge","CAMBRIDGE","MIDDLESEX","0199 - Needham"]
["0233 - Peru","CHICOPEE HOUSING ASSOCIATES","475 KILVERT ST STE 105 WARWICK RI 02886-1360","1973-08-09","2017-06-30","0061 - Chicopee","CHICOPEE","HAMPDEN","0200 - New Ashford"]
["0234 - Petersham","DOM NARODOWY POLSKI PRESERV ASSC","3100 BROADWAY BLVD STE 1234 KANSAS CITY MO 64111-2413","1980-05-12","2010-12-31","0061 - Chicopee","CHICOPEE","HAMPDEN","0201 - New Bedford"]
["0235 - Phillipston","BROWNSTONE GARDENS I INC","75 PLEASANT ST EAST LONGMEADOW MA 01028-2477","1985-08-22","2014-12-31","0085 - East Longmeadow","EAST LONGMEADOW","HAMPDEN","0202 - New Braintree"]
["0237 - Plainfield","BROWNSTONE GARDENS II INC","79 PLEASANT ST EAST LONGMEADOW MA 01028-2406","1985-12-17","2018-07-01","0085 - East Longmeadow","EAST LONGMEADOW","HAMPDEN","0203 - New Marlborough"]
["0238 - Plainville","BROWNSTONE GARDENS III INC","110 SOMERS RD EAST LONGMEADOW MA 01028-2929","1994-12-21",null,"0085 - East Longmeadow","EAST LONGMEADOW","HAMPDEN","0204 - New Salem"]
["0239 - Plymouth","EVERETT BOSTON HARBOR","1 BROADWAY EVERETT MA 02149-2432","2019-04-15",null,"0093 - Everett","EVERETT","MIDDLESEX","0205 - Newbury"]
["0240 - Plympton","FAIRHAVEN VILLAGE ASSOCIATES","536 GRANITE ST STE 2 BRAINTREE MA 02184-3954","1978-11-16",null,"0094 - Fairhaven","FAIRHAVEN","BRISTOL","0206 - Newburyport"]
["0241 - Princeton","ACADEMY ASSOCIATES","100 GRANDVIEW RD STE 207 BRAINTREE MA 02184-2692","1979-09-06",null,"0095 - Fall River","FALL RIVER","BRISTOL","0207 - Newton"]
["0242 - Provincetown","MILLIKEN AFFORDABLE HOUSING","1090 VERMONT AVE NW STE 400 WASHINGTON DC 20005-4905","1971-06-30","2011-12-31","0095 - Fall River","FALL RIVER","BRISTOL","0208 - Norfolk"]
["0244 - Randolph","RIVERVIEW TOWERS CO","301 MILLIKEN BLVD APT 1915\nFALL RIVER MA 02721-1621","1971-03-10","2011-12-31","0095 - Fall River","FALL RIVER","BRISTOL","0209 - North Adams"]
["0245 - Raynham","HOTEL RAYMOND LLC","1 UNIVERSITY AVE # 2C WESTWOOD MA 02090-1245","1976-11-08","2016-12-31","0097 - Fitchburg","FITCHBURG","WORCESTER","0210 - North Andover"]
["0246 - Reading","JOSEPH'S HOUSE LLC","800 KELLY WAY HOLYOKE MA 01040","1980-03-10",null,"0097 - Fitchburg","FITCHBURG","WORCESTER","0211 - North Attleborough"]
["0247 - Rehoboth","PELHAM CORPORATION LP","100 GRANDVIEW RD STE 207 BRAINTREE MA 02184-2692","1991-05-17",null,"0100 - Framingham","FRAMINGHAM","MIDDLESEX","0212 - North Brookfield"]
["0249 - Richmond","PELHAM II CORPORATION","100 GRANDVIEW RD STE 207\nBRAINTREE MA 02184-2692","1992-01-21",null,"0100 - Framingham","FRAMINGHAM","MIDDLESEX","0213 - North Reading"]
["0250 - Rochester","BINNALL HOUSE RHF HOUSING INC","536 GRANITE ST STE 301 BRAINTREE MA 02184-3952","1980-12-22","2015-12-31","0103 - Gardner","GARDNER","WORCESTER","0214 - Northampton"]
["0251 - Rockland","NEW CENTRAL GRAMMAR OWNER LLC","185 DARTMOUTH ST STE 9 BOSTON MA 02116-5884","1974-09-03","2014-12-31","0107 - Gloucester","GLOUCESTER","ESSEX","0215 - Northborough"]
["0252 - Rockport","ASBURY CAMP MEETING CORPORATION","15 LEE PARK SOUTH HAMILTON MA 01982-2804","1979-07-21","1979-07-21","0119 - Hamilton","HAMILTON","ESSEX","0216 - Northbridge"]
["0253 - Rowe","CUSHING RESIDENCE INC","10 PLAZA DR STE 201 SCARBOROUGH ME 04074-1801","1980-11-03","2012-12-31","0122 - Hanover","HANOVER","PLYMOUTH","0217 - Northfield"]
["0254 - Rowley","HANOVER LEGION ELDERLY HOUSING CORPORATION","100 GRANDVIEW RD STE 207 BRAINTREE MA 02184-2692","1981-01-21",null,"0122 - Hanover","HANOVER","PLYMOUTH","0218 - Norton"]
["0255 - Royalston","AHEPA 39 INC","40 BUTTONWOODS AVE HAVERHILL MA 01830-6498","1994-08-30",null,"0128 - Haverhill","HAVERHILL","ESSEX","0219 - Norwell"]
["0256 - Russell","MISSION TOWERS INC","180 WATER ST HAVERHILL MA 01830-6216","1972-05-08","2012-12-31","0128 - Haverhill","HAVERHILL","ESSEX","0220 - Norwood"]
["0257 - Rutland","COLONY RETIREMENT HOMES OF HOLDEN INC","101 CHADWICK ST WORCESTER MA 01605-1273","1982-05-25",null,"0134 - Holden","HOLDEN","WORCESTER","0221 - Oak Bluffs"]
["0259 - Salisbury","AMESBURY GARDENS TENANTS ASSOC","27 MICA LN WELLESLEY MA 02481-1724","1970-02-19","2011-12-31","0149 - Lawrence","LAWRENCE","ESSEX","0222 - Oakham"]
["0260 - Sandisfield","ARLINGTON PARK ASSOCIATES","355 PARK ST STE 1\nLAWRENCE MA 01841-2449","1975-11-10","2015-11-10","0149 - Lawrence","LAWRENCE","ESSEX","0223 - Orange"]
["0261 - Sandwich","COMMON STREET ASSOCIATES","170 NEWBURY ST BOSTON MA 02116-2873","1982-07-22",null,"0149 - Lawrence","LAWRENCE","ESSEX","0224 - Orleans"]
["0262 - Saugus","ESSEX TOWERS - 8TH AP CO","500 W CUMMINGS PARK STE 6050 WOBURN MA 01801-6547","1978-07-31",null,"0149 - Lawrence","LAWRENCE","ESSEX","0225 - Otis"]
["0263 - Savoy","LAWRENCE REHABILITATION CO","465 WAVERLEY OAKS RD STE 211 WALTHAM MA 02452-8466","1978-08-01",null,"0149 - Lawrence","LAWRENCE","ESSEX","0226 - Oxford"]
["0264 - Scituate","MI RESIDENTIAL COMMUNITY (II),","172 LAWRENCE ST LAWRENCE MA 01841-3849","1979-11-21",null,"0149 - Lawrence","LAWRENCE","ESSEX","0227 - Palmer"]
["0265 - Seekonk","MI RESIDENTIAL COMMUNITY III INC","172 LAWRENCE ST LAWRENCE MA 01841-3849","1980-09-25",null,"0149 - Lawrence","LAWRENCE","ESSEX","0228 - Paxton"]
["0266 - Sharon","MI RESIDENTIAL COMMUNITY INC","172 LAWRENCE ST LAWRENCE MA 01841-3849","1978-07-31",null,"0149 - Lawrence","LAWRENCE","ESSEX","0229 - Peabody"]
["0267 - Sheffield","RITA HALL ASSOCIATES","536 GRANITE ST STE 2B BRAINTREE MA 02184-3954","1975-07-23","2015-12-31","0149 - Lawrence","LAWRENCE","ESSEX","0230 - Pelham"]
["0268 - Shelburne","VALEBROOK ASSOCIATES","130 PROSPECT ST CAMBRIDGE MA 02139-1844","1977-06-21","2017-12-31","0149 - Lawrence","LAWRENCE","ESSEX","0231 - Pembroke"]
["0269 - Sherborn","LEE ELDERLY HOUSING CORP","1 FENN ST PITTSFIELD MA 01201-6278","1984-03-21",null,"0150 - Lee","LEE","BERKSHIRE","0232 - Pepperell"]
["0270 - Shirley","BELVERON MAZUR LLC","268 BUSH ST # 3534\nSAN FRANCISCO CA 94104-3503","2015-01-01",null,"0160 - Lowell","LOWELL","MIDDLESEX","0233 - Peru"]
["0271 - Shrewsbury","LORD ASSOCIATES","170 NEWBURY ST BOSTON MA 02116-2873","1974-03-19","2014-12-31","0160 - Lowell","LOWELL","MIDDLESEX","0234 - Petersham"]
["0272 - Shutesbury","MAZUR PARK APARTMENTS","227 FAYETTE ST LOWELL MA 01852-2363","1981-02-24","2014-12-31","0160 - Lowell","LOWELL","MIDDLESEX","0235 - Phillipston"]
["0273 - Somerset","NEW LOWELL ASSOCIATES LP","100 WELLS AVE FL 2 NEWTON MA 02459-3242","1976-01-21","2015-12-31","0160 - Lowell","LOWELL","MIDDLESEX","0236 - Pittsfield"]
["0275 - South Hadley","PRINCETON PLAZA LP","1115 WESTFORD ST, 4TH FL LOWELL MA 01851","1971-09-27","2011-12-31","0160 - Lowell","LOWELL","MIDDLESEX","0237 - Plainfield"]
["0276 - Southampton","RELATED STIRLING BAY LLC","423 W 55TH ST 9TH FL NEW YORK NY 10019-4460","1983-11-09",null,"0160 - Lowell","LOWELL","MIDDLESEX","0238 - Plainville"]
["0277 - Southborough","WENTWORTH HOUSING CO","465 WAVERLEY OAKS RD STE 211 WALTHAM MA 02452-8466","1979-02-27",null,"0160 - Lowell","LOWELL","MIDDLESEX","0239 - Plymouth"]
["0280 - Spencer","LEISURE TOWERS ASSOCIATES","500 VICTORY RD QUINCY MA 02171-3139","1973-10-09","2013-12-31","0163 - Lynn","LYNN","ESSEX","0240 - Plympton"]
["0282 - Sterling","ST STEPHEN'S PRESERVATION LP","2 CENTER PLZ STE 700 BOSTON MA 02108-1906","1975-03-31","2015-03-31","0163 - Lynn","LYNN","ESSEX","0241 - Princeton"]
["0283 - Stockbridge","ACADEMY KNOLL ASSOCIATES","500 W CUMMINGS PARK STE 6050 WOBURN MA 01801-6547","1975-08-11",null,"0170 - Marlborough","MARLBOROUGH","MIDDLESEX","0242 - Provincetown"]
["0284 - Stoneham","ACADEMY KNOLL ASSOCIATES CO AME","500 WEST CUMMINGS PARK S WOBURN MA 01801","2016-01-01","2016-01-01","0170 - Marlborough","MARLBOROUGH","MIDDLESEX","0243 - Quincy"]
["0285 - Stoughton","WINSLOW VILLAGE INC","1520 OCEAN ST STE 18\nMARSHFIELD MA 02050-3557","1971-03-19","2011-12-31","0171 - Marshfield","MARSHFIELD","PLYMOUTH","0244 - Randolph"]
["0286 - Stow","BC SUMMERHILL GLEN LP","2 CENTER PLZ STE 700 BOSTON MA 02108-1906","1975-02-03","2015-12-31","0174 - Maynard","MAYNARD","MIDDLESEX","0245 - Raynham"]
["0287 - Sturbridge","CEDARS ELDERLY HOME INC","222 PELHAM ST METHUEN MA 01844-1467","2008-01-01",null,"0181 - Methuen","METHUEN","ESSEX","0246 - Reading"]
["0288 - Sudbury","LEBANESE COMMUNITY HOUSING FOR THE ELDERLY INC","222 PELHAM ST METHUEN MA 01844-1467","1983-07-26",null,"0181 - Methuen","METHUEN","ESSEX","0247 - Rehoboth"]
["0289 - Sunderland","MERRIMACK VALLEY HOUSING SERVICES INC","536 GRANITE ST STE 2A BRAINTREE MA 02184-3954","1982-10-26",null,"0181 - Methuen","METHUEN","ESSEX","0248 - Revere"]
["0290 - Sutton","PARK GARDENS ASSOCIATES","10 BURNHAM RD METHUEN MA 01844-3330","1979-11-07",null,"0181 - Methuen","METHUEN","ESSEX","0249 - Richmond"]
["0291 - Swampscott","MELVILLE TOWERS LP","536 GRANITE ST BRAINTREE MA 02184-3952","1975-11-10","2015-12-31","0201 - New Bedford","NEW BEDFORD","BRISTOL","0250 - Rochester"]
["0292 - Swansea","UNITED FRONT NINE PRESERV ASSOC","3100 BROADWAY BLVD STE 1234 KANSAS CITY MO 64111-2413","1972-11-29","2012-12-31","0201 - New Bedford","NEW BEDFORD","BRISTOL","0251 - Rockland"]
["0294 - Templeton","LOW STREET ASSOCIATES","1 WASHINGTON MALL STE 500\nBOSTON MA 02108-2603","1979-10-12","2019-12-31","0206 - Newburyport","NEWBURYPORT","ESSEX","0252 - Rockport"]
["0295 - Tewksbury","HAMLET ASSOCIATES LP","425 WATERTOWN ST STE 205\nNEWTON MA 02458-1131","1974-12-10","2014-12-31","0207 - Newton","NEWTON","MIDDLESEX","0253 - Rowe"]
["0296 - Tisbury","NEW FALLS ASSOCIATES","7 WELLS AVE STE 11\nNEWTON CENTER MA 02459-3212","1978-04-07",null,"0207 - Newton","NEWTON","MIDDLESEX","0254 - Rowley"]
["0297 - Tolland","NEWTON COMMUNITY DEV FOUNDATION II INC","425 WATERTOWN ST STE 205\nNEWTON MA 02458-1131","1979-05-10","2019-12-31","0207 - Newton","NEWTON","MIDDLESEX","0255 - Royalston"]
["0298 - Topsfield","RTH RESTORATION HOUSING LIMITED PARTNERSHIP","100 WELLS AVE NEWTON CENTER MA 02459-3242","2016-01-01",null,"0207 - Newton","NEWTON","MIDDLESEX","0256 - Russell"]
["0299 - Townsend","CROWNINSHIELD APARTMENTS","18 CROWNINSHIELD ST PEABODY MA 01960-4360","1973-12-10","2013-12-31","0229 - Peabody","PEABODY","ESSEX","0257 - Rutland"]
["0300 - Truro","PEABODY HOUSE COMPANY","465 WAVERLEY OAKS RD STE 211 WALTHAM MA 02452-8466","1979-05-11",null,"0229 - Peabody","PEABODY","ESSEX","0258 - Salem"]
["0301 - Tyngsborough","BERKSHIRETOWN LLC","800 KELLY WAY HOLYOKE MA 01040","1976-10-04",null,"0236 - Pittsfield","PITTSFIELD","BERKSHIRE","0259 - Salisbury"]
["0302 - Tyringham","PLASTICS REALTY CORP","4200 WILDWOOD PKWY ATLANTA GA 30339-8402","1982-09-28",null,"0236 - Pittsfield","PITTSFIELD","BERKSHIRE","0260 - Sandisfield"]
["0303 - Upton","RIVERVIEW HOMES LP","2 CENTER PLZ STE 700 BOSTON MA 02108-1906","1998-12-08","2012-12-31","0236 - Pittsfield","PITTSFIELD","BERKSHIRE","0261 - Sandwich"]
["0304 - Uxbridge","GRANITE PLACE LP","500 VICTORY RD NORTH QUINCY MA 02171-3139","1977-08-11",null,"0243 - Quincy","QUINCY","NORFOLK","0262 - Saugus"]
["0305 - Wakefield","WJG REALTY TRUST C/O STOP & SHOP","1385 HANCOCK ST QUINCY MA 02169-5103","1980-04-15","2010-12-31","0243 - Quincy","QUINCY","NORFOLK","0263 - Savoy"]
["0306 - Wales","HRCA HOUSING FOR ELDERLY INC","420 REVERE BEACH BLVD REVERE MA 02151-4702","1974-11-19","2014-12-31","0248 - Revere","REVERE","SUFFOLK","0264 - Scituate"]
["0307 - Walpole","LORING TOWERS #43122","423 W 55TH ST FL 8 NEW YORK NY 10019-4460","2010-01-01",null,"0258 - Salem","SALEM","ESSEX","0265 - Seekonk"]
["0309 - Ware","PEQUOT II LP C/O WINN MANAGEMENT","126 JOHN ST STE 10 LOWELL MA 01852-1152","1972-04-19","2012-12-31","0258 - Salem","SALEM","ESSEX","0266 - Sharon"]
["0310 - Wareham","SALEM HEIGHTS PRESERVATION ASSOC","40 COURT ST STE 700 BOSTON MA 02108-2202","2010-01-01",null,"0258 - Salem","SALEM","ESSEX","0267 - Sheffield"]
["0311 - Warren","WALNUT HILL TOWER ASSOCIATES","PO BOX 227 SOMERVILLE MA 02143-0004","1975-06-25","2015-12-31","0274 - Somerville","SOMERVILLE","MIDDLESEX","0268 - Shelburne"]
["0312 - Warwick","LEBANON HILL HOUSING FOR THE ELDERLY LLC","39 THERESE AVE SOUTHBRIDGE MA 01550-3048","1973-02-26",null,"0278 - Southbridge","SOUTHBRIDGE","WORCESTER","0269 - Sherborn"]
["0313 - Washington","SOUTHWICK GRANVILLE SR CITZ HSG","322 MAIN ST # 1 SPRINGFIELD MA 01105-2403","1979-03-20",null,"0279 - Southwick","SOUTHWICK","HAMPDEN","0270 - Shirley"]
["0314 - Watertown","122 CHESTNUT LLC","18 MAPLE AVE NEWTON MA 02458-1910","1985-03-05","2018-07-26","0281 - Springfield","SPRINGFIELD","HAMPDEN","0271 - Shrewsbury"]
["0315 - Wayland","1350 MAIN STREET LLC","41 TAYLOR ST SPRINGFIELD MA 01103-1852","1981-12-28",null,"0281 - Springfield","SPRINGFIELD","HAMPDEN","0272 - Shutesbury"]
["0316 - Webster","BAYSTATE PLACE LP","2 CENTER PLZ STE 700 BOSTON MA 02108-1906","1972-09-19","2012-12-31","0281 - Springfield","SPRINGFIELD","HAMPDEN","0273 - Somerset"]
["0317 - Wellesley","CATHEDRAL HILL HOUSING CORP","667 MAIN ST HOLYOKE MA 01040-5518","1972-04-18","2012-12-31","0281 - Springfield","SPRINGFIELD","HAMPDEN","0274 - Somerville"]
["0318 - Wellfleet","CENTER SQUARE INC","1441 MAIN ST STE 800\nSPRINGFIELD MA 01103-1450","1980-05-06","2010-12-31","0281 - Springfield","SPRINGFIELD","HAMPDEN","0275 - South Hadley"]
["0319 - Wendell","CENTURY PACIFIC HSNG PRTNRSHIP","1985 CEDARBRIDGE AVE STE 1 LAKEWOOD NJ 08701-7031","1975-03-19",null,"0281 - Springfield","SPRINGFIELD","HAMPDEN","0276 - Southampton"]
["0320 - Wenham","CHATEAU ASSOC OF SPRINGFIELD","513 MAIN ST SPRINGFIELD MA 01105-2411","1981-01-07",null,"0281 - Springfield","SPRINGFIELD","HAMPDEN","0277 - Southborough"]
["0321 - West Boylston","DO NOT USE","1 MONARCH PL SPRINGFIELD MA 01144-1099","2019-01-01","2019-01-01","0281 - Springfield","SPRINGFIELD","HAMPDEN","0278 - Southbridge"]
["0322 - West Bridgewater","EASTERN COOPERATIVE HOMES & HOUS","995 WORTHINGTON ST SPRINGFIELD MA 01109-4027","1976-01-21","2012-12-31","0281 - Springfield","SPRINGFIELD","HAMPDEN","0279 - Southwick"]
["0323 - West Brookfield","GARAND COURT ASSOCIATES","100 WELLS AVE # 200 NEWTON MA 02459-3242","1980-09-30",null,"0281 - Springfield","SPRINGFIELD","HAMPDEN","0280 - Spencer"]
["0324 - West Newbury","HUNTER PLACE ASSOCS","619 STATE ST SPRINGFIELD MA 01109-4114","1974-04-04","2014-12-31","0281 - Springfield","SPRINGFIELD","HAMPDEN","0281 - Springfield"]
["0325 - West Springfield","JEFFERSON AVENUE SCHOOL ASSOCIATES INC","2460 MAIN ST STE 112 SPRINGFIELD MA 01107-1946","1986-02-05",null,"0281 - Springfield","SPRINGFIELD","HAMPDEN","0282 - Sterling"]
["0326 - West Stockbridge","KENYON COLLEGE ASSOCIATES","24 DEER PARK DR EAST LONGMEADOW MA 01028-3196","1982-10-06","2013-12-31","0281 - Springfield","SPRINGFIELD","HAMPDEN","0283 - Stockbridge"]
["0327 - West Tisbury","MAPLE COMMONS LP","2001 WASHINGTON ST HANOVER MA 02339-1621","1980-09-30",null,"0281 - Springfield","SPRINGFIELD","HAMPDEN","0284 - Stoneham"]
["0328 - Westborough","MGM SPRINGFIELD REDEVELOPMENT, LLC","1 MGM WAY SPRINGFIELD MA 01103-2134","2017-01-01",null,"0281 - Springfield","SPRINGFIELD","HAMPDEN","0285 - Stoughton"]
["0329 - Westfield","PICKNELLY FAMILY LIMITED PARTNERSHIP","1 MONARCH PL FL 25\nSPRINGFIELD MA 01144","1986-12-10",null,"0281 - Springfield","SPRINGFIELD","HAMPDEN","0286 - Stow"]
["0330 - Westford","PYNCHON I APARTMENTS LP","536 GRANITE ST BRAINTREE MA 02184-3952","1976-02-02","2011-12-31","0281 - Springfield","SPRINGFIELD","HAMPDEN","0287 - Sturbridge"]
["0331 - Westhampton","PYNCHON II APARTMENTS LP","536 GRANITE ST STE 2 BRAINTREE MA 02184-3954","1976-02-02","2011-12-31","0281 - Springfield","SPRINGFIELD","HAMPDEN","0288 - Sudbury"]
["0332 - Westminster","SPRING HILL APARTMENTS LP","69 WINTER ST SPRINGFIELD MA 01105-2326","1971-10-18","2011-12-31","0281 - Springfield","SPRINGFIELD","HAMPDEN","0289 - Sunderland"]
["0333 - Weston","ST JAMES COMMONS APARTMENTS LIM","619 STATE ST SPRINGFIELD MA 01109-4114","1983-01-31",null,"0281 - Springfield","SPRINGFIELD","HAMPDEN","0290 - Sutton"]
["0334 - Westport","VAN DER HEYDEN ASSOCIATES","619 STATE ST SPRINGFIELD MA 01109-4114","1980-09-29",null,"0281 - Springfield","SPRINGFIELD","HAMPDEN","0291 - Swampscott"]
["0335 - Westwood","VILLA NUEVA VISTA ASSOCIATES","1400 PROVIDENCE HIGHWAY STE 1000 NORWOOD MA 02062-5032","1981-05-05",null,"0281 - Springfield","SPRINGFIELD","HAMPDEN","0292 - Swansea"]
["0336 - Weymouth","WORTHY REALTY CO","400 BLUE HILL DR WESTWOOD MA 02090-2164","1980-11-05","2011-12-31","0281 - Springfield","SPRINGFIELD","HAMPDEN","0293 - Taunton"]
["0337 - Whately","TRINITY TAUNTON FOUR LP","75 FEDERAL ST FL 4 BOSTON MA 02110","2013-01-01",null,"0293 - Taunton","TAUNTON","BRISTOL","0294 - Templeton"]
["0338 - Whitman","TRINITY TAUNTON NINE LP","75 FEDERAL ST FL 4 BOSTON MA 02110","2012-12-21",null,"0293 - Taunton","TAUNTON","BRISTOL","0295 - Tewksbury"]
["0339 - Wilbraham","GORDON CHARLES RIVER FALLS CO","465 WAVERLEY OAKS RD STE 211 WALTHAM MA 02452-8466","1979-10-04",null,"0308 - Waltham","WALTHAM","MIDDLESEX","0296 - Tisbury"]
["0340 - Williamsburg","GORDON CHARLES RIVER FALLS CO II","465 WAVERLEY OAKS RD STE 211 WALTHAM MA 02452-8466","1978-12-22",null,"0308 - Waltham","WALTHAM","MIDDLESEX","0297 - Tolland"]
["0342 - Wilmington","WILLIAMSTOWN ELDERLY HOUSING CORP","1 FENN ST STE 3 PITTSFIELD MA 01201-6279","1978-04-18",null,"0341 - Williamstown","WILLIAMSTOWN","BERKSHIRE","0298 - Topsfield"]
["0343 - Winchendon","CANTERBURY TOWER APTS LLC","100 GRANDVIEW RD STE 207 BRAINTREE MA 02184-2692","1976-12-31",null,"0348 - Worcester","WORCESTER","WORCESTER","0299 - Townsend"]
["0344 - Winchester","COES POND LP","1 WASHINGTON MALL STE 500\nBOSTON MA 02108-2603","1975-05-28","2015-12-31","0348 - Worcester","WORCESTER","WORCESTER","0300 - Truro"]
["0345 - Windsor","COLONY RETIREMENT HOMES III INC","101 CHADWICK ST WORCESTER MA 01605-1273","1978-05-12",null,"0348 - Worcester","WORCESTER","WORCESTER","0301 - Tyngsborough"]
["0346 - Winthrop","COLONY RETIREMENT HOMES IV","101 CHADWICK ST WORCESTER MA 01605-1273","1981-04-24",null,"0348 - Worcester","WORCESTER","WORCESTER","0302 - Tyringham"]
["0347 - Woburn","FRUIT SEVER ASSOCIATES","11 SEVER ST APT 106\nWORCESTER MA 01609-2130","1971-10-28","2011-12-31","0348 - Worcester","WORCESTER","WORCESTER","0303 - Upton"]
["0349 - Worthington","LAUREL-CLAYTON LP","95 BERKELEY ST 5TH FL BOSTON MA 02116-6240","1969-10-31","2009-10-31","0348 - Worcester","WORCESTER","WORCESTER","0304 - Uxbridge"]
["0350 - Wrentham","MATHESON APARTMENTS, INC.","6 FANEUIL HALL MARKET PL BOSTON MA 02109-6115","1975-07-01","2015-12-31","0348 - Worcester","WORCESTER","WORCESTER","0305 - Wakefield"]
["0351 - Yarmouth","SEABURY RHF LIMITED PRTNRSHP","536 GRANITE ST # 301 BRAINTREE MA 02184-3952","1980-12-09",null,"0348 - Worcester","WORCESTER","WORCESTER","0306 - Wales"]
[null,"WELLINGTON COMPANY","6 FANEUIL HALL MKTPLC STE 500 BOSTON MA 02109-1620","1979-12-28",null,"0348 - Worcester","WORCESTER","WORCESTER","0307 - Walpole"]
[null,"WHITTIER CROWN HILL LP","2 CENTER PLZ STE 700 BOSTON MA 02108-1906","1980-01-02",null,"0348 - Worcester","WORCESTER","WORCESTER","0308 - Waltham"]
[null,"WORCESTER JEWISH COMMUNITY HOUSING FOR THE ELDERLY INC","475 CHANDLER ST WORCESTER MA 01602-2856","1982-08-24",null,"0348 - Worcester","WORCESTER","WORCESTER","0309 - Ware"]
[null,null,null,null,null,null,null,null,"0310 - Wareham"]
[null,null,null,null,null,null,null,null,"0311 - Warren"]
[null,null,null,null,null,null,null,null,"0312 - Warwick"]
[null,null,null,null,null,null,null,null,"0313 - Washington"]
[null,null,null,null,null,null,null,null,"0314 - Watertown"]
[null,null,null,null,null,null,null,null,"0315 - Wayland"]
[null,null,null,null,null,null,null,null,"0316 - Webster"]
[null,null,null,null,null,null,null,null,"0317 - Wellesley"]
[null,null,null,null,null,null,null,null,"0318 - Wellfleet"]
[null,null,null,null,null,null,null,null,"0319 - Wendell"]
[null,null,null,null,null,null,null,null,"0320 - Wenham"]
[null,null,null,null,null,null,null,null,"0321 - West Boylston"]
[null,null,null,null,null,null,null,null,"0322 - West Bridgewater"]
[null,null,null,null,null,null,null,null,"0323 - West Brookfield"]
[null,null,null,null,null,null,null,null,"0324 - West Newbury"]
[null,null,null,null,null,null,null,null,"0325 - West Springfield"]
[null,null,null,null,null,null,null,null,"0326 - West Stockbridge"]
[null,null,null,null,null,null,null,null,"0327 - West Tisbury"]
[null,null,null,null,null,null,null,null,"0328 - Westborough"]
[null,null,null,null,null,null,null,null,"0329 - Westfield"]
[null,null,null,null,null,null,null,null,"0330 - Westford"]
[null,null,null,null,null,null,null,null,"0331 - Westhampton"]
[null,null,null,null,null,null,null,null,"0332 - Westminster"]
[null,null,null,null,null,null,null,null,"0333 - Weston"]
[null,null,null,null,null,null,null,null,"0334 - Westport"]
[null,null,null,null,null,null,null,null,"0335 - Westwood"]
[null,null,null,null,null,null,null,null,"0336 - Weymouth"]
[null,null,null,null,null,null,null,null,"0337 - Whately"]
[null,null,null,null,null,null,null,null,"0338 - Whitman"]
[null,null,null,null,null,null,null,null,"0339 - Wilbraham"]
[null,null,null,null,null,null,null,null,"0340 - Williamsburg"]
[null,null,null,null,null,null,null,null,"0341 - Williamstown"]
[null,null,null,null,null,null,null,null,"0342 - Wilmington"]
[null,null,null,null,null,null,null,null,"0343 - Winchendon"]
[null,null,null,null,null,null,null,null,"0344 - Winchester"]
[null,null,null,null,null,null,null,null,"0345 - Windsor"]
[null,null,null,null,null,null,null,null,"0346 - Winthrop"]
[null,null,null,null,null,null,null,null,"0347 - Woburn"]
[null,null,null,null,null,null,null,null,"0348 - Worcester"]
[null,null,null,null,null,null,null,null,"0349 - Worthington"]
[null,null,null,null,null,null,null,null,"0350 - Wrentham"]
[null,null,null,null,null,null,null,null,"0351 - Yarmouth"]

{"sheet":"QA Sheet","index":4,"n_rows":351,"n_cols":1,"rows_kept":351,"cut":false,"hidden":true,"merged":[]}
["0001 - Abington"]
["0002 - Acton"]
["0003 - Acushnet"]
["0004 - Adams"]
["0005 - Agawam"]
["0006 - Alford"]
["0007 - Amesbury"]
["0008 - Amherst"]
["0009 - Andover"]
["0010 - Arlington"]
["0011 - Ashburnham"]
["0012 - Ashby"]
["0013 - Ashfield"]
["0014 - Ashland"]
["0015 - Athol"]
["0016 - Attleboro"]
["0017 - Auburn"]
["0018 - Avon"]
["0019 - Ayer"]
["0020 - Barnstable"]
["0021 - Barre"]
["0022 - Becket"]
["0023 - Bedford"]
["0024 - Belchertown"]
["0025 - Bellingham"]
["0026 - Belmont"]
["0027 - Berkley"]
["0028 - Berlin"]
["0029 - Bernardston"]
["0030 - Beverly"]
["0031 - Billerica"]
["0032 - Blackstone"]
["0033 - Blandford"]
["0034 - Bolton"]
["0035 - Boston"]
["0036 - Bourne"]
["0037 - Boxborough"]
["0038 - Boxford"]
["0039 - Boylston"]
["0040 - Braintree"]
["0041 - Brewster"]
["0042 - Bridgewater"]
["0043 - Brimfield"]
["0044 - Brockton"]
["0045 - Brookfield"]
["0046 - Brookline"]
["0047 - Buckland"]
["0048 - Burlington"]
["0049 - Cambridge"]
["0050 - Canton"]
["0051 - Carlisle"]
["0052 - Carver"]
["0053 - Charlemont"]
["0054 - Charlton"]
["0055 - Chatham"]
["0056 - Chelmsford"]
["0057 - Chelsea"]
["0058 - Cheshire"]
["0059 - Chester"]
["0060 - Chesterfield"]
["0061 - Chicopee"]
["0062 - Chilmark"]
["0063 - Clarksburg"]
["0064 - Clinton"]
["0065 - Cohasset"]
["0066 - Colrain"]
["0067 - Concord"]
["0068 - Conway"]
["0069 - Cummington"]
["0070 - Dalton"]
["0071 - Danvers"]
["0072 - Dartmouth"]
["0073 - Dedham"]
["0074 - Deerfield"]
["0075 - Dennis"]
["0076 - Dighton"]
["0077 - Douglas"]
["0078 - Dover"]
["0079 - Dracut"]
["0080 - Dudley"]
["0081 - Dunstable"]
["0082 - Duxbury"]
["0083 - East Bridgewater"]
["0084 - East Brookfield"]
["0085 - East Longmeadow"]
["0086 - Eastham"]
["0087 - Easthampton"]
["0088 - Easton"]
["0089 - Edgartown"]
["0090 - Egremont"]
["0091 - Erving"]
["0092 - Essex"]
["0093 - Everett"]
["0094 - Fairhaven"]
["0095 - Fall River"]
["0096 - Falmouth"]
["0097 - Fitchburg"]
["0098 - Florida"]
["0099 - Foxborough"]
["0100 - Framingham"]
["0101 - Franklin"]
["0102 - Freetown"]
["0103 - Gardner"]
["0104 - Aquinnah"]
["0105 - Georgetown"]
["0106 - Gill"]
["0107 - Gloucester"]
["0108 - Goshen"]
["0109 - Gosnold"]
["0110 - Grafton"]
["0111 - Granby"]
["0112 - Granville"]
["0113 - Great Barrington"]
["0114 - Greenfield"]
["0115 - Groton"]
["0116 - Groveland"]
["0117 - Hadley"]
["0118 - Halifax"]
["0119 - Hamilton"]
["0120 - Hampden"]
["0121 - Hancock"]
["0122 - Hanover"]
["0123 - Hanson"]
["0124 - Hardwick"]
["0125 - Harvard"]
["0126 - Harwich"]
["0127 - Hatfield"]
["0128 - Haverhill"]
["0129 - Hawley"]
["0130 - Heath"]
["0131 - Hingham"]
["0132 - Hinsdale"]
["0133 - Holbrook"]
["0134 - Holden"]
["0135 - Holland"]
["0136 - Holliston"]
["0137 - Holyoke"]
["0138 - Hopedale"]
["0139 - Hopkinton"]
["0140 - Hubbardston"]
["0141 - Hudson"]
["0142 - Hull"]
["0143 - Huntington"]
["0144 - Ipswich"]
["0145 - Kingston"]
["0146 - Lakeville"]
["0147 - Lancaster"]
["0148 - Lanesborough"]
["0149 - Lawrence"]
["0150 - Lee"]
["0151 - Leicester"]
["0152 - Lenox"]
["0153 - Leominster"]
["0154 - Leverett"]
["0155 - Lexington"]
["0156 - Leyden"]
["0157 - Lincoln"]
["0158 - Littleton"]
["0159 - Longmeadow"]
["0160 - Lowell"]
["0161 - Ludlow"]
["0162 - Lunenburg"]
["0163 - Lynn"]
["0164 - Lynnfield"]
["0165 - Malden"]
["0166 - Manchester By The Sea"]
["0167 - Mansfield"]
["0168 - Marblehead"]
["0169 - Marion"]
["0170 - Marlborough"]
["0171 - Marshfield"]
["0172 - Mashpee"]
["0173 - Mattapoisett"]
["0174 - Maynard"]
["0175 - Medfield"]
["0176 - Medford"]
["0177 - Medway"]
["0178 - Melrose"]
["0179 - Mendon"]
["0180 - Merrimac"]
["0181 - Methuen"]
["0182 - Middleborough"]
["0183 - Middlefield"]
["0184 - Middleton"]
["0185 - Milford"]
["0186 - Millbury"]
["0187 - Millis"]
["0188 - Millville"]
["0189 - Milton"]
["0190 - Monroe"]
["0191 - Monson"]
["0192 - Montague"]
["0193 - Monterey"]
["0194 - Montgomery"]
["0195 - Mount Washington"]
["0196 - Nahant"]
["0197 - Nantucket"]
["0198 - Natick"]
["0199 - Needham"]
["0200 - New Ashford"]
["0201 - New Bedford"]
["0202 - New Braintree"]
["0203 - New Marlborough"]
["0204 - New Salem"]
["0205 - Newbury"]
["0206 - Newburyport"]
["0207 - Newton"]
["0208 - Norfolk"]
["0209 - North Adams"]
["0210 - North Andover"]
["0211 - North Attleborough"]
["0212 - North Brookfield"]
["0213 - North Reading"]
["0214 - Northampton"]
["0215 - Northborough"]
["0216 - Northbridge"]
["0217 - Northfield"]
["0218 - Norton"]
["0219 - Norwell"]
["0220 - Norwood"]
["0221 - Oak Bluffs"]
["0222 - Oakham"]
["0223 - Orange"]
["0224 - Orleans"]
["0225 - Otis"]
["0226 - Oxford"]
["0227 - Palmer"]
["0228 - Paxton"]
["0229 - Peabody"]
["0230 - Pelham"]
["0231 - Pembroke"]
["0232 - Pepperell"]
["0233 - Peru"]
["0234 - Petersham"]
["0235 - Phillipston"]
["0236 - Pittsfield"]
["0237 - Plainfield"]
["0238 - Plainville"]
["0239 - Plymouth"]
["0240 - Plympton"]
["0241 - Princeton"]
["0242 - Provincetown"]
["0243 - Quincy"]
["0244 - Randolph"]
["0245 - Raynham"]
["0246 - Reading"]
["0247 - Rehoboth"]
["0248 - Revere"]
["0249 - Richmond"]
["0250 - Rochester"]
["0251 - Rockland"]
["0252 - Rockport"]
["0253 - Rowe"]
["0254 - Rowley"]
["0255 - Royalston"]
["0256 - Russell"]
["0257 - Rutland"]
["0258 - Salem"]
["0259 - Salisbury"]
["0260 - Sandisfield"]
["0261 - Sandwich"]
["0262 - Saugus"]
["0263 - Savoy"]
["0264 - Scituate"]
["0265 - Seekonk"]
["0266 - Sharon"]
["0267 - Sheffield"]
["0268 - Shelburne"]
["0269 - Sherborn"]
["0270 - Shirley"]
["0271 - Shrewsbury"]
["0272 - Shutesbury"]
["0273 - Somerset"]
["0274 - Somerville"]
["0275 - South Hadley"]
["0276 - Southampton"]
["0277 - Southborough"]
["0278 - Southbridge"]
["0279 - Southwick"]
["0280 - Spencer"]
["0281 - Springfield"]
["0282 - Sterling"]
["0283 - Stockbridge"]
["0284 - Stoneham"]
["0285 - Stoughton"]
["0286 - Stow"]
["0287 - Sturbridge"]
["0288 - Sudbury"]
["0289 - Sunderland"]
["0290 - Sutton"]
["0291 - Swampscott"]
["0292 - Swansea"]
["0293 - Taunton"]
["0294 - Templeton"]
["0295 - Tewksbury"]
["0296 - Tisbury"]
["0297 - Tolland"]
["0298 - Topsfield"]
["0299 - Townsend"]
["0300 - Truro"]
["0301 - Tyngsborough"]
["0302 - Tyringham"]
["0303 - Upton"]
["0304 - Uxbridge"]
["0305 - Wakefield"]
["0306 - Wales"]
["0307 - Walpole"]
["0308 - Waltham"]
["0309 - Ware"]
["0310 - Wareham"]
["0311 - Warren"]
["0312 - Warwick"]
["0313 - Washington"]
["0314 - Watertown"]
["0315 - Wayland"]
["0316 - Webster"]
["0317 - Wellesley"]
["0318 - Wellfleet"]
["0319 - Wendell"]
["0320 - Wenham"]
["0321 - West Boylston"]
["0322 - West Bridgewater"]
["0323 - West Brookfield"]
["0324 - West Newbury"]
["0325 - West Springfield"]
["0326 - West Stockbridge"]
["0327 - West Tisbury"]
["0328 - Westborough"]
["0329 - Westfield"]
["0330 - Westford"]
["0331 - Westhampton"]
["0332 - Westminster"]
["0333 - Weston"]
["0334 - Westport"]
["0335 - Westwood"]
["0336 - Weymouth"]
["0337 - Whately"]
["0338 - Whitman"]
["0339 - Wilbraham"]
["0340 - Williamsburg"]
["0341 - Williamstown"]
["0342 - Wilmington"]
["0343 - Winchendon"]
["0344 - Winchester"]
["0345 - Windsor"]
["0346 - Winthrop"]
["0347 - Woburn"]
["0348 - Worcester"]
["0349 - Worthington"]
["0350 - Wrentham"]
["0351 - Yarmouth"]

{"sheet":"121a Source Data","index":5,"n_rows":440,"n_cols":11,"rows_kept":440,"cut":false,"hidden":true,"merged":[]}
["Name","Mailing Address","Commence","Cease","LocalityCode","City","County","Street Address","City\\Town","State","Zip"]
["BARRETT HOUSING CORP","45 WOOD AVE PITTSFIELD MA 01201-5614","2014-11-01","2014-11-01","0004 - Adams","ADAMS","BERKSHIRE","45 WOOD AVE","PITTSFIELD","MA","01201-5614"]
["BARRETT HOUSING CORPORATION","1 FENN ST PITTSFIELD MA 01201-6278","1978-01-27",null,"0004 - Adams","ADAMS","BERKSHIRE","1 FENN ST","PITTSFIELD","MA","01201-6278"]
["LANDOVER ASSOCIATES","1 SOMMER HILL RD ADAMS MA 01220-9771","1973-12-13","2013-12-31","0004 - Adams","ADAMS","BERKSHIRE","1 SOMMER HILL RD","ADAMS","MA","01220-9771"]
["MILLHOUSES OF ADAMS ASSOCIATES","100 WELLS AVE NEWTON MA 02459-3242","1982-08-05",null,"0004 - Adams","ADAMS","BERKSHIRE","100 WELLS AVE","NEWTON","MA","02459-3242"]
["AMHERST CLARK HOUSE LIMITED PARTNERSHIP","3101 BEE CAVES RD STE 220 AUSTIN TX 78746-5574","2017-01-01",null,"0008 - Amherst","AMHERST","HAMPSHIRE","3101 BEE CAVES RD STE 220","AUSTIN","TX","78746-5574"]
["CLARK HOUSE ASSOCIATES","540 NORTH COMMERCIAL ST MANCHESTER NH 03101-1122","1979-09-04",null,"0008 - Amherst","AMHERST","HAMPSHIRE","540 NORTH COMMERCIAL ST","MANCHESTER","NH","03101-1122"]
["PEQUOIG HOUSE LLC","42 RAYMOND ST MANCHESTER BY THE SEA MA 01944-1616","1982-10-07",null,"0015 - Athol","ATHOL","WORCESTER","42 RAYMOND ST","MANCHESTER BY THE SEA","MA","01944-1616"]
["BINNALL HOUSE RHF PARTNERS LTD PARTNERSHIP","536 GRANITE ST BRAINTREE MA 02184-3952","2016-01-01",null,"0040 - Braintree","BRAINTREE","NORFOLK","536 GRANITE ST","BRAINTREE","MA","02184-3952"]
["LANDING APARTMENTS LLC","625 MOUNT AUBURN ST STE 210 CAMBRIDGE MA 02138-4555","2016-06-09",null,"0040 - Braintree","BRAINTREE","NORFOLK","625 MOUNT AUBURN ST STE 210","CAMBRIDGE","MA","02138-4555"]
["ST FRANCIS OF ASSISI RESIDENCES AT BRAINTREE II INC","53 INDEPENDENCE AVE BRAINTREE MA 02184-1768","1980-06-03",null,"0040 - Braintree","BRAINTREE","NORFOLK","53 INDEPENDENCE AVE","BRAINTREE","MA","02184-1768"]
["ST FRANCIS OF ASSISI RESIDENCES AT BRAINTREE INC","41 INDEPENDENCE AVE BRAINTREE MA 02184-1733","1974-09-24","2014-12-31","0040 - Braintree","BRAINTREE","NORFOLK","41 INDEPENDENCE AVE","BRAINTREE","MA","02184-1733"]
["BROCKTON COMMONS ASSOC II LLC","100 GRANDVIEW RD STE 207 BRAINTREE MA 02184-2692","1979-08-09",null,"0044 - Brockton","BROCKTON","PLYMOUTH","100 GRANDVIEW RD STE 207","BRAINTREE","MA","02184-2692"]
["DOUGLAS HOUSE","536 GRANITE ST # 301 BRAINTREE MA 02184-3952","1982-05-17",null,"0044 - Brockton","BROCKTON","PLYMOUTH","536 GRANITE ST # 301","BRAINTREE","MA","02184-3952"]
["HAMILTON RHF HOUSING, INC.","536 GRANITE ST STE 301 BRAINTREE MA 02184-3952","1978-06-15",null,"0044 - Brockton","BROCKTON","PLYMOUTH","536 GRANITE ST STE 301","BRAINTREE","MA","02184-3952"]
["TRINITY HOUSING ASSOCIATES","170 NEWBURY ST BOSTON MA 02116-2873","1976-05-13",null,"0044 - Brockton","BROCKTON","PLYMOUTH","170 NEWBURY ST","BOSTON","MA","02116-2873"]
["BEACON PARK ASSOCIATES","50 FEDERAL ST # 1000 BOSTON MA 02110-2500","1972-04-18","2012-12-31","0046 - Brookline","BROOKLINE","NORFOLK","50 FEDERAL ST # 1000","BOSTON","MA","02110-2500"]
["VILLAGE AT BROOKLINE LP THE","1 WASHINGTON MALL STE 500 BOSTON MA 02108-2603","1975-07-10","2015-12-31","0046 - Brookline","BROOKLINE","NORFOLK","1 WASHINGTON MALL STE 500","BOSTON","MA","02108-2603"]
["BIOGEN REALTY LP","225 BINNEY ST CAMBRIDGE MA 02142-1031","1993-09-29",null,"0049 - Cambridge","CAMBRIDGE","MIDDLESEX","225 BINNEY ST","CAMBRIDGE","MA","02142-1031"]
["CLOSE BUILDING ASSOCIATES","27 MICA LN STE 301 WELLESLEY MA 02481-1741","1975-10-20",null,"0049 - Cambridge","CAMBRIDGE","MIDDLESEX","27 MICA LN STE 301","WELLESY","MA","02481-1741"]
["INMAN SQUARE APARTMENTS CO","1221 CAMBRIDGE ST CAMBRIDGE MA 02139-1354","1972-08-22","2011-03-25","0049 - Cambridge","CAMBRIDGE","MIDDLESEX","1221 CAMBRIDGE ST","CAMBRIDGE","MA","02139-1354"]
["MEMORIAL DRIVE HOUSING LP","280 FRANKLIN ST CAMBRIDGE MA 02139-3773","1997-07-11","2014-12-31","0049 - Cambridge","CAMBRIDGE","MIDDLESEX","280 FRANKLIN ST","CAMBRIDGE","MA","02139-3773"]
["WELLINGTON-HARRINGTON DEV CORP","27 MICA LN STE 301 WELLESLEY MA 02481-1741","1975-01-27","2015-12-31","0049 - Cambridge","CAMBRIDGE","MIDDLESEX","27 MICA LN STE 301","WELLESY","MA","02481-1741"]
["WSQ LIMITED PARTNERSHIP","6 FANEUIL HALL MKTPLC BOSTON MA 02109","2002-03-14","2011-12-31","0049 - Cambridge","CAMBRIDGE","MIDDLESEX","6 FANEUIL HALL MKTPLC","BOSTON","MA",2109]
["CHICOPEE HOUSING ASSOCIATES","475 KILVERT ST STE 105 WARWICK RI 02886-1360","1973-08-09","2017-06-30","0061 - Chicopee","CHICOPEE","HAMPDEN","475 KILVERT ST STE 105","WARWICK","RI","02886-1360"]
["DOM NARODOWY POLSKI PRESERV ASSC","3100 BROADWAY BLVD STE 1234 KANSAS CITY MO 64111-2413","1980-05-12","2010-12-31","0061 - Chicopee","CHICOPEE","HAMPDEN","3100 BROADWAY BLVD STE 1234","KANSAS CITY","MO","64111-2413"]
["BROWNSTONE GARDENS I INC","75 PLEASANT ST EAST LONGMEADOW MA 01028-2477","1985-08-22","2014-12-31","0085 - East Longmeadow","EAST LONGMEADOW","HAMPDEN","75 PLEASANT ST EAST","EAST LONGMEADOW","MA","01028-2477"]
["BROWNSTONE GARDENS II INC","79 PLEASANT ST EAST LONGMEADOW MA 01028-2406","1985-12-17","2018-07-01","0085 - East Longmeadow","EAST LONGMEADOW","HAMPDEN","79 PLEASANT ST EAST","EAST LONGMEADOW","MA","01028-2406"]
["BROWNSTONE GARDENS III INC","110 SOMERS RD EAST LONGMEADOW MA 01028-2929","1994-12-21",null,"0085 - East Longmeadow","EAST LONGMEADOW","HAMPDEN","110 SOMERS RD EAST","EAST LONGMEADOW","MA","01028-2929"]
["EVERETT BOSTON HARBOR","1 BROADWAY EVERETT MA 02149-2432","2019-04-15",null,"0093 - Everett","EVERETT","MIDDLESEX","1 BROADWAY","EVERETT","MA","02149-2432"]
["FAIRHAVEN VILLAGE ASSOCIATES","536 GRANITE ST STE 2 BRAINTREE MA 02184-3954","1978-11-16",null,"0094 - Fairhaven","FAIRHAVEN","BRISTOL","536 GRANITE ST STE 2","BRAINTREE","MA","02184-3954"]
["ACADEMY ASSOCIATES","100 GRANDVIEW RD STE 207 BRAINTREE MA 02184-2692","1979-09-06",null,"0095 - Fall River","FALL RIVER","BRISTOL","100 GRANDVIEW RD STE 207","BRAINTREE","MA","02184-2692"]
["MILLIKEN AFFORDABLE HOUSING","1090 VERMONT AVE NW STE 400 WASHINGTON DC 20005-4905","1971-06-30","2011-12-31","0095 - Fall River","FALL RIVER","BRISTOL","1090 VERMONT AVE NW STE 400","WASHINGTON","DC","20005-4905"]
["RIVERVIEW TOWERS CO","301 MILLIKEN BLVD APT 1915\nFALL RIVER MA 02721-1621","1971-03-10","2011-12-31","0095 - Fall River","FALL RIVER","BRISTOL","301 MILLIKEN BLVD APT 1915","FALL RIVER","MA","02721-1621"]
["HOTEL RAYMOND LLC","1 UNIVERSITY AVE # 2C WESTWOOD MA 02090-1245","1976-11-08","2016-12-31","0097 - Fitchburg","FITCHBURG","WORCESTER","1 UNIVERSITY AVE # 2C","WESTWOOD","MA","02090-1245"]
["JOSEPH'S HOUSE LLC","800 KELLY WAY HOLYOKE MA 01040","1980-03-10",null,"0097 - Fitchburg","FITCHBURG","WORCESTER","800 KELLY WAY","HOLYOKE","MA",1040]
["PELHAM CORPORATION LP","100 GRANDVIEW RD STE 207 BRAINTREE MA 02184-2692","1991-05-17",null,"0100 - Framingham","FRAMINGHAM","MIDDLESEX","100 GRANDVIEW RD STE 207","BRAINTREE","MA","02184-2692"]
["PELHAM II CORPORATION","100 GRANDVIEW RD STE 207\nBRAINTREE MA 02184-2692","1992-01-21",null,"0100 - Framingham","FRAMINGHAM","MIDDLESEX","100 GRANDVIEW RD STE 207","BRAINTREE","MA","02184-2693"]
["BINNALL HOUSE RHF HOUSING INC","536 GRANITE ST STE 301 BRAINTREE MA 02184-3952","1980-12-22","2015-12-31","0103 - Gardner","GARDNER","WORCESTER","536 GRANITE ST STE 301","BRAINTREE","MA","02184-3952"]
["NEW CENTRAL GRAMMAR OWNER LLC","185 DARTMOUTH ST STE 9 BOSTON MA 02116-5884","1974-09-03","2014-12-31","0107 - Gloucester","GLOUCESTER","ESSEX","185 DARTMOUTH ST STE 9","BOSTON","MA","02116-5884"]
["ASBURY CAMP MEETING CORPORATION","15 LEE PARK SOUTH HAMILTON MA 01982-2804","1979-07-21","1979-07-21","0119 - Hamilton","HAMILTON","ESSEX","15 LEE PARK SOUTH","HAMILTON","MA","01982-2804"]
["CUSHING RESIDENCE INC","10 PLAZA DR STE 201 SCARBOROUGH ME 04074-1801","1980-11-03","2012-12-31","0122 - Hanover","HANOVER","PLYMOUTH","10 PLAZA DR STE 201","SCARBOROUGH","ME","04074-1801"]
["HANOVER LEGION ELDERLY HOUSING CORPORATION","100 GRANDVIEW RD STE 207 BRAINTREE MA 02184-2692","1981-01-21",null,"0122 - Hanover","HANOVER","PLYMOUTH","100 GRANDVIEW RD STE 207","BRAINTREE","MA","02184-2692"]
["AHEPA 39 INC","40 BUTTONWOODS AVE HAVERHILL MA 01830-6498","1994-08-30",null,"0128 - Haverhill","HAVERHILL","ESSEX","40 BUTTONWOODS AVE","HAVERHILL","MA","01830-6498"]
["MISSION TOWERS INC","180 WATER ST HAVERHILL MA 01830-6216","1972-05-08","2012-12-31","0128 - Haverhill","HAVERHILL","ESSEX","180 WATER ST","HAVERHILL","MA","01830-6216"]
["COLONY RETIREMENT HOMES OF HOLDEN INC","101 CHADWICK ST WORCESTER MA 01605-1273","1982-05-25",null,"0134 - Holden","HOLDEN","WORCESTER","101 CHADWICK ST","WORCESTER","MA","01605-1273"]
["AMESBURY GARDENS TENANTS ASSOC","27 MICA LN WELLESLEY MA 02481-1724","1970-02-19","2011-12-31","0149 - Lawrence","LAWRENCE","ESSEX","27 MICA LN","WELLESY","MA","02481-1724"]
["ARLINGTON PARK ASSOCIATES","355 PARK ST STE 1\nLAWRENCE MA 01841-2449","1975-11-10","2015-11-10","0149 - Lawrence","LAWRENCE","ESSEX","355 PARK ST STE 1","LAWRENCE","MA","01841-2449"]
["COMMON STREET ASSOCIATES","170 NEWBURY ST BOSTON MA 02116-2873","1982-07-22",null,"0149 - Lawrence","LAWRENCE","ESSEX","170 NEWBURY ST","BOSTON","MA","02116-2873"]
["ESSEX TOWERS - 8TH AP CO","500 W CUMMINGS PARK STE 6050 WOBURN MA 01801-6547","1978-07-31",null,"0149 - Lawrence","LAWRENCE","ESSEX","500 W CUMMINGS PARK STE 6050","WOBURN","MA","01801-6547"]
["LAWRENCE REHABILITATION CO","465 WAVERLEY OAKS RD STE 211 WALTHAM MA 02452-8466","1978-08-01",null,"0149 - Lawrence","LAWRENCE","ESSEX","465 WAVERLEY OAKS RD STE 211","WALTHAM","MA","02452-8466"]
["MI RESIDENTIAL COMMUNITY (II),","172 LAWRENCE ST LAWRENCE MA 01841-3849","1979-11-21",null,"0149 - Lawrence","LAWRENCE","ESSEX","172 LAWRENCE ST","LAWRENCE","MA","01841-3849"]
["MI RESIDENTIAL COMMUNITY III INC","172 LAWRENCE ST LAWRENCE MA 01841-3849","1980-09-25",null,"0149 - Lawrence","LAWRENCE","ESSEX","172 LAWRENCE ST","LAWRENCE","MA","01841-3849"]
["MI RESIDENTIAL COMMUNITY INC","172 LAWRENCE ST LAWRENCE MA 01841-3849","1978-07-31",null,"0149 - Lawrence","LAWRENCE","ESSEX","172 LAWRENCE ST","LAWRENCE","MA","01841-3849"]
["RITA HALL ASSOCIATES","536 GRANITE ST STE 2B BRAINTREE MA 02184-3954","1975-07-23","2015-12-31","0149 - Lawrence","LAWRENCE","ESSEX","536 GRANITE ST STE 2B","BRAINTREE","MA","02184-3954"]
["VALEBROOK ASSOCIATES","130 PROSPECT ST CAMBRIDGE MA 02139-1844","1977-06-21","2017-12-31","0149 - Lawrence","LAWRENCE","ESSEX","130 PROSPECT ST","CAMBRIDGE","MA","02139-1844"]
["LEE ELDERLY HOUSING CORP","1 FENN ST PITTSFIELD MA 01201-6278","1984-03-21",null,"0150 - Lee","LEE","BERKSHIRE","1 FENN ST","PITTSFIELD","MA","01201-6278"]
["BELVERON MAZUR LLC","268 BUSH ST # 3534\nSAN FRANCISCO CA 94104-3503","2015-01-01",null,"0160 - Lowell","LOWELL","MIDDLESEX","268 BUSH ST # 3534","SAN FRANCISCO","CA","94104-3503"]
["LORD ASSOCIATES","170 NEWBURY ST BOSTON MA 02116-2873","1974-03-19","2014-12-31","0160 - Lowell","LOWELL","MIDDLESEX","170 NEWBURY ST","BOSTON","MA","02116-2873"]
["MAZUR PARK APARTMENTS","227 FAYETTE ST LOWELL MA 01852-2363","1981-02-24","2014-12-31","0160 - Lowell","LOWELL","MIDDLESEX","227 FAYETTE ST","LOWELL","MA","01852-2363"]
["NEW LOWELL ASSOCIATES LP","100 WELLS AVE FL 2 NEWTON MA 02459-3242","1976-01-21","2015-12-31","0160 - Lowell","LOWELL","MIDDLESEX","100 WELLS AVE FL 2","NEWTON","MA","02459-3242"]
["PRINCETON PLAZA LP","1115 WESTFORD ST, 4TH FL LOWELL MA 01851","1971-09-27","2011-12-31","0160 - Lowell","LOWELL","MIDDLESEX","1115 WESTFORD ST 4TH FL","LOWELL","MA",1851]
["RELATED STIRLING BAY LLC","423 W 55TH ST 9TH FL NEW YORK NY 10019-4460","1983-11-09",null,"0160 - Lowell","LOWELL","MIDDLESEX","423 W 55TH ST 9TH FL","NEW YORK","NY","10019-4460"]
["WENTWORTH HOUSING CO","465 WAVERLEY OAKS RD STE 211 WALTHAM MA 02452-8466","1979-02-27",null,"0160 - Lowell","LOWELL","MIDDLESEX","465 WAVERLEY OAKS RD STE 211","WALTHAM","MA","02452-8466"]
["LEISURE TOWERS ASSOCIATES","500 VICTORY RD QUINCY MA 02171-3139","1973-10-09","2013-12-31","0163 - Lynn","LYNN","ESSEX","500 VICTORY RD","QUINCY","MA","02171-3139"]
["ST STEPHEN'S PRESERVATION LP","2 CENTER PLZ STE 700 BOSTON MA 02108-1906","1975-03-31","2015-03-31","0163 - Lynn","LYNN","ESSEX","2 CENTER PLZ STE 700","BOSTON","MA","02108-1906"]
["ACADEMY KNOLL ASSOCIATES","500 W CUMMINGS PARK STE 6050 WOBURN MA 01801-6547","1975-08-11",null,"0170 - Marlborough","MARLBOROUGH","MIDDLESEX","500 W CUMMINGS PARK STE 6050","WOBURN","MA","01801-6547"]
["ACADEMY KNOLL ASSOCIATES CO AME","500 WEST CUMMINGS PARK S WOBURN MA 01801","2016-01-01","2016-01-01","0170 - Marlborough","MARLBOROUGH","MIDDLESEX","500 WEST CUMMINGS PARK S","WOBURN","MA",1801]
["WINSLOW VILLAGE INC","1520 OCEAN ST STE 18\nMARSHFIELD MA 02050-3557","1971-03-19","2011-12-31","0171 - Marshfield","MARSHFIELD","PLYMOUTH","1520 OCEAN ST STE 18","MARSHFIELD","MA","02050-3557"]
["BC SUMMERHILL GLEN LP","2 CENTER PLZ STE 700 BOSTON MA 02108-1906","1975-02-03","2015-12-31","0174 - Maynard","MAYNARD","MIDDLESEX","2 CENTER PLZ STE 700","BOSTON","MA","02108-1906"]
["CEDARS ELDERLY HOME INC","222 PELHAM ST METHUEN MA 01844-1467","2008-01-01",null,"0181 - Methuen","METHUEN","ESSEX","222 PELHAM ST","METHUEN","MA","01844-1467"]
["LEBANESE COMMUNITY HOUSING FOR THE ELDERLY INC","222 PELHAM ST METHUEN MA 01844-1467","1983-07-26",null,"0181 - Methuen","METHUEN","ESSEX","222 PELHAM ST","METHUEN","MA","01844-1467"]
["MERRIMACK VALLEY HOUSING SERVICES INC","536 GRANITE ST STE 2A BRAINTREE MA 02184-3954","1982-10-26",null,"0181 - Methuen","METHUEN","ESSEX","536 GRANITE ST STE 2A","BRAINTREE","MA","02184-3954"]
["PARK GARDENS ASSOCIATES","10 BURNHAM RD METHUEN MA 01844-3330","1979-11-07",null,"0181 - Methuen","METHUEN","ESSEX","10 BURNHAM RD","METHUEN","MA","01844-3330"]
["MELVILLE TOWERS LP","536 GRANITE ST BRAINTREE MA 02184-3952","1975-11-10","2015-12-31","0201 - New Bedford","NEW BEDFORD","BRISTOL","536 GRANITE ST","BRAINTREE","MA","02184-3952"]
["UNITED FRONT NINE PRESERV ASSOC","3100 BROADWAY BLVD STE 1234 KANSAS CITY MO 64111-2413","1972-11-29","2012-12-31","0201 - New Bedford","NEW BEDFORD","BRISTOL","3100 BROADWAY BLVD STE 1234","KANSAS CITY","MO","64111-2413"]
["LOW STREET ASSOCIATES","1 WASHINGTON MALL STE 500\nBOSTON MA 02108-2603","1979-10-12","2019-12-31","0206 - Newburyport","NEWBURYPORT","ESSEX","1 WASHINGTON MALL STE 500","BOSTON","MA","02108-2603"]
["HAMLET ASSOCIATES LP","425 WATERTOWN ST STE 205\nNEWTON MA 02458-1131","1974-12-10","2014-12-31","0207 - Newton","NEWTON","MIDDLESEX","425 WATERTOWN ST STE 205","NEWTON","MA","02458-1131"]
["NEW FALLS ASSOCIATES","7 WELLS AVE STE 11\nNEWTON CENTER MA 02459-3212","1978-04-07",null,"0207 - Newton","NEWTON","MIDDLESEX","7 WELLS AVE STE 11","NEWTON CENTER","MA","02459-3212"]
["NEWTON COMMUNITY DEV FOUNDATION II INC","425 WATERTOWN ST STE 205\nNEWTON MA 02458-1131","1979-05-10","2019-12-31","0207 - Newton","NEWTON","MIDDLESEX","425 WATERTOWN ST STE 205","NEWTON","MA","02458-1131"]
["RTH RESTORATION HOUSING LIMITED PARTNERSHIP","100 WELLS AVE NEWTON CENTER MA 02459-3242","2016-01-01",null,"0207 - Newton","NEWTON","MIDDLESEX","100 WELLS AVE NEWTON","NEWTON CENTER","MA","02459-3242"]
["CROWNINSHIELD APARTMENTS","18 CROWNINSHIELD ST PEABODY MA 01960-4360","1973-12-10","2013-12-31","0229 - Peabody","PEABODY","ESSEX","18 CROWNINSHIELD ST","PEABODY","MA","01960-4360"]
["PEABODY HOUSE COMPANY","465 WAVERLEY OAKS RD STE 211 WALTHAM MA 02452-8466","1979-05-11",null,"0229 - Peabody","PEABODY","ESSEX","465 WAVERLEY OAKS RD STE 211","WALTHAM","MA","02452-8466"]
["BERKSHIRETOWN LLC","800 KELLY WAY HOLYOKE MA 01040","1976-10-04",null,"0236 - Pittsfield","PITTSFIELD","BERKSHIRE","800 KELLY WAY","HOLYOKE","MA",1040]
["PLASTICS REALTY CORP","4200 WILDWOOD PKWY ATLANTA GA 30339-8402","1982-09-28",null,"0236 - Pittsfield","PITTSFIELD","BERKSHIRE","4200 WILDWOOD PKWY ","ATLANTA","GA","30339-8402"]
["RIVERVIEW HOMES LP","2 CENTER PLZ STE 700 BOSTON MA 02108-1906","1998-12-08","2012-12-31","0236 - Pittsfield","PITTSFIELD","BERKSHIRE","2 CENTER PLZ STE 700","BOSTON","MA","02108-1906"]
["GRANITE PLACE LP","500 VICTORY RD NORTH QUINCY MA 02171-3139","1977-08-11",null,"0243 - Quincy","QUINCY","NORFOLK","500 VICTORY RD NORTH","QUINCY","MA","02171-3139"]
["WJG REALTY TRUST C/O STOP & SHOP","1385 HANCOCK ST QUINCY MA 02169-5103","1980-04-15","2010-12-31","0243 - Quincy","QUINCY","NORFOLK","1385 HANCOCK ST","QUINCY","MA","02169-5103"]
["HRCA HOUSING FOR ELDERLY INC","420 REVERE BEACH BLVD REVERE MA 02151-4702","1974-11-19","2014-12-31","0248 - Revere","REVERE","SUFFOLK","420 REVERE BEACH BLVD","REVERE","MA","02151-4702"]
["LORING TOWERS #43122","423 W 55TH ST FL 8 NEW YORK NY 10019-4460","2010-01-01",null,"0258 - Salem","SALEM","ESSEX","423 W 55TH ST FL 8","NEW YORK","NY","10019-4460"]
["PEQUOT II LP C/O WINN MANAGEMENT","126 JOHN ST STE 10 LOWELL MA 01852-1152","1972-04-19","2012-12-31","0258 - Salem","SALEM","ESSEX","126 JOHN ST STE 10","LOWELL","MA","01852-1152"]
["SALEM HEIGHTS PRESERVATION ASSOC","40 COURT ST STE 700 BOSTON MA 02108-2202","2010-01-01",null,"0258 - Salem","SALEM","ESSEX","40 COURT ST STE 700","BOSTON","MA","02108-2202"]
["WALNUT HILL TOWER ASSOCIATES","PO BOX 227 SOMERVILLE MA 02143-0004","1975-06-25","2015-12-31","0274 - Somerville","SOMERVILLE","MIDDLESEX","PO BOX 227","SOMERVILLE","MA","02143-0004"]
["LEBANON HILL HOUSING FOR THE ELDERLY LLC","39 THERESE AVE SOUTHBRIDGE MA 01550-3048","1973-02-26",null,"0278 - Southbridge","SOUTHBRIDGE","WORCESTER","39 THERESE AVE","SOUTHBRIDGE","MA","01550-3048"]
["SOUTHWICK GRANVILLE SR CITZ HSG","322 MAIN ST # 1 SPRINGFIELD MA 01105-2403","1979-03-20",null,"0279 - Southwick","SOUTHWICK","HAMPDEN","322 MAIN ST # 1","SPRINGFIELD","MA","01105-2403"]
["122 CHESTNUT LLC","18 MAPLE AVE NEWTON MA 02458-1910","1985-03-05","2018-07-26","0281 - Springfield","SPRINGFIELD","HAMPDEN","18 MAPLE AVE","NEWTON","MA","02458-1910"]
["1350 MAIN STREET LLC","41 TAYLOR ST SPRINGFIELD MA 01103-1852","1981-12-28",null,"0281 - Springfield","SPRINGFIELD","HAMPDEN","41 TAYLOR ST","SPRINGFIELD","MA","01103-1852"]
["BAYSTATE PLACE LP","2 CENTER PLZ STE 700 BOSTON MA 02108-1906","1972-09-19","2012-12-31","0281 - Springfield","SPRINGFIELD","HAMPDEN","2 CENTER PLZ STE 700","BOSTON","MA","02108-1906"]
["CATHEDRAL HILL HOUSING CORP","667 MAIN ST HOLYOKE MA 01040-5518","1972-04-18","2012-12-31","0281 - Springfield","SPRINGFIELD","HAMPDEN","667 MAIN ST","HOLYOKE","MA","01040-5518"]
["CENTER SQUARE INC","1441 MAIN ST STE 800\nSPRINGFIELD MA 01103-1450","1980-05-06","2010-12-31","0281 - Springfield","SPRINGFIELD","HAMPDEN","1441 MAIN ST STE 800","SPRINGFIELD","MA","01103-1450"]
["CENTURY PACIFIC HSNG PRTNRSHIP","1985 CEDARBRIDGE AVE STE 1 LAKEWOOD NJ 08701-7031","1975-03-19",null,"0281 - Springfield","SPRINGFIELD","HAMPDEN","1985 CEDARBRIDGE AVE STE 1","LAKEWOOD","NJ","08701-7031"]
["CHATEAU ASSOC OF SPRINGFIELD","513 MAIN ST SPRINGFIELD MA 01105-2411","1981-01-07",null,"0281 - Springfield","SPRINGFIELD","HAMPDEN","513 MAIN ST","SPRINGFIELD","MA","01105-2411"]
["DO NOT USE","1 MONARCH PL SPRINGFIELD MA 01144-1099","2019-01-01","2019-01-01","0281 - Springfield","SPRINGFIELD","HAMPDEN","1 MONARCH PL","SPRINGFIELD","MA","01144-1099"]
["EASTERN COOPERATIVE HOMES & HOUS","995 WORTHINGTON ST SPRINGFIELD MA 01109-4027","1976-01-21","2012-12-31","0281 - Springfield","SPRINGFIELD","HAMPDEN","995 WORTHINGTON ST","SPRINGFIELD","MA","01109-4027"]
["GARAND COURT ASSOCIATES","100 WELLS AVE # 200 NEWTON MA 02459-3242","1980-09-30",null,"0281 - Springfield","SPRINGFIELD","HAMPDEN","100 WELLS AVE # 200","NEWTON","MA","02459-3242"]
["HUNTER PLACE ASSOCS","619 STATE ST SPRINGFIELD MA 01109-4114","1974-04-04","2014-12-31","0281 - Springfield","SPRINGFIELD","HAMPDEN","619 STATE ST","SPRINGFIELD","MA","01109-4114"]
["JEFFERSON AVENUE SCHOOL ASSOCIATES INC","2460 MAIN ST STE 112 SPRINGFIELD MA 01107-1946","1986-02-05",null,"0281 - Springfield","SPRINGFIELD","HAMPDEN","2460 MAIN ST STE 112","SPRINGFIELD","MA","01107-1946"]
["KENYON COLLEGE ASSOCIATES","24 DEER PARK DR EAST LONGMEADOW MA 01028-3196","1982-10-06","2013-12-31","0281 - Springfield","SPRINGFIELD","HAMPDEN","24 DEER PARK DR","EAST LONGMEADOW","MA","01028-3196"]
["MAPLE COMMONS LP","2001 WASHINGTON ST HANOVER MA 02339-1621","1980-09-30",null,"0281 - Springfield","SPRINGFIELD","HAMPDEN","2001 WASHINGTON ST","HANOVER","MA","02339-1621"]
["MGM SPRINGFIELD REDEVELOPMENT, LLC","1 MGM WAY SPRINGFIELD MA 01103-2134","2017-01-01",null,"0281 - Springfield","SPRINGFIELD","HAMPDEN","1 MGM WAY","SPRINGFIELD","MA","01103-2134"]
["PICKNELLY FAMILY LIMITED PARTNERSHIP","1 MONARCH PL FL 25\nSPRINGFIELD MA 01144","1986-12-10",null,"0281 - Springfield","SPRINGFIELD","HAMPDEN","1 MONARCH PL FL 25","SPRINGFIELD","MA",1144]
["PYNCHON I APARTMENTS LP","536 GRANITE ST BRAINTREE MA 02184-3952","1976-02-02","2011-12-31","0281 - Springfield","SPRINGFIELD","HAMPDEN","536 GRANITE ST","BRAINTREE","MA","02184-3952"]
["PYNCHON II APARTMENTS LP","536 GRANITE ST STE 2 BRAINTREE MA 02184-3954","1976-02-02","2011-12-31","0281 - Springfield","SPRINGFIELD","HAMPDEN","536 GRANITE ST STE 2","BRAINTREE","MA","02184-3954"]
["SPRING HILL APARTMENTS LP","69 WINTER ST SPRINGFIELD MA 01105-2326","1971-10-18","2011-12-31","0281 - Springfield","SPRINGFIELD","HAMPDEN","69 WINTER ST","SPRINGFIELD","MA","01105-2326"]
["ST JAMES COMMONS APARTMENTS LIM","619 STATE ST SPRINGFIELD MA 01109-4114","1983-01-31",null,"0281 - Springfield","SPRINGFIELD","HAMPDEN","619 STATE ST","SPRINGFIELD","MA","01109-4114"]
["VAN DER HEYDEN ASSOCIATES","619 STATE ST SPRINGFIELD MA 01109-4114","1980-09-29",null,"0281 - Springfield","SPRINGFIELD","HAMPDEN","619 STATE ST","SPRINGFIELD","MA","01109-4114"]
["VILLA NUEVA VISTA ASSOCIATES","1400 PROVIDENCE HIGHWAY STE 1000 NORWOOD MA 02062-5032","1981-05-05",null,"0281 - Springfield","SPRINGFIELD","HAMPDEN","1400 PROVIDENCE HIGHWAY STE 1000","NORWOOD","MA","02062-5032"]
["WORTHY REALTY CO","400 BLUE HILL DR WESTWOOD MA 02090-2164","1980-11-05","2011-12-31","0281 - Springfield","SPRINGFIELD","HAMPDEN","400 BLUE HILL DR","WESTWOOD","MA","02090-2164"]
["TRINITY TAUNTON FOUR LP","75 FEDERAL ST FL 4 BOSTON MA 02110","2013-01-01",null,"0293 - Taunton","TAUNTON","BRISTOL","75 FEDERAL ST FL 4","BOSTON","MA",2110]
["TRINITY TAUNTON NINE LP","75 FEDERAL ST FL 4 BOSTON MA 02110","2012-12-21",null,"0293 - Taunton","TAUNTON","BRISTOL","75 FEDERAL ST FL 4","BOSTON","MA",2110]
["GORDON CHARLES RIVER FALLS CO","465 WAVERLEY OAKS RD STE 211 WALTHAM MA 02452-8466","1979-10-04",null,"0308 - Waltham","WALTHAM","MIDDLESEX","465 WAVERLEY OAKS RD STE 211","WALTHAM","MA","02452-8466"]
["GORDON CHARLES RIVER FALLS CO II","465 WAVERLEY OAKS RD STE 211 WALTHAM MA 02452-8466","1978-12-22",null,"0308 - Waltham","WALTHAM","MIDDLESEX","465 WAVERLEY OAKS RD STE 211","WALTHAM","MA","02452-8466"]
["WILLIAMSTOWN ELDERLY HOUSING CORP","1 FENN ST STE 3 PITTSFIELD MA 01201-6279","1978-04-18",null,"0341 - Williamstown","WILLIAMSTOWN","BERKSHIRE","1 FENN ST STE 3","PITTSFIELD","MA","01201-6279"]
["CANTERBURY TOWER APTS LLC","100 GRANDVIEW RD STE 207 BRAINTREE MA 02184-2692","1976-12-31",null,"0348 - Worcester","WORCESTER","WORCESTER","100 GRANDVIEW RD STE 207","BRAINTREE","MA","02184-2692"]
["COES POND LP","1 WASHINGTON MALL STE 500\nBOSTON MA 02108-2603","1975-05-28","2015-12-31","0348 - Worcester","WORCESTER","WORCESTER","1 WASHINGTON MALL STE 500","BOSTON","MA","02108-2603"]
["COLONY RETIREMENT HOMES III INC","101 CHADWICK ST WORCESTER MA 01605-1273","1978-05-12",null,"0348 - Worcester","WORCESTER","WORCESTER","101 CHADWICK ST","WORCESTER","MA","01605-1273"]
["COLONY RETIREMENT HOMES IV","101 CHADWICK ST WORCESTER MA 01605-1273","1981-04-24",null,"0348 - Worcester","WORCESTER","WORCESTER","101 CHADWICK ST","WORCESTER","MA","01605-1273"]
["FRUIT SEVER ASSOCIATES","11 SEVER ST APT 106\nWORCESTER MA 01609-2130","1971-10-28","2011-12-31","0348 - Worcester","WORCESTER","WORCESTER","11 SEVER ST APT 106","WORCESTER","MA","01609-2130"]
["LAUREL-CLAYTON LP","95 BERKELEY ST 5TH FL BOSTON MA 02116-6240","1969-10-31","2009-10-31","0348 - Worcester","WORCESTER","WORCESTER","95 BERKELEY ST 5TH FL","BOSTON","MA","02116-6240"]
["MATHESON APARTMENTS, INC.","6 FANEUIL HALL MARKET PL BOSTON MA 02109-6115","1975-07-01","2015-12-31","0348 - Worcester","WORCESTER","WORCESTER","6 FANEUIL HALL MARKET PL","BOSTON","MA","02109-6115"]
["SEABURY RHF LIMITED PRTNRSHP","536 GRANITE ST # 301 BRAINTREE MA 02184-3952","1980-12-09",null,"0348 - Worcester","WORCESTER","WORCESTER","536 GRANITE ST # 301","BRAINTREE","MA","02184-3952"]
["WELLINGTON COMPANY","6 FANEUIL HALL MKTPLC STE 500 BOSTON MA 02109-1620","1979-12-28",null,"0348 - Worcester","WORCESTER","WORCESTER","6 FANEUIL HALL MKTPLC STE 500","BOSTON","MA","02109-1620"]
["WHITTIER CROWN HILL LP","2 CENTER PLZ STE 700 BOSTON MA 02108-1906","1980-01-02",null,"0348 - Worcester","WORCESTER","WORCESTER","2 CENTER PLZ STE 700","BOSTON","MA","02108-1906"]
["WORCESTER JEWISH COMMUNITY HOUSING FOR THE ELDERLY INC","475 CHANDLER ST WORCESTER MA 01602-2856","1982-08-24",null,"0348 - Worcester","WORCESTER","WORCESTER","475 CHANDLER ST","WORCESTER","MA","01602-2856"]
[null,null,null,null,"0001 - Abington"]
[null,null,null,null,"0002 - Acton"]
[null,null,null,null,"0003 - Acushnet"]
[null,null,null,null,"0005 - Agawam"]
[null,null,null,null,"0006 - Alford"]
[null,null,null,null,"0007 - Amesbury"]
[null,null,null,null,"0009 - Andover"]
[null,null,null,null,"0010 - Arlington"]
[null,null,null,null,"0011 - Ashburnham"]
[null,null,null,null,"0012 - Ashby"]
[null,null,null,null,"0013 - Ashfield"]
[null,null,null,null,"0014 - Ashland"]
[null,null,null,null,"0016 - Attleboro"]
[null,null,null,null,"0017 - Auburn"]
[null,null,null,null,"0018 - Avon"]
[null,null,null,null,"0019 - Ayer"]
[null,null,null,null,"0020 - Barnstable"]
[null,null,null,null,"0021 - Barre"]
[null,null,null,null,"0022 - Becket"]
[null,null,null,null,"0023 - Bedford"]
[null,null,null,null,"0024 - Belchertown"]
[null,null,null,null,"0025 - Bellingham"]
[null,null,null,null,"0026 - Belmont"]
[null,null,null,null,"0027 - Berkley"]
[null,null,null,null,"0028 - Berlin"]
[null,null,null,null,"0029 - Bernardston"]
[null,null,null,null,"0030 - Beverly"]
[null,null,null,null,"0031 - Billerica"]
[null,null,null,null,"0032 - Blackstone"]
[null,null,null,null,"0033 - Blandford"]
[null,null,null,null,"0034 - Bolton"]
[null,null,null,null,"0036 - Bourne"]
[null,null,null,null,"0037 - Boxborough"]
[null,null,null,null,"0038 - Boxford"]
[null,null,null,null,"0039 - Boylston"]
[null,null,null,null,"0041 - Brewster"]
[null,null,null,null,"0042 - Bridgewater"]
[null,null,null,null,"0043 - Brimfield"]
[null,null,null,null,"0045 - Brookfield"]
[null,null,null,null,"0047 - Buckland"]
[null,null,null,null,"0048 - Burlington"]
[null,null,null,null,"0050 - Canton"]
[null,null,null,null,"0051 - Carlisle"]
[null,null,null,null,"0052 - Carver"]
[null,null,null,null,"0053 - Charlemont"]
[null,null,null,null,"0054 - Charlton"]
[null,null,null,null,"0055 - Chatham"]
[null,null,null,null,"0056 - Chelmsford"]
[null,null,null,null,"0057 - Chelsea"]
[null,null,null,null,"0058 - Cheshire"]
[null,null,null,null,"0059 - Chester"]
[null,null,null,null,"0060 - Chesterfield"]
[null,null,null,null,"0062 - Chilmark"]
[null,null,null,null,"0063 - Clarksburg"]
[null,null,null,null,"0064 - Clinton"]
[null,null,null,null,"0065 - Cohasset"]
[null,null,null,null,"0066 - Colrain"]
[null,null,null,null,"0067 - Concord"]
[null,null,null,null,"0068 - Conway"]
[null,null,null,null,"0069 - Cummington"]
[null,null,null,null,"0070 - Dalton"]
[null,null,null,null,"0071 - Danvers"]
[null,null,null,null,"0072 - Dartmouth"]
[null,null,null,null,"0073 - Dedham"]
[null,null,null,null,"0074 - Deerfield"]
[null,null,null,null,"0075 - Dennis"]
[null,null,null,null,"0076 - Dighton"]
[null,null,null,null,"0077 - Douglas"]
[null,null,null,null,"0078 - Dover"]
[null,null,null,null,"0079 - Dracut"]
[null,null,null,null,"0080 - Dudley"]
[null,null,null,null,"0081 - Dunstable"]
[null,null,null,null,"0082 - Duxbury"]
[null,null,null,null,"0083 - East Bridgewater"]
[null,null,null,null,"0084 - East Brookfield"]
[null,null,null,null,"0086 - Eastham"]
[null,null,null,null,"0087 - Easthampton"]
[null,null,null,null,"0088 - Easton"]
[null,null,null,null,"0089 - Edgartown"]
[null,null,null,null,"0090 - Egremont"]
[null,null,null,null,"0091 - Erving"]
[null,null,null,null,"0092 - Essex"]
[null,null,null,null,"0096 - Falmouth"]
[null,null,null,null,"0098 - Florida"]
[null,null,null,null,"0099 - Foxborough"]
[null,null,null,null,"0101 - Franklin"]
[null,null,null,null,"0102 - Freetown"]
[null,null,null,null,"0104 - Aquinnah"]
[null,null,null,null,"0105 - Georgetown"]
[null,null,null,null,"0106 - Gill"]
[null,null,null,null,"0108 - Goshen"]
[null,null,null,null,"0109 - Gosnold"]
[null,null,null,null,"0110 - Grafton"]
[null,null,null,null,"0111 - Granby"]
[null,null,null,null,"0112 - Granville"]
[null,null,null,null,"0113 - Great Barrington"]
[null,null,null,null,"0114 - Greenfield"]
[null,null,null,null,"0115 - Groton"]
[null,null,null,null,"0116 - Groveland"]
[null,null,null,null,"0117 - Hadley"]
[null,null,null,null,"0118 - Halifax"]
[null,null,null,null,"0120 - Hampden"]
[null,null,null,null,"0121 - Hancock"]
[null,null,null,null,"0123 - Hanson"]
[null,null,null,null,"0124 - Hardwick"]
[null,null,null,null,"0125 - Harvard"]
[null,null,null,null,"0126 - Harwich"]
[null,null,null,null,"0127 - Hatfield"]
[null,null,null,null,"0129 - Hawley"]
[null,null,null,null,"0130 - Heath"]
[null,null,null,null,"0131 - Hingham"]
[null,null,null,null,"0132 - Hinsdale"]
[null,null,null,null,"0133 - Holbrook"]
[null,null,null,null,"0135 - Holland"]
[null,null,null,null,"0136 - Holliston"]
[null,null,null,null,"0137 - Holyoke"]
[null,null,null,null,"0138 - Hopedale"]
[null,null,null,null,"0139 - Hopkinton"]
[null,null,null,null,"0140 - Hubbardston"]
[null,null,null,null,"0141 - Hudson"]
[null,null,null,null,"0142 - Hull"]
[null,null,null,null,"0143 - Huntington"]
[null,null,null,null,"0144 - Ipswich"]
[null,null,null,null,"0145 - Kingston"]
[null,null,null,null,"0146 - Lakeville"]
[null,null,null,null,"0147 - Lancaster"]
[null,null,null,null,"0148 - Lanesborough"]
[null,null,null,null,"0151 - Leicester"]
[null,null,null,null,"0152 - Lenox"]
[null,null,null,null,"0153 - Leominster"]
[null,null,null,null,"0154 - Leverett"]
[null,null,null,null,"0155 - Lexington"]
[null,null,null,null,"0156 - Leyden"]
[null,null,null,null,"0157 - Lincoln"]
[null,null,null,null,"0158 - Littleton"]
[null,null,null,null,"0159 - Longmeadow"]
[null,null,null,null,"0161 - Ludlow"]
[null,null,null,null,"0162 - Lunenburg"]
[null,null,null,null,"0164 - Lynnfield"]
[null,null,null,null,"0165 - Malden"]
[null,null,null,null,"0166 - Manchester By The Sea"]
[null,null,null,null,"0167 - Mansfield"]
[null,null,null,null,"0168 - Marblehead"]
[null,null,null,null,"0169 - Marion"]
[null,null,null,null,"0172 - Mashpee"]
[null,null,null,null,"0173 - Mattapoisett"]
[null,null,null,null,"0175 - Medfield"]
[null,null,null,null,"0176 - Medford"]
[null,null,null,null,"0177 - Medway"]
[null,null,null,null,"0178 - Melrose"]
[null,null,null,null,"0179 - Mendon"]
[null,null,null,null,"0180 - Merrimac"]
[null,null,null,null,"0182 - Middleborough"]
[null,null,null,null,"0183 - Middlefield"]
[null,null,null,null,"0184 - Middleton"]
[null,null,null,null,"0185 - Milford"]
[null,null,null,null,"0186 - Millbury"]
[null,null,null,null,"0187 - Millis"]
[null,null,null,null,"0188 - Millville"]
[null,null,null,null,"0189 - Milton"]
[null,null,null,null,"0190 - Monroe"]
[null,null,null,null,"0191 - Monson"]
[null,null,null,null,"0192 - Montague"]
[null,null,null,null,"0193 - Monterey"]
[null,null,null,null,"0194 - Montgomery"]
[null,null,null,null,"0195 - Mount Washington"]
[null,null,null,null,"0196 - Nahant"]
[null,null,null,null,"0197 - Nantucket"]
[null,null,null,null,"0198 - Natick"]
[null,null,null,null,"0199 - Needham"]
[null,null,null,null,"0200 - New Ashford"]
[null,null,null,null,"0202 - New Braintree"]
[null,null,null,null,"0203 - New Marlborough"]
[null,null,null,null,"0204 - New Salem"]
[null,null,null,null,"0205 - Newbury"]
[null,null,null,null,"0208 - Norfolk"]
[null,null,null,null,"0209 - North Adams"]
[null,null,null,null,"0210 - North Andover"]
[null,null,null,null,"0211 - North Attleborough"]
[null,null,null,null,"0212 - North Brookfield"]
[null,null,null,null,"0213 - North Reading"]
[null,null,null,null,"0214 - Northampton"]
[null,null,null,null,"0215 - Northborough"]
[null,null,null,null,"0216 - Northbridge"]
[null,null,null,null,"0217 - Northfield"]
[null,null,null,null,"0218 - Norton"]
[null,null,null,null,"0219 - Norwell"]
[null,null,null,null,"0220 - Norwood"]
[null,null,null,null,"0221 - Oak Bluffs"]
[null,null,null,null,"0222 - Oakham"]
[null,null,null,null,"0223 - Orange"]
[null,null,null,null,"0224 - Orleans"]
[null,null,null,null,"0225 - Otis"]
[null,null,null,null,"0226 - Oxford"]
[null,null,null,null,"0227 - Palmer"]
[null,null,null,null,"0228 - Paxton"]
[null,null,null,null,"0230 - Pelham"]
[null,null,null,null,"0231 - Pembroke"]
[null,null,null,null,"0232 - Pepperell"]
[null,null,null,null,"0233 - Peru"]
[null,null,null,null,"0234 - Petersham"]
[null,null,null,null,"0235 - Phillipston"]
[null,null,null,null,"0237 - Plainfield"]
[null,null,null,null,"0238 - Plainville"]
[null,null,null,null,"0239 - Plymouth"]
[null,null,null,null,"0240 - Plympton"]
[null,null,null,null,"0241 - Princeton"]
[null,null,null,null,"0242 - Provincetown"]
[null,null,null,null,"0244 - Randolph"]
[null,null,null,null,"0245 - Raynham"]
[null,null,null,null,"0246 - Reading"]
[null,null,null,null,"0247 - Rehoboth"]
[null,null,null,null,"0249 - Richmond"]
[null,null,null,null,"0250 - Rochester"]
[null,null,null,null,"0251 - Rockland"]
[null,null,null,null,"0252 - Rockport"]
[null,null,null,null,"0253 - Rowe"]
[null,null,null,null,"0254 - Rowley"]
[null,null,null,null,"0255 - Royalston"]
[null,null,null,null,"0256 - Russell"]
[null,null,null,null,"0257 - Rutland"]
[null,null,null,null,"0259 - Salisbury"]
[null,null,null,null,"0260 - Sandisfield"]
[null,null,null,null,"0261 - Sandwich"]
[null,null,null,null,"0262 - Saugus"]
[null,null,null,null,"0263 - Savoy"]
[null,null,null,null,"0264 - Scituate"]
[null,null,null,null,"0265 - Seekonk"]
[null,null,null,null,"0266 - Sharon"]
[null,null,null,null,"0267 - Sheffield"]
[null,null,null,null,"0268 - Shelburne"]
[null,null,null,null,"0269 - Sherborn"]
[null,null,null,null,"0270 - Shirley"]
[null,null,null,null,"0271 - Shrewsbury"]
[null,null,null,null,"0272 - Shutesbury"]
[null,null,null,null,"0273 - Somerset"]
[null,null,null,null,"0275 - South Hadley"]
[null,null,null,null,"0276 - Southampton"]
[null,null,null,null,"0277 - Southborough"]
[null,null,null,null,"0280 - Spencer"]
[null,null,null,null,"0282 - Sterling"]
[null,null,null,null,"0283 - Stockbridge"]
[null,null,null,null,"0284 - Stoneham"]
[null,null,null,null,"0285 - Stoughton"]
[null,null,null,null,"0286 - Stow"]
[null,null,null,null,"0287 - Sturbridge"]
[null,null,null,null,"0288 - Sudbury"]
[null,null,null,null,"0289 - Sunderland"]
[null,null,null,null,"0290 - Sutton"]
[null,null,null,null,"0291 - Swampscott"]
[null,null,null,null,"0292 - Swansea"]
[null,null,null,null,"0294 - Templeton"]
[null,null,null,null,"0295 - Tewksbury"]
[null,null,null,null,"0296 - Tisbury"]
[null,null,null,null,"0297 - Tolland"]
[null,null,null,null,"0298 - Topsfield"]
[null,null,null,null,"0299 - Townsend"]
[null,null,null,null,"0300 - Truro"]
[null,null,null,null,"0301 - Tyngsborough"]
[null,null,null,null,"0302 - Tyringham"]
[null,null,null,null,"0303 - Upton"]
[null,null,null,null,"0304 - Uxbridge"]
[null,null,null,null,"0305 - Wakefield"]
[null,null,null,null,"0306 - Wales"]
[null,null,null,null,"0307 - Walpole"]
[null,null,null,null,"0309 - Ware"]
[null,null,null,null,"0310 - Wareham"]
[null,null,null,null,"0311 - Warren"]
[null,null,null,null,"0312 - Warwick"]
[null,null,null,null,"0313 - Washington"]
[null,null,null,null,"0314 - Watertown"]
[null,null,null,null,"0315 - Wayland"]
[null,null,null,null,"0316 - Webster"]
[null,null,null,null,"0317 - Wellesley"]
[null,null,null,null,"0318 - Wellfleet"]
[null,null,null,null,"0319 - Wendell"]
[null,null,null,null,"0320 - Wenham"]
[null,null,null,null,"0321 - West Boylston"]
[null,null,null,null,"0322 - West Bridgewater"]
[null,null,null,null,"0323 - West Brookfield"]
[null,null,null,null,"0324 - West Newbury"]
[null,null,null,null,"0325 - West Springfield"]
[null,null,null,null,"0326 - West Stockbridge"]
[null,null,null,null,"0327 - West Tisbury"]
[null,null,null,null,"0328 - Westborough"]
[null,null,null,null,"0329 - Westfield"]
[null,null,null,null,"0330 - Westford"]
[null,null,null,null,"0331 - Westhampton"]
[null,null,null,null,"0332 - Westminster"]
[null,null,null,null,"0333 - Weston"]
[null,null,null,null,"0334 - Westport"]
[null,null,null,null,"0335 - Westwood"]
[null,null,null,null,"0336 - Weymouth"]
[null,null,null,null,"0337 - Whately"]
[null,null,null,null,"0338 - Whitman"]
[null,null,null,null,"0339 - Wilbraham"]
[null,null,null,null,"0340 - Williamsburg"]
[null,null,null,null,"0342 - Wilmington"]
[null,null,null,null,"0343 - Winchendon"]
[null,null,null,null,"0344 - Winchester"]
[null,null,null,null,"0345 - Windsor"]
[null,null,null,null,"0346 - Winthrop"]
[null,null,null,null,"0347 - Woburn"]
[null,null,null,null,"0349 - Worthington"]
[null,null,null,null,"0350 - Wrentham"]
[null,null,null,null,"0351 - Yarmouth"]

{"sheet":"121A (Boston) Source Data","index":6,"n_rows":177,"n_cols":11,"rows_kept":177,"cut":false,"hidden":true,"merged":[]}
["Name","Mailing Address","Commence","Cease","LocalityCode","City","County","Street Address","City\\Town","State","Zip"]
["10 TEMPLE PLACE LP","536 GRANITE ST # 301 BRAINTREE MA 02184-3952","1978-11-28","2018-12-31","0035 - Boston","BOSTON","SUFFOLK","536 GRANITE ST # 301","BRAINTREE","MA","02184-3952"]
["333 MASSACHUSETTS AVE LP","536 GRANITE ST # 301 BRAINTREE MA 02184-3952","2001-06-21","2015-12-31","0035 - Boston","BOSTON","SUFFOLK","536 GRANITE ST # 301","BRAINTREE","MA","02184-3952"]
["334 MASSACHUSETTS AVE LP","536 GRANITE ST STE 301 BRAINTREE MA 02184-3952","1975-09-30","2015-12-31","0035 - Boston","BOSTON","SUFFOLK","536 GRANITE ST STE 301","BRAINTREE","MA","02184-3952"]
["ABBEY LAFAYETTE OWNER LLP","575 BOYLSTON ST FL 8 BOSTON MA 02116","1998-02-01",null,"0035 - Boston","BOSTON","SUFFOLK","575 BOYLSTON ST FL 8","BOSTON","MA",2116]
["ABBEY LAFAYETTE OWNER LLP","177 HUNTINGTON AVE STE 24 BOSTON MA 02115-3145","2017-01-01",null,"0035 - Boston","BOSTON","SUFFOLK","177 HUNTINGTON AVE STE 24","BOSTON","MA","02115-3145"]
["ADAM TEMPLETON ASSOCIATES","500 VICTORY RD QUINCY MA 02171-3139","1980-05-01","2015-12-31","0035 - Boston","BOSTON","SUFFOLK","500 VICTORY RD","QUINCY","MA","02171-3139"]
["ADAMS ORCHARD LP","75 FEDERAL ST FL 4TH BOSTON MA 02110","1998-12-29",null,"0035 - Boston","BOSTON","SUFFOLK","75 FEDERAL ST FL 4TH","BOSTON","MA",2110]
["ALLSTON LANDING LP","11 PLEASANT ST FRAMINGHAM MA 01701-4707","1992-01-27",null,"0035 - Boston","BOSTON","SUFFOLK","11 PLEASANT ST","FRAMINGHAM","MA","01701-4707"]
["AMORY TERRACE LP","126 JOHN ST STE 10 LOWELL MA 01852-1152","2004-04-01","2019-12-31","0035 - Boston","BOSTON","SUFFOLK","126 JOHN ST STE 10","LOWELL","MA","01852-1152"]
["ANDERSON STREET ASSOCIATES","1 UNIVERSITY AVE # 2C WESTWOOD MA 02090-1245","1975-07-10","2015-12-31","0035 - Boston","BOSTON","SUFFOLK","1 UNIVERSITY AVE # 2C","WESTWOOD","MA","02090-1245"]
["ANGELA WESTOVER HOUSING CORP","536 GRANITE ST BRAINTREE MA 02184-3952","1982-10-14",null,"0035 - Boston","BOSTON","SUFFOLK","536 GRANITE ST","BRAINTREE","MA","02184-3952"]
["ANGELA WESTOVER HOUSING CORP","536 GRANITE ST BRAINTREE MA 02184-3952","2016-01-01","2016-01-01","0035 - Boston","BOSTON","SUFFOLK","536 GRANITE ST","BRAINTREE","MA","02184-3952"]
["AP ONE CHANNEL CENTER OWNER LLC","245 PARK AVE FL 42 NEW YORK NY 10167-0002","2013-01-01","2014-12-31","0035 - Boston","BOSTON","SUFFOLK","245 PARK AVE FL 42","NEW YORK","NY","10167-0002"]
["AT-DORCHESTER LP","500 VICTORY RD NORTH QUINCY MA 02171-3139","2016-01-01",null,"0035 - Boston","BOSTON","SUFFOLK","500 VICTORY RD NORTH","QUINCY","MA","02171-3139"]
["AUSONIA HOMES ASSOCIATES","536 GRANITE ST BRAINTREE MA 02184-3952","1976-09-09","2016-09-16","0035 - Boston","BOSTON","SUFFOLK","536 GRANITE ST","BRAINTREE","MA","02184-3952"]
["BACK OF THE HILL APTS LP","185 DARTMOUTH ST BOSTON MA 02116-5886","1979-10-18","2019-12-31","0035 - Boston","BOSTON","SUFFOLK","185 DARTMOUTH ST","BOSTON","MA","02116-5886"]
["BC CONWAY COURT LP","2 CENTER PLZ STE 700 BOSTON MA 02108-1906","1975-05-01","2015-12-31","0035 - Boston","BOSTON","SUFFOLK","2 CENTER PLZ STE 700","BOSTON","MA","02108-1906"]
["BDC SUMMER STREET 121A LP","7978 COOPER CRK BLV #100 UNIVERSITY PARK FL 34201","1973-04-09","2013-12-31","0035 - Boston","BOSTON","SUFFOLK","7978 COOPER CRK BLV #100","UNIVERSITY PARK","FL",34201]
["BEACON HOUSE ROGERSON LP","1 FLORENCE ST ROSLINDALE MA 02131-3638","1982-08-05",null,"0035 - Boston","BOSTON","SUFFOLK","1 FLORENCE ST","ROSLINDALE","MA","02131-3638"]
["BEVERLY ST ACQUISITION GARAGE OWNER LP","177 MILK ST BOSTON MA 02109-3442","2016-01-01",null,"0035 - Boston","BOSTON","SUFFOLK","177 MILK ST","BOSTON","MA","02109-3442"]
["BEVERLY STREET ACQUISITION GARAGE ONE OWNER LP","177 MILK ST BOSTON MA 02109-3442","2015-07-27",null,"0035 - Boston","BOSTON","SUFFOLK","177 MILK ST","BOSTON","MA","02109-3443"]
["BEVERLY STREET ACQUISITION HOTEL OWNER LP","177 MILK ST BOSTON MA 02109-3404","2016-01-01",null,"0035 - Boston","BOSTON","SUFFOLK","177 MILK ST","BOSTON","MA","02109-3444"]
["BEVERLY STREET ACQUISITION RESIDENTIAL ONE OWNER LP","177 MILK ST BOSTON MA 02109-3410","2016-01-01",null,"0035 - Boston","BOSTON","SUFFOLK","177 MILK ST","BOSTON","MA","02109-3445"]
["BEVERLY STREET ACQUISITION RESIDENTIAL TWO OWNER LP","177 MILK ST BOSTON MA 02109-3442","2015-07-27",null,"0035 - Boston","BOSTON","SUFFOLK","177 MILK ST","BOSTON","MA","02109-3446"]
["BEVERLY STREET ACQUISITION RETAIL ONE OWNER LP","177 MILK ST BOSTON MA 02109-3410","2015-07-27",null,"0035 - Boston","BOSTON","SUFFOLK","177 MILK ST","BOSTON","MA","02109-3447"]
["BEVERLY STREET ACQUISITION RETAIL TWO OWNER LP","177 MILK ST BOSTON MA 02109-3442","2015-07-27",null,"0035 - Boston","BOSTON","SUFFOLK","177 MILK ST","BOSTON","MA","02109-3448"]
["BLACKSTONE PRESERVATION ASSOC LP","40 COURT ST STE 700 BOSTON MA 02108-2202","1975-09-25","2015-12-31","0035 - Boston","BOSTON","SUFFOLK","40 COURT ST STE 700","BOSTON","MA","02108-2202"]
["BLAKE ESTATES ASSOC I LP","2 CENTER PLZ STE 700 BOSTON MA 02108-1906","1978-12-28","2018-12-31","0035 - Boston","BOSTON","SUFFOLK","2 CENTER PLZ STE 700","BOSTON","MA","02108-1906"]
["BLAKE ESTATES ASSOC II LP","2 CENTER PLZ STE 700 BOSTON MA 02108-1906","1979-10-11","2019-12-31","0035 - Boston","BOSTON","SUFFOLK","2 CENTER PLZ STE 700","BOSTON","MA","02108-1906"]
["B'NAI B'RITH I & II INC","34 WASHINGTON ST BRIGHTON MA 02135-7404","2015-01-01",null,"0035 - Boston","BOSTON","SUFFOLK","34 WASHINGTON ST","BRIGHTON","MA","02135-7404"]
["B'NAI B'RITH III INC","30 WASHINGTON ST BRIGHTON MA 02135-7424","2002-03-05",null,"0035 - Boston","BOSTON","SUFFOLK","30 WASHINGTON ST","BRIGHTON","MA","02135-7405"]
["B'NAI B'RITH SENIOR CITIZENS HOUSING","30 WASHINGTON ST BRIGHTON MA 02135-7424","1980-05-22","2014-12-31","0035 - Boston","BOSTON","SUFFOLK","30 WASHINGTON ST","BRIGHTON","MA","02135-7406"]
["BORINQUEN ASSOCIATES","27 MICA LN STE 301 WELLESLEY MA 02481-1741","1975-12-04","2015-12-31","0035 - Boston","BOSTON","SUFFOLK","27 MICA LN STE 301","WELLESY","MA","02481-1741"]
["BOSTON BAY LP","530 WARREN ST DORCHESTER MA 02121-1821","1977-07-28",null,"0035 - Boston","BOSTON","SUFFOLK","530 WARREN ST","DORCHESTER","MA","02121-1821"]
["BOSTON BAY LP","530 WARREN ST DORCHESTER MA 02121-1821","1991-09-11","2015-12-10","0035 - Boston","BOSTON","SUFFOLK","530 WARREN ST","DORCHESTER","MA","02121-1822"]
["BOSTON REHAB ASSOCIATES","94 BEACONSFIELD RD BROOKLINE MA 02445-3309","1979-04-12",null,"0035 - Boston","BOSTON","SUFFOLK","94 BEACONSFIELD RD","BROOKLINE","MA","02445-3309"]
["BOWDOIN SCHOOL ASSOCIATES","100 WELLS AVE # 200 NEWTON MA 02459-3242","1975-11-20","2015-12-31","0035 - Boston","BOSTON","SUFFOLK","100 WELLS AVE # 200","NEWTON","MA","02459-3242"]
["BOYLSTON WEST GARAGE LLC","136 BROOKLINE AVE BOSTON MA 02215-3907","2015-01-01",null,"0035 - Boston","BOSTON","SUFFOLK","136 BROOKLINE AVE","BROOKLINE","MA","02215-3907"]
["BRIDGEVIEW APARTMENTS LIMITED PARTNERSHIP","20 EASTBROOK RD STE 201\nDEDHAM MA 02026-2087","2015-01-01",null,"0035 - Boston","BOSTON","SUFFOLK","20 EASTBROOK RD STE 201","DEDHAM","MA","02026-2087"]
["BRIGHTON-ALLSTON ELDERLY HOMES INC","100 GRANDVIEW RD STE 207 BRAINTREE MA 02184-2692","1980-05-01",null,"0035 - Boston","BOSTON","SUFFOLK","100 GRANDVIEW RD STE 207","BRAINTREE","MA","02184-2692"]
["BW OFFICE OWNER LIMITED PARTNERSHIP","333 NEWBURY ST BOSTON MA 02115-2710","2015-01-01",null,"0035 - Boston","BOSTON","SUFFOLK","333 NEWBURY ST","BOSTON","MA","02115-2710"]
["CAMFIELD TENANTS ASSOCIATION","536 GRANITE ST BRAINTREE MA 02184-3952","1968-09-19","2012-12-31","0035 - Boston","BOSTON","SUFFOLK","536 GRANITE ST","BRAINTREE","MA","02184-3952"]
["CASA MARIA HOUSING CORP","95 BERKELEY ST STE 500 BOSTON MA 02116-6229","1978-07-20",null,"0035 - Boston","BOSTON","SUFFOLK","95 BERKELEY ST STE 500","BOSTON","MA","02116-6229"]
["CCBA TAI TUNG VILLAGE","808 MEMORIAL DR CAMBRIDGE MA 02139-4637","1970-09-03","2010-12-31","0035 - Boston","BOSTON","SUFFOLK","808 MEMORIAL DR","CAMBRIDGE","MA","02139-4637"]
["CHARLES H FARNSWORTH HOUSING CORP","1 FLORENCE ST BOSTON MA 02131-3638","1981-09-17",null,"0035 - Boston","BOSTON","SUFFOLK","1 FLORENCE ST","BOSTON","MA","02131-3638"]
["CHARLESTOWN ECONOMIC DEVEL CORP","7 WELLS AVE STE 11\nNEWTON CENTER MA 02459-3212","1978-10-26",null,"0035 - Boston","BOSTON","SUFFOLK","7 WELLS AVE STE 11","NEWTON CENTER","MA","02459-3212"]
["CHAUNCY HOUSE LP","95 BERKELEY ST STE 500 BOSTON MA 02116-6229","1973-04-19","2013-12-31","0035 - Boston","BOSTON","SUFFOLK","95 BERKELEY ST STE 500","BOSTON","MA","02116-6229"]
["CHINAGATE HOUSING ASSOCIATES","44 FARINA RD NEWTON MA 02459-2860","1983-03-03",null,"0035 - Boston","BOSTON","SUFFOLK","44 FARINA RD","NEWTON","MA","02459-2860"]
["CITY SQUARE ELDERLY HOUSING INC","8425 E 12 MILE RD STE 1000 WARREN MI 48093-2738","1984-12-20",null,"0035 - Boston","BOSTON","SUFFOLK","8425 E 12 MILE RD STE 1000","WARREN","MI","48093-2738"]
["COMMONWEALTH FLATS DEV EAST LP","255 STATE ST STE 2 BOSTON MA 02109-2659","1997-12-31","2018-12-31","0035 - Boston","BOSTON","SUFFOLK","255 STATE ST STE 2","BOSTON","MA","02109-2659"]
["COMMONWEALTH FLATS WEST","255 STATE ST FL 2 BOSTON MA 02109-2659","2000-01-01",null,"0035 - Boston","BOSTON","SUFFOLK","255 STATE ST FL 2","BOSTON","MA","02109-2659"]
["COMMUNITY HOPE LP","550 DUDLEY ST ROXBURY MA 02119-2770","2005-05-26","2013-12-31","0035 - Boston","BOSTON","SUFFOLK","550 DUDLEY ST","ROXBURY","MA","02119-2770"]
["CONCORD HOUSE ASSOCIATES","7 THOMAS DR CUMBERLAND FORESIDE ME 04110-1318","1973-11-08","2013-12-31","0035 - Boston","BOSTON","SUFFOLK","7 THOMAS DR","CUMBERLAND FORESIDE","ME","04110-1318"]
["COOPS OF CHARLESNEWTOWN INC","6 FANEUIL HALL MARKET PL BOSTON MA 02109-6115","1972-08-17","2010-12-31","0035 - Boston","BOSTON","SUFFOLK","6 FANEUIL HALL MARKET PL","BOSTON","MA","02109-6115"]
["COTTAGE BROOK APARTMENTS (121A)","126 JOHN ST STE 10 LOWELL MA 01852-1152","1977-07-28",null,"0035 - Boston","BOSTON","SUFFOLK","126 JOHN ST STE 10","LOWELL","MA","01852-1152"]
["COUNCIL OF ELDERS HOUSING CORP","1 FLORENCE ST ROSLINDALE MA 02131-3638","1983-11-03",null,"0035 - Boston","BOSTON","SUFFOLK","1 FLORENCE ST","ROSLINDALE","MA","02131-3638"]
["COVE PLAZA ASSOCIATES LP","170 NEWBURY ST BOSTON MA 02116-2873","1980-09-04",null,"0035 - Boston","BOSTON","SUFFOLK","170 NEWBURY ST","BOSTON","MA","02116-2873"]
["DIMOCK BRAGDON ASSOCIATES","126 JOHN ST STE 10 LOWELL MA 01852-1152","1982-09-16",null,"0035 - Boston","BOSTON","SUFFOLK","126 JOHN ST STE 10","LOWELL","MA","01852-1152"]
["DORCHESTER HOUSING ASSOCIATES","536 GRANITE ST BRAINTREE MA 02184-3952","1981-08-20","2011-12-31","0035 - Boston","BOSTON","SUFFOLK","536 GRANITE ST","BRAINTREE","MA","02184-3952"]
["DUDLEY NEIGHBORS INC","504 DUDLEY ST ROXBURY MA 02119-2732","1988-11-10",null,"0035 - Boston","BOSTON","SUFFOLK","504 DUDLEY ST","ROXBURY","MA","02119-2732"]
["DUDLEY SQUARE REALTY CORP","1 CITY HALL SQ RM 813 BOSTON MA 02201-1020","2013-01-01",null,"0035 - Boston","BOSTON","SUFFOLK","1 CITY HALL SQ RM 813","BOSTON","MA","02201-1020"]
["DUDLEY VILLAGE NORTH","504 DUDLEY ST ROXBURY MA 02119-2732","2005-05-05",null,"0035 - Boston","BOSTON","SUFFOLK","504 DUDLEY ST","ROXBURY","MA","02119-2732"]
["DUDLEY VILLAGE SOUTH","504 DUDLEY ST ROXBURY MA 02119-2732","2005-05-05",null,"0035 - Boston","BOSTON","SUFFOLK","504 DUDLEY ST","ROXBURY","MA","02119-2732"]
["EAST BOSTON COMMUNITY ASSOCIATES","72 MARGINAL ST EAST BOSTON MA 02128-2135","1974-10-31","2014-12-31","0035 - Boston","BOSTON","SUFFOLK","72 MARGINAL ST EAST","BOSTON","MA","02128-2135"]
["EAST CANTON ST LP","1400 PROVIDENCE HWY STE 1000 NORWOOD MA 02062-5032","1982-04-08",null,"0035 - Boston","BOSTON","SUFFOLK","1400 PROVIDENCE HWY STE 1000","NORWOOD","MA","02062-5032"]
["EBENEZER HOMES ASSOCIATES","1 UNIVERSITY AVE # 2C WESTWOOD MA 02090-1245","1971-12-16","2012-12-31","0035 - Boston","BOSTON","SUFFOLK","1 UNIVERSITY AVE # 2C","WESTWOOD","MA","02090-1245"]
["EDISON GREEN / CATHERINE CLARK","7 THOMAS DR CUMBERLAND FORESIDE ME 04110-1318","1978-03-09",null,"0035 - Boston","BOSTON","SUFFOLK","7 THOMAS DR","CUMBERLAND FORESIDE","ME","04110-1318"]
["EGLESTON CENTER CORPORATION","2010 COLUMBUS AVE ROXBURY MA 02119-1106","1996-05-31",null,"0035 - Boston","BOSTON","SUFFOLK","2010 COLUMBUS AVE","ROXBURY","MA","02119-1106"]
["FIELDSTONE APARTMENTS LP","536 GRANITE ST BRAINTREE MA 02184-3952","1981-03-12",null,"0035 - Boston","BOSTON","SUFFOLK","536 GRANITE ST","BRAINTREE","MA","02184-3952"]
["FRANKLIN PRESERVATION ASSOC LP","40 COURT ST STE 700 BOSTON MA 02108-2202","1974-12-19","2014-12-31","0035 - Boston","BOSTON","SUFFOLK","40 COURT ST STE 700","BOSTON","MA","02108-2202"]
["GARAGE EXPANSION OWNER, LP","100 LEGENDS WAY BOSTON MA 02114-1300","2015-01-01",null,"0035 - Boston","BOSTON","SUFFOLK","100 LEGENDS WAY","BOSTON","MA","02114-1300"]
["GARDNER APARTMENTS LP","270 ROXBURY ST BOSTON MA 02119-1526","1974-12-05","2014-12-31","0035 - Boston","BOSTON","SUFFOLK","270 ROXBURY ST","BOSTON","MA","02119-1526"]
["GEGC2 NEW STREET LLC C/O GERDING EDLEN","1477 NW EVERETT ST PORTLAND OR 97209-2617","2019-01-01",null,"0035 - Boston","BOSTON","SUFFOLK","1477 NW EVERETT ST","PORTLAND","OR","97209-2617"]
["GOVERNOR APARTMENTS ASSOCIATES","100 WELLS AVE NEWTON MA 02459-3242","1980-09-18",null,"0035 - Boston","BOSTON","SUFFOLK","100 WELLS AVE","NEWTON","MA","02459-3242"]
["HAYNES HOUSE ASSOCIATES II","6 FANEUIL HALL MKTPLC BOSTON MA 02109","1977-06-09","2012-12-31","0035 - Boston","BOSTON","SUFFOLK","6 FANEUIL HALL MKTPLC","BOSTON","MA",2109]
["HEMENWAY APARTMENTS CO","7 THOMAS DR CUMBERLAND FORESIDE ME 04110-1318","1979-05-03",null,"0035 - Boston","BOSTON","SUFFOLK","7 THOMAS DR","CUMBERLAND FORESIDE","ME","04110-1318"]
["HONG LOK HOUSE","1 FLORENCE ST BOSTON MA 02131-3638","1980-09-18",null,"0035 - Boston","BOSTON","SUFFOLK","1 FLORENCE ST","BOSTON","MA","02131-3638"]
["HOTEL TOWER OWNER LP","800 BOYLSTON ST SPC 19 BOSTON MA 02199-7041","2017-01-01",null,"0035 - Boston","BOSTON","SUFFOLK","800 BOYLSTON ST SPC 19","BOSTON","MA","02199-7041"]
["JAMAICA PLAIN ASSOCIATES","94 BEACONSFIELD RD BROOKLINE MA 02445-3309","1975-03-06","2015-12-31","0035 - Boston","BOSTON","SUFFOLK","94 BEACONSFIELD RD","BROOKLINE","MA","02445-3309"]
["JEWISH COMM HSNG FOR ELDERLY III","30 WALLINGFORD RD BRIGHTON MA 02135-4708","1975-06-12","2015-07-22","0035 - Boston","BOSTON","SUFFOLK","30 WALLINGFORD RD","BRIGHTON","MA","02135-4708"]
["JEWISH COMMUNITY HOUSING FOR THE ELDERLY","30 WALLINGFORD RD BRIGHTON MA 02135-4708","1968-11-21","2010-12-31","0035 - Boston","BOSTON","SUFFOLK","30 WALLINGFORD RD","BRIGHTON","MA","02135-4709"]
["JEWISH COMMUNITY HOUSING FOR THE ELDERLY II","30 WALLINGFORD RD BRIGHTON MA 02135-4708","1972-03-30","2012-12-31","0035 - Boston","BOSTON","SUFFOLK","30 WALLINGFORD RD","BRIGHTON","MA","02135-4710"]
["KENMORE ABBEY PRESERVATION ASSOC","2 OLIVER ST FL 500\nBOSTON MA 02109-4937","1982-09-16",null,"0035 - Boston","BOSTON","SUFFOLK","2 OLIVER ST FL 500","BOSTON","MA","02109-4937"]
["KEYSTONE APARTMENTS COMPANY","150 MOUNT VERNON ST STE 520 DORCHESTER MA 02125-3115","1978-08-03","2018-12-31","0035 - Boston","BOSTON","SUFFOLK","150 MOUNT VERNON ST STE 520","DORCHESTER","MA","02125-3115"]
["LANDMARK CENTER LP","333 NEWBURY ST BOSTON MA 02115-2710","1997-02-28","2019-12-31","0035 - Boston","BOSTON","SUFFOLK","333 NEWBURY ST","BOSTON","MA","02115-2710"]
["MADISON BOTOLPH II LIMITED PARTNERSHIP","530 WARREN ST DORCHESTER MA 02121-1821","2015-01-01",null,"0035 - Boston","BOSTON","SUFFOLK","530 WARREN ST","DORCHESTER","MA","02121-1821"]
["MADISON BOTOLPH LP","530 WARREN ST DORCHESTER MA 02121-1821","1979-05-03","2014-12-31","0035 - Boston","BOSTON","SUFFOLK","530 WARREN ST","DORCHESTER","MA","02121-1821"]
["MADISON PARK III ASSOCIATES","6 FANEUIL HALL MARKET PL BOSTON MA 02109-6115","1977-06-09","2012-12-31","0035 - Boston","BOSTON","SUFFOLK","6 FANEUIL HALL MARKET PL","BOSTON","MA","02109-6115"]
["MADISON PARK IV LP","6 FANEUIL HALL MARKET PL BOSTON MA 02109-6115","1996-05-13",null,"0035 - Boston","BOSTON","SUFFOLK","6 FANEUIL HALL MARKET PL","BOSTON","MA","02109-6115"]
["MADISON TRINITY LTD PARTNERSHIP","75 FEDERAL ST FL 4 BOSTON MA 02110-1900","1997-08-15",null,"0035 - Boston","BOSTON","SUFFOLK","75 FEDERAL ST FL 4","BOSTON","MA","02110-1900"]
["MANDELA HOMES LIMITED PARTNERSHP","150 FEDERAL ST 5TH FL BOSTON MA 02110","1997-12-18","2010-12-31","0035 - Boston","BOSTON","SUFFOLK","150 FEDERAL ST 5TH FL","BOSTON","MA",2110]
["MARCUS GARVEY ASSOCIATES","7 THOMAS DR CUMBERLAND FORESIDE ME 04110-1318","1979-05-03",null,"0035 - Boston","BOSTON","SUFFOLK","7 THOMAS DR","CUMBERLAND FORESIDE","ME","04110-1318"]
["MARKLEY ONE SUMMER ST LLP","1 SUMMER ST FL 5 BOSTON MA 02110-1013","1975-05-01","2016-12-31","0035 - Boston","BOSTON","SUFFOLK","1 SUMMER ST FL 5","BOSTON","MA","02110-1013"]
["MASON RHF LP","536 GRANITE ST STE 301 BRAINTREE MA 02184-3952","1978-03-09",null,"0035 - Boston","BOSTON","SUFFOLK","536 GRANITE ST STE 301","BRAINTREE","MA","02184-3952"]
["MATEP LP","474 BROOKLINE AVE BOSTON MA 02215-5415","1975-10-09","2015-12-31","0035 - Boston","BOSTON","SUFFOLK","474 BROOKLINE AVE","BOSTON","MA","02215-5415"]
["MAVERICK GARDENS PHASE 3","75 FEDERAL ST FL 4 BOSTON MA 02110","2005-02-11",null,"0035 - Boston","BOSTON","SUFFOLK","75 FEDERAL ST FL 4","BOSTON","MA",2110]
["MERCANTILE WHARF ASSOCIATES","15 BROAD ST STE 502 BOSTON MA 02109-3816","1974-11-14","2014-12-31","0035 - Boston","BOSTON","SUFFOLK","15 BROAD ST STE 502","BOSTON","MA","02109-3816"]
["MISSION MAIN PHASE II LP","1 WASHINGTON MALL STE 5\nBOSTON MA 02108-2603","1999-09-10",null,"0035 - Boston","BOSTON","SUFFOLK","1 WASHINGTON MALL STE 5","BOSTON","MA","02108-2603"]
["MISSION MAIN PHASE ONE LP","1 WASHINGTON MALL STE 5\nBOSTON MA 02108-2603","1998-09-29",null,"0035 - Boston","BOSTON","SUFFOLK","1 WASHINGTON MALL STE 5","BOSTON","MA","02108-2604"]
["MISSION MAIN PHASE THREE LP","6 FANEUIL HALL MARKET PL BOSTON MA 02109-6115","2001-01-01",null,"0035 - Boston","BOSTON","SUFFOLK","6 FANEUIL HALL MARKET PL","BOSTON","MA","02109-6115"]
["MISSION PARK GARAGE","11 NEW WHITNEY ST BOSTON MA 02115-6276","1975-07-10","2015-12-31","0035 - Boston","BOSTON","SUFFOLK","11 NEW WHITNEY ST","BOSTON","MA","02115-6276"]
["MISSION PARK HOUSING","75 FEDERAL ST FL 4TH BOSTON MA 02110","1975-07-10","2015-12-31","0035 - Boston","BOSTON","SUFFOLK","75 FEDERAL ST FL 4TH","BOSTON","MA",2110]
["MORVILLE HOUSE APTS LP","27 MICA LN STE 301 WELLESLEY MA 02481-1741","1971-09-30","2011-12-31","0035 - Boston","BOSTON","SUFFOLK","27 MICA LN STE 301","WELLESY","MA","02481-1741"]
["NEW BOSTON FOOD MARKET","15 WIDETT CIR BOSTON MA 02118-2804","1967-10-10",null,"0035 - Boston","BOSTON","SUFFOLK","15 WIDETT CIR","BOSTON","MA","02118-2804"]
["NEW FRANKLIN PARK LP","95 BERKELEY ST STE 500 BOSTON MA 02116-6229","1974-11-21","2014-12-31","0035 - Boston","BOSTON","SUFFOLK","95 BERKELEY ST STE 500","BOSTON","MA","02116-6229"]
["NEW MASS PIKE TOWERS LP","6 FANEUIL HALL MARKTPLCE BOSTON MA 02109","1971-02-25","2011-12-31","0035 - Boston","BOSTON","SUFFOLK","6 FANEUIL HALL MARKTPLCE","BOSTON","MA",2109]
["NEW PALMER STREET LP","1500 BLUE HILL AVE MATTAPAN MA 02126-1746","2004-12-20",null,"0035 - Boston","BOSTON","SUFFOLK","1500 BLUE HILL AVE","MATTAPAN","MA","02126-1746"]
["NEWCASTLE ASSOCIATES","1 UNIVERSITY AVE # 2C WESTWOOD MA 02090-1245","1972-07-20","2013-12-31","0035 - Boston","BOSTON","SUFFOLK","1 UNIVERSITY AVE # 2C","WESTWOOD","MA","02090-1245"]
["OFFICE TOWER OWNER LP","800 BOYLSTON ST SPC 19\nBOSTON MA 02199-7041","2019-01-01",null,"0035 - Boston","BOSTON","SUFFOLK","800 BOYLSTON ST SPC 19","BOSTON","MA","02199-7041"]
["OLD COLONY PHASE 2A LP","2 CENTER PLZ STE 700 BOSTON MA 02108-1906","2013-01-01",null,"0035 - Boston","BOSTON","SUFFOLK","2 CENTER PLZ STE 700","BOSTON","MA","02108-1906"]
["OLD COLONY PHASE 2B LP","2 CENTER PLZ STE 700 BOSTON MA 02108-1906","2013-01-01",null,"0035 - Boston","BOSTON","SUFFOLK","2 CENTER PLZ STE 700","BOSTON","MA","02108-1906"]
["OLD COLONY PHASE 2C LP","2 CENTER PLZ STE 700 BOSTON MA 02108-1906","2014-01-01",null,"0035 - Boston","BOSTON","SUFFOLK","2 CENTER PLZ STE 700","BOSTON","MA","02108-1906"]
["OLD COLONY PHASE ONE LP","2 CENTER PLZ STE 700 BOSTON MA 02108-1906","2010-01-01",null,"0035 - Boston","BOSTON","SUFFOLK","2 CENTER PLZ STE 700","BOSTON","MA","02108-1906"]
["ONE CHANNEL CENTER, LP","45 ROCKEFELLER PLZ FL 7TH NEW YORK NY 10111-0100","2015-09-23",null,"0035 - Boston","BOSTON","SUFFOLK","45 ROCKEFELLER PLZ FL 7TH","NEW YORK","NY","10111-0100"]
["ORCHARD PARK OFFSITE PHASE I LP","1 JOHN ELIOT SQ ROXBURY MA 02119-3511","1997-09-16",null,"0035 - Boston","BOSTON","SUFFOLK","1 JOHN ELIOT SQ","ROXBURY","MA","02119-3511"]
["OXFORD PLACE ASSOCIATES","100 WELLS AVE STE 100\nNEWTON CENTER MA 02459-3243","1982-08-05",null,"0035 - Boston","BOSTON","SUFFOLK","100 WELLS AVE STE 100","NEWTON CENTER","MA","02459-3243"]
["PETERBOROUGH HOUSING ASSOCIATES","100 WELLS AVE # 200 NEWTON MA 02459-3242","1978-06-08","2018-12-31","0035 - Boston","BOSTON","SUFFOLK","100 WELLS AVE # 200","NEWTON","MA","02459-3242"]
["PHIL C BRADLEY HOUSING PRTNRSHIP","95 BROADWAY BOSTON MA 02116-5414","1997-10-01","2011-12-31","0035 - Boston","BOSTON","SUFFOLK","95 BROADWAY","BOSTON","MA","02116-5414"]
["PODIUM OWNER LP","800 BOYLSTON STREET FL 19TH\nBOSTON MA 02199","2015-01-01",null,"0035 - Boston","BOSTON","SUFFOLK","800 BOYLSTON STREET FL 19TH","BOSTON","MA",2199]
["POST OFFICE SQUARE REDEVELOPMENT CORP","50 FEDERAL ST BOSTON MA 02110","1987-02-24",null,"0035 - Boston","BOSTON","SUFFOLK","50 FEDERAL ST","BOSTON","MA",2110]
["QUINCY HEIGHTS LP","594 COLUMBIA RD STE 302 DORCHESTER MA 02125-3436","1977-07-28",null,"0035 - Boston","BOSTON","SUFFOLK","594 COLUMBIA RD STE 302","BOSTON","MA","02125-3436"]
["QUINCY TOWER LP","2 CENTER PLZ STE 700 BOSTON MA 02108-1906","1974-11-21","2014-12-31","0035 - Boston","BOSTON","SUFFOLK","2 CENTER PLZ STE 700","BOSTON","MA","02108-1906"]
["RBW OWNER LP","606 CONGRESS ST BOSTON MA 02210-2803","2015-09-22","2017-12-31","0035 - Boston","BOSTON","SUFFOLK","606 CONGRESS ST","BOSTON","MA","02210-2803"]
["RENAISSANCE BOSTON WATERFRONT","4 EMBARCADERO CTR STE 710 SAN FRANCISCO CA 94111-4172","2003-01-22","2014-12-31","0035 - Boston","BOSTON","SUFFOLK","4 EMBARCADERO CTR STE 710","FRANCISCO","CA","94111-4172"]
["RESERVOIR TOWERS ASSOCIATES","100 WELLS AVE # 200 NEWTON MA 02459-3242","1975-10-09","2015-12-31","0035 - Boston","BOSTON","SUFFOLK","100 WELLS AVE # 200","NEWTON","MA","02459-3242"]
["RESIDENTIAL TOWER OWNER LP","800 BOYLSTON ST BOSTON MA 02199-1900","2017-01-01",null,"0035 - Boston","BOSTON","SUFFOLK","800 BOYLSTON ST","BOSTON","MA","02199-1900"]
["RESTORATION HOUSING CORPORATION","11 NEW WHITNEY ST BOSTON MA 02115-6276","1980-09-25","2015-12-31","0035 - Boston","BOSTON","SUFFOLK","11 NEW WHITNEY ST","BOSTON","MA","02115-6276"]
["ROBERT L FORTES HOUSE INC","27 MICA LN STE 301 WELLESLEY MA 02481-1741","1980-07-31",null,"0035 - Boston","BOSTON","SUFFOLK","27 MICA LN STE 301","WELLESY","MA","02481-1741"]
["ROCKINGHAM GLEN LP","2 N RIVERSIDE PLZ STE 400 CHICAGO IL 60606-2624","1973-04-05","2013-12-31","0035 - Boston","BOSTON","SUFFOLK","2 N RIVERSIDE PLZ STE 400","CHICAGO","IL","60606-2624"]
["ROGERSON BEACON ASSOCIATES LP","1 FLORENCE ST ROSLINDALE MA 02131-3638","2015-01-01",null,"0035 - Boston","BOSTON","SUFFOLK","1 FLORENCE ST","ROSLINDALE","MA","02131-3638"]
["ROXBURY MOUNT PLEASANT LP","500 VICTORY RD NORTH QUINCY MA 02171-3139","1982-08-05",null,"0035 - Boston","BOSTON","SUFFOLK","500 VICTORY RD NORTH","QUINCY","MA","02171-3139"]
["RTH COMMUNITY CENTER REALTY INC","11 NEW WHITNEY ST BOSTON MA 02115-6276","2013-01-01","2015-12-31","0035 - Boston","BOSTON","SUFFOLK","11 NEW WHITNEY ST","BOSTON","MA","02115-6276"]
["RUTLAND HOUSING ASSOCIATION","111 W CONCORD ST REAR \nBOSTON MA 02118-1544","1970-10-08","2010-12-31","0035 - Boston","BOSTON","SUFFOLK","111 W CONCORD ST REAR ","BOSTON","MA","02118-1544"]
["SARAH BAKER MANOR ASSOCIATES","1 JOHN ELIOT SQ ROXBURY MA 02119-3511","1981-03-12",null,"0035 - Boston","BOSTON","SUFFOLK","1 JOHN ELIOT SQ","ROXBURY","MA","02119-3511"]
["SCHOOL HOUSE BROOKLEDGE CUMMINS","536 GRANITE ST BRAINTREE MA 02184-3952","2008-10-27",null,"0035 - Boston","BOSTON","SUFFOLK","536 GRANITE ST","BRAINTREE","MA","02184-3952"]
["SCHOOL HOUSE KENILWORTH WILLIAMS","536 GRANITE ST BRAINTREE MA 02184-3952","2008-10-27","2018-12-31","0035 - Boston","BOSTON","SUFFOLK","536 GRANITE ST","BRAINTREE","MA","02184-3953"]
["SEAPORT HOTEL","200 SEAPORT BLVD STE 50 BOSTON MA 02210-2031","1997-12-31","2017-12-31","0035 - Boston","BOSTON","SUFFOLK","200 SEAPORT BLVD STE 50","BOSTON","MA","02210-2031"]
["SMITH HOUSE ASSOCIATES II LP","6 FANEUIL HALL MKTPLC BOSTON MA 02109","1996-04-20","2012-12-31","0035 - Boston","BOSTON","SUFFOLK","6 FANEUIL HALL MKTPLC","BOSTON","MA",2109]
["SOUTH COVE PLAZA","170 NEWBURY ST BOSTON MA 02116-2873","2011-01-20",null,"0035 - Boston","BOSTON","SUFFOLK","170 NEWBURY ST","BOSTON","MA","02116-2873"]
["ST JAMES/ARLINGTON RE LP","175 BERKELEY ST BOSTON MA 02116-5066","1998-06-25","2013-12-31","0035 - Boston","BOSTON","SUFFOLK","175 BERKELEY ST","BOSTON","MA","02116-5066"]
["ST KEVINS LP","84 STATE ST STE 600 BOSTON MA 02109-2227","2014-01-01",null,"0035 - Boston","BOSTON","SUFFOLK","84 STATE ST STE 600","BOSTON","MA","02109-2227"]
["TAURUS AT FOUNTAIN HILL ASSOC","1 JOHN ELIOT SQ ROXBURY MA 02119-3511","1979-03-15","2019-04-30","0035 - Boston","BOSTON","SUFFOLK","1 JOHN ELIOT SQ","BOSTON","MA","02119-3511"]
["TENANTS DEVELOPMENT II LP","566 COLUMBUS AVE BOSTON MA 02118-1181","1973-06-28","2013-12-31","0035 - Boston","BOSTON","SUFFOLK","566 COLUMBUS AVE","BOSTON","MA","02118-1181"]
["TRINITY EAST BOSTON FOUR LP","75 FEDERAL ST FL 4 BOSTON MA 02110","2005-02-11",null,"0035 - Boston","BOSTON","SUFFOLK","75 FEDERAL ST FL 4","BOSTON","MA",2110]
["TRINITY EAST BOSTON LP","75 FEDERAL ST FL 4 BOSTON MA 02110","2003-05-29",null,"0035 - Boston","BOSTON","SUFFOLK","75 FEDERAL ST FL 4","BOSTON","MA",2110]
["TRINITY EAST BOSTON TWO LP","75 FEDERAL ST FL 4 BOSTON MA 02110","2003-05-29",null,"0035 - Boston","BOSTON","SUFFOLK","75 FEDERAL ST FL 4","BOSTON","MA",2110]
["TRINITY FOLEY LP","75 FEDERAL ST FL 4 BOSTON MA 02110","2001-09-21",null,"0035 - Boston","BOSTON","SUFFOLK","75 FEDERAL ST FL 4","BOSTON","MA",2110]
["TRINITY FRANKLIN HILL FOUR PHASE ONE LP","75 FEDERAL ST 4TH FL BOSTON MA 02110","2007-01-01",null,"0035 - Boston","BOSTON","SUFFOLK","75 FEDERAL ST 4TH FL","BOSTON","MA",2110]
["TRINITY FRANKLIN HILL FOUR PHASE TWO LP","75 FEDERAL ST FL 4 BOSTON MA 02110","2008-01-01",null,"0035 - Boston","BOSTON","SUFFOLK","75 FEDERAL ST FL 4","BOSTON","MA",2110]
["TRINITY FRANKLIN HILL PHASE TWO LP","75 FEDERAL ST FL 4 BOSTON MA 02110","2008-01-01",null,"0035 - Boston","BOSTON","SUFFOLK","75 FEDERAL ST FL 4","BOSTON","MA",2110]
["TRINITY FRANKLIN PHASE ONE LP","75 FEDERAL ST LBBY 4\nBOSTON MA 02110-1900","2007-01-30",null,"0035 - Boston","BOSTON","SUFFOLK","75 FEDERAL ST LBBY 4","BOSTON","MA","02110-1900"]
["TRINITY MATTAPAN HEIGHTS","75 FEDERAL ST FL 4 BOSTON MA 02110","2006-01-30",null,"0035 - Boston","BOSTON","SUFFOLK","75 FEDERAL ST FL 4","BOSTON","MA",2110]
["TRINITY MATTAPAN HEIGHTS FIVE LP","75 FEDERAL ST FL 4 BOSTON MA 02110","2012-01-01",null,"0035 - Boston","BOSTON","SUFFOLK","75 FEDERAL ST FL 4","BOSTON","MA",2110]
["TRINITY MATTAPAN HEIGHTS THREE LP","75 FEDERAL ST LBBY 4\nBOSTON MA 02110-1900","2007-01-01",null,"0035 - Boston","BOSTON","SUFFOLK","75 FEDERAL ST LBBY 4","BOSTON","MA","02110-1900"]
["TRINITY NORHAMPTON PHASE TWO","75 FEDERAL ST FL 4TH\nBOSTON MA 02110-1913","2014-01-01",null,"0035 - Boston","BOSTON","SUFFOLK","75 FEDERAL ST FL 4TH","BOSTON","MA","02110-1913"]
["TRINITY NORTHAMPTON PHASE ONE LP","75 FEDERAL ST FL 4\nBOSTON MA 02110-1913","2013-10-04",null,"0035 - Boston","BOSTON","SUFFOLK","75 FEDERAL ST FL 4","BOSTON","MA","02110-1913"]
["TRINITY NORTHAMPTON PHASE ONE LP","75 FEDERAL ST FL 4 BOSTON MA 02110","2013-01-01",null,"0035 - Boston","BOSTON","SUFFOLK","75 FEDERAL ST FL 4","BOSTON","MA",2110]
["TRINITY ORIENT HEIGHTS LP","75 FEDERAL ST FL 4\nBOSTON MA 02110-1913","2015-01-01",null,"0035 - Boston","BOSTON","SUFFOLK","75 FEDERAL ST FL 4","BOSTON","MA","02110-1913"]
["TRINITY WASHINGTON BEECH FOUR PH","75 FEDERAL ST FL 4 BOSTON MA 02110","2009-01-01",null,"0035 - Boston","BOSTON","SUFFOLK","75 FEDERAL ST FL 4","BOSTON","MA",2110]
["TRINITY WASHINGTON BEECH FOUR PHASE TWO LP","75 FEDERAL ST FL 4 BOSTON MA 02110","2010-01-01",null,"0035 - Boston","BOSTON","SUFFOLK","75 FEDERAL ST FL 4","BOSTON","MA",2110]
["TRINITY WASHINGTON BEECH PHASE ONE LP","75 FEDERAL ST FL 4 BOSTON MA 02110","2009-01-01",null,"0035 - Boston","BOSTON","SUFFOLK","75 FEDERAL ST FL 4","BOSTON","MA",2110]
["TRINITY WASHINGTON BEECH PHASE TWO LP","75 FEDERAL ST FL 4 BOSTON MA 02110","2010-01-01",null,"0035 - Boston","BOSTON","SUFFOLK","75 FEDERAL ST FL 4","BOSTON","MA",2110]
["TWO FINANCIAL CENTER","PO BOX 1920 DALLAS TX 75221-1920","2007-02-13","2015-12-31","0035 - Boston","BOSTON","SUFFOLK","PO BOX 1920","DALLAS","TX","75221-1920"]
["UPHAMS CORNER LP","84 STATE ST STE 600 BOSTON MA 02109-2227","2014-01-01",null,"0035 - Boston","BOSTON","SUFFOLK","84 STATE ST STE 600","BOSTON","MA","02109-2227"]
["VICTORIA APARTMENTS LP","630 TREMONT ST BOSTON MA 02118-1607","1980-05-22",null,"0035 - Boston","BOSTON","SUFFOLK","630 TREMONT ST","BOSTON","MA","02118-1607"]
["VICTORY GARDENS ASSOCIATES","536 GRANITE ST BRAINTREE MA 02184-3952","1975-10-09","2015-12-31","0035 - Boston","BOSTON","SUFFOLK","536 GRANITE ST","BRAINTREE","MA","02184-3952"]
["VIVIENDAS APARTMENTS","27 MICA LN STE 301 WELLESLEY MA 02481-1741","1974-08-15","2014-12-31","0035 - Boston","BOSTON","SUFFOLK","27 MICA LN STE 301","WELLESY","MA","02481-1741"]
["WAIT STREET ASSOCIATES","7 THOMAS DR CUMBERLAND FORESIDE ME 04110-1318","1980-07-31",null,"0035 - Boston","BOSTON","SUFFOLK","7 THOMAS DR","CUMBERLAND FORESIDE","ME","04110-1318"]
["WALNUT AVENUE APARTMENTS LP","31 GERMANIA ST JAMAICA PLAIN MA 02130-2314","2014-01-01","2019-12-31","0035 - Boston","BOSTON","SUFFOLK","31 GERMANIA ST JAMAICA","JAMAICA PLAIN","MA","02130-2314"]
["WASHINGTON STREET GATEWAY ASSOCIATES LP","196 CHESTNUT AVE STE 8\nBOSTON MA 02130-4446","2016-01-01",null,"0035 - Boston","BOSTON","SUFFOLK","196 CHESTNUT AVE STE 8","BOSTON","MA","02130-4446"]
["WATERS & CO INC","144 WORCESTER ST APT 1\nBOSTON MA 02118-3448","1974-12-05","2014-12-31","0035 - Boston","BOSTON","SUFFOLK","144 WORCESTER ST APT 1","BOSTON","MA","02118-3448"]
["WELD PARK ASSOCIATES","112 WATER ST STE 600 BOSTON MA 02109-4204","1978-05-28","2018-12-31","0035 - Boston","BOSTON","SUFFOLK","112 WATER ST STE 600","BOSTON","MA","02109-4204"]
["WESTLAND AVENUE APARTMENTS LP","1400 PROVIDENCE HIGHWAY STE 1000 NORWOOD MA 02062-5032","1980-09-25",null,"0035 - Boston","BOSTON","SUFFOLK","1400 PROVIDENCE HIGHWAY STE 1000","NORWOOD","MA","02062-5032"]
["WOODBOURNE HOUSING LIMITED PARTNERSHIP","95 BERKELEY ST STE 500\nBOSTON MA 02116-6229","2015-01-01","2018-12-31","0035 - Boston","BOSTON","SUFFOLK","95 BERKELEY ST STE 500","BOSTON","MA","02116-6229"]
["WOODBOURNE HOUSING LP","95 BERKELEY ST STE 500 BOSTON MA 02116-6229","1978-08-03",null,"0035 - Boston","BOSTON","SUFFOLK","95 BERKELEY ST STE 500","BOSTON","MA","02116-6229"]
["WOODBURY CUNARD ASSOCIATES","72 MARGINAL ST EAST BOSTON MA 02128-2135","1975-07-30",null,"0035 - Boston","BOSTON","SUFFOLK","72 MARGINAL ST EAST","BOSTON","MA","02128-2135"]

{"sheet":"Pivot commName List","index":7,"n_rows":48,"n_cols":1,"rows_kept":48,"cut":false,"hidden":true,"merged":[]}
[]
[]
["Row Labels"]
["0004 - Adams"]
["0008 - Amherst"]
["0015 - Athol"]
["0040 - Braintree"]
["0044 - Brockton"]
["0046 - Brookline"]
["0049 - Cambridge"]
["0061 - Chicopee"]
["0085 - East Longmeadow"]
["0093 - Everett"]
["0094 - Fairhaven"]
["0095 - Fall River"]
["0097 - Fitchburg"]
["0100 - Framingham"]
["0103 - Gardner"]
["0107 - Gloucester"]
["0119 - Hamilton"]
["0122 - Hanover"]
["0128 - Haverhill"]
["0134 - Holden"]
["0149 - Lawrence"]
["0150 - Lee"]
["0160 - Lowell"]
["0163 - Lynn"]
["0170 - Marlborough"]
["0171 - Marshfield"]
["0174 - Maynard"]
["0181 - Methuen"]
["0201 - New Bedford"]
["0206 - Newburyport"]
["0207 - Newton"]
["0229 - Peabody"]
["0236 - Pittsfield"]
["0243 - Quincy"]
["0248 - Revere"]
["0258 - Salem"]
["0274 - Somerville"]
["0278 - Southbridge"]
["0279 - Southwick"]
["0281 - Springfield"]
["0293 - Taunton"]
["0308 - Waltham"]
["0341 - Williamstown"]
["0348 - Worcester"]
["Grand Total"]

{"sheet":"City and towns","index":8,"n_rows":308,"n_cols":14,"rows_kept":308,"cut":false,"hidden":true,"merged":[]}
["Jurcode","Community Name","4 digit Jurcode",null,null,null,null,null,null,"Final Jurcode\\name Field",null,"YES\\NO","Street  Address","Boston Address'"]
["001","Abington",{"$f":"CONCATENATE(0,A2)","v":"0001"},null,null,null,null,null,null,"0001 - Abington",null,"YES","45 WOOD AVE PITTSFIELD MA 01201-5614","536 GRANITE ST # 301 BRAINTREE MA 02184-3952"]
["002","Acton",{"$f":"CONCATENATE(0,A3)","v":"0002"},null,null,null,null,null,null,"0002 - Acton",null,"NO","1 FENN ST PITTSFIELD MA 01201-6278","536 GRANITE ST # 301 BRAINTREE MA 02184-3952"]
["003","Acushnet","0003",null,null,null,null,null,null,"0003 - Acushnet",null,null,"1 SOMMER HILL RD ADAMS MA 01220-9771","536 GRANITE ST STE 301 BRAINTREE MA 02184-3952"]
["005","Agawam","0005",null,null,null,null,null,null,"0004 - Adams",null,null,"100 WELLS AVE NEWTON MA 02459-3242","575 BOYLSTON ST FL 8 BOSTON MA 02116"]
["006","Alford","0006",null,null,null,null,null,null,"0005 - Agawam",null,null,"3101 BEE CAVES RD STE 220 AUSTIN TX 78746-5574","177 HUNTINGTON AVE STE 24 BOSTON MA 02115-3145"]
["007","Amesbury","0007",null,null,null,null,null,null,"0006 - Alford",null,null,"540 NORTH COMMERCIAL ST MANCHESTER NH 03101-1122","500 VICTORY RD QUINCY MA 02171-3139"]
["009","Andover","0009",null,null,null,null,null,null,"0007 - Amesbury",null,null,"42 RAYMOND ST MANCHESTER BY THE SEA MA 01944-1616","75 FEDERAL ST FL 4TH BOSTON MA 02110"]
["010","Arlington","0010",null,null,null,null,null,null,"0009 - Andover",null,null,"536 GRANITE ST BRAINTREE MA 02184-3952","11 PLEASANT ST FRAMINGHAM MA 01701-4707"]
["011","Ashburnham","0011",null,null,null,null,null,null,"0010 - Arlington",null,null,"625 MOUNT AUBURN ST STE 210 CAMBRIDGE MA 02138-4555","126 JOHN ST STE 10 LOWELL MA 01852-1152"]
["012","Ashby","0012",null,null,null,null,null,null,"0011 - Ashburnham",null,null,"53 INDEPENDENCE AVE BRAINTREE MA 02184-1768","1 UNIVERSITY AVE # 2C WESTWOOD MA 02090-1245"]
["013","Ashfield","0013",null,null,null,null,null,null,"0012 - Ashby",null,null,"41 INDEPENDENCE AVE BRAINTREE MA 02184-1733","536 GRANITE ST BRAINTREE MA 02184-3952"]
["014","Ashland","0014",null,null,null,null,null,null,"0013 - Ashfield",null,null,"100 GRANDVIEW RD STE 207 BRAINTREE MA 02184-2692","536 GRANITE ST BRAINTREE MA 02184-3952"]
["016","Attleboro","0016",null,null,null,null,null,null,"0014 - Ashland",null,null,"536 GRANITE ST # 301 BRAINTREE MA 02184-3952","245 PARK AVE FL 42 NEW YORK NY 10167-0002"]
["017","Auburn","0017",null,null,null,null,null,null,"0016 - Attleboro",null,null,"536 GRANITE ST STE 301 BRAINTREE MA 02184-3952","500 VICTORY RD NORTH QUINCY MA 02171-3139"]
["018","Avon","0018",null,null,null,null,null,null,"0017 - Auburn",null,null,"170 NEWBURY ST BOSTON MA 02116-2873","536 GRANITE ST BRAINTREE MA 02184-3952"]
["019","Ayer","0019",null,null,null,null,null,null,"0018 - Avon",null,null,"50 FEDERAL ST # 1000 BOSTON MA 02110-2500","185 DARTMOUTH ST BOSTON MA 02116-5886"]
["020","Barnstable","0020",null,null,null,null,null,null,"0019 - Ayer",null,null,"1 WASHINGTON MALL STE 500 BOSTON MA 02108-2603","2 CENTER PLZ STE 700 BOSTON MA 02108-1906"]
["021","Barre","0021",null,null,null,null,null,null,"0020 - Barnstable",null,null,"225 BINNEY ST CAMBRIDGE MA 02142-1031","7978 COOPER CRK BLV #100 UNIVERSITY PARK FL 34201"]
["022","Becket","0022",null,null,null,null,null,null,"0021 - Barre",null,null,"27 MICA LN STE 301 WELLESLEY MA 02481-1741","1 FLORENCE ST ROSLINDALE MA 02131-3638"]
["023","Bedford","0023",null,null,null,null,null,null,"0022 - Becket",null,null,"1221 CAMBRIDGE ST CAMBRIDGE MA 02139-1354","177 MILK ST BOSTON MA 02109-3442"]
["024","Belchertown","0024",null,null,null,null,null,null,"0023 - Bedford",null,null,"280 FRANKLIN ST CAMBRIDGE MA 02139-3773","177 MILK ST BOSTON MA 02109-3442"]
["025","Bellingham","0025",null,null,null,null,null,null,"0024 - Belchertown",null,null,"27 MICA LN STE 301 WELLESLEY MA 02481-1741","177 MILK ST BOSTON MA 02109-3404"]
["026","Belmont","0026",null,null,null,null,null,null,"0025 - Bellingham",null,null,"6 FANEUIL HALL MKTPLC BOSTON MA 02109","177 MILK ST BOSTON MA 02109-3410"]
["027","Berkley","0027",null,null,null,null,null,null,"0026 - Belmont",null,null,"475 KILVERT ST STE 105 WARWICK RI 02886-1360","177 MILK ST BOSTON MA 02109-3442"]
["028","Berlin","0028",null,null,null,null,null,null,"0027 - Berkley",null,null,"3100 BROADWAY BLVD STE 1234 KANSAS CITY MO 64111-2413","177 MILK ST BOSTON MA 02109-3410"]
["029","Bernardston","0029",null,null,null,null,null,null,"0028 - Berlin",null,null,"75 PLEASANT ST EAST LONGMEADOW MA 01028-2477","177 MILK ST BOSTON MA 02109-3442"]
["030","Beverly","0030",null,null,null,null,null,null,"0029 - Bernardston",null,null,"79 PLEASANT ST EAST LONGMEADOW MA 01028-2406","40 COURT ST STE 700 BOSTON MA 02108-2202"]
["031","Billerica","0031",null,null,null,null,null,null,"0030 - Beverly",null,null,"110 SOMERS RD EAST LONGMEADOW MA 01028-2929","2 CENTER PLZ STE 700 BOSTON MA 02108-1906"]
["032","Blackstone","0032",null,null,null,null,null,null,"0031 - Billerica",null,null,"1 BROADWAY EVERETT MA 02149-2432","2 CENTER PLZ STE 700 BOSTON MA 02108-1906"]
["033","Blandford","0033",null,null,null,null,null,null,"0032 - Blackstone",null,null,"536 GRANITE ST STE 2 BRAINTREE MA 02184-3954","34 WASHINGTON ST BRIGHTON MA 02135-7404"]
["034","Bolton","0034",null,null,null,null,null,null,"0033 - Blandford",null,null,"100 GRANDVIEW RD STE 207 BRAINTREE MA 02184-2692","30 WASHINGTON ST BRIGHTON MA 02135-7424"]
["036","Bourne","0036",null,null,null,null,null,null,"0034 - Bolton",null,null,"1090 VERMONT AVE NW STE 400 WASHINGTON DC 20005-4905","30 WASHINGTON ST BRIGHTON MA 02135-7424"]
["037","Boxborough","0037",null,null,null,null,null,null,"0036 - Bourne",null,null,"301 MILLIKEN BLVD APT 1915\nFALL RIVER MA 02721-1621","27 MICA LN STE 301 WELLESLEY MA 02481-1741"]
["038","Boxford","0038",null,null,null,null,null,null,"0037 - Boxborough",null,null,"1 UNIVERSITY AVE # 2C WESTWOOD MA 02090-1245","530 WARREN ST DORCHESTER MA 02121-1821"]
["039","Boylston","0039",null,null,null,null,null,null,"0038 - Boxford",null,null,"800 KELLY WAY HOLYOKE MA 01040","530 WARREN ST DORCHESTER MA 02121-1821"]
["041","Brewster","0041",null,null,null,null,null,null,"0039 - Boylston",null,null,"100 GRANDVIEW RD STE 207 BRAINTREE MA 02184-2692","94 BEACONSFIELD RD BROOKLINE MA 02445-3309"]
["042","Bridgewater","0042",null,null,null,null,null,null,"0041 - Brewster",null,null,"100 GRANDVIEW RD STE 207\nBRAINTREE MA 02184-2692","100 WELLS AVE # 200 NEWTON MA 02459-3242"]
["043","Brimfield","0043",null,null,null,null,null,null,"0042 - Bridgewater",null,null,"536 GRANITE ST STE 301 BRAINTREE MA 02184-3952","136 BROOKLINE AVE BOSTON MA 02215-3907"]
["045","Brookfield","0045",null,null,null,null,null,null,"0043 - Brimfield",null,null,"185 DARTMOUTH ST STE 9 BOSTON MA 02116-5884","20 EASTBROOK RD STE 201\nDEDHAM MA 02026-2087"]
["047","Buckland","0047",null,null,null,null,null,null,"0045 - Brookfield",null,null,"15 LEE PARK SOUTH HAMILTON MA 01982-2804","100 GRANDVIEW RD STE 207 BRAINTREE MA 02184-2692"]
["048","Burlington","0048",null,null,null,null,null,null,"0047 - Buckland",null,null,"10 PLAZA DR STE 201 SCARBOROUGH ME 04074-1801","333 NEWBURY ST BOSTON MA 02115-2710"]
["050","Canton","0050",null,null,null,null,null,null,"0048 - Burlington",null,null,"100 GRANDVIEW RD STE 207 BRAINTREE MA 02184-2692","536 GRANITE ST BRAINTREE MA 02184-3952"]
["051","Carlisle","0051",null,null,null,null,null,null,"0050 - Canton",null,null,"40 BUTTONWOODS AVE HAVERHILL MA 01830-6498","95 BERKELEY ST STE 500 BOSTON MA 02116-6229"]
["052","Carver","0052",null,null,null,null,null,null,"0051 - Carlisle",null,null,"180 WATER ST HAVERHILL MA 01830-6216","808 MEMORIAL DR CAMBRIDGE MA 02139-4637"]
["053","Charlemont","0053",null,null,null,null,null,null,"0052 - Carver",null,null,"101 CHADWICK ST WORCESTER MA 01605-1273","1 FLORENCE ST BOSTON MA 02131-3638"]
["054","Charlton","0054",null,null,null,null,null,null,"0053 - Charlemont",null,null,"27 MICA LN WELLESLEY MA 02481-1724","7 WELLS AVE STE 11\nNEWTON CENTER MA 02459-3212"]
["055","Chatham","0055",null,null,null,null,null,null,"0054 - Charlton",null,null,"355 PARK ST STE 1\nLAWRENCE MA 01841-2449","95 BERKELEY ST STE 500 BOSTON MA 02116-6229"]
["056","Chelmsford","0056",null,null,null,null,null,null,"0055 - Chatham",null,null,"170 NEWBURY ST BOSTON MA 02116-2873","44 FARINA RD NEWTON MA 02459-2860"]
["057","Chelsea","0057",null,null,null,null,null,null,"0056 - Chelmsford",null,null,"500 W CUMMINGS PARK STE 6050 WOBURN MA 01801-6547","8425 E 12 MILE RD STE 1000 WARREN MI 48093-2738"]
["058","Cheshire","0058",null,null,null,null,null,null,"0057 - Chelsea",null,null,"465 WAVERLEY OAKS RD STE 211 WALTHAM MA 02452-8466","255 STATE ST STE 2 BOSTON MA 02109-2659"]
["059","Chester","0059",null,null,null,null,null,null,"0058 - Cheshire",null,null,"172 LAWRENCE ST LAWRENCE MA 01841-3849","255 STATE ST FL 2 BOSTON MA 02109-2659"]
["060","Chesterfield","0060",null,null,null,null,null,null,"0059 - Chester",null,null,"172 LAWRENCE ST LAWRENCE MA 01841-3849","550 DUDLEY ST ROXBURY MA 02119-2770"]
["062","Chilmark","0062",null,null,null,null,null,null,"0060 - Chesterfield",null,null,"172 LAWRENCE ST LAWRENCE MA 01841-3849","7 THOMAS DR CUMBERLAND FORESIDE ME 04110-1318"]
["063","Clarksburg","0063",null,null,null,null,null,null,"0062 - Chilmark",null,null,"536 GRANITE ST STE 2B BRAINTREE MA 02184-3954","6 FANEUIL HALL MARKET PL BOSTON MA 02109-6115"]
["064","Clinton","0064",null,null,null,null,null,null,"0063 - Clarksburg",null,null,"130 PROSPECT ST CAMBRIDGE MA 02139-1844","126 JOHN ST STE 10 LOWELL MA 01852-1152"]
["065","Cohasset","0065",null,null,null,null,null,null,"0064 - Clinton",null,null,"1 FENN ST PITTSFIELD MA 01201-6278","1 FLORENCE ST ROSLINDALE MA 02131-3638"]
["066","Colrain","0066",null,null,null,null,null,null,"0065 - Cohasset",null,null,"268 BUSH ST # 3534\nSAN FRANCISCO CA 94104-3503","170 NEWBURY ST BOSTON MA 02116-2873"]
["067","Concord","0067",null,null,null,null,null,null,"0066 - Colrain",null,null,"170 NEWBURY ST BOSTON MA 02116-2873","126 JOHN ST STE 10 LOWELL MA 01852-1152"]
["068","Conway","0068",null,null,null,null,null,null,"0067 - Concord",null,null,"227 FAYETTE ST LOWELL MA 01852-2363","536 GRANITE ST BRAINTREE MA 02184-3952"]
["069","Cummington","0069",null,null,null,null,null,null,"0068 - Conway",null,null,"100 WELLS AVE FL 2 NEWTON MA 02459-3242","504 DUDLEY ST ROXBURY MA 02119-2732"]
["070","Dalton","0070",null,null,null,null,null,null,"0069 - Cummington",null,null,"1115 WESTFORD ST, 4TH FL LOWELL MA 01851","1 CITY HALL SQ RM 813 BOSTON MA 02201-1020"]
["071","Danvers","0071",null,null,null,null,null,null,"0070 - Dalton",null,null,"423 W 55TH ST 9TH FL NEW YORK NY 10019-4460","504 DUDLEY ST ROXBURY MA 02119-2732"]
["072","Dartmouth","0072",null,null,null,null,null,null,"0071 - Danvers",null,null,"465 WAVERLEY OAKS RD STE 211 WALTHAM MA 02452-8466","504 DUDLEY ST ROXBURY MA 02119-2732"]
["073","Dedham","0073",null,null,null,null,null,null,"0072 - Dartmouth",null,null,"500 VICTORY RD QUINCY MA 02171-3139","72 MARGINAL ST EAST BOSTON MA 02128-2135"]
["074","Deerfield","0074",null,null,null,null,null,null,"0073 - Dedham",null,null,"2 CENTER PLZ STE 700 BOSTON MA 02108-1906","1400 PROVIDENCE HWY STE 1000 NORWOOD MA 02062-5032"]
["075","Dennis",{"$f":"CONCATENATE(0,A67)","v":"0075"},null,null,null,null,null,null,"0074 - Deerfield",null,null,"500 W CUMMINGS PARK STE 6050 WOBURN MA 01801-6547","1 UNIVERSITY AVE # 2C WESTWOOD MA 02090-1245"]
["076","Dighton","0076",null,null,null,null,null,null,"0075 - Dennis",null,null,"500 WEST CUMMINGS PARK S WOBURN MA 01801","7 THOMAS DR CUMBERLAND FORESIDE ME 04110-1318"]
["077","Douglas","0077",null,null,null,null,null,null,"0076 - Dighton",null,null,"1520 OCEAN ST STE 18\nMARSHFIELD MA 02050-3557","2010 COLUMBUS AVE ROXBURY MA 02119-1106"]
["078","Dover","0078",null,null,null,null,null,null,"0077 - Douglas",null,null,"2 CENTER PLZ STE 700 BOSTON MA 02108-1906","536 GRANITE ST BRAINTREE MA 02184-3952"]
["079","Dracut","0079",null,null,null,null,null,null,"0078 - Dover",null,null,"222 PELHAM ST METHUEN MA 01844-1467","40 COURT ST STE 700 BOSTON MA 02108-2202"]
["080","Dudley","0080",null,null,null,null,null,null,"0079 - Dracut",null,null,"222 PELHAM ST METHUEN MA 01844-1467","100 LEGENDS WAY BOSTON MA 02114-1300"]
["081","Dunstable","0081",null,null,null,null,null,null,"0080 - Dudley",null,null,"536 GRANITE ST STE 2A BRAINTREE MA 02184-3954","270 ROXBURY ST BOSTON MA 02119-1526"]
["082","Duxbury","0082",null,null,null,null,null,null,"0081 - Dunstable",null,null,"10 BURNHAM RD METHUEN MA 01844-3330","1477 NW EVERETT ST PORTLAND OR 97209-2617"]
["083","East Bridgewater","0083",null,null,null,null,null,null,"0082 - Duxbury",null,null,"536 GRANITE ST BRAINTREE MA 02184-3952","100 WELLS AVE NEWTON MA 02459-3242"]
["084","East Brookfield","0084",null,null,null,null,null,null,"0083 - East Bridgewater",null,null,"3100 BROADWAY BLVD STE 1234 KANSAS CITY MO 64111-2413","6 FANEUIL HALL MKTPLC BOSTON MA 02109"]
["086","Eastham","0086",null,null,null,null,null,null,"0084 - East Brookfield",null,null,"1 WASHINGTON MALL STE 500\nBOSTON MA 02108-2603","7 THOMAS DR CUMBERLAND FORESIDE ME 04110-1318"]
["087","Easthampton","0087",null,null,null,null,null,null,"0086 - Eastham",null,null,"425 WATERTOWN ST STE 205\nNEWTON MA 02458-1131","1 FLORENCE ST BOSTON MA 02131-3638"]
["088","Easton","0088",null,null,null,null,null,null,"0087 - Easthampton",null,null,"7 WELLS AVE STE 11\nNEWTON CENTER MA 02459-3212","800 BOYLSTON ST SPC 19 BOSTON MA 02199-7041"]
["089","Edgartown","0089",null,null,null,null,null,null,"0088 - Easton",null,null,"425 WATERTOWN ST STE 205\nNEWTON MA 02458-1131","94 BEACONSFIELD RD BROOKLINE MA 02445-3309"]
["090","Egremont","0090",null,null,null,null,null,null,"0089 - Edgartown",null,null,"100 WELLS AVE NEWTON CENTER MA 02459-3242","30 WALLINGFORD RD BRIGHTON MA 02135-4708"]
["091","Erving","0091",null,null,null,null,null,null,"0090 - Egremont",null,null,"18 CROWNINSHIELD ST PEABODY MA 01960-4360","30 WALLINGFORD RD BRIGHTON MA 02135-4708"]
["092","Essex","0092",null,null,null,null,null,null,"0091 - Erving",null,null,"465 WAVERLEY OAKS RD STE 211 WALTHAM MA 02452-8466","30 WALLINGFORD RD BRIGHTON MA 02135-4708"]
["096","Falmouth","0096",null,null,null,null,null,null,"0092 - Essex",null,null,"800 KELLY WAY HOLYOKE MA 01040","2 OLIVER ST FL 500\nBOSTON MA 02109-4937"]
["098","Florida","0098",null,null,null,null,null,null,"0096 - Falmouth",null,null,"4200 WILDWOOD PKWY ATLANTA GA 30339-8402","150 MOUNT VERNON ST STE 520 DORCHESTER MA 02125-3115"]
["099","Foxborough","0099",null,null,null,null,null,null,"0098 - Florida",null,null,"2 CENTER PLZ STE 700 BOSTON MA 02108-1906","333 NEWBURY ST BOSTON MA 02115-2710"]
["101","Franklin","0101",null,null,null,null,null,null,"0099 - Foxborough",null,null,"500 VICTORY RD NORTH QUINCY MA 02171-3139","530 WARREN ST DORCHESTER MA 02121-1821"]
["102","Freetown","0102",null,null,null,null,null,null,"0101 - Franklin",null,null,"1385 HANCOCK ST QUINCY MA 02169-5103","530 WARREN ST DORCHESTER MA 02121-1821"]
["104","Aquinnah","0104",null,null,null,null,null,null,"0102 - Freetown",null,null,"420 REVERE BEACH BLVD REVERE MA 02151-4702","6 FANEUIL HALL MARKET PL BOSTON MA 02109-6115"]
["105","Georgetown","0105",null,null,null,null,null,null,"0104 - Aquinnah",null,null,"423 W 55TH ST FL 8 NEW YORK NY 10019-4460","6 FANEUIL HALL MARKET PL BOSTON MA 02109-6115"]
["106","Gill","0106",null,null,null,null,null,null,"0105 - Georgetown",null,null,"126 JOHN ST STE 10 LOWELL MA 01852-1152","75 FEDERAL ST FL 4 BOSTON MA 02110-1900"]
["108","Goshen","0108",null,null,null,null,null,null,"0106 - Gill",null,null,"40 COURT ST STE 700 BOSTON MA 02108-2202","150 FEDERAL ST 5TH FL BOSTON MA 02110"]
["109","Gosnold","0109",null,null,null,null,null,null,"0108 - Goshen",null,null,"PO BOX 227 SOMERVILLE MA 02143-0004","7 THOMAS DR CUMBERLAND FORESIDE ME 04110-1318"]
["110","Grafton","0110",null,null,null,null,null,null,"0109 - Gosnold",null,null,"39 THERESE AVE SOUTHBRIDGE MA 01550-3048","1 SUMMER ST FL 5 BOSTON MA 02110-1013"]
["111","Granby","0111",null,null,null,null,null,null,"0110 - Grafton",null,null,"322 MAIN ST # 1 SPRINGFIELD MA 01105-2403","536 GRANITE ST STE 301 BRAINTREE MA 02184-3952"]
["112","Granville","0112",null,null,null,null,null,null,"0111 - Granby",null,null,"18 MAPLE AVE NEWTON MA 02458-1910","474 BROOKLINE AVE BOSTON MA 02215-5415"]
["113","Great Barrington","0113",null,null,null,null,null,null,"0112 - Granville",null,null,"41 TAYLOR ST SPRINGFIELD MA 01103-1852","75 FEDERAL ST FL 4 BOSTON MA 02110"]
["114","Greenfield","0114",null,null,null,null,null,null,"0113 - Great Barrington",null,null,"2 CENTER PLZ STE 700 BOSTON MA 02108-1906","15 BROAD ST STE 502 BOSTON MA 02109-3816"]
["115","Groton","0115",null,null,null,null,null,null,"0114 - Greenfield",null,null,"667 MAIN ST HOLYOKE MA 01040-5518","1 WASHINGTON MALL STE 5\nBOSTON MA 02108-2603"]
["116","Groveland","0116",null,null,null,null,null,null,"0115 - Groton",null,null,"1441 MAIN ST STE 800\nSPRINGFIELD MA 01103-1450","1 WASHINGTON MALL STE 5\nBOSTON MA 02108-2603"]
["117","Hadley","0117",null,null,null,null,null,null,"0116 - Groveland",null,null,"1985 CEDARBRIDGE AVE STE 1 LAKEWOOD NJ 08701-7031","6 FANEUIL HALL MARKET PL BOSTON MA 02109-6115"]
["118","Halifax","0118",null,null,null,null,null,null,"0117 - Hadley",null,null,"513 MAIN ST SPRINGFIELD MA 01105-2411","11 NEW WHITNEY ST BOSTON MA 02115-6276"]
["120","Hampden","0120",null,null,null,null,null,null,"0118 - Halifax",null,null,"1 MONARCH PL SPRINGFIELD MA 01144-1099","75 FEDERAL ST FL 4TH BOSTON MA 02110"]
["121","Hancock","0121",null,null,null,null,null,null,"0120 - Hampden",null,null,"995 WORTHINGTON ST SPRINGFIELD MA 01109-4027","27 MICA LN STE 301 WELLESLEY MA 02481-1741"]
["123","Hanson","0123",null,null,null,null,null,null,"0121 - Hancock",null,null,"100 WELLS AVE # 200 NEWTON MA 02459-3242","15 WIDETT CIR BOSTON MA 02118-2804"]
["124","Hardwick","0124",null,null,null,null,null,null,"0123 - Hanson",null,null,"619 STATE ST SPRINGFIELD MA 01109-4114","95 BERKELEY ST STE 500 BOSTON MA 02116-6229"]
["125","Harvard","0125",null,null,null,null,null,null,"0124 - Hardwick",null,null,"2460 MAIN ST STE 112 SPRINGFIELD MA 01107-1946","6 FANEUIL HALL MARKTPLCE BOSTON MA 02109"]
["126","Harwich","0126",null,null,null,null,null,null,"0125 - Harvard",null,null,"24 DEER PARK DR EAST LONGMEADOW MA 01028-3196","1500 BLUE HILL AVE MATTAPAN MA 02126-1746"]
["127","Hatfield","0127",null,null,null,null,null,null,"0126 - Harwich",null,null,"2001 WASHINGTON ST HANOVER MA 02339-1621","1 UNIVERSITY AVE # 2C WESTWOOD MA 02090-1245"]
["129","Hawley","0129",null,null,null,null,null,null,"0127 - Hatfield",null,null,"1 MGM WAY SPRINGFIELD MA 01103-2134","800 BOYLSTON ST SPC 19\nBOSTON MA 02199-7041"]
["130","Heath","0130",null,null,null,null,null,null,"0129 - Hawley",null,null,"1 MONARCH PL FL 25\nSPRINGFIELD MA 01144","2 CENTER PLZ STE 700 BOSTON MA 02108-1906"]
["131","Hingham","0131",null,null,null,null,null,null,"0130 - Heath",null,null,"536 GRANITE ST BRAINTREE MA 02184-3952","2 CENTER PLZ STE 700 BOSTON MA 02108-1906"]
["132","Hinsdale","0132",null,null,null,null,null,null,"0131 - Hingham",null,null,"536 GRANITE ST STE 2 BRAINTREE MA 02184-3954","2 CENTER PLZ STE 700 BOSTON MA 02108-1906"]
["133","Holbrook","0133",null,null,null,null,null,null,"0132 - Hinsdale",null,null,"69 WINTER ST SPRINGFIELD MA 01105-2326","2 CENTER PLZ STE 700 BOSTON MA 02108-1906"]
["135","Holland","0135",null,null,null,null,null,null,"0133 - Holbrook",null,null,"619 STATE ST SPRINGFIELD MA 01109-4114","45 ROCKEFELLER PLZ FL 7TH NEW YORK NY 10111-0100"]
["136","Holliston","0136",null,null,null,null,null,null,"0135 - Holland",null,null,"619 STATE ST SPRINGFIELD MA 01109-4114","1 JOHN ELIOT SQ ROXBURY MA 02119-3511"]
["137","Holyoke","0137",null,null,null,null,null,null,"0136 - Holliston",null,null,"1400 PROVIDENCE HIGHWAY STE 1000 NORWOOD MA 02062-5032","100 WELLS AVE STE 100\nNEWTON CENTER MA 02459-3243"]
["138","Hopedale","0138",null,null,null,null,null,null,"0137 - Holyoke",null,null,"400 BLUE HILL DR WESTWOOD MA 02090-2164","100 WELLS AVE # 200 NEWTON MA 02459-3242"]
["139","Hopkinton","0139",null,null,null,null,null,null,"0138 - Hopedale",null,null,"75 FEDERAL ST FL 4 BOSTON MA 02110","95 BROADWAY BOSTON MA 02116-5414"]
["140","Hubbardston","0140",null,null,null,null,null,null,"0139 - Hopkinton",null,null,"75 FEDERAL ST FL 4 BOSTON MA 02110","800 BOYLSTON STREET FL 19TH\nBOSTON MA 02199"]
["141","Hudson","0141",null,null,null,null,null,null,"0140 - Hubbardston",null,null,"465 WAVERLEY OAKS RD STE 211 WALTHAM MA 02452-8466","50 FEDERAL ST BOSTON MA 02110"]
["142","Hull","0142",null,null,null,null,null,null,"0141 - Hudson",null,null,"465 WAVERLEY OAKS RD STE 211 WALTHAM MA 02452-8466","594 COLUMBIA RD STE 302 DORCHESTER MA 02125-3436"]
["143","Huntington","0143",null,null,null,null,null,null,"0142 - Hull",null,null,"1 FENN ST STE 3 PITTSFIELD MA 01201-6279","2 CENTER PLZ STE 700 BOSTON MA 02108-1906"]
["144","Ipswich","0144",null,null,null,null,null,null,"0143 - Huntington",null,null,"100 GRANDVIEW RD STE 207 BRAINTREE MA 02184-2692","606 CONGRESS ST BOSTON MA 02210-2803"]
["145","Kingston","0145",null,null,null,null,null,null,"0144 - Ipswich",null,null,"1 WASHINGTON MALL STE 500\nBOSTON MA 02108-2603","4 EMBARCADERO CTR STE 710 SAN FRANCISCO CA 94111-4172"]
["146","Lakeville","0146",null,null,null,null,null,null,"0145 - Kingston",null,null,"101 CHADWICK ST WORCESTER MA 01605-1273","100 WELLS AVE # 200 NEWTON MA 02459-3242"]
["147","Lancaster","0147",null,null,null,null,null,null,"0146 - Lakeville",null,null,"101 CHADWICK ST WORCESTER MA 01605-1273","800 BOYLSTON ST BOSTON MA 02199-1900"]
["148","Lanesborough","0148",null,null,null,null,null,null,"0147 - Lancaster",null,null,"11 SEVER ST APT 106\nWORCESTER MA 01609-2130","11 NEW WHITNEY ST BOSTON MA 02115-6276"]
["151","Leicester","0151",null,null,null,null,null,null,"0148 - Lanesborough",null,null,"95 BERKELEY ST 5TH FL BOSTON MA 02116-6240","27 MICA LN STE 301 WELLESLEY MA 02481-1741"]
["152","Lenox","0152",null,null,null,null,null,null,"0151 - Leicester",null,null,"6 FANEUIL HALL MARKET PL BOSTON MA 02109-6115","2 N RIVERSIDE PLZ STE 400 CHICAGO IL 60606-2624"]
["153","Leominster",{"$f":"CONCATENATE(0,A131)","v":"0153"},null,null,null,null,null,null,"0152 - Lenox",null,null,"536 GRANITE ST # 301 BRAINTREE MA 02184-3952","1 FLORENCE ST ROSLINDALE MA 02131-3638"]
["154","Leverett","0154",null,null,null,null,null,null,"0153 - Leominster",null,null,"6 FANEUIL HALL MKTPLC STE 500 BOSTON MA 02109-1620","500 VICTORY RD NORTH QUINCY MA 02171-3139"]
["155","Lexington","0155",null,null,null,null,null,null,"0154 - Leverett",null,null,"2 CENTER PLZ STE 700 BOSTON MA 02108-1906","11 NEW WHITNEY ST BOSTON MA 02115-6276"]
["156","Leyden","0156",null,null,null,null,null,null,"0155 - Lexington",null,null,"475 CHANDLER ST WORCESTER MA 01602-2856","111 W CONCORD ST REAR \nBOSTON MA 02118-1544"]
["157","Lincoln","0157",null,null,null,null,null,null,"0156 - Leyden",null,null,null,"1 JOHN ELIOT SQ ROXBURY MA 02119-3511"]
["158","Littleton","0158",null,null,null,null,null,null,"0157 - Lincoln",null,null,null,"536 GRANITE ST BRAINTREE MA 02184-3952"]
["159","Longmeadow","0159",null,null,null,null,null,null,"0158 - Littleton",null,null,null,"536 GRANITE ST BRAINTREE MA 02184-3952"]
["161","Ludlow","0161",null,null,null,null,null,null,"0159 - Longmeadow",null,null,null,"200 SEAPORT BLVD STE 50 BOSTON MA 02210-2031"]
["162","Lunenburg","0162",null,null,null,null,null,null,"0161 - Ludlow",null,null,null,"6 FANEUIL HALL MKTPLC BOSTON MA 02109"]
["164","Lynnfield","0164",null,null,null,null,null,null,"0162 - Lunenburg",null,null,null,"170 NEWBURY ST BOSTON MA 02116-2873"]
["165","Malden","0165",null,null,null,null,null,null,"0164 - Lynnfield",null,null,null,"175 BERKELEY ST BOSTON MA 02116-5066"]
["166","Manchester By The Sea","0166",null,null,null,null,null,null,"0165 - Malden",null,null,null,"84 STATE ST STE 600 BOSTON MA 02109-2227"]
["167","Mansfield","0167",null,null,null,null,null,null,"0166 - Manchester By The Sea",null,null,null,"1 JOHN ELIOT SQ ROXBURY MA 02119-3511"]
["168","Marblehead","0168",null,null,null,null,null,null,"0167 - Mansfield",null,null,null,"566 COLUMBUS AVE BOSTON MA 02118-1181"]
["169","Marion","0169",null,null,null,null,null,null,"0168 - Marblehead",null,null,null,"75 FEDERAL ST FL 4 BOSTON MA 02110"]
["172","Mashpee","0172",null,null,null,null,null,null,"0169 - Marion",null,null,null,"75 FEDERAL ST FL 4 BOSTON MA 02110"]
["173","Mattapoisett","0173",null,null,null,null,null,null,"0172 - Mashpee",null,null,null,"75 FEDERAL ST FL 4 BOSTON MA 02110"]
["175","Medfield","0175",null,null,null,null,null,null,"0173 - Mattapoisett",null,null,null,"75 FEDERAL ST FL 4 BOSTON MA 02110"]
["176","Medford","0176",null,null,null,null,null,null,"0175 - Medfield",null,null,null,"75 FEDERAL ST 4TH FL BOSTON MA 02110"]
["177","Medway","0177",null,null,null,null,null,null,"0176 - Medford",null,null,null,"75 FEDERAL ST FL 4 BOSTON MA 02110"]
["178","Melrose","0178",null,null,null,null,null,null,"0177 - Medway",null,null,null,"75 FEDERAL ST FL 4 BOSTON MA 02110"]
["179","Mendon","0179",null,null,null,null,null,null,"0178 - Melrose",null,null,null,"75 FEDERAL ST LBBY 4\nBOSTON MA 02110-1900"]
["180","Merrimac","0180",null,null,null,null,null,null,"0179 - Mendon",null,null,null,"75 FEDERAL ST FL 4 BOSTON MA 02110"]
["182","Middleborough","0182",null,null,null,null,null,null,"0180 - Merrimac",null,null,null,"75 FEDERAL ST FL 4 BOSTON MA 02110"]
["183","Middlefield","0183",null,null,null,null,null,null,"0182 - Middleborough",null,null,null,"75 FEDERAL ST LBBY 4\nBOSTON MA 02110-1900"]
["184","Middleton","0184",null,null,null,null,null,null,"0183 - Middlefield",null,null,null,"75 FEDERAL ST FL 4TH\nBOSTON MA 02110-1913"]
["185","Milford","0185",null,null,null,null,null,null,"0184 - Middleton",null,null,null,"75 FEDERAL ST FL 4\nBOSTON MA 02110-1913"]
["186","Millbury","0186",null,null,null,null,null,null,"0185 - Milford",null,null,null,"75 FEDERAL ST FL 4 BOSTON MA 02110"]
["187","Millis","0187",null,null,null,null,null,null,"0186 - Millbury",null,null,null,"75 FEDERAL ST FL 4\nBOSTON MA 02110-1913"]
["188","Millville","0188",null,null,null,null,null,null,"0187 - Millis",null,null,null,"75 FEDERAL ST FL 4 BOSTON MA 02110"]
["189","Milton","0189",null,null,null,null,null,null,"0188 - Millville",null,null,null,"75 FEDERAL ST FL 4 BOSTON MA 02110"]
["190","Monroe","0190",null,null,null,null,null,null,"0189 - Milton",null,null,null,"75 FEDERAL ST FL 4 BOSTON MA 02110"]
["191","Monson","0191",null,null,null,null,null,null,"0190 - Monroe",null,null,null,"75 FEDERAL ST FL 4 BOSTON MA 02110"]
["192","Montague","0192",null,null,null,null,null,null,"0191 - Monson",null,null,null,"PO BOX 1920 DALLAS TX 75221-1920"]
["193","Monterey","0193",null,null,null,null,null,null,"0192 - Montague",null,null,null,"84 STATE ST STE 600 BOSTON MA 02109-2227"]
["194","Montgomery","0194",null,null,null,null,null,null,"0193 - Monterey",null,null,null,"630 TREMONT ST BOSTON MA 02118-1607"]
["195","Mount Washington","0195",null,null,null,null,null,null,"0194 - Montgomery",null,null,null,"536 GRANITE ST BRAINTREE MA 02184-3952"]
["196","Nahant","0196",null,null,null,null,null,null,"0195 - Mount Washington",null,null,null,"27 MICA LN STE 301 WELLESLEY MA 02481-1741"]
["197","Nantucket","0197",null,null,null,null,null,null,"0196 - Nahant",null,null,null,"7 THOMAS DR CUMBERLAND FORESIDE ME 04110-1318"]
["198","Natick","0198",null,null,null,null,null,null,"0197 - Nantucket",null,null,null,"31 GERMANIA ST JAMAICA PLAIN MA 02130-2314"]
["199","Needham","0199",null,null,null,null,null,null,"0198 - Natick",null,null,null,"196 CHESTNUT AVE STE 8\nBOSTON MA 02130-4446"]
["200","New Ashford","0200",null,null,null,null,null,null,"0199 - Needham",null,null,null,"144 WORCESTER ST APT 1\nBOSTON MA 02118-3448"]
["202","New Braintree","0202",null,null,null,null,null,null,"0200 - New Ashford",null,null,null,"112 WATER ST STE 600 BOSTON MA 02109-4204"]
["203","New Marlborough","0203",null,null,null,null,null,null,"0202 - New Braintree",null,null,null,"1400 PROVIDENCE HIGHWAY STE 1000 NORWOOD MA 02062-5032"]
["204","New Salem","0204",null,null,null,null,null,null,"0203 - New Marlborough",null,null,null,"95 BERKELEY ST STE 500\nBOSTON MA 02116-6229"]
["205","Newbury","0205",null,null,null,null,null,null,"0204 - New Salem",null,null,null,"95 BERKELEY ST STE 500 BOSTON MA 02116-6229"]
["208","Norfolk","0208",null,null,null,null,null,null,"0205 - Newbury",null,null,null,"72 MARGINAL ST EAST BOSTON MA 02128-2135"]
["209","North Adams","0209",null,null,null,null,null,null,"0208 - Norfolk"]
["210","North Andover","0210",null,null,null,null,null,null,"0209 - North Adams"]
["211","North Attleborough","0211",null,null,null,null,null,null,"0210 - North Andover"]
["212","North Brookfield","0212",null,null,null,null,null,null,"0211 - North Attleborough"]
["213","North Reading","0213",null,null,null,null,null,null,"0212 - North Brookfield"]
["214","Northampton","0214",null,null,null,null,null,null,"0213 - North Reading"]
["215","Northborough","0215",null,null,null,null,null,null,"0214 - Northampton"]
["216","Northbridge","0216",null,null,null,null,null,null,"0215 - Northborough"]
["217","Northfield","0217",null,null,null,null,null,null,"0216 - Northbridge"]
["218","Norton","0218",null,null,null,null,null,null,"0217 - Northfield"]
["219","Norwell","0219",null,null,null,null,null,null,"0218 - Norton"]
["220","Norwood","0220",null,null,null,null,null,null,"0219 - Norwell"]
["221","Oak Bluffs","0221",null,null,null,null,null,null,"0220 - Norwood"]
["222","Oakham","0222",null,null,null,null,null,null,"0221 - Oak Bluffs"]
["223","Orange","0223",null,null,null,null,null,null,"0222 - Oakham"]
["224","Orleans","0224",null,null,null,null,null,null,"0223 - Orange"]
["225","Otis","0225",null,null,null,null,null,null,"0224 - Orleans"]
["226","Oxford",{"$f":"CONCATENATE(0,A195)","v":"0226"},null,null,null,null,null,null,"0225 - Otis"]
["227","Palmer","0227",null,null,null,null,null,null,"0226 - Oxford"]
["228","Paxton","0228",null,null,null,null,null,null,"0227 - Palmer"]
["230","Pelham","0230",null,null,null,null,null,null,"0228 - Paxton"]
["231","Pembroke","0231",null,null,null,null,null,null,"0230 - Pelham"]
["232","Pepperell","0232",null,null,null,null,null,null,"0231 - Pembroke"]
["233","Peru","0233",null,null,null,null,null,null,"0232 - Pepperell"]
["234","Petersham","0234",null,null,null,null,null,null,"0233 - Peru"]
["235","Phillipston","0235",null,null,null,null,null,null,"0234 - Petersham"]
["237","Plainfield","0237",null,null,null,null,null,null,"0235 - Phillipston"]
["238","Plainville","0238",null,null,null,null,null,null,"0237 - Plainfield"]
["239","Plymouth","0239",null,null,null,null,null,null,"0238 - Plainville"]
["240","Plympton","0240",null,null,null,null,null,null,"0239 - Plymouth"]
["241","Princeton","0241",null,null,null,null,null,null,"0240 - Plympton"]
["242","Provincetown","0242",null,null,null,null,null,null,"0241 - Princeton"]
["244","Randolph","0244",null,null,null,null,null,null,"0242 - Provincetown"]
["245","Raynham","0245",null,null,null,null,null,null,"0244 - Randolph"]
["246","Reading","0246",null,null,null,null,null,null,"0245 - Raynham"]
["247","Rehoboth","0247",null,null,null,null,null,null,"0246 - Reading"]
["249","Richmond","0249",null,null,null,null,null,null,"0247 - Rehoboth"]
["250","Rochester","0250",null,null,null,null,null,null,"0249 - Richmond"]
["251","Rockland","0251",null,null,null,null,null,null,"0250 - Rochester"]
["252","Rockport","0252",null,null,null,null,null,null,"0251 - Rockland"]
["253","Rowe","0253",null,null,null,null,null,null,"0252 - Rockport"]
["254","Rowley","0254",null,null,null,null,null,null,"0253 - Rowe"]
["255","Royalston","0255",null,null,null,null,null,null,"0254 - Rowley"]
["256","Russell","0256",null,null,null,null,null,null,"0255 - Royalston"]
["257","Rutland","0257",null,null,null,null,null,null,"0256 - Russell"]
["259","Salisbury","0259",null,null,null,null,null,null,"0257 - Rutland"]
["260","Sandisfield","0260",null,null,null,null,null,null,"0259 - Salisbury"]
["261","Sandwich","0261",null,null,null,null,null,null,"0260 - Sandisfield"]
["262","Saugus","0262",null,null,null,null,null,null,"0261 - Sandwich"]
["263","Savoy","0263",null,null,null,null,null,null,"0262 - Saugus"]
["264","Scituate","0264",null,null,null,null,null,null,"0263 - Savoy"]
["265","Seekonk","0265",null,null,null,null,null,null,"0264 - Scituate"]
["266","Sharon","0266",null,null,null,null,null,null,"0265 - Seekonk"]
["267","Sheffield","0267",null,null,null,null,null,null,"0266 - Sharon"]
["268","Shelburne","0268",null,null,null,null,null,null,"0267 - Sheffield"]
["269","Sherborn","0269",null,null,null,null,null,null,"0268 - Shelburne"]
["270","Shirley","0270",null,null,null,null,null,null,"0269 - Sherborn"]
["271","Shrewsbury","0271",null,null,null,null,null,null,"0270 - Shirley"]
["272","Shutesbury","0272",null,null,null,null,null,null,"0271 - Shrewsbury"]
["273","Somerset","0273",null,null,null,null,null,null,"0272 - Shutesbury"]
["275","South Hadley","0275",null,null,null,null,null,null,"0273 - Somerset"]
["276","Southampton","0276",null,null,null,null,null,null,"0275 - South Hadley"]
["277","Southborough","0277",null,null,null,null,null,null,"0276 - Southampton"]
["280","Spencer","0280",null,null,null,null,null,null,"0277 - Southborough"]
["282","Sterling","0282",null,null,null,null,null,null,"0280 - Spencer"]
["283","Stockbridge","0283",null,null,null,null,null,null,"0282 - Sterling"]
["284","Stoneham","0284",null,null,null,null,null,null,"0283 - Stockbridge"]
["285","Stoughton","0285",null,null,null,null,null,null,"0284 - Stoneham"]
["286","Stow","0286",null,null,null,null,null,null,"0285 - Stoughton"]
["287","Sturbridge","0287",null,null,null,null,null,null,"0286 - Stow"]
["288","Sudbury","0288",null,null,null,null,null,null,"0287 - Sturbridge"]
["289","Sunderland","0289",null,null,null,null,null,null,"0288 - Sudbury"]
["290","Sutton","0290",null,null,null,null,null,null,"0289 - Sunderland"]
["291","Swampscott","0291",null,null,null,null,null,null,"0290 - Sutton"]
["292","Swansea","0292",null,null,null,null,null,null,"0291 - Swampscott"]
["294","Templeton","0294",null,null,null,null,null,null,"0292 - Swansea"]
["295","Tewksbury","0295",null,null,null,null,null,null,"0294 - Templeton"]
["296","Tisbury","0296",null,null,null,null,null,null,"0295 - Tewksbury"]
["297","Tolland","0297",null,null,null,null,null,null,"0296 - Tisbury"]
["298","Topsfield","0298",null,null,null,null,null,null,"0297 - Tolland"]
["299","Townsend","0299",null,null,null,null,null,null,"0298 - Topsfield"]
["300","Truro",{"$f":"CONCATENATE(0,A259)","v":"0300"},null,null,null,null,null,null,"0299 - Townsend"]
["301","Tyngsborough","0301",null,null,null,null,null,null,"0300 - Truro"]
["302","Tyringham","0302",null,null,null,null,null,null,"0301 - Tyngsborough"]
["303","Upton","0303",null,null,null,null,null,null,"0302 - Tyringham"]
["304","Uxbridge","0304",null,null,null,null,null,null,"0303 - Upton"]
["305","Wakefield","0305",null,null,null,null,null,null,"0304 - Uxbridge"]
["306","Wales","0306",null,null,null,null,null,null,"0305 - Wakefield"]
["307","Walpole","0307",null,null,null,null,null,null,"0306 - Wales"]
["309","Ware","0309",null,null,null,null,null,null,"0307 - Walpole"]
["310","Wareham","0310",null,null,null,null,null,null,"0309 - Ware"]
["311","Warren","0311",null,null,null,null,null,null,"0310 - Wareham"]
["312","Warwick","0312",null,null,null,null,null,null,"0311 - Warren"]
["313","Washington","0313",null,null,null,null,null,null,"0312 - Warwick"]
["314","Watertown","0314",null,null,null,null,null,null,"0313 - Washington"]
["315","Wayland","0315",null,null,null,null,null,null,"0314 - Watertown"]
["316","Webster","0316",null,null,null,null,null,null,"0315 - Wayland"]
["317","Wellesley","0317",null,null,null,null,null,null,"0316 - Webster"]
["318","Wellfleet","0318",null,null,null,null,null,null,"0317 - Wellesley"]
["319","Wendell","0319",null,null,null,null,null,null,"0318 - Wellfleet"]
["320","Wenham","0320",null,null,null,null,null,null,"0319 - Wendell"]
["321","West Boylston","0321",null,null,null,null,null,null,"0320 - Wenham"]
["322","West Bridgewater","0322",null,null,null,null,null,null,"0321 - West Boylston"]
["323","West Brookfield","0323",null,null,null,null,null,null,"0322 - West Bridgewater"]
["324","West Newbury","0324",null,null,null,null,null,null,"0323 - West Brookfield"]
["325","West Springfield","0325",null,null,null,null,null,null,"0324 - West Newbury"]
["326","West Stockbridge","0326",null,null,null,null,null,null,"0325 - West Springfield"]
["327","West Tisbury","0327",null,null,null,null,null,null,"0326 - West Stockbridge"]
["328","Westborough","0328",null,null,null,null,null,null,"0327 - West Tisbury"]
["329","Westfield","0329",null,null,null,null,null,null,"0328 - Westborough"]
["330","Westford","0330",null,null,null,null,null,null,"0329 - Westfield"]
["331","Westhampton","0331",null,null,null,null,null,null,"0330 - Westford"]
["332","Westminster","0332",null,null,null,null,null,null,"0331 - Westhampton"]
["333","Weston","0333",null,null,null,null,null,null,"0332 - Westminster"]
["334","Westport","0334",null,null,null,null,null,null,"0333 - Weston"]
["335","Westwood","0335",null,null,null,null,null,null,"0334 - Westport"]
["336","Weymouth","0336",null,null,null,null,null,null,"0335 - Westwood"]
["337","Whately","0337",null,null,null,null,null,null,"0336 - Weymouth"]
["338","Whitman","0338",null,null,null,null,null,null,"0337 - Whately"]
["339","Wilbraham","0339",null,null,null,null,null,null,"0338 - Whitman"]
["340","Williamsburg","0340",null,null,null,null,null,null,"0339 - Wilbraham"]
["342","Wilmington","0342",null,null,null,null,null,null,"0340 - Williamsburg"]
["343","Winchendon","0343",null,null,null,null,null,null,"0342 - Wilmington"]
["344","Winchester","0344",null,null,null,null,null,null,"0343 - Winchendon"]
["345","Windsor","0345",null,null,null,null,null,null,"0344 - Winchester"]
["346","Winthrop","0346",null,null,null,null,null,null,"0345 - Windsor"]
["347","Woburn","0347",null,null,null,null,null,null,"0346 - Winthrop"]
["349","Worthington","0349",null,null,null,null,null,null,"0347 - Woburn"]
["350","Wrentham","0350",null,null,null,null,null,null,"0349 - Worthington"]
["351","Yarmouth","0351",null,null,null,null,null,null,"0350 - Wrentham"]
[null,null,null,null,null,null,null,null,null,"0351 - Yarmouth"]